Workbook

Sheet U.dist
A1: U-dist | D1: Trial | E1: Z | G1: Z | H1: from | I1: to | J1: P.trial
A2: Set | D2: 1 | E2: =RAND() -> 0.2745523281 | G2: 0 | H2: =G2 -> 0 | I2: =G2+0.05 -> 0.05 | J2: =COUNTIFS($E$2:$E$2001,">"&H2,$E$2:$E$2001,"<="&I2)/2000 -> 0.0585
A3: m | B3: 10 | D3: 2 | E3: =RAND() -> 0.880870344 | G3: 0.05 | H3: =G3 -> 0.05 | I3: =G3+0.05 -> 0.1 | J3: =COUNTIFS($E$2:$E$2001,">"&H3,$E$2:$E$2001,"<="&I3)/2000 -> 0.0515
A4: v | B4: 10 | D4: 3 | E4: 0.0464234865 | G4: 0.1 | H4: 0.1 | I4: 0.15 | J4: 0.05
A5: sd | B5: =SQRT(B4) -> 3.16227766 | D5: 4 | E5: 0.5286703146 | G5: 0.15 | H5: 0.15 | I5: 0.2 | J5: 0.0475
D6: 5 | E6: 0.7619164389 | G6: 0.2 | H6: 0.2 | I6: 0.25 | J6: 0.0605
A7: Trial | D7: 6 | E7: 0.2711598773 | G7: 0.25 | H7: 0.25 | I7: 0.3 | J7: 0.045
A8: M | B8: =AVERAGE(E:E) -> 0.4918926435 | D8: 7 | E8: 0.3295552694 | G8: 0.3 | H8: 0.3 | I8: 0.35 | J8: 0.0475
A9: V | B9: =VARP(E:E) -> 0.08448663508 | D9: 8 | E9: 0.7213348692 | G9: 0.35 | H9: 0.35 | I9: 0.4 | J9: 0.043
A10: SD | B10: =SQRT(B9) -> 0.2906658478 | D10: 9 | E10: 0.8892735618 | G10: 0.4 | H10: 0.4 | I10: 0.45 | J10: 0.0535
D11: 10 | E11: 0.3542189335 | G11: 0.45 | H11: 0.45 | I11: 0.5 | J11: 0.0535
A12: Renew: [F9] | D12: 11 | E12: 0.4356707298 | G12: 0.5 | H12: 0.5 | I12: 0.55 | J12: 0.0515
D13: 12 | E13: 0.6884854576 | G13: 0.55 | H13: 0.55 | I13: 0.6 | J13: 0.052
D14: 13 | E14: 0.02659732158 | G14: 0.6 | H14: 0.6 | I14: 0.65 | J14: 0.044
D15: 14 | E15: 0.617948646 | G15: 0.65 | H15: 0.65 | I15: 0.7 | J15: 0.047
D16: 15 | E16: 0.8726750781 | G16: 0.7 | H16: 0.7 | I16: 0.75 | J16: 0.0565
D17: 16 | E17: 0.2549712717 | G17: 0.75 | H17: 0.75 | I17: 0.8 | J17: 0.0435
D18: 17 | E18: 0.4497756399 | G18: 0.8 | H18: 0.8 | I18: 0.85 | J18: 0.048
D19: 18 | E19: 0.7000702742 | G19: 0.85 | H19: 0.85 | I19: 0.9 | J19: 0.0485
D20: 19 | E20: 0.3252182994 | G20: 0.9 | H20: 0.9 | I20: 0.95 | J20: 0.0505
D21: 20 | E21: 0.9489347575 | G21: 0.95 | H21: 0.95 | I21: 1 | J21: 0.048
D22: 21 | E22: 0.6858452755
D23: 22 | E23: 0.2823408375
D24: 23 | E24: 0.1389529007
D25: 24 | E25: 0.5127105484
D26: 25 | E26: 0.2423901666
D27: 26 | E27: 0.08842143562
D28: 27 | E28: 0.7853304846
D29: 28 | E29: 0.7007149422
D30: 29 | E30: 0.2045120915
D31: 30 | E31: 0.000471798566
D32: 31 | E32: 0.7031015122
D33: 32 | E33: 0.3276314902
D34: 33 | E34: 0.7653821547
D35: 34 | E35: 0.3204948977
D36: 35 | E36: 0.06028468766
D37: 36 | E37: 0.4237649686
D38: 37 | E38: 0.2689442408
D39: 38 | E39: 0.4884339082
D40: 39 | E40: 0.08010491392
D41: 40 | E41: 0.9226027161
D42: 41 | E42: 0.3754220374
D43: 42 | E43: 0.2369339314
D44: 43 | E44: 0.6671749287
D45: 44 | E45: 0.8664878285
D46: 45 | E46: 0.08318428579
D47: 46 | E47: 0.9517028376
D48: 47 | E48: 0.7026610202
D49: 48 | E49: 0.5005604936
D50: 49 | E50: 0.7573648642
D51: 50 | E51: 0.6332440055
D52: 51 | E52: 0.4032777708
D53: 52 | E53: 0.4818286071
D54: 53 | E54: 0.1705503619
D55: 54 | E55: 0.7599485529
D56: 55 | E56: 0.9387753726
D57: 56 | E57: 0.7092569915
D58: 57 | E58: 0.7996594056
D59: 58 | E59: 0.1336674602
D60: 59 | E60: 0.1618942966
D61: 60 | E61: 0.4783884802
D62: 61 | E62: 0.510548992
D63: 62 | E63: 0.06456777522
D64: 63 | E64: 0.67615596
D65: 64 | E65: 0.459546289
D66: 65 | E66: 0.6208225136
D67: 66 | E67: =RAND() -> 0.6834524235
D68: 67 | E68: 0.04924138639
D69: 68 | E69: 0.2636415378
D70: 69 | E70: 0.713813966
D71: 70 | E71: 0.04807196793
D72: 71 | E72: 0.5883293637
D73: 72 | E73: 0.793076604
D74: 73 | E74: 0.3368468247
D75: 74 | E75: 0.1009547156
D76: 75 | E76: 0.0698236509
D77: 76 | E77: 0.6560986613
D78: 77 | E78: 0.5865253573
D79: 78 | E79: 0.2233822612
D80: 79 | E80: 0.9474018636
D81: 80 | E81: 0.803267254
D82: 81 | E82: 0.8998748684
D83: 82 | E83: 0.830353362
D84: 83 | E84: 0.9425037581
D85: 84 | E85: 0.7912626843
D86: 85 | E86: 0.7895499011
D87: 86 | E87: 0.1524628417
D88: 87 | E88: 0.2898018623
D89: 88 | E89: 0.7416500432
D90: 89 | E90: 0.8860826757
D91: 90 | E91: 0.1237506899
D92: 91 | E92: 0.3082924082
D93: 92 | E93: 0.7861839987
D94: 93 | E94: 0.9037524973
D95: 94 | E95: 0.03187198363
D96: 95 | E96: 0.1359901718
D97: 96 | E97: 0.586263897
D98: 97 | E98: 0.7264956461
D99: 98 | E99: 0.3937257274
D100: 99 | E100: 0.3152772
D101: 100 | E101: 0.6351771871
D102: 101 | E102: 0.4677310933
D103: 102 | E103: 0.6822218909
D104: 103 | E104: 0.4247407903
D105: 104 | E105: 0.4729912052
D106: 105 | E106: 0.4977037018
D107: 106 | E107: 0.317698266
D108: 107 | E108: 0.5189863814
D109: 108 | E109: 0.7533571074
D110: 109 | E110: 0.3908758122
D111: 110 | E111: 0.7359211946
D112: 111 | E112: 0.200529488
D113: 112 | E113: 0.7627937299
D114: 113 | E114: 0.8372379329
D115: 114 | E115: 0.1306624528
D116: 115 | E116: 0.6231419255
D117: 116 | E117: 0.3203421762
D118: 117 | E118: 0.05299443725
D119: 118 | E119: 0.9587384386
D120: 119 | E120: 0.9941196149
D121: 120 | E121: 0.8642132512
D122: 121 | E122: 0.1967831531
D123: 122 | E123: 0.8117623011
D124: 123 | E124: 0.4521976957
D125: 124 | E125: 0.7522403089
D126: 125 | E126: 0.0429472358
D127: 126 | E127: 0.3545610717
D128: 127 | E128: 0.4271715062
D129: 128 | E129: 0.263336737
D130: 129 | E130: 0.6707795947
D131: 130 | E131: =RAND() -> 0.6304363772
D132: 131 | E132: 0.3833966744
D133: 132 | E133: 0.2386129665
D134: 133 | E134: 0.648954745
D135: 134 | E135: 0.5709770064
D136: 135 | E136: 0.5599595953
D137: 136 | E137: 0.9324421512
D138: 137 | E138: 0.8444295393
D139: 138 | E139: 0.796340711
D140: 139 | E140: 0.03071064273
D141: 140 | E141: 0.1779582546
D142: 141 | E142: 0.4625750732
D143: 142 | E143: 0.3347326358
D144: 143 | E144: 0.7847426684
D145: 144 | E145: 0.5265964112
D146: 145 | E146: 0.4292870208
D147: 146 | E147: 0.2610422544
D148: 147 | E148: 0.7413925009
D149: 148 | E149: 0.3674798287
D150: 149 | E150: 0.6560748584
D151: 150 | E151: 0.1444321118
D152: 151 | E152: 0.2952634177
D153: 152 | E153: 0.8001304458
D154: 153 | E154: 0.5608410181
D155: 154 | E155: 0.5430755514
D156: 155 | E156: 0.4608380684
D157: 156 | E157: 0.6027723041
D158: 157 | E158: 0.04174369427
D159: 158 | E159: 0.7921134565
D160: 159 | E160: 0.6768140853
D161: 160 | E161: 0.008653263099
D162: 161 | E162: 0.4864734832
D163: 162 | E163: 0.3732155423
D164: 163 | E164: 0.8943358583
D165: 164 | E165: 0.6204225411
D166: 165 | E166: 0.4441556677
D167: 166 | E167: 0.287910778
D168: 167 | E168: 0.970869793
D169: 168 | E169: 0.7448728035
D170: 169 | E170: 0.8853916915
D171: 170 | E171: 0.7927956212
D172: 171 | E172: 0.03787333438
D173: 172 | E173: 0.267172583
D174: 173 | E174: 0.00862221439
D175: 174 | E175: 0.190373185
D176: 175 | E176: 0.6913535353
D177: 176 | E177: 0.8830283063
D178: 177 | E178: 0.575419211
D179: 178 | E179: 0.9067092973
D180: 179 | E180: 0.2495966802
D181: 180 | E181: 0.8505743876
D182: 181 | E182: 0.1817793608
D183: 182 | E183: 0.208694493
D184: 183 | E184: 0.7063397838
D185: 184 | E185: 0.1450430897
D186: 185 | E186: 0.9115771495
D187: 186 | E187: 0.2567601735
D188: 187 | E188: 0.3406719959
D189: 188 | E189: 0.8936221812
D190: 189 | E190: 0.3058518731
D191: 190 | E191: 0.2589485209
D192: 191 | E192: 0.5178389932
D193: 192 | E193: 0.4325099897
D194: 193 | E194: 0.1133898259
D195: 194 | E195: =RAND() -> 0.1423966731
D196: 195 | E196: 0.1045382289
D197: 196 | E197: 0.1213736569
D198: 197 | E198: 0.7470040325
D199: 198 | E199: 0.5753687876
D200: 199 | E200: 0.5823310703
... 1801 more rows

Sheet S
A1: N | B1: M | C1: V | D1: Uni
A2: 100 | B2: 0.4678586233 | C2: 0.07077743033
A3: 200 | B3: 0.5197133148 | C3: 0.09344489632
A4: 300 | B4: 0.4959577978 | C4: 0.08397174251
A5: 400 | B5: 0.5382355201 | C5: 0.08405800251
A6: 500 | B6: 0.4913851507 | C6: 0.07868359174
A7: 600 | B7: 0.4901581085 | C7: 0.08008664342
A8: 700 | B8: 0.4908799398 | C8: 0.08092783603
A9: 800 | B9: 0.5024891365 | C9: 0.0845850499
A10: 900 | B10: 0.4952541769 | C10: 0.08630114161
A11: 1000 | B11: 0.4888992584 | C11: 0.08670207514
A12: 1100 | B12: 0.5115091048 | C12: 0.08329668161
A13: 1200 | B13: 0.4955811012 | C13: 0.08312032628
A14: 1300 | B14: 0.4957504073 | C14: 0.08320644421
A15: 1400 | B15: 0.5016398895 | C15: 0.08085936853
A16: 1500 | B16: 0.5192191681 | C16: 0.08471558454
A17: 1600 | B17: 0.5008903205 | C17: 0.08637946198
A18: 1700 | B18: 0.492280755 | C18: 0.08344256641
A19: 1800 | B19: 0.5047124671 | C19: 0.08508973128
A20: 1900 | B20: 0.4976625016 | C20: 0.08341719479
A21: 2000 | B21: 0.5003972633 | C21: 0.08215170851
A23: N | B23: M | C23: V | D23: Norm
A24: 100 | B24: 0.44867187 | C24: 0.0864740717
A25: 200 | B25: 0.5029271649 | C25: 0.09244853011
A26: 300 | B26: 0.5158655015 | C26: 0.08672480141
A27: 400 | B27: 0.4951146423 | C27: 0.08161442121
A28: 500 | B28: 0.5163926259 | C28: 0.08889427864
A29: 600 | B29: 0.5129410579 | C29: 0.07750811422
A30: 700 | B30: 0.4818312215 | C30: 0.09390491139
A31: 800 | B31: 0.5001538279 | C31: 0.08484922301
A32: 900 | B32: 0.5037831872 | C32: 0.08341256085
A33: 1000 | B33: 0.4737969904 | C33: 0.0874020236
A34: 1100 | B34: 0.5125230064 | C34: 0.09526069696
A35: 1200 | B35: 0.5038771586 | C35: 0.08123008135
A36: 1300 | B36: 0.4957106349 | C36: 0.07950469505
A37: 1400 | B37: 0.4981830638 | C37: 0.08160757061
A38: 1500 | B38: 0.5027475294 | C38: 0.0883314955
A39: 1600 | B39: 0.5045102429 | C39: 0.08422361921
A40: 1700 | B40: 0.5032186351 | C40: 0.08484733102
A41: 1800 | B41: 0.4976426165 | C41: 0.08252548606
A42: 1900 | B42: 0.5065892347 | C42: 0.08193315299
A43: 2000 | B43: 0.4918859958 | C43: 0.08394259356

Sheet N.dist
A1: N-dist | D1: Trial | E1: Z | G1: Z | H1: from | I1: to | J1: P.trial | K1: N.dist
A2: Set | D2: 1 | E2: =NORMINV(RAND(), $B$3, $B$5) -> 7.469635229 | G2: 0 | H2: =G2 -> 0 | I2: =G2+1 -> 1 | J2: =COUNTIFS($E$2:$E$2001,">"&H2,$E$2:$E$2001,"<="&I2)/2000 -> 0.0015 | K2: =NORMDIST(I2,$B$3,$B$5,1)-NORMDIST(H2,$B$3,$B$5,1) -> 0.0014305618
A3: m | B3: 10 | D3: 2 | E3: =NORMINV(RAND(), $B$3, $B$5) -> 5.801467636 | G3: 1 | H3: =G3 -> 1 | I3: =G3+1 -> 2 | J3: =COUNTIFS($E$2:$E$2001,">"&H3,$E$2:$E$2001,"<="&I3)/2000 -> 0.004 | K3: =NORMDIST(I3,$B$3,$B$5,1)-NORMDIST(H3,$B$3,$B$5,1) -> 0.003492755264
A4: v | B4: 10 | D4: 3 | E4: 10.42377881 | G4: 2 | H4: 2 | I4: 3 | J4: 0.0055 | K4: 0.007722329561
A5: sd | B5: =SQRT(B4) -> 3.16227766 | D5: 4 | E5: 11.40222191 | G5: 3 | H5: 3 | I5: 4 | J5: 0.0125 | K5: 0.01546143781
D6: 5 | E6: 8.220958849 | G6: 4 | H6: 4 | I6: 5 | J6: 0.03 | K6: 0.02803336344
A7: Trial | D7: 6 | E7: 9.509881798 | G7: 5 | H7: 5 | I7: 6 | J7: 0.046 | K7: 0.04602845636
A8: M | B8: =AVERAGE(E:E) -> 9.832453107 | D8: 7 | E8: 13.72123871 | G8: 6 | H8: 6 | I8: 7 | J8: 0.0885 | K8: 0.06843925021
A9: V | B9: =VARP(E:E) -> 9.886522308 | D9: 8 | E9: 9.850044444 | G9: 7 | H9: 7 | I9: 8 | J9: 0.0905 | K9: 0.09215377286
A10: SD | B10: =SQRT(B9) -> 3.144284069 | D10: 9 | E10: 9.286555787 | G10: 8 | H10: 8 | I10: 9 | J10: 0.1255 | K10: 0.1123701886
D11: 10 | E11: 11.53303115 | G11: 9 | H11: 9 | I11: 10 | J11: 0.116 | K11: 0.124085183
A12: Renew: [F9] | D12: 11 | E12: 8.317153263 | G12: 10 | H12: 10 | I12: 11 | J12: 0.135 | K12: 0.124085183
D13: 12 | E13: 11.44641365 | G13: 11 | H13: 11 | I13: 12 | J13: 0.105 | K13: 0.1123701886
D14: 13 | E14: 5.46514881 | G14: 12 | H14: 12 | I14: 13 | J14: 0.0775 | K14: 0.09215377286
D15: 14 | E15: 10.73516209 | G15: 13 | H15: 13 | I15: 14 | J15: 0.0645 | K15: 0.06843925021
D16: 15 | E16: 6.901931747 | G16: 14 | H16: 14 | I16: 15 | J16: 0.0445 | K16: 0.04602845636
D17: 16 | E17: 9.994077073 | G17: 15 | H17: 15 | I17: 16 | J17: 0.0255 | K17: 0.02803336344
D18: 17 | E18: 12.84232288 | G18: 16 | H18: 16 | I18: 17 | J18: 0.0145 | K18: 0.01546143781
D19: 18 | E19: 12.0270719 | G19: 17 | H19: 17 | I19: 18 | J19: 0.006 | K19: 0.007722329561
D20: 19 | E20: 8.767244475 | G20: 18 | H20: 18 | I20: 19 | J20: 0.0035 | K20: 0.003492755264
D21: 20 | E21: 9.734462584 | G21: 19 | H21: 19 | I21: 20 | J21: 0.0015 | K21: 0.0014305618
D22: 21 | E22: 10.56757446
D23: 22 | E23: 9.114725827
D24: 23 | E24: 10.11269323
D25: 24 | E25: 8.119370575
D26: 25 | E26: 8.482103263
D27: 26 | E27: 10.2898752
D28: 27 | E28: 6.846375995
D29: 28 | E29: 13.35106832
D30: 29 | E30: 11.40512729
D31: 30 | E31: 7.096299158
D32: 31 | E32: 12.82800128
D33: 32 | E33: 13.02820438
D34: 33 | E34: 12.44832014
D35: 34 | E35: 11.42415396
D36: 35 | E36: 6.028466105
D37: 36 | E37: 10.02752512
D38: 37 | E38: 9.067333646
D39: 38 | E39: 8.524829495
D40: 39 | E40: 8.563802429
D41: 40 | E41: 10.07873863
D42: 41 | E42: 9.051524561
D43: 42 | E43: 8.167262671
D44: 43 | E44: 8.07341377
D45: 44 | E45: 9.59446188
D46: 45 | E46: 14.72258844
D47: 46 | E47: 16.55468138
D48: 47 | E48: 10.03889673
D49: 48 | E49: 15.60005887
D50: 49 | E50: 12.68437845
D51: 50 | E51: 3.139165897
D52: 51 | E52: 7.549969575
D53: 52 | E53: 18.5164468
D54: 53 | E54: 12.2263932
D55: 54 | E55: 7.765729578
D56: 55 | E56: 14.38545358
D57: 56 | E57: 9.949346646
D58: 57 | E58: 8.755481599
D59: 58 | E59: 9.532756948
D60: 59 | E60: 12.77539393
D61: 60 | E61: 6.457947575
D62: 61 | E62: 7.390804408
D63: 62 | E63: 9.108486123
D64: 63 | E64: 7.55262773
D65: 64 | E65: 9.637065372
D66: 65 | E66: 8.915861624
D67: 66 | E67: =NORMINV(RAND(), $B$3, $B$5) -> 8.621616507
D68: 67 | E68: 3.365521128
D69: 68 | E69: 8.876754107
D70: 69 | E70: 10.15002399
D71: 70 | E71: 7.032272187
D72: 71 | E72: 9.451681726
D73: 72 | E73: 7.512948607
D74: 73 | E74: 8.911268396
D75: 74 | E75: 9.173957271
D76: 75 | E76: 9.349473448
D77: 76 | E77: 11.31393514
D78: 77 | E78: 7.556931927
D79: 78 | E79: 4.250768259
D80: 79 | E80: 8.53449039
D81: 80 | E81: 11.88213934
D82: 81 | E82: 10.37120265
D83: 82 | E83: 6.487646514
D84: 83 | E84: 7.44894187
D85: 84 | E85: 12.20212547
D86: 85 | E86: 11.45769462
D87: 86 | E87: 8.670992556
D88: 87 | E88: 9.735782409
D89: 88 | E89: 12.40877906
D90: 89 | E90: 8.201858569
D91: 90 | E91: 3.924580401
D92: 91 | E92: 6.888627983
D93: 92 | E93: 12.6852871
D94: 93 | E94: 5.775540884
D95: 94 | E95: 11.37700044
D96: 95 | E96: 7.63499323
D97: 96 | E97: 9.939692697
D98: 97 | E98: 6.879674957
D99: 98 | E99: 3.93282695
D100: 99 | E100: 7.078493766
D101: 100 | E101: 15.17759782
D102: 101 | E102: 9.197817131
D103: 102 | E103: 8.375959635
D104: 103 | E104: 1.451746497
D105: 104 | E105: 15.89851924
D106: 105 | E106: 13.3685171
D107: 106 | E107: 12.20270555
D108: 107 | E108: 3.580696731
D109: 108 | E109: 10.66270745
D110: 109 | E110: 7.231353973
D111: 110 | E111: 4.997417568
D112: 111 | E112: 8.983098414
D113: 112 | E113: 11.95463855
D114: 113 | E114: 12.01490413
D115: 114 | E115: 9.25681082
D116: 115 | E116: 6.427248438
D117: 116 | E117: 7.912774353
D118: 117 | E118: 6.551771889
D119: 118 | E119: 11.67268356
D120: 119 | E120: 7.101904608
D121: 120 | E121: 11.16813442
D122: 121 | E122: 9.569285566
D123: 122 | E123: 11.12842375
D124: 123 | E124: 12.38612783
D125: 124 | E125: 8.74099415
D126: 125 | E126: 8.886456195
D127: 126 | E127: 12.71281238
D128: 127 | E128: 12.47006814
D129: 128 | E129: 6.654821559
D130: 129 | E130: 9.842746745
D131: 130 | E131: =NORMINV(RAND(), $B$3, $B$5) -> 6.993652198
D132: 131 | E132: 6.985765754
D133: 132 | E133: 10.47421714
D134: 133 | E134: 8.398038214
D135: 134 | E135: 7.281483057
D136: 135 | E136: 12.78863842
D137: 136 | E137: 8.313010033
D138: 137 | E138: 5.981556365
D139: 138 | E139: 13.67829654
D140: 139 | E140: 4.330378484
D141: 140 | E141: 8.494148079
D142: 141 | E142: 7.344250625
D143: 142 | E143: 6.699859898
D144: 143 | E144: 10.72460483
D145: 144 | E145: 8.713582794
D146: 145 | E146: 13.01675879
D147: 146 | E147: 9.491050547
D148: 147 | E148: 9.390343479
D149: 148 | E149: 6.232210122
D150: 149 | E150: 10.46478044
D151: 150 | E151: 8.923984606
D152: 151 | E152: 12.6336003
D153: 152 | E153: 6.598042356
D154: 153 | E154: 8.418795146
D155: 154 | E155: 6.391233896
D156: 155 | E156: 10.53405916
D157: 156 | E157: 7.720044066
D158: 157 | E158: 7.805667466
D159: 158 | E159: 17.33642522
D160: 159 | E160: 14.57829215
D161: 160 | E161: 7.950487481
D162: 161 | E162: 10.84163401
D163: 162 | E163: 13.28482853
D164: 163 | E164: 9.519810714
D165: 164 | E165: 14.67268964
D166: 165 | E166: 5.629438476
D167: 166 | E167: 4.032665455
D168: 167 | E168: 6.8250027
D169: 168 | E169: 9.435534811
D170: 169 | E170: 12.07101239
D171: 170 | E171: 9.654070617
D172: 171 | E172: 9.541107649
D173: 172 | E173: 14.28932993
D174: 173 | E174: 8.849532956
D175: 174 | E175: 6.201000089
D176: 175 | E176: 2.0875258
D177: 176 | E177: 7.788828816
D178: 177 | E178: 6.880888076
D179: 178 | E179: 11.2087987
D180: 179 | E180: 10.6353882
D181: 180 | E181: 6.901654135
D182: 181 | E182: 12.19880997
D183: 182 | E183: 10.00390923
D184: 183 | E184: 11.66268411
D185: 184 | E185: 12.95495686
D186: 185 | E186: 15.32885105
D187: 186 | E187: 13.17196262
D188: 187 | E188: 11.21683462
D189: 188 | E189: 6.120361255
D190: 189 | E190: 10.62148697
D191: 190 | E191: 5.59226803
D192: 191 | E192: 4.568834938
D193: 192 | E193: 9.996547478
D194: 193 | E194: 12.10271022
D195: 194 | E195: =NORMINV(RAND(), $B$3, $B$5) -> 14.07503625
D196: 195 | E196: 14.13283901
D197: 196 | E197: 12.37111145
D198: 197 | E198: 7.29908207
D199: 198 | E199: 6.660211307
D200: 199 | E200: 9.362595332
... 1801 more rows

Sheet B.dist
A1: Binomial-test | D1: Trial | E1: x1 | F1: x2 | G1: x3 | H1: x4 | I1: x5 | J1: x6 | K1: x7 | L1: x8 | M1: x9 | N1: x10 | O1: x11 | P1: x12 | Q1: x13 | R1: x14 | S1: x15 | T1: x16 | U1: x17 | V1: x18 | W1: x19 | X1: x20 | Y1: Sum | AA1: Sum | AB1: P.trial | AC1: B.Dist. | AD1: B.cum
A2: Set | D2: 1 | E2: =IF(RAND()<$B$3,1,0) -> 0 | F2: =IF(RAND()<$B$3,1,0) -> 1 | G2: 1 | H2: 0 | I2: 1 | J2: 0 | K2: 0 | L2: 0 | M2: 0 | N2: 0 | O2: =IF(RAND()<$B$3,1,0) -> 1 | P2: 0 | Q2: 0 | R2: 0 | S2: 0 | T2: 0 | U2: 1 | V2: 0 | W2: 1 | X2: 0 | Y2: =SUM(E2:X2) -> 6 | AA2: 0 | AB2: =COUNTIF(Y:Y,"="&AA2)/2000 -> 0.0135 | AC2: =BINOMDIST(AA2,$B$4,$B$3,0) -> 0.01152921505 | AD2: =BINOMDIST(AA2,$B$4,$B$3,1) -> 0.01152921505
A3: p | B3: 0.2 | D3: 2 | E3: 0 | F3: 0 | G3: 0 | H3: 1 | I3: 0 | J3: 0 | K3: 0 | L3: 1 | M3: 1 | N3: 1 | O3: 1 | P3: 1 | Q3: 0 | R3: 0 | S3: 0 | T3: 0 | U3: 0 | V3: 0 | W3: 0 | X3: 0 | Y3: =SUM(E3:X3) -> 6 | AA3: 1 | AB3: =COUNTIF(Y:Y,"="&AA3)/2000 -> 0.0515 | AC3: =BINOMDIST(AA3,$B$4,$B$3,0) -> 0.05764607523 | AD3: =BINOMDIST(AA3,$B$4,$B$3,1) -> 0.06917529028
A4: n | B4: 20 | D4: 3 | E4: 0 | F4: 0 | G4: 0 | H4: 0 | I4: 1 | J4: 1 | K4: 0 | L4: 0 | M4: 0 | N4: 0 | O4: 1 | P4: 0 | Q4: 1 | R4: 0 | S4: 0 | T4: 0 | U4: 1 | V4: 0 | W4: 0 | X4: 0 | Y4: 5 | AA4: 2 | AB4: =COUNTIF(Y:Y,"="&AA4)/2000 -> 0.1475 | AC4: =BINOMDIST(AA4,$B$4,$B$3,0) -> 0.1369094287 | AD4: 0.2060847189
B5: x1-x20 | D5: 4 | E5: 1 | F5: 0 | G5: 0 | H5: 0 | I5: 0 | J5: 0 | K5: 0 | L5: 0 | M5: 0 | N5: 0 | O5: 0 | P5: 0 | Q5: 1 | R5: 1 | S5: 0 | T5: 0 | U5: 0 | V5: 0 | W5: 1 | X5: 0 | Y5: 4 | AA5: 3 | AB5: 0.2145 | AC5: 0.205364143 | AD5: 0.411448862
D6: 5 | E6: 0 | F6: 0 | G6: 0 | H6: 1 | I6: 0 | J6: 0 | K6: 0 | L6: 0 | M6: 1 | N6: 0 | O6: 0 | P6: 0 | Q6: 0 | R6: 0 | S6: 1 | T6: 0 | U6: 0 | V6: 1 | W6: 0 | X6: 0 | Y6: 4 | AA6: 4 | AB6: 0.203 | AC6: 0.2181994019 | AD6: 0.6296482639
A7: Trial | D7: 6 | E7: 1 | F7: 1 | G7: 0 | H7: 0 | I7: 0 | J7: 0 | K7: 0 | L7: 1 | M7: 0 | N7: 0 | O7: 0 | P7: 0 | Q7: 0 | R7: 0 | S7: 0 | T7: 0 | U7: 0 | V7: 0 | W7: 1 | X7: 0 | Y7: 4 | AA7: 5 | AB7: 0.1705 | AC7: 0.1745595216 | AD7: 0.8042077855
A8: m | B8: =AVERAGE(E:X) -> 0.199925 | D8: 7 | E8: 0 | F8: 0 | G8: 0 | H8: 0 | I8: 0 | J8: 0 | K8: 0 | L8: 0 | M8: 1 | N8: 0 | O8: 0 | P8: 0 | Q8: 0 | R8: 0 | S8: 1 | T8: 0 | U8: 0 | V8: 1 | W8: 1 | X8: 0 | Y8: 4 | AA8: 6 | AB8: 0.106 | AC8: 0.109099701 | AD8: 0.9133074864
A9: v | B9: =VARP(E:X) -> 0.1599549944 | D9: 8 | E9: 1 | F9: 1 | G9: 0 | H9: 0 | I9: 0 | J9: 0 | K9: 1 | L9: 1 | M9: 0 | N9: 0 | O9: 0 | P9: 0 | Q9: 0 | R9: 0 | S9: 1 | T9: 0 | U9: 1 | V9: 1 | W9: 0 | X9: 0 | Y9: 7 | AA9: 7 | AB9: 0.059 | AC9: 0.05454985049 | AD9: 0.9678573369
D10: 9 | E10: 0 | F10: 1 | G10: 0 | H10: 1 | I10: 0 | J10: 0 | K10: 0 | L10: 0 | M10: 0 | N10: 1 | O10: 0 | P10: 1 | Q10: 0 | R10: 0 | S10: 0 | T10: 0 | U10: 0 | V10: 1 | W10: 1 | X10: 0 | Y10: 6 | AA10: 8 | AB10: 0.019 | AC10: 0.02216087676 | AD10: 0.9900182137
A11: Renew: [F9] | D11: 10 | E11: 0 | F11: 0 | G11: 0 | H11: 0 | I11: 0 | J11: 0 | K11: 0 | L11: 0 | M11: 0 | N11: 0 | O11: 0 | P11: 0 | Q11: 0 | R11: 0 | S11: 1 | T11: 1 | U11: 0 | V11: 0 | W11: 0 | X11: 0 | Y11: 2 | AA11: 9 | AB11: 0.013 | AC11: 0.00738695892 | AD11: 0.9974051726
D12: 11 | E12: =IF(RAND()<$B$3,1,0) -> 0 | F12: 0 | G12: 0 | H12: 1 | I12: 0 | J12: 1 | K12: 0 | L12: 0 | M12: 0 | N12: 0 | O12: =IF(RAND()<$B$3,1,0) -> 0 | P12: 1 | Q12: 0 | R12: 0 | S12: 0 | T12: 1 | U12: 0 | V12: 0 | W12: 0 | X12: 1 | Y12: 5 | AA12: 10 | AB12: 0.0015 | AC12: 0.002031413703 | AD12: 0.9994365863
D13: 12 | E13: 0 | F13: 0 | G13: 0 | H13: 0 | I13: 1 | J13: 0 | K13: 1 | L13: 0 | M13: 0 | N13: 0 | O13: 0 | P13: 0 | Q13: 0 | R13: 0 | S13: 0 | T13: 0 | U13: 0 | V13: 0 | W13: 0 | X13: 0 | Y13: 2 | AA13: 11 | AB13: 0.001 | AC13: 0.0004616849325 | AD13: 0.9998982712
D14: 13 | E14: 0 | F14: 1 | G14: 0 | H14: 0 | I14: 0 | J14: 1 | K14: 0 | L14: 0 | M14: 0 | N14: 0 | O14: 0 | P14: 0 | Q14: 0 | R14: 0 | S14: 0 | T14: 1 | U14: 0 | V14: 1 | W14: 0 | X14: 0 | Y14: 4 | AA14: 12 | AB14: 0 | AC14: 8.656592484e-05 | AD14: 0.9999848372
D15: 14 | E15: 0 | F15: 0 | G15: 0 | H15: 0 | I15: 0 | J15: 0 | K15: 1 | L15: 0 | M15: 0 | N15: 0 | O15: 0 | P15: 0 | Q15: 0 | R15: 0 | S15: 0 | T15: 0 | U15: 0 | V15: 0 | W15: 1 | X15: 0 | Y15: 2 | AA15: 13 | AB15: 0 | AC15: 1.331783459e-05 | AD15: 0.999998155
D16: 15 | E16: 1 | F16: 0 | G16: 0 | H16: 0 | I16: 0 | J16: 0 | K16: 0 | L16: 0 | M16: 1 | N16: 0 | O16: 0 | P16: 1 | Q16: 0 | R16: 0 | S16: 1 | T16: 1 | U16: 0 | V16: 0 | W16: 0 | X16: 1 | Y16: 6 | AA16: 14 | AB16: 0 | AC16: 1.664729324e-06 | AD16: 0.9999998197
D17: 16 | E17: 0 | F17: 1 | G17: 0 | H17: 0 | I17: 1 | J17: 1 | K17: 1 | L17: 0 | M17: 0 | N17: 0 | O17: 0 | P17: 0 | Q17: 1 | R17: 0 | S17: 1 | T17: 0 | U17: 0 | V17: 0 | W17: 1 | X17: 0 | Y17: 7 | AA17: 15 | AB17: 0 | AC17: 1.664729324e-07 | AD17: 0.9999999862
D18: 17 | E18: 0 | F18: 0 | G18: 0 | H18: 0 | I18: 1 | J18: 1 | K18: 0 | L18: 0 | M18: 0 | N18: 0 | O18: 0 | P18: 0 | Q18: 1 | R18: 0 | S18: 0 | T18: 0 | U18: 0 | V18: 0 | W18: 1 | X18: 0 | Y18: 4 | AA18: 16 | AB18: 0 | AC18: 1.300569784e-08 | AD18: 0.9999999992
D19: 18 | E19: 0 | F19: 0 | G19: 0 | H19: 0 | I19: 0 | J19: 0 | K19: 0 | L19: 0 | M19: 0 | N19: 0 | O19: 0 | P19: 0 | Q19: 1 | R19: 0 | S19: 0 | T19: 0 | U19: 0 | V19: 0 | W19: 0 | X19: 0 | Y19: 1 | AA19: 17 | AB19: 0 | AC19: 7.650410496e-10 | AD19: 1
D20: 19 | E20: 0 | F20: 0 | G20: 0 | H20: 0 | I20: 0 | J20: 0 | K20: 0 | L20: 0 | M20: 1 | N20: 0 | O20: 0 | P20: 0 | Q20: 0 | R20: 0 | S20: 1 | T20: 1 | U20: 0 | V20: 1 | W20: 1 | X20: 0 | Y20: 5 | AA20: 18 | AB20: 0 | AC20: 3.18767104e-11 | AD20: 1
D21: 20 | E21: 0 | F21: 0 | G21: 0 | H21: 0 | I21: 0 | J21: 0 | K21: 1 | L21: 0 | M21: 1 | N21: 0 | O21: 0 | P21: 0 | Q21: 0 | R21: 0 | S21: 0 | T21: 0 | U21: 0 | V21: 0 | W21: 1 | X21: 1 | Y21: 4 | AA21: 19 | AB21: 0 | AC21: 8.388608e-13 | AD21: 1
D22: 21 | E22: =IF(RAND()<$B$3,1,0) -> 0 | F22: 0 | G22: 0 | H22: 0 | I22: 0 | J22: 0 | K22: 0 | L22: 0 | M22: 0 | N22: 0 | O22: =IF(RAND()<$B$3,1,0) -> 0 | P22: 1 | Q22: 0 | R22: 0 | S22: 0 | T22: 0 | U22: 0 | V22: 0 | W22: 0 | X22: 0 | Y22: 1 | AA22: 20 | AB22: 0 | AC22: 1.048576e-14 | AD22: 1
D23: 22 | E23: 0 | F23: 1 | G23: 0 | H23: 0 | I23: 0 | J23: 1 | K23: 0 | L23: 0 | M23: 0 | N23: 0 | O23: 0 | P23: 1 | Q23: 0 | R23: 0 | S23: 1 | T23: 1 | U23: 0 | V23: 0 | W23: 0 | X23: 0 | Y23: 5
D24: 23 | E24: 0 | F24: 0 | G24: 0 | H24: 0 | I24: 0 | J24: 0 | K24: 0 | L24: 0 | M24: 1 | N24: 0 | O24: 0 | P24: 0 | Q24: 0 | R24: 1 | S24: 1 | T24: 0 | U24: 0 | V24: 0 | W24: 0 | X24: 1 | Y24: 4
D25: 24 | E25: 0 | F25: 0 | G25: 1 | H25: 0 | I25: 1 | J25: 0 | K25: 0 | L25: 0 | M25: 1 | N25: 0 | O25: 0 | P25: 0 | Q25: 0 | R25: 0 | S25: 0 | T25: 0 | U25: 0 | V25: 0 | W25: 0 | X25: 0 | Y25: 3
D26: 25 | E26: 0 | F26: 1 | G26: 0 | H26: 1 | I26: 0 | J26: 0 | K26: 0 | L26: 0 | M26: 0 | N26: 0 | O26: 0 | P26: 0 | Q26: 0 | R26: 0 | S26: 0 | T26: 0 | U26: 0 | V26: 0 | W26: 0 | X26: 0 | Y26: 2
D27: 26 | E27: 0 | F27: 0 | G27: 1 | H27: 1 | I27: 0 | J27: 0 | K27: 0 | L27: 1 | M27: 1 | N27: 0 | O27: 0 | P27: 1 | Q27: 1 | R27: 0 | S27: 1 | T27: 0 | U27: 1 | V27: 1 | W27: 0 | X27: 0 | Y27: 9
D28: 27 | E28: 0 | F28: 0 | G28: 0 | H28: 0 | I28: 0 | J28: 0 | K28: 0 | L28: 0 | M28: 0 | N28: 0 | O28: 0 | P28: 0 | Q28: 0 | R28: 0 | S28: 0 | T28: 0 | U28: 0 | V28: 0 | W28: 0 | X28: 0 | Y28: 0
D29: 28 | E29: 0 | F29: 0 | G29: 1 | H29: 1 | I29: 0 | J29: 0 | K29: 0 | L29: 0 | M29: 0 | N29: 0 | O29: 0 | P29: 0 | Q29: 0 | R29: 0 | S29: 1 | T29: 0 | U29: 1 | V29: 0 | W29: 0 | X29: 0 | Y29: 4
D30: 29 | E30: 0 | F30: 1 | G30: 1 | H30: 0 | I30: 0 | J30: 0 | K30: 0 | L30: 1 | M30: 0 | N30: 0 | O30: 0 | P30: 0 | Q30: 0 | R30: 0 | S30: 0 | T30: 1 | U30: 0 | V30: 0 | W30: 1 | X30: 0 | Y30: 5
D31: 30 | E31: 0 | F31: 0 | G31: 0 | H31: 0 | I31: 0 | J31: 0 | K31: 1 | L31: 0 | M31: 0 | N31: 1 | O31: 0 | P31: 0 | Q31: 0 | R31: 0 | S31: 0 | T31: 0 | U31: 0 | V31: 0 | W31: 0 | X31: 0 | Y31: 2
D32: 31 | E32: =IF(RAND()<$B$3,1,0) -> 0 | F32: 0 | G32: 0 | H32: 0 | I32: 0 | J32: 0 | K32: 0 | L32: 0 | M32: 0 | N32: 0 | O32: =IF(RAND()<$B$3,1,0) -> 1 | P32: 0 | Q32: 1 | R32: 0 | S32: 0 | T32: 1 | U32: 0 | V32: 0 | W32: 0 | X32: 0 | Y32: 3
D33: 32 | E33: 0 | F33: 0 | G33: 0 | H33: 0 | I33: 1 | J33: 0 | K33: 0 | L33: 0 | M33: 0 | N33: 0 | O33: 0 | P33: 0 | Q33: 0 | R33: 0 | S33: 0 | T33: 0 | U33: 0 | V33: 0 | W33: 0 | X33: 0 | Y33: 1
D34: 33 | E34: 1 | F34: 0 | G34: 0 | H34: 0 | I34: 0 | J34: 1 | K34: 0 | L34: 1 | M34: 0 | N34: 0 | O34: 0 | P34: 0 | Q34: 0 | R34: 0 | S34: 0 | T34: 0 | U34: 1 | V34: 0 | W34: 0 | X34: 0 | Y34: 4
D35: 34 | E35: 1 | F35: 0 | G35: 0 | H35: 0 | I35: 1 | J35: 0 | K35: 0 | L35: 0 | M35: 0 | N35: 0 | O35: 0 | P35: 0 | Q35: 0 | R35: 0 | S35: 0 | T35: 0 | U35: 0 | V35: 0 | W35: 1 | X35: 1 | Y35: 4
D36: 35 | E36: 1 | F36: 0 | G36: 0 | H36: 1 | I36: 0 | J36: 0 | K36: 0 | L36: 0 | M36: 0 | N36: 0 | O36: 1 | P36: 1 | Q36: 0 | R36: 0 | S36: 0 | T36: 0 | U36: 0 | V36: 0 | W36: 0 | X36: 0 | Y36: 4
D37: 36 | E37: 0 | F37: 0 | G37: 1 | H37: 0 | I37: 0 | J37: 0 | K37: 0 | L37: 0 | M37: 1 | N37: 0 | O37: 0 | P37: 0 | Q37: 0 | R37: 1 | S37: 0 | T37: 0 | U37: 0 | V37: 0 | W37: 0 | X37: 0 | Y37: 3
D38: 37 | E38: 0 | F38: 0 | G38: 0 | H38: 0 | I38: 0 | J38: 0 | K38: 0 | L38: 0 | M38: 0 | N38: 0 | O38: 0 | P38: 1 | Q38: 0 | R38: 1 | S38: 0 | T38: 1 | U38: 0 | V38: 0 | W38: 0 | X38: 1 | Y38: 4
D39: 38 | E39: 0 | F39: 1 | G39: 0 | H39: 1 | I39: 0 | J39: 0 | K39: 0 | L39: 0 | M39: 0 | N39: 0 | O39: 0 | P39: 0 | Q39: 1 | R39: 1 | S39: 0 | T39: 0 | U39: 0 | V39: 1 | W39: 0 | X39: 1 | Y39: 6
D40: 39 | E40: 1 | F40: 0 | G40: 0 | H40: 1 | I40: 0 | J40: 0 | K40: 0 | L40: 1 | M40: 0 | N40: 0 | O40: 0 | P40: 0 | Q40: 0 | R40: 0 | S40: 1 | T40: 1 | U40: 0 | V40: 0 | W40: 0 | X40: 1 | Y40: 6
D41: 40 | E41: 0 | F41: 0 | G41: 0 | H41: 0 | I41: 0 | J41: 0 | K41: 0 | L41: 0 | M41: 0 | N41: 0 | O41: 0 | P41: 0 | Q41: 0 | R41: 0 | S41: 0 | T41: 1 | U41: 0 | V41: 0 | W41: 0 | X41: 1 | Y41: 2
D42: 41 | E42: =IF(RAND()<$B$3,1,0) -> 0 | F42: 1 | G42: 0 | H42: 0 | I42: 1 | J42: 0 | K42: 0 | L42: 0 | M42: 0 | N42: 0 | O42: =IF(RAND()<$B$3,1,0) -> 0 | P42: 1 | Q42: 0 | R42: 0 | S42: 0 | T42: 1 | U42: 0 | V42: 0 | W42: 0 | X42: 1 | Y42: 5
D43: 42 | E43: 0 | F43: 0 | G43: 0 | H43: 0 | I43: 0 | J43: 0 | K43: 0 | L43: 0 | M43: 0 | N43: 0 | O43: 0 | P43: 0 | Q43: 0 | R43: 0 | S43: 0 | T43: 0 | U43: 0 | V43: 0 | W43: 0 | X43: 0 | Y43: 0
D44: 43 | E44: 0 | F44: 0 | G44: 0 | H44: 0 | I44: 0 | J44: 0 | K44: 0 | L44: 0 | M44: 0 | N44: 0 | O44: 0 | P44: 0 | Q44: 0 | R44: 1 | S44: 0 | T44: 0 | U44: 0 | V44: 0 | W44: 0 | X44: 0 | Y44: 1
D45: 44 | E45: 0 | F45: 0 | G45: 0 | H45: 0 | I45: 0 | J45: 0 | K45: 1 | L45: 0 | M45: 0 | N45: 0 | O45: 0 | P45: 0 | Q45: 0 | R45: 0 | S45: 0 | T45: 0 | U45: 0 | V45: 1 | W45: 0 | X45: 0 | Y45: 2
D46: 45 | E46: 0 | F46: 0 | G46: 0 | H46: 0 | I46: 0 | J46: 0 | K46: 1 | L46: 0 | M46: 0 | N46: 0 | O46: 0 | P46: 0 | Q46: 0 | R46: 0 | S46: 0 | T46: 0 | U46: 1 | V46: 0 | W46: 0 | X46: 1 | Y46: 3
D47: 46 | E47: 0 | F47: 0 | G47: 0 | H47: 0 | I47: 0 | J47: 1 | K47: 0 | L47: 0 | M47: 0 | N47: 0 | O47: 0 | P47: 0 | Q47: 1 | R47: 0 | S47: 0 | T47: 0 | U47: 1 | V47: 1 | W47: 0 | X47: 0 | Y47: 4
D48: 47 | E48: 0 | F48: 0 | G48: 1 | H48: 0 | I48: 0 | J48: 0 | K48: 0 | L48: 0 | M48: 0 | N48: 0 | O48: 1 | P48: 0 | Q48: 1 | R48: 0 | S48: 1 | T48: 0 | U48: 0 | V48: 0 | W48: 0 | X48: 1 | Y48: 5
D49: 48 | E49: 0 | F49: 0 | G49: 0 | H49: 1 | I49: 1 | J49: 0 | K49: 0 | L49: 0 | M49: 0 | N49: 0 | O49: 0 | P49: 0 | Q49: 0 | R49: 0 | S49: 0 | T49: 0 | U49: 0 | V49: 0 | W49: 0 | X49: 0 | Y49: 2
D50: 49 | E50: 0 | F50: 0 | G50: 0 | H50: 0 | I50: 0 | J50: 0 | K50: 0 | L50: 0 | M50: 1 | N50: 0 | O50: 0 | P50: 0 | Q50: 1 | R50: 0 | S50: 0 | T50: 1 | U50: 0 | V50: 0 | W50: 0 | X50: 0 | Y50: 3
D51: 50 | E51: 0 | F51: 0 | G51: 0 | H51: 0 | I51: 0 | J51: 0 | K51: 0 | L51: 0 | M51: 0 | N51: 1 | O51: 0 | P51: 0 | Q51: 0 | R51: 1 | S51: 0 | T51: 0 | U51: 0 | V51: 1 | W51: 0 | X51: 0 | Y51: 3
D52: 51 | E52: =IF(RAND()<$B$3,1,0) -> 0 | F52: 0 | G52: 0 | H52: 0 | I52: 0 | J52: 0 | K52: 0 | L52: 0 | M52: 1 | N52: 1 | O52: =IF(RAND()<$B$3,1,0) -> 0 | P52: 0 | Q52: 0 | R52: 0 | S52: 0 | T52: 1 | U52: 0 | V52: 1 | W52: 1 | X52: 1 | Y52: 6
D53: 52 | E53: 0 | F53: 1 | G53: 0 | H53: 0 | I53: 0 | J53: 0 | K53: 0 | L53: 0 | M53: 0 | N53: 0 | O53: 1 | P53: 0 | Q53: 0 | R53: 0 | S53: 0 | T53: 0 | U53: 1 | V53: 0 | W53: 0 | X53: 0 | Y53: 3
D54: 53 | E54: 0 | F54: 1 | G54: 0 | H54: 0 | I54: 0 | J54: 0 | K54: 0 | L54: 0 | M54: 0 | N54: 1 | O54: 0 | P54: 0 | Q54: 0 | R54: 1 | S54: 0 | T54: 1 | U54: 0 | V54: 0 | W54: 0 | X54: 1 | Y54: 5
D55: 54 | E55: 0 | F55: 1 | G55: 0 | H55: 0 | I55: 0 | J55: 1 | K55: 0 | L55: 0 | M55: 1 | N55: 1 | O55: 0 | P55: 1 | Q55: 0 | R55: 0 | S55: 0 | T55: 0 | U55: 0 | V55: 0 | W55: 0 | X55: 0 | Y55: 5
D56: 55 | E56: 0 | F56: 0 | G56: 0 | H56: 0 | I56: 0 | J56: 0 | K56: 0 | L56: 1 | M56: 0 | N56: 0 | O56: 0 | P56: 0 | Q56: 1 | R56: 0 | S56: 0 | T56: 1 | U56: 0 | V56: 0 | W56: 0 | X56: 0 | Y56: 3
D57: 56 | E57: 1 | F57: 0 | G57: 0 | H57: 1 | I57: 0 | J57: 1 | K57: 0 | L57: 0 | M57: 0 | N57: 0 | O57: 0 | P57: 1 | Q57: 0 | R57: 0 | S57: 0 | T57: 1 | U57: 0 | V57: 0 | W57: 0 | X57: 0 | Y57: 5
D58: 57 | E58: 0 | F58: 0 | G58: 0 | H58: 0 | I58: 1 | J58: 0 | K58: 0 | L58: 1 | M58: 0 | N58: 0 | O58: 1 | P58: 0 | Q58: 0 | R58: 0 | S58: 0 | T58: 0 | U58: 0 | V58: 0 | W58: 0 | X58: 0 | Y58: 3
D59: 58 | E59: 0 | F59: 0 | G59: 0 | H59: 0 | I59: 1 | J59: 1 | K59: 0 | L59: 0 | M59: 0 | N59: 0 | O59: 0 | P59: 0 | Q59: 1 | R59: 0 | S59: 0 | T59: 1 | U59: 0 | V59: 0 | W59: 0 | X59: 1 | Y59: 5
D60: 59 | E60: 0 | F60: 0 | G60: 0 | H60: 0 | I60: 0 | J60: 0 | K60: 0 | L60: 0 | M60: 0 | N60: 0 | O60: 0 | P60: 0 | Q60: 0 | R60: 0 | S60: 0 | T60: 0 | U60: 0 | V60: 0 | W60: 0 | X60: 0 | Y60: 0
D61: 60 | E61: 1 | F61: 0 | G61: 0 | H61: 0 | I61: 0 | J61: 0 | K61: 0 | L61: 0 | M61: 0 | N61: 0 | O61: 0 | P61: 0 | Q61: 1 | R61: 0 | S61: 1 | T61: 0 | U61: 0 | V61: 0 | W61: 0 | X61: 0 | Y61: 3
D62: 61 | E62: =IF(RAND()<$B$3,1,0) -> 0 | F62: 0 | G62: 0 | H62: 0 | I62: 0 | J62: 0 | K62: 0 | L62: 0 | M62: 0 | N62: 1 | O62: =IF(RAND()<$B$3,1,0) -> 0 | P62: 0 | Q62: 0 | R62: 1 | S62: 0 | T62: 1 | U62: 0 | V62: 0 | W62: 0 | X62: 0 | Y62: 3
D63: 62 | E63: 0 | F63: 1 | G63: 1 | H63: 0 | I63: 0 | J63: 0 | K63: 1 | L63: 0 | M63: 1 | N63: 0 | O63: 0 | P63: 0 | Q63: 0 | R63: 0 | S63: 1 | T63: 0 | U63: 0 | V63: 0 | W63: 0 | X63: 0 | Y63: 5
D64: 63 | E64: 1 | F64: 0 | G64: 1 | H64: 0 | I64: 0 | J64: 0 | K64: 0 | L64: 0 | M64: 0 | N64: 0 | O64: 0 | P64: 1 | Q64: 0 | R64: 0 | S64: 0 | T64: 0 | U64: 0 | V64: 0 | W64: 0 | X64: 0 | Y64: 3
D65: 64 | E65: 0 | F65: 0 | G65: 0 | H65: 0 | I65: 0 | J65: 0 | K65: 0 | L65: 0 | M65: 0 | N65: 0 | O65: 1 | P65: 0 | Q65: 0 | R65: 0 | S65: 0 | T65: 1 | U65: 0 | V65: 0 | W65: 0 | X65: 0 | Y65: 2
D66: 65 | E66: 0 | F66: 1 | G66: 0 | H66: 0 | I66: 0 | J66: 0 | K66: 0 | L66: 0 | M66: 0 | N66: 1 | O66: 1 | P66: 0 | Q66: 0 | R66: 0 | S66: 1 | T66: 0 | U66: 0 | V66: 0 | W66: 1 | X66: 0 | Y66: 5
D67: 66 | E67: 1 | F67: 0 | G67: 0 | H67: 0 | I67: 0 | J67: 0 | K67: 1 | L67: 0 | M67: 0 | N67: 0 | O67: 0 | P67: 1 | Q67: 0 | R67: 0 | S67: 0 | T67: 0 | U67: 1 | V67: 1 | W67: 0 | X67: 0 | Y67: =SUM(E67:X67) -> 5
D68: 67 | E68: 0 | F68: 0 | G68: 0 | H68: 0 | I68: 0 | J68: 0 | K68: 0 | L68: 0 | M68: 0 | N68: 0 | O68: 0 | P68: 0 | Q68: 0 | R68: 0 | S68: 0 | T68: 0 | U68: 0 | V68: 0 | W68: 1 | X68: 0 | Y68: 1
D69: 68 | E69: 1 | F69: 0 | G69: 1 | H69: 1 | I69: 0 | J69: 0 | K69: 0 | L69: 0 | M69: 1 | N69: 0 | O69: 0 | P69: 0 | Q69: 0 | R69: 1 | S69: 0 | T69: 0 | U69: 0 | V69: 0 | W69: 1 | X69: 0 | Y69: 6
D70: 69 | E70: 0 | F70: 0 | G70: 0 | H70: 0 | I70: 0 | J70: 0 | K70: 0 | L70: 0 | M70: 0 | N70: 0 | O70: 1 | P70: 0 | Q70: 0 | R70: 0 | S70: 0 | T70: 0 | U70: 1 | V70: 0 | W70: 1 | X70: 0 | Y70: 3
D71: 70 | E71: 0 | F71: 0 | G71: 0 | H71: 1 | I71: 1 | J71: 0 | K71: 0 | L71: 1 | M71: 0 | N71: 1 | O71: 0 | P71: 0 | Q71: 0 | R71: 0 | S71: 0 | T71: 0 | U71: 0 | V71: 0 | W71: 0 | X71: 0 | Y71: 4
D72: 71 | E72: =IF(RAND()<$B$3,1,0) -> 0 | F72: 0 | G72: 0 | H72: 1 | I72: 0 | J72: 0 | K72: 0 | L72: 0 | M72: 0 | N72: 0 | O72: =IF(RAND()<$B$3,1,0) -> 0 | P72: 0 | Q72: 0 | R72: 1 | S72: 0 | T72: 0 | U72: 0 | V72: 0 | W72: 0 | X72: 0 | Y72: 2
D73: 72 | E73: 0 | F73: 0 | G73: 0 | H73: 1 | I73: 1 | J73: 0 | K73: 0 | L73: 0 | M73: 0 | N73: 1 | O73: 0 | P73: 0 | Q73: 0 | R73: 0 | S73: 0 | T73: 0 | U73: 0 | V73: 0 | W73: 0 | X73: 0 | Y73: 3
D74: 73 | E74: 0 | F74: 1 | G74: 0 | H74: 0 | I74: 0 | J74: 1 | K74: 0 | L74: 1 | M74: 0 | N74: 0 | O74: 0 | P74: 1 | Q74: 0 | R74: 0 | S74: 0 | T74: 0 | U74: 0 | V74: 0 | W74: 0 | X74: 1 | Y74: 5
D75: 74 | E75: 1 | F75: 0 | G75: 0 | H75: 0 | I75: 0 | J75: 1 | K75: 0 | L75: 0 | M75: 0 | N75: 0 | O75: 0 | P75: 0 | Q75: 0 | R75: 0 | S75: 0 | T75: 0 | U75: 0 | V75: 0 | W75: 0 | X75: 0 | Y75: 2
D76: 75 | E76: 0 | F76: 0 | G76: 1 | H76: 1 | I76: 0 | J76: 0 | K76: 0 | L76: 1 | M76: 0 | N76: 0 | O76: 0 | P76: 0 | Q76: 0 | R76: 0 | S76: 0 | T76: 0 | U76: 0 | V76: 1 | W76: 0 | X76: 0 | Y76: 4
D77: 76 | E77: 0 | F77: 0 | G77: 0 | H77: 0 | I77: 0 | J77: 0 | K77: 0 | L77: 0 | M77: 0 | N77: 0 | O77: 0 | P77: 0 | Q77: 1 | R77: 0 | S77: 0 | T77: 0 | U77: 1 | V77: 1 | W77: 0 | X77: 0 | Y77: 3
D78: 77 | E78: 0 | F78: 0 | G78: 0 | H78: 0 | I78: 0 | J78: 0 | K78: 0 | L78: 0 | M78: 1 | N78: 0 | O78: 0 | P78: 0 | Q78: 0 | R78: 0 | S78: 0 | T78: 1 | U78: 0 | V78: 0 | W78: 0 | X78: 0 | Y78: 2
D79: 78 | E79: 0 | F79: 0 | G79: 0 | H79: 0 | I79: 0 | J79: 0 | K79: 0 | L79: 0 | M79: 0 | N79: 0 | O79: 0 | P79: 1 | Q79: 0 | R79: 1 | S79: 1 | T79: 0 | U79: 0 | V79: 0 | W79: 0 | X79: 0 | Y79: 3
D80: 79 | E80: 1 | F80: 0 | G80: 1 | H80: 0 | I80: 0 | J80: 0 | K80: 0 | L80: 0 | M80: 0 | N80: 0 | O80: 0 | P80: 0 | Q80: 0 | R80: 0 | S80: 0 | T80: 1 | U80: 1 | V80: 0 | W80: 0 | X80: 0 | Y80: 4
D81: 80 | E81: 0 | F81: 0 | G81: 0 | H81: 0 | I81: 0 | J81: 0 | K81: 0 | L81: 0 | M81: 1 | N81: 1 | O81: 0 | P81: 1 | Q81: 0 | R81: 0 | S81: 0 | T81: 0 | U81: 0 | V81: 0 | W81: 1 | X81: 0 | Y81: 4
D82: 81 | E82: =IF(RAND()<$B$3,1,0) -> 0 | F82: 0 | G82: 0 | H82: 0 | I82: 0 | J82: 0 | K82: 0 | L82: 1 | M82: 0 | N82: 0 | O82: =IF(RAND()<$B$3,1,0) -> 0 | P82: 0 | Q82: 0 | R82: 1 | S82: 0 | T82: 0 | U82: 1 | V82: 0 | W82: 0 | X82: 0 | Y82: 3
D83: 82 | E83: 0 | F83: 0 | G83: 0 | H83: 0 | I83: 0 | J83: 0 | K83: 1 | L83: 0 | M83: 0 | N83: 0 | O83: 0 | P83: 0 | Q83: 1 | R83: 0 | S83: 0 | T83: 0 | U83: 0 | V83: 0 | W83: 1 | X83: 0 | Y83: 3
D84: 83 | E84: 1 | F84: 0 | G84: 1 | H84: 0 | I84: 0 | J84: 0 | K84: 0 | L84: 0 | M84: 0 | N84: 0 | O84: 0 | P84: 0 | Q84: 0 | R84: 0 | S84: 0 | T84: 1 | U84: 0 | V84: 0 | W84: 0 | X84: 0 | Y84: 3
D85: 84 | E85: 0 | F85: 0 | G85: 0 | H85: 0 | I85: 0 | J85: 0 | K85: 0 | L85: 0 | M85: 1 | N85: 0 | O85: 0 | P85: 0 | Q85: 0 | R85: 1 | S85: 0 | T85: 1 | U85: 0 | V85: 0 | W85: 0 | X85: 0 | Y85: 3
D86: 85 | E86: 1 | F86: 0 | G86: 0 | H86: 0 | I86: 0 | J86: 0 | K86: 0 | L86: 0 | M86: 0 | N86: 0 | O86: 0 | P86: 0 | Q86: 0 | R86: 0 | S86: 1 | T86: 0 | U86: 0 | V86: 0 | W86: 0 | X86: 0 | Y86: 2
D87: 86 | E87: 0 | F87: 0 | G87: 0 | H87: 0 | I87: 0 | J87: 0 | K87: 0 | L87: 0 | M87: 0 | N87: 0 | O87: 0 | P87: 0 | Q87: 0 | R87: 0 | S87: 0 | T87: 0 | U87: 0 | V87: 0 | W87: 1 | X87: 0 | Y87: 1
D88: 87 | E88: 0 | F88: 0 | G88: 0 | H88: 0 | I88: 1 | J88: 0 | K88: 1 | L88: 0 | M88: 0 | N88: 1 | O88: 0 | P88: 0 | Q88: 0 | R88: 0 | S88: 0 | T88: 0 | U88: 1 | V88: 0 | W88: 1 | X88: 0 | Y88: 5
D89: 88 | E89: 0 | F89: 0 | G89: 0 | H89: 1 | I89: 0 | J89: 0 | K89: 1 | L89: 0 | M89: 0 | N89: 0 | O89: 0 | P89: 0 | Q89: 0 | R89: 1 | S89: 1 | T89: 0 | U89: 1 | V89: 0 | W89: 0 | X89: 0 | Y89: 5
D90: 89 | E90: 0 | F90: 0 | G90: 0 | H90: 0 | I90: 0 | J90: 0 | K90: 0 | L90: 0 | M90: 0 | N90: 0 | O90: 1 | P90: 0 | Q90: 1 | R90: 0 | S90: 0 | T90: 0 | U90: 1 | V90: 0 | W90: 0 | X90: 0 | Y90: 3
D91: 90 | E91: 0 | F91: 0 | G91: 0 | H91: 0 | I91: 0 | J91: 0 | K91: 0 | L91: 0 | M91: 0 | N91: 0 | O91: 1 | P91: 0 | Q91: 0 | R91: 0 | S91: 0 | T91: 1 | U91: 0 | V91: 0 | W91: 1 | X91: 1 | Y91: 4
D92: 91 | E92: =IF(RAND()<$B$3,1,0) -> 0 | F92: 0 | G92: 0 | H92: 0 | I92: 0 | J92: 0 | K92: 0 | L92: 0 | M92: 0 | N92: 0 | O92: =IF(RAND()<$B$3,1,0) -> 0 | P92: 0 | Q92: 0 | R92: 0 | S92: 0 | T92: 0 | U92: 0 | V92: 1 | W92: 0 | X92: 0 | Y92: 1
D93: 92 | E93: 0 | F93: 0 | G93: 0 | H93: 1 | I93: 0 | J93: 0 | K93: 0 | L93: 0 | M93: 0 | N93: 0 | O93: 0 | P93: 0 | Q93: 0 | R93: 0 | S93: 0 | T93: 1 | U93: 1 | V93: 0 | W93: 0 | X93: 0 | Y93: 3
D94: 93 | E94: 0 | F94: 1 | G94: 0 | H94: 0 | I94: 1 | J94: 0 | K94: 0 | L94: 0 | M94: 0 | N94: 0 | O94: 0 | P94: 0 | Q94: 1 | R94: 0 | S94: 0 | T94: 0 | U94: 0 | V94: 0 | W94: 0 | X94: 0 | Y94: 3
D95: 94 | E95: 0 | F95: 0 | G95: 0 | H95: 0 | I95: 1 | J95: 0 | K95: 0 | L95: 0 | M95: 1 | N95: 1 | O95: 0 | P95: 0 | Q95: 0 | R95: 0 | S95: 0 | T95: 0 | U95: 0 | V95: 0 | W95: 0 | X95: 1 | Y95: 4
D96: 95 | E96: 0 | F96: 1 | G96: 0 | H96: 1 | I96: 1 | J96: 0 | K96: 1 | L96: 0 | M96: 0 | N96: 0 | O96: 0 | P96: 0 | Q96: 0 | R96: 1 | S96: 1 | T96: 0 | U96: 0 | V96: 0 | W96: 0 | X96: 0 | Y96: 6
D97: 96 | E97: 0 | F97: 0 | G97: 0 | H97: 0 | I97: 0 | J97: 0 | K97: 1 | L97: 0 | M97: 0 | N97: 0 | O97: 0 | P97: 0 | Q97: 0 | R97: 1 | S97: 0 | T97: 0 | U97: 0 | V97: 0 | W97: 0 | X97: 0 | Y97: 2
D98: 97 | E98: 0 | F98: 0 | G98: 1 | H98: 0 | I98: 0 | J98: 0 | K98: 0 | L98: 1 | M98: 0 | N98: 0 | O98: 0 | P98: 0 | Q98: 0 | R98: 1 | S98: 0 | T98: 0 | U98: 1 | V98: 0 | W98: 0 | X98: 0 | Y98: 4
D99: 98 | E99: 0 | F99: 0 | G99: 0 | H99: 0 | I99: 0 | J99: 0 | K99: 0 | L99: 0 | M99: 0 | N99: 0 | O99: 0 | P99: 0 | Q99: 0 | R99: 0 | S99: 1 | T99: 1 | U99: 0 | V99: 0 | W99: 1 | X99: 1 | Y99: 4
D100: 99 | E100: 0 | F100: 0 | G100: 0 | H100: 0 | I100: 0 | J100: 0 | K100: 0 | L100: 0 | M100: 0 | N100: 0 | O100: 1 | P100: 0 | Q100: 0 | R100: 0 | S100: 0 | T100: 0 | U100: 0 | V100: 0 | W100: 0 | X100: 0 | Y100: 1
D101: 100 | E101: 0 | F101: 0 | G101: 0 | H101: 0 | I101: 0 | J101: 0 | K101: 1 | L101: 0 | M101: 0 | N101: 1 | O101: 0 | P101: 1 | Q101: 0 | R101: 0 | S101: 0 | T101: 0 | U101: 0 | V101: 0 | W101: 0 | X101: 0 | Y101: 3
D102: 101 | E102: =IF(RAND()<$B$3,1,0) -> 0 | F102: 0 | G102: 1 | H102: 0 | I102: 0 | J102: 0 | K102: 1 | L102: 0 | M102: 0 | N102: 0 | O102: =IF(RAND()<$B$3,1,0) -> 0 | P102: 0 | Q102: 0 | R102: 0 | S102: 0 | T102: 0 | U102: 0 | V102: 0 | W102: 0 | X102: 0 | Y102: 2
D103: 102 | E103: 0 | F103: 0 | G103: 0 | H103: 1 | I103: 0 | J103: 0 | K103: 1 | L103: 1 | M103: 0 | N103: 0 | O103: 0 | P103: 0 | Q103: 0 | R103: 0 | S103: 0 | T103: 1 | U103: 0 | V103: 1 | W103: 1 | X103: 0 | Y103: 6
D104: 103 | E104: 0 | F104: 0 | G104: 0 | H104: 0 | I104: 0 | J104: 0 | K104: 0 | L104: 0 | M104: 1 | N104: 0 | O104: 1 | P104: 0 | Q104: 1 | R104: 1 | S104: 0 | T104: 1 | U104: 0 | V104: 0 | W104: 0 | X104: 0 | Y104: 5
D105: 104 | E105: 1 | F105: 0 | G105: 0 | H105: 0 | I105: 0 | J105: 0 | K105: 1 | L105: 1 | M105: 0 | N105: 1 | O105: 0 | P105: 0 | Q105: 0 | R105: 1 | S105: 0 | T105: 0 | U105: 1 | V105: 1 | W105: 0 | X105: 1 | Y105: 8
D106: 105 | E106: 0 | F106: 0 | G106: 0 | H106: 0 | I106: 0 | J106: 0 | K106: 0 | L106: 0 | M106: 1 | N106: 0 | O106: 0 | P106: 0 | Q106: 0 | R106: 0 | S106: 0 | T106: 0 | U106: 0 | V106: 0 | W106: 0 | X106: 0 | Y106: 1
D107: 106 | E107: 0 | F107: 0 | G107: 0 | H107: 1 | I107: 1 | J107: 0 | K107: 0 | L107: 0 | M107: 0 | N107: 1 | O107: 0 | P107: 0 | Q107: 0 | R107: 0 | S107: 0 | T107: 0 | U107: 0 | V107: 0 | W107: 0 | X107: 0 | Y107: 3
D108: 107 | E108: 1 | F108: 1 | G108: 1 | H108: 0 | I108: 0 | J108: 0 | K108: 0 | L108: 0 | M108: 0 | N108: 0 | O108: 1 | P108: 0 | Q108: 0 | R108: 0 | S108: 0 | T108: 0 | U108: 0 | V108: 0 | W108: 0 | X108: 0 | Y108: 4
D109: 108 | E109: 0 | F109: 1 | G109: 0 | H109: 1 | I109: 0 | J109: 0 | K109: 0 | L109: 0 | M109: 0 | N109: 0 | O109: 0 | P109: 0 | Q109: 1 | R109: 1 | S109: 0 | T109: 0 | U109: 0 | V109: 0 | W109: 0 | X109: 0 | Y109: 4
D110: 109 | E110: 1 | F110: 0 | G110: 0 | H110: 0 | I110: 1 | J110: 1 | K110: 0 | L110: 1 | M110: 0 | N110: 0 | O110: 1 | P110: 0 | Q110: 0 | R110: 1 | S110: 0 | T110: 0 | U110: 0 | V110: 0 | W110: 0 | X110: 0 | Y110: 6
D111: 110 | E111: 0 | F111: 0 | G111: 0 | H111: 0 | I111: 0 | J111: 1 | K111: 0 | L111: 0 | M111: 1 | N111: 0 | O111: 0 | P111: 0 | Q111: 0 | R111: 0 | S111: 0 | T111: 0 | U111: 0 | V111: 0 | W111: 0 | X111: 1 | Y111: 3
D112: 111 | E112: =IF(RAND()<$B$3,1,0) -> 0 | F112: 0 | G112: 0 | H112: 0 | I112: 0 | J112: 0 | K112: 0 | L112: 0 | M112: 1 | N112: 1 | O112: =IF(RAND()<$B$3,1,0) -> 0 | P112: 1 | Q112: 0 | R112: 0 | S112: 0 | T112: 0 | U112: 0 | V112: 1 | W112: 0 | X112: 1 | Y112: 5
D113: 112 | E113: 1 | F113: 0 | G113: 0 | H113: 0 | I113: 0 | J113: 0 | K113: 0 | L113: 0 | M113: 0 | N113: 0 | O113: 1 | P113: 0 | Q113: 0 | R113: 0 | S113: 0 | T113: 0 | U113: 0 | V113: 1 | W113: 0 | X113: 0 | Y113: 3
D114: 113 | E114: 0 | F114: 0 | G114: 0 | H114: 0 | I114: 0 | J114: 0 | K114: 0 | L114: 0 | M114: 0 | N114: 0 | O114: 0 | P114: 1 | Q114: 0 | R114: 0 | S114: 1 | T114: 0 | U114: 0 | V114: 0 | W114: 0 | X114: 1 | Y114: 3
D115: 114 | E115: 1 | F115: 0 | G115: 0 | H115: 1 | I115: 0 | J115: 0 | K115: 0 | L115: 0 | M115: 0 | N115: 0 | O115: 1 | P115: 0 | Q115: 0 | R115: 0 | S115: 1 | T115: 0 | U115: 0 | V115: 0 | W115: 1 | X115: 0 | Y115: 5
D116: 115 | E116: 1 | F116: 0 | G116: 0 | H116: 0 | I116: 0 | J116: 0 | K116: 0 | L116: 0 | M116: 1 | N116: 0 | O116: 0 | P116: 1 | Q116: 0 | R116: 0 | S116: 0 | T116: 1 | U116: 0 | V116: 0 | W116: 0 | X116: 1 | Y116: 5
D117: 116 | E117: 0 | F117: 0 | G117: 0 | H117: 0 | I117: 0 | J117: 0 | K117: 0 | L117: 0 | M117: 0 | N117: 1 | O117: 0 | P117: 0 | Q117: 0 | R117: 0 | S117: 1 | T117: 0 | U117: 0 | V117: 1 | W117: 0 | X117: 0 | Y117: 3
D118: 117 | E118: 0 | F118: 1 | G118: 1 | H118: 1 | I118: 0 | J118: 0 | K118: 0 | L118: 1 | M118: 0 | N118: 0 | O118: 0 | P118: 0 | Q118: 0 | R118: 0 | S118: 0 | T118: 0 | U118: 0 | V118: 1 | W118: 0 | X118: 0 | Y118: 5
D119: 118 | E119: 0 | F119: 0 | G119: 0 | H119: 1 | I119: 0 | J119: 0 | K119: 0 | L119: 1 | M119: 0 | N119: 0 | O119: 0 | P119: 0 | Q119: 0 | R119: 0 | S119: 0 | T119: 0 | U119: 0 | V119: 1 | W119: 0 | X119: 1 | Y119: 4
D120: 119 | E120: 0 | F120: 0 | G120: 1 | H120: 1 | I120: 0 | J120: 0 | K120: 0 | L120: 1 | M120: 0 | N120: 0 | O120: 0 | P120: 1 | Q120: 0 | R120: 0 | S120: 1 | T120: 0 | U120: 1 | V120: 0 | W120: 0 | X120: 1 | Y120: 7
D121: 120 | E121: 0 | F121: 0 | G121: 0 | H121: 0 | I121: 0 | J121: 0 | K121: 0 | L121: 0 | M121: 0 | N121: 0 | O121: 0 | P121: 0 | Q121: 0 | R121: 0 | S121: 0 | T121: 0 | U121: 0 | V121: 0 | W121: 0 | X121: 0 | Y121: 0
D122: 121 | E122: =IF(RAND()<$B$3,1,0) -> 0 | F122: 0 | G122: 1 | H122: 0 | I122: 0 | J122: 0 | K122: 0 | L122: 1 | M122: 1 | N122: 0 | O122: =IF(RAND()<$B$3,1,0) -> 0 | P122: 0 | Q122: 0 | R122: 0 | S122: 0 | T122: 0 | U122: 0 | V122: 0 | W122: 0 | X122: 1 | Y122: 4
D123: 122 | E123: 0 | F123: 0 | G123: 1 | H123: 1 | I123: 0 | J123: 0 | K123: 0 | L123: 0 | M123: 0 | N123: 0 | O123: 0 | P123: 0 | Q123: 0 | R123: 0 | S123: 0 | T123: 1 | U123: 0 | V123: 0 | W123: 0 | X123: 0 | Y123: 3
D124: 123 | E124: 0 | F124: 0 | G124: 1 | H124: 1 | I124: 0 | J124: 0 | K124: 0 | L124: 1 | M124: 0 | N124: 1 | O124: 0 | P124: 1 | Q124: 0 | R124: 0 | S124: 0 | T124: 0 | U124: 1 | V124: 0 | W124: 0 | X124: 0 | Y124: 6
D125: 124 | E125: 1 | F125: 0 | G125: 0 | H125: 0 | I125: 1 | J125: 0 | K125: 0 | L125: 1 | M125: 1 | N125: 0 | O125: 1 | P125: 0 | Q125: 0 | R125: 0 | S125: 0 | T125: 0 | U125: 0 | V125: 0 | W125: 1 | X125: 1 | Y125: 7
D126: 125 | E126: 0 | F126: 0 | G126: 0 | H126: 0 | I126: 1 | J126: 0 | K126: 0 | L126: 0 | M126: 0 | N126: 0 | O126: 1 | P126: 0 | Q126: 0 | R126: 1 | S126: 0 | T126: 0 | U126: 1 | V126: 1 | W126: 0 | X126: 0 | Y126: 5
D127: 126 | E127: 0 | F127: 1 | G127: 0 | H127: 0 | I127: 0 | J127: 1 | K127: 0 | L127: 1 | M127: 0 | N127: 0 | O127: 0 | P127: 0 | Q127: 0 | R127: 0 | S127: 0 | T127: 0 | U127: 0 | V127: 0 | W127: 0 | X127: 0 | Y127: 3
D128: 127 | E128: 0 | F128: 0 | G128: 0 | H128: 0 | I128: 1 | J128: 0 | K128: 0 | L128: 0 | M128: 1 | N128: 0 | O128: 1 | P128: 1 | Q128: 0 | R128: 0 | S128: 0 | T128: 0 | U128: 0 | V128: 0 | W128: 1 | X128: 0 | Y128: 5
D129: 128 | E129: 0 | F129: 0 | G129: 1 | H129: 0 | I129: 0 | J129: 0 | K129: 0 | L129: 1 | M129: 0 | N129: 0 | O129: 0 | P129: 0 | Q129: 0 | R129: 0 | S129: 0 | T129: 0 | U129: 0 | V129: 0 | W129: 1 | X129: 0 | Y129: 3
D130: 129 | E130: 1 | F130: 1 | G130: 0 | H130: 0 | I130: 0 | J130: 0 | K130: 0 | L130: 0 | M130: 0 | N130: 1 | O130: 0 | P130: 1 | Q130: 0 | R130: 0 | S130: 0 | T130: 0 | U130: 0 | V130: 0 | W130: 0 | X130: 0 | Y130: 4
D131: 130 | E131: 0 | F131: 0 | G131: 0 | H131: 1 | I131: 1 | J131: 1 | K131: 0 | L131: 0 | M131: 0 | N131: 1 | O131: 0 | P131: 0 | Q131: 0 | R131: 0 | S131: 0 | T131: 0 | U131: 0 | V131: 0 | W131: 0 | X131: 0 | Y131: =SUM(E131:X131) -> 4
D132: 131 | E132: =IF(RAND()<$B$3,1,0) -> 1 | F132: 0 | G132: 0 | H132: 1 | I132: 0 | J132: 1 | K132: 0 | L132: 0 | M132: 0 | N132: 0 | O132: =IF(RAND()<$B$3,1,0) -> 0 | P132: 0 | Q132: 0 | R132: 1 | S132: 0 | T132: 0 | U132: 1 | V132: 0 | W132: 0 | X132: 0 | Y132: 5
D133: 132 | E133: 0 | F133: 0 | G133: 0 | H133: 0 | I133: 0 | J133: 0 | K133: 0 | L133: 0 | M133: 0 | N133: 0 | O133: 0 | P133: 0 | Q133: 0 | R133: 1 | S133: 1 | T133: 0 | U133: 0 | V133: 0 | W133: 0 | X133: 0 | Y133: 2
D134: 133 | E134: 0 | F134: 0 | G134: 0 | H134: 1 | I134: 0 | J134: 0 | K134: 1 | L134: 0 | M134: 1 | N134: 0 | O134: 1 | P134: 1 | Q134: 1 | R134: 0 | S134: 1 | T134: 0 | U134: 0 | V134: 0 | W134: 0 | X134: 0 | Y134: 7
D135: 134 | E135: 1 | F135: 0 | G135: 0 | H135: 0 | I135: 0 | J135: 0 | K135: 0 | L135: 0 | M135: 0 | N135: 0 | O135: 0 | P135: 0 | Q135: 0 | R135: 0 | S135: 0 | T135: 0 | U135: 0 | V135: 0 | W135: 1 | X135: 0 | Y135: 2
D136: 135 | E136: 0 | F136: 0 | G136: 0 | H136: 1 | I136: 0 | J136: 1 | K136: 0 | L136: 0 | M136: 0 | N136: 0 | O136: 0 | P136: 0 | Q136: 0 | R136: 1 | S136: 0 | T136: 0 | U136: 1 | V136: 0 | W136: 0 | X136: 0 | Y136: 4
D137: 136 | E137: 1 | F137: 0 | G137: 0 | H137: 0 | I137: 1 | J137: 0 | K137: 1 | L137: 0 | M137: 0 | N137: 0 | O137: 0 | P137: 0 | Q137: 1 | R137: 0 | S137: 0 | T137: 0 | U137: 0 | V137: 0 | W137: 1 | X137: 1 | Y137: 6
D138: 137 | E138: 1 | F138: 0 | G138: 0 | H138: 0 | I138: 0 | J138: 1 | K138: 1 | L138: 0 | M138: 0 | N138: 1 | O138: 0 | P138: 0 | Q138: 0 | R138: 0 | S138: 0 | T138: 1 | U138: 1 | V138: 0 | W138: 1 | X138: 1 | Y138: 8
D139: 138 | E139: 1 | F139: 0 | G139: 0 | H139: 1 | I139: 1 | J139: 0 | K139: 0 | L139: 0 | M139: 0 | N139: 0 | O139: 0 | P139: 0 | Q139: 0 | R139: 1 | S139: 0 | T139: 1 | U139: 1 | V139: 0 | W139: 1 | X139: 0 | Y139: 7
D140: 139 | E140: 1 | F140: 0 | G140: 0 | H140: 0 | I140: 0 | J140: 0 | K140: 1 | L140: 0 | M140: 1 | N140: 0 | O140: 0 | P140: 0 | Q140: 0 | R140: 1 | S140: 0 | T140: 0 | U140: 0 | V140: 0 | W140: 0 | X140: 0 | Y140: 4
D141: 140 | E141: 0 | F141: 0 | G141: 0 | H141: 0 | I141: 0 | J141: 0 | K141: 0 | L141: 0 | M141: 0 | N141: 0 | O141: 0 | P141: 0 | Q141: 0 | R141: 0 | S141: 0 | T141: 1 | U141: 0 | V141: 0 | W141: 0 | X141: 0 | Y141: 1
D142: 141 | E142: =IF(RAND()<$B$3,1,0) -> 1 | F142: 0 | G142: 0 | H142: 1 | I142: 0 | J142: 0 | K142: 0 | L142: 0 | M142: 0 | N142: 1 | O142: =IF(RAND()<$B$3,1,0) -> 0 | P142: 0 | Q142: 0 | R142: 0 | S142: 1 | T142: 0 | U142: 0 | V142: 0 | W142: 0 | X142: 0 | Y142: 4
D143: 142 | E143: 0 | F143: 0 | G143: 0 | H143: 0 | I143: 0 | J143: 0 | K143: 0 | L143: 0 | M143: 0 | N143: 0 | O143: 0 | P143: 0 | Q143: 1 | R143: 0 | S143: 0 | T143: 0 | U143: 0 | V143: 0 | W143: 0 | X143: 1 | Y143: 2
D144: 143 | E144: 0 | F144: 1 | G144: 0 | H144: 0 | I144: 0 | J144: 1 | K144: 0 | L144: 0 | M144: 0 | N144: 0 | O144: 0 | P144: 0 | Q144: 0 | R144: 0 | S144: 0 | T144: 1 | U144: 0 | V144: 0 | W144: 0 | X144: 0 | Y144: 3
D145: 144 | E145: 0 | F145: 0 | G145: 1 | H145: 1 | I145: 0 | J145: 1 | K145: 0 | L145: 0 | M145: 0 | N145: 1 | O145: 1 | P145: 0 | Q145: 0 | R145: 1 | S145: 0 | T145: 0 | U145: 0 | V145: 0 | W145: 0 | X145: 1 | Y145: 7
D146: 145 | E146: 0 | F146: 0 | G146: 0 | H146: 1 | I146: 0 | J146: 0 | K146: 1 | L146: 0 | M146: 1 | N146: 0 | O146: 0 | P146: 1 | Q146: 0 | R146: 1 | S146: 0 | T146: 0 | U146: 0 | V146: 1 | W146: 0 | X146: 0 | Y146: 6
D147: 146 | E147: 0 | F147: 1 | G147: 0 | H147: 1 | I147: 0 | J147: 1 | K147: 0 | L147: 0 | M147: 1 | N147: 0 | O147: 0 | P147: 1 | Q147: 0 | R147: 0 | S147: 0 | T147: 0 | U147: 0 | V147: 1 | W147: 0 | X147: 0 | Y147: 6
D148: 147 | E148: 0 | F148: 1 | G148: 0 | H148: 0 | I148: 1 | J148: 0 | K148: 0 | L148: 0 | M148: 0 | N148: 0 | O148: 0 | P148: 0 | Q148: 0 | R148: 0 | S148: 0 | T148: 0 | U148: 0 | V148: 0 | W148: 0 | X148: 0 | Y148: 2
D149: 148 | E149: 1 | F149: 0 | G149: 0 | H149: 1 | I149: 0 | J149: 0 | K149: 0 | L149: 0 | M149: 0 | N149: 0 | O149: 0 | P149: 0 | Q149: 0 | R149: 1 | S149: 1 | T149: 0 | U149: 0 | V149: 0 | W149: 0 | X149: 0 | Y149: 4
D150: 149 | E150: 0 | F150: 0 | G150: 0 | H150: 0 | I150: 0 | J150: 0 | K150: 0 | L150: 0 | M150: 0 | N150: 0 | O150: 0 | P150: 0 | Q150: 1 | R150: 0 | S150: 0 | T150: 0 | U150: 0 | V150: 0 | W150: 0 | X150: 1 | Y150: 2
D151: 150 | E151: 0 | F151: 1 | G151: 1 | H151: 0 | I151: 0 | J151: 0 | K151: 1 | L151: 0 | M151: 1 | N151: 0 | O151: 0 | P151: 1 | Q151: 0 | R151: 0 | S151: 1 | T151: 0 | U151: 0 | V151: 1 | W151: 0 | X151: 1 | Y151: 8
D152: 151 | E152: =IF(RAND()<$B$3,1,0) -> 0 | F152: 0 | G152: 0 | H152: 0 | I152: 0 | J152: 0 | K152: 0 | L152: 1 | M152: 0 | N152: 0 | O152: =IF(RAND()<$B$3,1,0) -> 0 | P152: 1 | Q152: 0 | R152: 0 | S152: 0 | T152: 1 | U152: 1 | V152: 0 | W152: 0 | X152: 0 | Y152: 4
D153: 152 | E153: 0 | F153: 1 | G153: 0 | H153: 0 | I153: 1 | J153: 0 | K153: 0 | L153: 1 | M153: 0 | N153: 0 | O153: 0 | P153: 0 | Q153: 0 | R153: 0 | S153: 0 | T153: 0 | U153: 1 | V153: 0 | W153: 0 | X153: 1 | Y153: 5
D154: 153 | E154: 0 | F154: 0 | G154: 0 | H154: 1 | I154: 0 | J154: 0 | K154: 0 | L154: 0 | M154: 0 | N154: 1 | O154: 0 | P154: 0 | Q154: 1 | R154: 1 | S154: 0 | T154: 1 | U154: 0 | V154: 0 | W154: 0 | X154: 1 | Y154: 6
D155: 154 | E155: 0 | F155: 1 | G155: 0 | H155: 0 | I155: 0 | J155: 1 | K155: 0 | L155: 0 | M155: 0 | N155: 0 | O155: 1 | P155: 0 | Q155: 0 | R155: 0 | S155: 1 | T155: 0 | U155: 0 | V155: 0 | W155: 0 | X155: 0 | Y155: 4
D156: 155 | E156: 0 | F156: 0 | G156: 1 | H156: 0 | I156: 0 | J156: 0 | K156: 0 | L156: 0 | M156: 0 | N156: 0 | O156: 0 | P156: 0 | Q156: 0 | R156: 0 | S156: 0 | T156: 1 | U156: 0 | V156: 1 | W156: 0 | X156: 1 | Y156: 4
D157: 156 | E157: 0 | F157: 1 | G157: 0 | H157: 0 | I157: 0 | J157: 0 | K157: 0 | L157: 1 | M157: 0 | N157: 0 | O157: 0 | P157: 1 | Q157: 1 | R157: 0 | S157: 0 | T157: 0 | U157: 0 | V157: 0 | W157: 0 | X157: 0 | Y157: 4
D158: 157 | E158: 0 | F158: 0 | G158: 0 | H158: 0 | I158: 0 | J158: 0 | K158: 0 | L158: 1 | M158: 1 | N158: 0 | O158: 0 | P158: 0 | Q158: 0 | R158: 0 | S158: 0 | T158: 1 | U158: 0 | V158: 0 | W158: 1 | X158: 0 | Y158: 4
D159: 158 | E159: 1 | F159: 0 | G159: 0 | H159: 1 | I159: 0 | J159: 0 | K159: 0 | L159: 1 | M159: 1 | N159: 0 | O159: 0 | P159: 0 | Q159: 1 | R159: 0 | S159: 0 | T159: 1 | U159: 0 | V159: 0 | W159: 0 | X159: 0 | Y159: 6
D160: 159 | E160: 0 | F160: 0 | G160: 0 | H160: 0 | I160: 0 | J160: 0 | K160: 0 | L160: 0 | M160: 0 | N160: 0 | O160: 1 | P160: 0 | Q160: 0 | R160: 0 | S160: 0 | T160: 0 | U160: 0 | V160: 0 | W160: 0 | X160: 0 | Y160: 1
D161: 160 | E161: 1 | F161: 1 | G161: 0 | H161: 0 | I161: 1 | J161: 0 | K161: 0 | L161: 0 | M161: 0 | N161: 0 | O161: 0 | P161: 0 | Q161: 0 | R161: 0 | S161: 0 | T161: 0 | U161: 0 | V161: 0 | W161: 0 | X161: 0 | Y161: 3
D162: 161 | E162: =IF(RAND()<$B$3,1,0) -> 0 | F162: 0 | G162: 0 | H162: 0 | I162: 0 | J162: 0 | K162: 1 | L162: 0 | M162: 0 | N162: 0 | O162: =IF(RAND()<$B$3,1,0) -> 0 | P162: 0 | Q162: 0 | R162: 0 | S162: 0 | T162: 1 | U162: 0 | V162: 0 | W162: 0 | X162: 0 | Y162: 2
D163: 162 | E163: 0 | F163: 0 | G163: 0 | H163: 1 | I163: 0 | J163: 0 | K163: 0 | L163: 0 | M163: 0 | N163: 0 | O163: 0 | P163: 1 | Q163: 1 | R163: 0 | S163: 0 | T163: 0 | U163: 0 | V163: 0 | W163: 0 | X163: 0 | Y163: 3
D164: 163 | E164: 0 | F164: 0 | G164: 0 | H164: 1 | I164: 0 | J164: 0 | K164: 1 | L164: 0 | M164: 0 | N164: 0 | O164: 0 | P164: 0 | Q164: 0 | R164: 1 | S164: 0 | T164: 0 | U164: 1 | V164: 0 | W164: 1 | X164: 0 | Y164: 5
D165: 164 | E165: 0 | F165: 0 | G165: 0 | H165: 0 | I165: 0 | J165: 0 | K165: 0 | L165: 1 | M165: 0 | N165: 0 | O165: 0 | P165: 1 | Q165: 0 | R165: 0 | S165: 0 | T165: 1 | U165: 0 | V165: 0 | W165: 0 | X165: 0 | Y165: 3
D166: 165 | E166: 0 | F166: 0 | G166: 0 | H166: 0 | I166: 0 | J166: 0 | K166: 0 | L166: 0 | M166: 0 | N166: 1 | O166: 0 | P166: 1 | Q166: 0 | R166: 0 | S166: 0 | T166: 0 | U166: 0 | V166: 0 | W166: 0 | X166: 0 | Y166: 2
D167: 166 | E167: 0 | F167: 0 | G167: 0 | H167: 0 | I167: 1 | J167: 0 | K167: 0 | L167: 0 | M167: 0 | N167: 0 | O167: 0 | P167: 0 | Q167: 0 | R167: 1 | S167: 0 | T167: 0 | U167: 1 | V167: 0 | W167: 1 | X167: 0 | Y167: 4
D168: 167 | E168: 0 | F168: 0 | G168: 0 | H168: 0 | I168: 0 | J168: 0 | K168: 0 | L168: 0 | M168: 0 | N168: 0 | O168: 0 | P168: 0 | Q168: 0 | R168: 0 | S168: 0 | T168: 0 | U168: 1 | V168: 0 | W168: 0 | X168: 0 | Y168: 1
D169: 168 | E169: 0 | F169: 0 | G169: 0 | H169: 0 | I169: 0 | J169: 1 | K169: 0 | L169: 0 | M169: 0 | N169: 0 | O169: 0 | P169: 0 | Q169: 1 | R169: 0 | S169: 0 | T169: 0 | U169: 0 | V169: 1 | W169: 0 | X169: 0 | Y169: 3
D170: 169 | E170: 0 | F170: 0 | G170: 0 | H170: 0 | I170: 0 | J170: 1 | K170: 0 | L170: 1 | M170: 0 | N170: 0 | O170: 0 | P170: 0 | Q170: 0 | R170: 0 | S170: 0 | T170: 0 | U170: 0 | V170: 0 | W170: 0 | X170: 0 | Y170: 2
D171: 170 | E171: 0 | F171: 0 | G171: 0 | H171: 0 | I171: 0 | J171: 1 | K171: 0 | L171: 1 | M171: 0 | N171: 0 | O171: 0 | P171: 0 | Q171: 0 | R171: 0 | S171: 0 | T171: 0 | U171: 0 | V171: 1 | W171: 1 | X171: 0 | Y171: 4
D172: 171 | E172: =IF(RAND()<$B$3,1,0) -> 0 | F172: 0 | G172: 1 | H172: 0 | I172: 0 | J172: 0 | K172: 0 | L172: 0 | M172: 0 | N172: 0 | O172: =IF(RAND()<$B$3,1,0) -> 1 | P172: 0 | Q172: 0 | R172: 0 | S172: 0 | T172: 0 | U172: 0 | V172: 1 | W172: 0 | X172: 0 | Y172: 3
D173: 172 | E173: 0 | F173: 1 | G173: 0 | H173: 0 | I173: 1 | J173: 0 | K173: 0 | L173: 0 | M173: 1 | N173: 0 | O173: 0 | P173: 0 | Q173: 0 | R173: 0 | S173: 0 | T173: 0 | U173: 0 | V173: 0 | W173: 1 | X173: 1 | Y173: 5
D174: 173 | E174: 0 | F174: 0 | G174: 0 | H174: 1 | I174: 0 | J174: 0 | K174: 0 | L174: 0 | M174: 0 | N174: 0 | O174: 0 | P174: 1 | Q174: 0 | R174: 0 | S174: 0 | T174: 1 | U174: 1 | V174: 0 | W174: 0 | X174: 0 | Y174: 4
D175: 174 | E175: 0 | F175: 0 | G175: 0 | H175: 0 | I175: 1 | J175: 0 | K175: 0 | L175: 0 | M175: 0 | N175: 0 | O175: 0 | P175: 0 | Q175: 0 | R175: 0 | S175: 1 | T175: 0 | U175: 1 | V175: 0 | W175: 0 | X175: 0 | Y175: 3
D176: 175 | E176: 0 | F176: 0 | G176: 1 | H176: 0 | I176: 0 | J176: 0 | K176: 0 | L176: 0 | M176: 0 | N176: 0 | O176: 1 | P176: 0 | Q176: 1 | R176: 1 | S176: 0 | T176: 0 | U176: 1 | V176: 0 | W176: 0 | X176: 0 | Y176: 5
D177: 176 | E177: 0 | F177: 0 | G177: 0 | H177: 0 | I177: 0 | J177: 0 | K177: 0 | L177: 1 | M177: 1 | N177: 0 | O177: 0 | P177: 0 | Q177: 0 | R177: 0 | S177: 0 | T177: 0 | U177: 0 | V177: 0 | W177: 0 | X177: 0 | Y177: 2
D178: 177 | E178: 0 | F178: 0 | G178: 1 | H178: 0 | I178: 1 | J178: 0 | K178: 0 | L178: 1 | M178: 0 | N178: 0 | O178: 1 | P178: 1 | Q178: 0 | R178: 0 | S178: 0 | T178: 0 | U178: 1 | V178: 0 | W178: 0 | X178: 0 | Y178: 6
D179: 178 | E179: 0 | F179: 1 | G179: 0 | H179: 0 | I179: 0 | J179: 0 | K179: 0 | L179: 0 | M179: 0 | N179: 0 | O179: 0 | P179: 1 | Q179: 0 | R179: 0 | S179: 0 | T179: 1 | U179: 0 | V179: 0 | W179: 0 | X179: 0 | Y179: 3
D180: 179 | E180: 0 | F180: 0 | G180: 1 | H180: 0 | I180: 0 | J180: 0 | K180: 0 | L180: 0 | M180: 0 | N180: 0 | O180: 0 | P180: 0 | Q180: 0 | R180: 0 | S180: 1 | T180: 1 | U180: 0 | V180: 0 | W180: 0 | X180: 0 | Y180: 3
D181: 180 | E181: 0 | F181: 0 | G181: 0 | H181: 0 | I181: 0 | J181: 0 | K181: 1 | L181: 0 | M181: 0 | N181: 0 | O181: 0 | P181: 1 | Q181: 1 | R181: 0 | S181: 0 | T181: 0 | U181: 0 | V181: 0 | W181: 0 | X181: 0 | Y181: 3
D182: 181 | E182: =IF(RAND()<$B$3,1,0) -> 0 | F182: 1 | G182: 0 | H182: 0 | I182: 0 | J182: 1 | K182: 0 | L182: 0 | M182: 1 | N182: 0 | O182: =IF(RAND()<$B$3,1,0) -> 0 | P182: 0 | Q182: 0 | R182: 1 | S182: 1 | T182: 0 | U182: 0 | V182: 1 | W182: 0 | X182: 0 | Y182: 6
D183: 182 | E183: 0 | F183: 0 | G183: 1 | H183: 0 | I183: 0 | J183: 0 | K183: 0 | L183: 1 | M183: 0 | N183: 0 | O183: 0 | P183: 0 | Q183: 0 | R183: 0 | S183: 0 | T183: 0 | U183: 0 | V183: 0 | W183: 0 | X183: 0 | Y183: 2
D184: 183 | E184: 0 | F184: 0 | G184: 1 | H184: 1 | I184: 0 | J184: 0 | K184: 0 | L184: 0 | M184: 0 | N184: 1 | O184: 0 | P184: 0 | Q184: 0 | R184: 0 | S184: 1 | T184: 0 | U184: 0 | V184: 0 | W184: 0 | X184: 0 | Y184: 4
D185: 184 | E185: 0 | F185: 0 | G185: 0 | H185: 0 | I185: 0 | J185: 0 | K185: 0 | L185: 0 | M185: 0 | N185: 0 | O185: 0 | P185: 1 | Q185: 0 | R185: 0 | S185: 0 | T185: 0 | U185: 0 | V185: 0 | W185: 0 | X185: 0 | Y185: 1
D186: 185 | E186: 0 | F186: 0 | G186: 0 | H186: 0 | I186: 0 | J186: 1 | K186: 1 | L186: 0 | M186: 0 | N186: 0 | O186: 0 | P186: 0 | Q186: 1 | R186: 0 | S186: 1 | T186: 0 | U186: 0 | V186: 0 | W186: 0 | X186: 0 | Y186: 4
D187: 186 | E187: 0 | F187: 0 | G187: 0 | H187: 1 | I187: 0 | J187: 0 | K187: 0 | L187: 0 | M187: 0 | N187: 0 | O187: 0 | P187: 1 | Q187: 1 | R187: 0 | S187: 0 | T187: 0 | U187: 0 | V187: 0 | W187: 1 | X187: 0 | Y187: 4
D188: 187 | E188: 0 | F188: 0 | G188: 0 | H188: 0 | I188: 0 | J188: 0 | K188: 1 | L188: 0 | M188: 0 | N188: 1 | O188: 0 | P188: 0 | Q188: 0 | R188: 0 | S188: 0 | T188: 0 | U188: 0 | V188: 0 | W188: 0 | X188: 0 | Y188: 2
D189: 188 | E189: 0 | F189: 1 | G189: 0 | H189: 1 | I189: 1 | J189: 0 | K189: 1 | L189: 1 | M189: 1 | N189: 0 | O189: 0 | P189: 1 | Q189: 0 | R189: 0 | S189: 1 | T189: 1 | U189: 1 | V189: 1 | W189: 0 | X189: 0 | Y189: 11
D190: 189 | E190: 0 | F190: 0 | G190: 0 | H190: 0 | I190: 0 | J190: 0 | K190: 0 | L190: 0 | M190: 0 | N190: 0 | O190: 0 | P190: 0 | Q190: 0 | R190: 0 | S190: 0 | T190: 0 | U190: 1 | V190: 0 | W190: 1 | X190: 0 | Y190: 2
D191: 190 | E191: 0 | F191: 0 | G191: 0 | H191: 0 | I191: 0 | J191: 0 | K191: 0 | L191: 1 | M191: 0 | N191: 0 | O191: 0 | P191: 0 | Q191: 0 | R191: 0 | S191: 0 | T191: 0 | U191: 1 | V191: 0 | W191: 0 | X191: 0 | Y191: 2
D192: 191 | E192: =IF(RAND()<$B$3,1,0) -> 0 | F192: 1 | G192: 0 | H192: 0 | I192: 1 | J192: 0 | K192: 0 | L192: 0 | M192: 0 | N192: 0 | O192: =IF(RAND()<$B$3,1,0) -> 0 | P192: 0 | Q192: 0 | R192: 0 | S192: 0 | T192: 0 | U192: 0 | V192: 1 | W192: 0 | X192: 1 | Y192: 4
D193: 192 | E193: 0 | F193: 0 | G193: 0 | H193: 0 | I193: 1 | J193: 0 | K193: 0 | L193: 0 | M193: 0 | N193: 0 | O193: 0 | P193: 1 | Q193: 0 | R193: 0 | S193: 0 | T193: 0 | U193: 0 | V193: 0 | W193: 1 | X193: 0 | Y193: 3
D194: 193 | E194: 0 | F194: 0 | G194: 1 | H194: 0 | I194: 0 | J194: 0 | K194: 1 | L194: 1 | M194: 0 | N194: 0 | O194: 0 | P194: 0 | Q194: 0 | R194: 0 | S194: 1 | T194: 0 | U194: 1 | V194: 1 | W194: 1 | X194: 0 | Y194: 7
D195: 194 | E195: 0 | F195: 0 | G195: 0 | H195: 0 | I195: 0 | J195: 0 | K195: 0 | L195: 0 | M195: 0 | N195: 0 | O195: 0 | P195: 0 | Q195: 0 | R195: 0 | S195: 0 | T195: 0 | U195: 0 | V195: 1 | W195: 1 | X195: 0 | Y195: =SUM(E195:X195) -> 2
D196: 195 | E196: 0 | F196: 0 | G196: 0 | H196: 1 | I196: 0 | J196: 1 | K196: 0 | L196: 0 | M196: 0 | N196: 0 | O196: 0 | P196: 1 | Q196: 0 | R196: 0 | S196: 0 | T196: 0 | U196: 0 | V196: 1 | W196: 1 | X196: 0 | Y196: 5
D197: 196 | E197: 0 | F197: 1 | G197: 0 | H197: 0 | I197: 0 | J197: 1 | K197: 0 | L197: 0 | M197: 1 | N197: 0 | O197: 0 | P197: 0 | Q197: 0 | R197: 0 | S197: 0 | T197: 0 | U197: 1 | V197: 0 | W197: 0 | X197: 0 | Y197: 4
D198: 197 | E198: 0 | F198: 0 | G198: 1 | H198: 0 | I198: 0 | J198: 0 | K198: 1 | L198: 0 | M198: 1 | N198: 0 | O198: 0 | P198: 0 | Q198: 0 | R198: 0 | S198: 0 | T198: 0 | U198: 1 | V198: 0 | W198: 1 | X198: 0 | Y198: 5
D199: 198 | E199: 0 | F199: 0 | G199: 0 | H199: 0 | I199: 0 | J199: 0 | K199: 0 | L199: 0 | M199: 0 | N199: 0 | O199: 0 | P199: 1 | Q199: 0 | R199: 0 | S199: 1 | T199: 0 | U199: 0 | V199: 0 | W199: 0 | X199: 0 | Y199: 2
D200: 199 | E200: 0 | F200: 0 | G200: 0 | H200: 0 | I200: 0 | J200: 0 | K200: 1 | L200: 0 | M200: 1 | N200: 0 | O200: 1 | P200: 0 | Q200: 1 | R200: 1 | S200: 1 | T200: 0 | U200: 0 | V200: 0 | W200: 0 | X200: 0 | Y200: 6
... 1801 more rows

Sheet Z.1.dist.
A1: Z-dist | D1: Trial | E1: x1 | F1: x2 | G1: x3 | H1: x4 | I1: x5 | J1: x6 | K1: x7 | L1: x8 | M1: x9 | N1: x10 | O1: x11 | P1: x12 | Q1: x13 | R1: x14 | S1: x15 | T1: x16 | U1: x17 | V1: x18 | W1: x19 | X1: x20 | Y1: Mean | Z1: Z | AB1: Z | AC1: from | AD1: to | AE1: P.trial | AF1: N.dist | AG1: N.cum
A2: Set | D2: 1 | E2: =NORMINV(RAND(), $B$3, SQRT($B$4)) -> 8.313483421 | F2: =NORMINV(RAND(), $B$3, SQRT($B$4)) -> 6.77013201 | G2: 10.33425078 | H2: 14.6224893 | I2: 11.81701549 | J2: 10.61668939 | K2: 8.177961018 | L2: 10.39353117 | M2: 14.30850111 | N2: 14.40959469 | O2: 18.51887991 | P2: 11.8969426 | Q2: 8.63038773 | R2: 10.31089436 | S2: 6.576109808 | T2: 9.373745881 | U2: 17.11243423 | V2: 14.27699731 | W2: 12.80036748 | X2: 5.751503764 | Y2: =AVERAGE(E2:X2) -> 11.25059557 | Z2: =(Y2-$B$10)/SQRT($B$11/20) -> 1.759900478 | AB2: -5 | AC2: =AB2-0.5 -> -5.5 | AD2: =AB2+0.5 -> -4.5 | AE2: =COUNTIFS($Z$2:$Z$2001,">"&AC2,$Z$2:$Z$2001,"<="&AD2)/2000 -> 0 | AF2: =NORMSDIST(AD2)-NORMSDIST(AC2) -> 3.378683562e-06 | AG2: =NORMSDIST(AB2) -> 2.866515719e-07
A3: m | B3: 10 | D3: 2 | E3: =NORMINV(RAND(), $B$3, SQRT($B$4)) -> 10.29887603 | F3: 12.41703319 | G3: 6.095149338 | H3: 11.57126816 | I3: 11.15953724 | J3: 9.800570174 | K3: 11.30753509 | L3: 9.927757502 | M3: 5.870372631 | N3: 3.733459207 | O3: 14.17396267 | P3: 6.431115724 | Q3: 8.206148462 | R3: 10.66945811 | S3: 11.47905145 | T3: 7.052716728 | U3: 12.30132227 | V3: 8.967024011 | W3: 14.91130244 | X3: 11.48688652 | Y3: =AVERAGE(E3:X3) -> 9.893027348 | Z3: -0.1578383606 | AB3: -4.5 | AC3: =AB3-0.5 -> -5 | AD3: =AB3+0.5 -> -4 | AE3: =COUNTIFS($Z$2:$Z$2001,">"&AC3,$Z$2:$Z$2001,"<="&AD3)/2000 -> 0 | AF3: =NORMSDIST(AD3)-NORMSDIST(AC3) -> 3.138459026e-05 | AG3: =NORMSDIST(AB3) -> 3.397673125e-06
A4: v | B4: 10 | D4: 3 | E4: 5.559323961 | F4: 6.957628487 | G4: 15.16777641 | H4: 15.92950957 | I4: 7.187197691 | J4: 10.16009482 | K4: 11.51458348 | L4: 14.56972911 | M4: 5.753000457 | N4: 10.26681753 | O4: 8.040972887 | P4: 10.70282731 | Q4: 9.022316056 | R4: 8.686815504 | S4: 11.33258407 | T4: 12.50605212 | U4: 5.561535264 | V4: 11.16773863 | W4: 14.09254673 | X4: 12.01369711 | Y4: 10.30963736 | Z4: 0.4306765917 | AB4: -4 | AC4: -4.5 | AD4: -3.5 | AE4: 0.0005 | AF4: 0.0002292314059 | AG4: 3.167124183e-05
A5: sd | B5: =SQRT(B4) -> 3.16227766 | D5: 4 | E5: 4.691227416 | F5: 10.02393497 | G5: 9.163832745 | H5: 13.71892446 | I5: 9.232082144 | J5: 17.33537107 | K5: 7.25939885 | L5: 10.52386067 | M5: 14.37551843 | N5: 6.520117843 | O5: 5.167474255 | P5: 10.52869555 | Q5: 8.653747539 | R5: 9.888203358 | S5: 10.67337122 | T5: 6.40079709 | U5: 8.98771317 | V5: 11.20306032 | W5: 12.31727415 | X5: 14.61251581 | Y5: 10.06385605 | Z5: 0.08347904494 | AB5: -3.5 | AC5: -4 | AD5: -3 | AE5: 0.002 | AF5: 0.00131822679 | AG5: 0.000232629079
A6: n | B6: 20 | D6: 5 | E6: 15.81366305 | F6: 4.774778614 | G6: 14.0019243 | H6: 6.430249183 | I6: 10.0920994 | J6: 5.988544175 | K6: 11.06113809 | L6: 4.740942081 | M6: 5.703062089 | N6: 7.39990911 | O6: 9.173518621 | P6: 11.90074838 | Q6: 11.97738297 | R6: 5.79631407 | S6: 9.027492757 | T6: 6.86193265 | U6: 12.96309809 | V6: 14.9763032 | W6: 13.93852438 | X6: 7.646586135 | Y6: 9.513410567 | Z6: -0.694095642 | AB6: -3 | AC6: -3.5 | AD6: -2.5 | AE6: 0.007 | AF6: 0.005977036247 | AG6: 0.001349898032
B7: x1-x20 | D7: 6 | E7: 17.56508555 | F7: 7.632133565 | G7: 11.59061161 | H7: 11.49877516 | I7: 13.05174957 | J7: 8.913781934 | K7: 11.73508144 | L7: 9.520849897 | M7: 4.684172496 | N7: 13.75993612 | O7: 15.21032045 | P7: 5.572833615 | Q7: 9.222296309 | R7: 3.5542944 | S7: 8.272494772 | T7: 6.874262194 | U7: 9.805296146 | V7: 10.68479146 | W7: 15.27779628 | X7: 9.317434187 | Y7: 10.18719986 | Z7: 0.2577179517 | AB7: -2.5 | AC7: -3 | AD7: -2 | AE7: 0.0155 | AF7: 0.02140023392 | AG7: 0.006209665326
D8: 7 | E8: 10.59106825 | F8: 10.48683074 | G8: 6.034440809 | H8: 9.88686858 | I8: 12.47208113 | J8: 5.267945523 | K8: 10.79662116 | L8: 3.511368537 | M8: 7.346827387 | N8: 6.281815954 | O8: 7.482560553 | P8: 12.81220942 | Q8: 17.57503127 | R8: 7.04988336 | S8: 7.89601713 | T8: 14.12249967 | U8: 13.33296803 | V8: 6.620202209 | W8: 12.64680606 | X8: 9.798800082 | Y8: 9.600642293 | Z8: -0.5708696658 | AB8: -2 | AC8: -2.5 | AD8: -1.5 | AE8: 0.0475 | AF8: 0.06059753594 | AG8: 0.02275013195
A9: Trial | D9: 8 | E9: 12.48312486 | F9: 6.987706491 | G9: 12.14726044 | H9: 7.198764259 | I9: 6.893322351 | J9: 12.06648586 | K9: 16.94264239 | L9: 6.457898419 | M9: 10.01819749 | N9: 5.345100824 | O9: 12.45992918 | P9: 11.74599316 | Q9: 6.85479575 | R9: 11.61764832 | S9: 9.944256948 | T9: 10.72195362 | U9: 12.28263562 | V9: 11.30525275 | W9: 7.554101968 | X9: 16.4523916 | Y9: 10.37397312 | Z9: 0.5215590797 | AB9: -1.5 | AC9: -2 | AD9: -1 | AE9: 0.13 | AF9: 0.135905122 | AG9: 0.06680720127
A10: M | B10: =AVERAGE(E:X) -> 10.0047612 | D10: 9 | E10: 10.64123294 | F10: 12.32621646 | G10: 12.02094754 | H10: 10.94335422 | I10: 9.336003201 | J10: 7.920929569 | K10: 6.18200199 | L10: 13.8302744 | M10: 4.511001916 | N10: 11.09378696 | O10: 10.67694348 | P10: 13.19032827 | Q10: 10.90264622 | R10: 11.69998327 | S10: 10.57552353 | T10: 7.847736447 | U10: 8.966639668 | V10: 13.75153545 | W10: 9.984953355 | X10: 13.09523872 | Y10: 10.47486388 | Z10: 0.6640801952 | AB10: -1 | AC10: -1.5 | AD10: -0.5 | AE10: 0.237 | AF10: 0.2417303375 | AG10: 0.1586552539
A11: V | B11: =VARP(E:X) -> 10.0224615 | D11: 10 | E11: 13.76842275 | F11: 8.970491679 | G11: 10.95735709 | H11: 10.75154624 | I11: 10.00191041 | J11: 4.343027865 | K11: 6.33157408 | L11: 11.85533565 | M11: 4.618445202 | N11: 12.14581703 | O11: 9.59448554 | P11: 5.95226188 | Q11: 12.27065067 | R11: 5.309415263 | S11: 7.913885238 | T11: 8.0178836 | U11: 5.387049887 | V11: 11.65893067 | W11: 5.434208257 | X11: 11.35892103 | Y11: 8.832081001 | Z11: -1.65656084 | AB11: -0.5 | AC11: -1 | AD11: 0 | AE11: 0.351 | AF11: 0.3413447461 | AG11: 0.3085375387
A12: SD | B12: =SQRT(B11) -> 3.165827143 | D12: 11 | E12: 12.04033951 | F12: 10.67695814 | G12: 11.09714382 | H12: 14.32391512 | I12: 12.635585 | J12: 12.23761726 | K12: 5.889050101 | L12: 11.66587387 | M12: 9.878534366 | N12: 13.56923077 | O12: 8.523935055 | P12: 9.021991888 | Q12: 15.01326291 | R12: 11.40218502 | S12: 15.41034514 | T12: 9.903450117 | U12: 9.302653961 | V12: 8.821512304 | W12: 15.52131493 | X12: 10.72021085 | Y12: 11.38275551 | Z12: 1.946593297 | AB12: 0 | AC12: -0.5 | AD12: 0.5 | AE12: 0.4165 | AF12: 0.3829249225 | AG12: 0.5
D13: 12 | E13: 7.680127265 | F13: 6.176312972 | G13: 12.83548859 | H13: 13.10996765 | I13: 15.10638659 | J13: 5.546598687 | K13: 10.80850304 | L13: 7.474650727 | M13: 9.634062738 | N13: 10.96197094 | O13: 8.672216988 | P13: 13.50659687 | Q13: 3.686952014 | R13: 11.12116659 | S13: 1.755562027 | T13: 6.971430517 | U13: 11.72916515 | V13: =NORMINV(RAND(), $B$3, SQRT($B$4)) -> 11.1374275 | W13: 5.676158152 | X13: 15.05103471 | Y13: 9.432088986 | Z13: -0.8089727814 | AB13: 0.5 | AC13: 0 | AD13: =AB13+0.5 -> 1 | AE13: 0.356 | AF13: 0.3413447461 | AG13: 0.6914624613
A14: Renew: [F9] | D14: 13 | E14: =NORMINV(RAND(), $B$3, SQRT($B$4)) -> 11.42616919 | F14: 14.9095387 | G14: 13.1319081 | H14: 5.749302602 | I14: 9.205219814 | J14: 5.707021098 | K14: 12.68975662 | L14: 12.41686899 | M14: 9.123476253 | N14: 5.994330795 | O14: 13.83560841 | P14: 12.1305955 | Q14: 5.423497609 | R14: 4.818599355 | S14: 12.05881369 | T14: 15.00799355 | U14: =NORMINV(RAND(), $B$3, SQRT($B$4)) -> 10.27332472 | V14: 9.509328189 | W14: 6.750946691 | X14: 4.599532749 | Y14: 9.73809163 | Z14: -0.3767048882 | AB14: 1 | AC14: 0.5 | AD14: 1.5 | AE14: 0.231 | AF14: 0.2417303375 | AG14: 0.8413447461
D15: 14 | E15: 8.256935729 | F15: 7.616145038 | G15: 13.26314509 | H15: 10.68158762 | I15: 11.77548787 | J15: 15.69021276 | K15: 11.78645449 | L15: 12.62767524 | M15: 12.2438927 | N15: 12.16982944 | O15: 7.588284021 | P15: 9.717757655 | Q15: 5.788713387 | R15: 13.77283779 | S15: 10.60524852 | T15: 13.30181609 | U15: 10.88256552 | V15: 8.706147683 | W15: 9.159442798 | X15: 11.0767178 | Y15: 10.83554486 | Z15: 1.173588237 | AB15: 1.5 | AC15: 1 | AD15: 2 | AE15: 0.129 | AF15: 0.135905122 | AG15: 0.9331927987
D16: 15 | E16: 16.15619893 | F16: 11.76915253 | G16: 10.07758925 | H16: 14.77201051 | I16: 11.06836103 | J16: 5.779235763 | K16: 8.030174639 | L16: 9.945111429 | M16: 9.377305365 | N16: 10.54426382 | O16: 11.95112382 | P16: 10.25357259 | Q16: 9.804565571 | R16: 11.00885686 | S16: 10.01728153 | T16: 7.55355992 | U16: 10.05461529 | V16: 8.541852485 | W16: 10.4041485 | X16: 10.92258023 | Y16: 10.401578 | Z16: 0.5605545159 | AB16: 2 | AC16: 1.5 | AD16: 2.5 | AE16: 0.057 | AF16: 0.06059753594 | AG16: 0.9772498681
D17: 16 | E17: 10.41389705 | F17: 8.794807978 | G17: 10.48418558 | H17: 9.824875504 | I17: 10.12764401 | J17: 9.450815432 | K17: 10.54962147 | L17: 12.13677793 | M17: 6.469615201 | N17: 6.904403012 | O17: 5.127792865 | P17: 8.240295504 | Q17: 7.38385888 | R17: 8.944887557 | S17: 10.32551192 | T17: 15.81056294 | U17: 3.173064848 | V17: 11.56022434 | W17: 6.8044831 | X17: 9.95124281 | Y17: 9.123928396 | Z17: -1.244289048 | AB17: 2.5 | AC17: 2 | AD17: 3 | AE17: 0.016 | AF17: 0.02140023392 | AG17: 0.9937903347
D18: 17 | E18: 10.31139662 | F18: 12.81339092 | G18: 11.51227821 | H18: 11.79830892 | I18: 10.04327637 | J18: 10.47146774 | K18: 5.301588126 | L18: 3.379316047 | M18: 12.47648704 | N18: 12.94882651 | O18: 6.904196029 | P18: 9.657485281 | Q18: 11.89160097 | R18: 8.194558754 | S18: 10.86570965 | T18: 9.371463268 | U18: 13.11245661 | V18: 11.25597138 | W18: 9.212448814 | X18: 13.2450999 | Y18: 10.23836636 | Z18: 0.3299971817 | AB18: 3 | AC18: 2.5 | AD18: 3.5 | AE18: 0.0035 | AF18: 0.005977036247 | AG18: 0.998650102
D19: 18 | E19: 7.916229351 | F19: 11.90488575 | G19: 6.951381569 | H19: 6.663761744 | I19: 8.302610206 | J19: 10.35266534 | K19: 8.652014629 | L19: 2.99635431 | M19: 6.224342336 | N19: 9.32966299 | O19: 12.98293788 | P19: 10.29680401 | Q19: 9.762689015 | R19: 4.035959262 | S19: 8.941262047 | T19: 7.20789827 | U19: 14.24954796 | V19: 12.48800949 | W19: 7.120490022 | X19: 13.01572232 | Y19: 8.969761425 | Z19: -1.462069623 | AB19: 3.5 | AC19: 3 | AD19: 4 | AE19: 0.0005 | AF19: 0.00131822679 | AG19: 0.9997673709
D20: 19 | E20: 9.436698431 | F20: 9.927850236 | G20: 7.738347415 | H20: 9.94182879 | I20: 7.33371546 | J20: 9.877582343 | K20: 8.326770306 | L20: 11.14283341 | M20: 5.386968913 | N20: 9.555155695 | O20: 4.739924683 | P20: 10.26434029 | Q20: 13.88313522 | R20: 9.055766635 | S20: 11.18267865 | T20: 7.502909378 | U20: 12.252479 | V20: 3.421562877 | W20: 11.32808073 | X20: 14.19321745 | Y20: 9.324592296 | Z20: -0.960825612 | AB20: 4 | AC20: 3.5 | AD20: 4.5 | AE20: 0 | AF20: 0.0002292314059 | AG20: 0.9999683288
D21: 20 | E21: 13.68593949 | F21: 11.91971808 | G21: 7.23177522 | H21: 12.01516999 | I21: 7.31550167 | J21: 11.07494293 | K21: 8.953527096 | L21: 4.827647584 | M21: 13.40906557 | N21: 6.373840672 | O21: 13.71925761 | P21: 14.60114616 | Q21: 13.15280767 | R21: 13.46899678 | S21: 10.91217127 | T21: 9.52050171 | U21: 12.29849836 | V21: 9.003299831 | W21: 10.95137157 | X21: 8.231226957 | Y21: 10.63332031 | Z21: 0.8879201812 | AB21: 4.5 | AC21: 4 | AD21: 5 | AE21: 0 | AF21: 3.138459026e-05 | AG21: 0.9999966023
D22: 21 | E22: 10.78463578 | F22: 5.623543931 | G22: 8.835412558 | H22: 9.175172762 | I22: 6.972819794 | J22: 14.1548695 | K22: 8.368319461 | L22: 11.22022708 | M22: 10.58858132 | N22: 11.89601499 | O22: 13.05391003 | P22: 7.009286468 | Q22: 18.33507993 | R22: 6.704561989 | S22: 13.58209364 | T22: 10.82445655 | U22: 11.07683086 | V22: 8.922426885 | W22: 11.89719671 | X22: 11.45281798 | Y22: 10.52391291 | Z22: 0.7333682283 | AB22: 5 | AC22: 4.5 | AD22: 5.5 | AE22: 0 | AF22: 3.378683562e-06 | AG22: 0.9999997133
D23: 22 | E23: 9.286881964 | F23: 11.19523495 | G23: 11.05403267 | H23: 15.45523458 | I23: 7.821418306 | J23: 5.55953353 | K23: 6.634301667 | L23: 8.24544103 | M23: 7.707158135 | N23: 12.63849969 | O23: 9.37946773 | P23: 11.13429176 | Q23: 10.57619185 | R23: 10.01941319 | S23: 14.35447746 | T23: 6.043982175 | U23: 9.985035276 | V23: 15.22648718 | W23: 1.763925781 | X23: 10.05671015 | Y23: 9.706885954 | Z23: -0.420786899
D24: 23 | E24: 10.85184067 | F24: 10.77971147 | G24: 12.25056496 | H24: 7.742124022 | I24: 10.40265175 | J24: 13.43443615 | K24: 11.22583547 | L24: 7.918828227 | M24: 14.9182934 | N24: 13.14645735 | O24: 8.055823487 | P24: 14.50822413 | Q24: 7.441302213 | R24: 13.8165254 | S24: 7.639988386 | T24: 10.82098977 | U24: 12.44852119 | V24: 11.05969674 | W24: 9.842615635 | X24: 12.59792325 | Y24: 11.04511768 | Z24: 1.469636665
D25: 24 | E25: 16.10570336 | F25: 8.83480711 | G25: 10.02327588 | H25: 6.600344233 | I25: 10.4297869 | J25: 11.25621683 | K25: 11.12915811 | L25: 8.245865669 | M25: 10.92197262 | N25: 7.000106104 | O25: 7.962954939 | P25: 15.87764005 | Q25: 9.639271976 | R25: 9.163745405 | S25: 10.67867717 | T25: 7.972250815 | U25: 12.01842788 | V25: 7.306753799 | W25: 10.35736587 | X25: 8.814143183 | Y25: 10.01692339 | Z25: 0.01718066005
D26: 25 | E26: 15.3485443 | F26: 7.52815622 | G26: 12.34364227 | H26: 13.27295183 | I26: 9.903524233 | J26: 14.85898059 | K26: 13.70893444 | L26: 14.95471174 | M26: 5.954688845 | N26: 14.95253275 | O26: 10.24573107 | P26: 15.45400033 | Q26: 10.0857982 | R26: 4.924484442 | S26: 8.92995627 | T26: 10.20904245 | U26: 10.34268632 | V26: 11.4681541 | W26: 9.957064217 | X26: 7.173507326 | Y26: 11.0808546 | Z26: 1.520119629
D27: 26 | E27: 9.205106988 | F27: 8.230575649 | G27: 5.076509616 | H27: 10.95231973 | I27: 9.553631072 | J27: 9.707653466 | K27: 10.38806646 | L27: 6.954901694 | M27: 15.71973433 | N27: 6.215012553 | O27: 5.808947218 | P27: 3.91413453 | Q27: 7.055451283 | R27: 10.44290568 | S27: 6.904467618 | T27: 9.601756299 | U27: 12.28520831 | V27: 11.89793942 | W27: 14.09257233 | X27: 9.981659715 | Y27: 9.199427699 | Z27: -1.137636622
D28: 27 | E28: 9.499765842 | F28: 7.84599451 | G28: 9.629682189 | H28: 5.370152117 | I28: 6.892994849 | J28: 8.050377635 | K28: 8.554573708 | L28: 12.37678798 | M28: 8.603316074 | N28: 12.70652065 | O28: 12.80519739 | P28: 11.4775802 | Q28: 11.96989604 | R28: 13.73522616 | S28: 7.099655525 | T28: 13.1477195 | U28: 8.622875852 | V28: 5.835579567 | W28: 5.975402274 | X28: 9.631434985 | Y28: 9.491536652 | Z28: -0.7249953454
D29: 28 | E29: 10.26478241 | F29: 8.933687071 | G29: 10.22594295 | H29: 10.090648 | I29: 8.413994478 | J29: 11.72745111 | K29: 7.910284444 | L29: 11.2298795 | M29: 10.54395502 | N29: 4.108299089 | O29: 6.98086219 | P29: 12.37008161 | Q29: 6.463246648 | R29: 4.826883508 | S29: 11.22007731 | T29: =NORMINV(RAND(), $B$3, SQRT($B$4)) -> 8.46498598 | U29: 13.49674612 | V29: 12.949973 | W29: 5.291951095 | X29: 8.764426267 | Y29: 9.21390789 | Z29: -1.117181499
D30: 29 | E30: =NORMINV(RAND(), $B$3, SQRT($B$4)) -> 8.06416737 | F30: 12.13210668 | G30: 12.849929 | H30: 12.16313316 | I30: 10.56553225 | J30: 12.4491919 | K30: 7.924183962 | L30: 12.11165275 | M30: 7.658689339 | N30: 11.4226922 | O30: 6.858261696 | P30: 6.790904655 | Q30: 12.30013428 | R30: 10.47092245 | S30: 8.356044061 | T30: 0.8780879822 | U30: 7.48336832 | V30: 14.49599108 | W30: 4.478474048 | X30: 8.069313603 | Y30: 9.376139039 | Z30: -0.888009241
D31: 30 | E31: 9.819920996 | F31: 9.250699676 | G31: 18.1914542 | H31: 14.76150054 | I31: 11.00203201 | J31: 11.68392204 | K31: 8.978611754 | L31: 10.80800713 | M31: 10.97588624 | N31: 4.806945179 | O31: 7.757794638 | P31: 10.11102023 | Q31: 9.777535855 | R31: 4.606973106 | S31: 10.42689119 | T31: 7.856188658 | U31: 5.148290718 | V31: 11.51500146 | W31: 16.23096215 | X31: 12.84037581 | Y31: 10.32750068 | Z31: 0.455910817
D32: 31 | E32: 12.12060038 | F32: 8.893601998 | G32: 11.84459085 | H32: 6.775657754 | I32: 16.29889267 | J32: 8.17150512 | K32: 9.460968598 | L32: 12.61619643 | M32: 12.47752873 | N32: 8.666514781 | O32: 8.939516405 | P32: 9.12986534 | Q32: 13.87838665 | R32: 5.811080945 | S32: 16.32045964 | T32: 12.14024781 | U32: 8.285626938 | V32: 17.43267321 | W32: 2.223415301 | X32: 6.996026896 | Y32: 10.42416782 | Z32: 0.5924655266
D33: 32 | E33: 8.749991203 | F33: 13.82575056 | G33: 5.317561732 | H33: 11.75761718 | I33: 10.24673725 | J33: 9.190991504 | K33: 12.36318596 | L33: 11.42395996 | M33: 6.471178586 | N33: 10.87180415 | O33: 9.417254356 | P33: 7.80182963 | Q33: 11.97119241 | R33: 10.72098805 | S33: 11.26382862 | T33: 7.630678241 | U33: 8.907730821 | V33: 13.3571129 | W33: 9.26293227 | X33: 4.821733764 | Y33: 9.768702957 | Z33: -0.3334624716
D34: 33 | E34: 8.906200289 | F34: 11.62702444 | G34: 10.412329 | H34: 11.23197938 | I34: 6.303807917 | J34: 6.885523654 | K34: 14.06931222 | L34: 10.32028734 | M34: 9.007024748 | N34: 12.36472455 | O34: 11.95707252 | P34: 9.459093446 | Q34: 9.766837074 | R34: 6.83905379 | S34: 8.178589841 | T34: 10.91733243 | U34: 12.39699897 | V34: 12.46869572 | W34: 6.947920473 | X34: 11.52357355 | Y34: 10.07916907 | Z34: =(Y34-$B$10)/SQRT($B$11/20) -> 0.105110638
D35: 34 | E35: 11.29727965 | F35: 12.44195984 | G35: 9.85900627 | H35: 8.257448043 | I35: 14.64451151 | J35: 12.31724749 | K35: 9.017651992 | L35: 6.078410796 | M35: 10.78753684 | N35: 8.6177343 | O35: 10.57326175 | P35: 11.04984693 | Q35: 11.07104027 | R35: 5.24353761 | S35: 11.91957829 | T35: 10.55240113 | U35: 10.13581928 | V35: 14.67019708 | W35: 13.02038645 | X35: 8.656695237 | Y35: 10.51057754 | Z35: 0.714530306
D36: 35 | E36: 6.465419199 | F36: 9.099618455 | G36: 14.40812469 | H36: 10.78246841 | I36: 13.93541461 | J36: 10.16661875 | K36: 9.921713223 | L36: 8.837813393 | M36: 11.68147608 | N36: 14.21642575 | O36: 11.19022821 | P36: 7.713237744 | Q36: 4.319807075 | R36: 8.511847711 | S36: 11.63650941 | T36: 10.33348656 | U36: 8.142952842 | V36: 9.23003965 | W36: 9.881126374 | X36: 8.070253308 | Y36: 9.927229073 | Z36: -0.109524048 | AB36: Z = (M-m) / √(v/N)
D37: 36 | E37: 9.117128498 | F37: 12.23980532 | G37: 12.95056207 | H37: 10.8771525 | I37: 18.1877387 | J37: 7.710152957 | K37: 8.458168893 | L37: 5.6169079 | M37: 12.08376115 | N37: 6.418368005 | O37: 6.615004057 | P37: 8.701915087 | Q37: 9.737191826 | R37: 12.23482392 | S37: 9.720921832 | T37: 6.965912676 | U37: 9.196230309 | V37: 10.71231127 | W37: 10.81485176 | X37: 8.805001485 | Y37: 9.858195511 | Z37: -0.2070427873
D38: 37 | E38: 7.039375529 | F38: 11.60584591 | G38: 9.90810741 | H38: 8.255057529 | I38: 7.879956403 | J38: 9.734143624 | K38: 11.86872375 | L38: 15.70384813 | M38: 7.657640999 | N38: 7.357865914 | O38: 4.970306734 | P38: 8.995232994 | Q38: 10.24302187 | R38: 9.542947553 | S38: 10.20403205 | T38: 9.956685948 | U38: 15.03216682 | V38: 11.19345813 | W38: 8.623493749 | X38: 15.3617289 | Y38: 10.056682 | Z38: 0.07334477444
D39: 38 | E39: 5.072269032 | F39: 10.98676109 | G39: 6.643494047 | H39: 6.887520965 | I39: 5.389731213 | J39: 11.04443877 | K39: 11.12098828 | L39: 8.319782582 | M39: 5.186233185 | N39: 11.68718193 | O39: 11.97400718 | P39: 9.242299438 | Q39: 11.33734621 | R39: 3.473795421 | S39: 15.29062003 | T39: 10.59812692 | U39: 9.608213282 | V39: 15.07379346 | W39: 14.74980709 | X39: 9.856931679 | Y39: 9.677167091 | Z39: -0.4627685968
D40: 39 | E40: 9.353076837 | F40: 16.10122674 | G40: 12.33413958 | H40: 9.443565815 | I40: 9.442665342 | J40: 9.361713915 | K40: 2.721878916 | L40: 3.842085025 | M40: 2.105620961 | N40: 5.540779678 | O40: 3.035012091 | P40: 15.46917425 | Q40: 12.19884063 | R40: 6.865668112 | S40: 6.465673349 | T40: 7.769542192 | U40: 13.9582411 | V40: 9.96944255 | W40: 9.25268407 | X40: 11.25319855 | Y40: 8.824211485 | Z40: -1.667677538
D41: 40 | E41: 9.06870849 | F41: 10.76874458 | G41: 9.310672813 | H41: 14.14152488 | I41: 14.09893847 | J41: 10.34032142 | K41: 15.93005912 | L41: 8.687190632 | M41: 10.76017402 | N41: 14.002545 | O41: 12.20040608 | P41: 7.995104063 | Q41: 12.68310377 | R41: 9.092232084 | S41: 15.34005659 | T41: 12.26070404 | U41: 13.90032141 | V41: 6.286080978 | W41: 11.32713359 | X41: 3.730636593 | Y41: 11.09623293 | Z41: 1.541843494
D42: 41 | E42: 8.921926474 | F42: 15.15060082 | G42: 10.09710721 | H42: 8.856501456 | I42: 12.3573764 | J42: 12.50028168 | K42: 12.49165782 | L42: 13.82359457 | M42: 4.539045307 | N42: 7.415559845 | O42: 11.79120615 | P42: 8.219777647 | Q42: 10.35937904 | R42: 12.46622936 | S42: 11.09687989 | T42: 6.749741244 | U42: 10.03383812 | V42: 13.36192193 | W42: 11.88411817 | X42: 11.45023849 | Y42: 10.67834908 | Z42: 0.9515290808
D43: 42 | E43: 9.378521074 | F43: 12.62974073 | G43: 10.64669391 | H43: 6.557834413 | I43: 13.13694259 | J43: 8.969810721 | K43: 15.09014111 | L43: 5.72927186 | M43: 18.10741726 | N43: 7.231385595 | O43: 4.117962777 | P43: 12.88948325 | Q43: 8.588338282 | R43: 9.630446901 | S43: 10.51300438 | T43: 12.89999335 | U43: 10.88045726 | V43: 12.545634 | W43: 6.298624152 | X43: 7.362667782 | Y43: 10.16021857 | Z43: 0.2196034313
D44: 43 | E44: 11.48777953 | F44: 10.3299649 | G44: 6.492926823 | H44: 16.18565081 | I44: 11.884357 | J44: 13.49351493 | K44: 6.975400383 | L44: 7.74819377 | M44: 11.38604947 | N44: 9.845805528 | O44: 7.85185799 | P44: 12.399732 | Q44: 13.65426202 | R44: 10.62609161 | S44: 9.779004911 | T44: 12.03740657 | U44: 8.18427706 | V44: 7.153879867 | W44: 7.819266478 | X44: 12.208027 | Y44: 10.37717243 | Z44: 0.5260785241
D45: 44 | E45: 7.144034889 | F45: 7.351513077 | G45: 9.150131204 | H45: 6.65057923 | I45: 7.034830459 | J45: 9.994233338 | K45: 6.562585414 | L45: 11.96626353 | M45: 10.24969439 | N45: 12.65900176 | O45: 7.699804266 | P45: 6.649880888 | Q45: 8.261143909 | R45: 9.439217948 | S45: 8.593555082 | T45: =NORMINV(RAND(), $B$3, SQRT($B$4)) -> 12.83663688 | U45: 10.90272215 | V45: 13.38769718 | W45: 3.832995692 | X45: 7.622842913 | Y45: 8.89946821 | Z45: -1.561367784
D46: 45 | E46: =NORMINV(RAND(), $B$3, SQRT($B$4)) -> 15.67207419 | F46: 6.912039646 | G46: 10.39396249 | H46: 9.255624785 | I46: 12.20546978 | J46: 10.45275958 | K46: 10.11979353 | L46: 8.53920608 | M46: 5.540116188 | N46: 13.49454595 | O46: 10.6319861 | P46: 5.435728577 | Q46: 8.433950023 | R46: 7.052415877 | S46: 8.863710739 | T46: 8.266063006 | U46: 7.041418154 | V46: 4.153284625 | W46: 8.903186249 | X46: 8.686654491 | Y46: 9.002699503 | Z46: -1.415540373
D47: 46 | E47: 11.4262094 | F47: 10.66919344 | G47: 10.72836998 | H47: 10.66748121 | I47: 8.113456816 | J47: 13.09531321 | K47: 12.48796749 | L47: 12.70796186 | M47: 12.02888282 | N47: 10.29690188 | O47: 6.25755861 | P47: 9.358863916 | Q47: 11.29850414 | R47: 12.77904786 | S47: 7.791432753 | T47: 13.4604347 | U47: 10.84028906 | V47: 11.80434951 | W47: 5.278967332 | X47: 6.369198532 | Y47: 10.37301923 | Z47: 0.5202115895
D48: 47 | E48: 8.950260433 | F48: 10.72770861 | G48: 9.611962429 | H48: 9.366792702 | I48: 18.41954135 | J48: 7.138208728 | K48: 7.029593947 | L48: 11.86904813 | M48: 13.28695715 | N48: 6.147200269 | O48: 7.812160623 | P48: 6.374348569 | Q48: 8.610877424 | R48: 9.582544847 | S48: 12.38143088 | T48: 8.447852586 | U48: 10.48472028 | V48: 7.190099612 | W48: 12.52091994 | X48: 2.735178271 | Y48: 9.434370339 | Z48: -0.8057500782
D49: 48 | E49: 10.21093003 | F49: 11.06845178 | G49: 10.83894978 | H49: 16.5017708 | I49: 5.95293475 | J49: 4.446195186 | K49: 5.371726025 | L49: 10.86581555 | M49: 6.269298407 | N49: 14.9442365 | O49: 4.135452858 | P49: 8.137322961 | Q49: 10.57936636 | R49: 3.886807367 | S49: 9.888258208 | T49: 10.1908149 | U49: 8.386788301 | V49: 7.15677696 | W49: 11.74337266 | X49: 7.119317613 | Y49: 8.88472935 | Z49: -1.58218831
D50: 49 | E50: 7.923249642 | F50: 8.631259569 | G50: 9.739614071 | H50: 8.46372356 | I50: 6.631245284 | J50: 2.613823324 | K50: 16.60898617 | L50: 9.103215341 | M50: 10.85481579 | N50: 11.15370931 | O50: 13.37931879 | P50: 9.311308162 | Q50: 13.97882444 | R50: 9.431654008 | S50: 11.94676027 | T50: 8.983911296 | U50: 15.56831537 | V50: 7.444189679 | W50: 15.63014787 | X50: 9.381264995 | Y50: 10.33896685 | Z50: 0.472108247
D51: 50 | E51: 10.93796632 | F51: 7.906238312 | G51: 11.09111487 | H51: 13.2634518 | I51: 5.178345865 | J51: 10.2151885 | K51: 12.74120792 | L51: 8.538317813 | M51: 8.272947524 | N51: 3.926363492 | O51: 10.37140641 | P51: 11.0086951 | Q51: 5.095363491 | R51: 11.30197792 | S51: 11.07600139 | T51: 7.702743279 | U51: 10.27969406 | V51: 14.38057751 | W51: 14.515754 | X51: 12.71177284 | Y51: 10.02575642 | Z51: 0.02965843949
D52: 51 | E52: 11.07953194 | F52: 7.201697193 | G52: 13.31029036 | H52: 12.01648896 | I52: 9.961954438 | J52: 10.74067419 | K52: 11.85706574 | L52: 11.13433235 | M52: 13.12781058 | N52: 11.60563243 | O52: 15.33205078 | P52: 13.46670707 | Q52: 10.42659084 | R52: 12.76923664 | S52: 9.394400508 | T52: 3.033621873 | U52: 10.85400267 | V52: 10.99573644 | W52: 7.608412248 | X52: 8.203349512 | Y52: 10.70597934 | Z52: 0.9905603553
D53: 52 | E53: 7.512518041 | F53: 5.953384522 | G53: 16.51444892 | H53: 10.90851381 | I53: 10.16236682 | J53: 9.920990931 | K53: 12.58514424 | L53: 10.47739067 | M53: 9.717668282 | N53: 6.223552357 | O53: 13.85645741 | P53: 11.63052431 | Q53: 3.953218184 | R53: 8.883808241 | S53: 7.058530698 | T53: 12.02853255 | U53: 7.677956748 | V53: 8.967861808 | W53: 13.13034385 | X53: 14.4490148 | Y53: 10.08061136 | Z53: 0.1071480599
D54: 53 | E54: 11.68158144 | F54: 10.01605168 | G54: 14.18181271 | H54: 13.20688144 | I54: 10.9079866 | J54: 5.942405962 | K54: 11.68833401 | L54: 10.59219525 | M54: 11.91706029 | N54: 9.868449359 | O54: 8.097532508 | P54: 10.60133589 | Q54: 6.47270057 | R54: 15.06327557 | S54: 15.73617692 | T54: 11.4807166 | U54: 13.65442624 | V54: 10.78576115 | W54: 9.77107188 | X54: 8.706220857 | Y54: 11.01859885 | Z54: 1.432175414
D55: 54 | E55: 12.99885413 | F55: 12.01592461 | G55: 8.484341552 | H55: 7.629222349 | I55: 17.40136986 | J55: 9.435190986 | K55: 8.162777856 | L55: 10.59441386 | M55: 10.8587443 | N55: 12.7205169 | O55: 7.414436834 | P55: 16.69802134 | Q55: 8.130799029 | R55: -1.182503189 | S55: 10.50622791 | T55: 3.509281791 | U55: 4.742692886 | V55: 0.7610286261 | W55: 10.32257393 | X55: 13.34850073 | Y55: 9.227620814 | Z55: -1.097810239
D56: 55 | E56: 6.583511222 | F56: 6.227001628 | G56: 7.793009053 | H56: 9.697026589 | I56: 8.153401668 | J56: 9.399711786 | K56: 7.9187141 | L56: 10.88888438 | M56: 3.093807377 | N56: 13.06588175 | O56: 10.03642794 | P56: 7.270528641 | Q56: 14.06428675 | R56: 12.95075954 | S56: 8.913600107 | T56: 1.012068017 | U56: 7.829215318 | V56: 4.208166687 | W56: 7.059788073 | X56: 13.18084289 | Y56: 8.467331676 | Z56: -2.171815937
D57: 56 | E57: 8.918790433 | F57: 6.926096479 | G57: 7.383509434 | H57: 11.42271306 | I57: 10.95402392 | J57: 8.966438513 | K57: 12.08053859 | L57: 8.883362211 | M57: 11.63305743 | N57: 9.789521486 | O57: 7.451305435 | P57: 9.763364625 | Q57: 8.482065573 | R57: 5.580204064 | S57: 6.481732459 | T57: 9.344462525 | U57: 5.398819135 | V57: 9.860121639 | W57: 7.901304582 | X57: 16.44826596 | Y57: 9.183484877 | Z57: -1.160157897
D58: 57 | E58: 14.52277787 | F58: 7.566715674 | G58: 13.13591049 | H58: 12.91940835 | I58: 9.565744934 | J58: 11.21571206 | K58: 11.47257968 | L58: 8.517231093 | M58: 13.68915884 | N58: 9.903807049 | O58: 8.103715134 | P58: 11.44689027 | Q58: 14.37493448 | R58: 6.201718934 | S58: 7.163386058 | T58: 12.18053223 | U58: 13.23423461 | V58: 7.841976239 | W58: 5.964672912 | X58: 6.357792006 | Y58: 10.26894495 | Z58: 0.3731933508
D59: 58 | E59: 10.12724332 | F59: 6.58078241 | G59: 15.11673518 | H59: 13.0055147 | I59: 9.854045036 | J59: 6.212896507 | K59: 16.43321229 | L59: 12.16720764 | M59: 10.12658994 | N59: 6.292812393 | O59: 9.718419534 | P59: 10.00992698 | Q59: 8.892120201 | R59: 5.668459544 | S59: 9.246346445 | T59: 8.071330498 | U59: 10.41462357 | V59: 3.894292277 | W59: 11.9548913 | X59: 11.58074217 | Y59: 9.768409596 | Z59: -0.3338768817
D60: 59 | E60: 13.00507939 | F60: 9.191949065 | G60: 10.18282498 | H60: 10.54363511 | I60: 16.96037621 | J60: 10.05631651 | K60: 13.26628909 | L60: 15.99004511 | M60: 6.331592255 | N60: 12.19955751 | O60: 10.09948666 | P60: 13.38372668 | Q60: 7.523801439 | R60: 10.3714372 | S60: 8.265241781 | T60: 10.32436795 | U60: 8.024507962 | V60: 9.870336759 | W60: 3.530585553 | X60: 8.124502659 | Y60: 10.36228299 | Z60: 0.505045287
D61: 60 | E61: 12.66024202 | F61: 5.799052353 | G61: 14.08218426 | H61: 14.44859309 | I61: 14.09518854 | J61: 12.27812971 | K61: 7.135911108 | L61: 5.373623954 | M61: 7.913192817 | N61: 7.474353826 | O61: 8.499853468 | P61: 10.29253916 | Q61: 11.41322539 | R61: 15.01590546 | S61: 9.795550984 | T61: =NORMINV(RAND(), $B$3, SQRT($B$4)) -> 9.310577005 | U61: 13.63819671 | V61: 12.84310986 | W61: 12.56191657 | X61: 9.987166544 | Y61: 10.73092564 | Z61: 1.0258002
D62: 61 | E62: =NORMINV(RAND(), $B$3, SQRT($B$4)) -> 5.96542273 | F62: 10.03641017 | G62: 13.36448793 | H62: 11.69600541 | I62: 14.2249201 | J62: 12.37552896 | K62: 4.2958278 | L62: 5.134225818 | M62: 4.039676059 | N62: 12.50938483 | O62: 8.417106596 | P62: 13.87031247 | Q62: 15.0021943 | R62: 10.41531526 | S62: 9.589978509 | T62: 7.469891567 | U62: 12.97822881 | V62: 8.979949535 | W62: 6.733029359 | X62: 11.4950207 | Y62: 9.929645845 | Z62: -0.1061100476
D63: 62 | E63: 3.781548151 | F63: 7.790088561 | G63: 11.58278379 | H63: 12.00042043 | I63: 14.11952805 | J63: 9.971990143 | K63: 6.047311644 | L63: 7.629220816 | M63: 11.00584554 | N63: 11.09688833 | O63: 9.380125407 | P63: 7.914596223 | Q63: 7.239248065 | R63: 5.828645488 | S63: 14.89504362 | T63: 13.28163354 | U63: 10.58800833 | V63: 4.464505774 | W63: 14.06153298 | X63: 4.337286634 | Y63: 9.350812575 | Z63: -0.9237861119
D64: 63 | E64: 11.3671247 | F64: 13.98771378 | G64: 11.50532807 | H64: 8.253858726 | I64: 8.847950686 | J64: 10.55487981 | K64: 8.336324797 | L64: 11.58897793 | M64: 12.35238539 | N64: 14.33224402 | O64: 11.97718364 | P64: 9.826654408 | Q64: 10.41155554 | R64: 8.085866225 | S64: 7.323049603 | T64: 11.2799396 | U64: 13.95487019 | V64: 6.959670802 | W64: 8.868411774 | X64: 12.05100949 | Y64: 10.59324996 | Z64: 0.8313156805
D65: 64 | E65: 12.73232702 | F65: 6.523214582 | G65: 12.95173387 | H65: 15.53231381 | I65: 9.919512597 | J65: 15.67391003 | K65: 4.794152356 | L65: 6.730972158 | M65: 9.344350712 | N65: 5.576767144 | O65: 6.354945337 | P65: 7.409849494 | Q65: 8.319978809 | R65: 12.02429729 | S65: 11.8055791 | T65: 8.794140651 | U65: 9.028227906 | V65: 8.198412979 | W65: 13.06611735 | X65: 6.651154625 | Y65: 9.571597891 | Z65: -0.611898601
D66: 65 | E66: 9.048786606 | F66: 10.62512679 | G66: 10.49614321 | H66: 9.551065088 | I66: 10.98938616 | J66: 12.20803997 | K66: 8.997368222 | L66: 6.877183063 | M66: 9.12032233 | N66: 5.524033397 | O66: 8.738578562 | P66: 13.44360354 | Q66: 13.4714001 | R66: 12.77309297 | S66: 10.81462627 | T66: 6.965721719 | U66: 11.16887364 | V66: 8.336715168 | W66: 8.508146339 | X66: 10.71949526 | Y66: 9.918885419 | Z66: =(Y66-$B$10)/SQRT($B$11/20) -> -0.1213105259
D67: 66 | E67: 13.54006601 | F67: 4.090974835 | G67: 11.23336865 | H67: 8.887771186 | I67: 0.4058855628 | J67: 2.110014168 | K67: 6.886989238 | L67: 11.01851926 | M67: 10.32138165 | N67: 5.787142348 | O67: 6.274482695 | P67: 12.40198469 | Q67: 9.794553061 | R67: 10.6412564 | S67: 10.67793854 | T67: 13.09266983 | U67: 7.505133034 | V67: 15.21541028 | W67: 12.14986684 | X67: 8.291031434 | Y67: =AVERAGE(E67:X67) -> 9.016321985 | Z67: =(Y67-$B$10)/SQRT($B$11/20) -> -1.396296874
D68: 67 | E68: 9.777819561 | F68: 17.17410548 | G68: 10.42608141 | H68: 9.392784618 | I68: 11.1915212 | J68: 9.02053392 | K68: 8.139080578 | L68: 6.64128799 | M68: 9.26111108 | N68: 12.15474768 | O68: 17.09028077 | P68: 9.023742766 | Q68: 7.294146154 | R68: 7.957738573 | S68: 12.21573614 | T68: 8.807914444 | U68: 9.975299689 | V68: 11.78448701 | W68: 7.893742517 | X68: 13.54648923 | Y68: 10.43843254 | Z68: 0.6126162659
D69: 68 | E69: 11.65713213 | F69: 5.018816028 | G69: 13.3768417 | H69: 13.804295 | I69: 9.703333164 | J69: 7.829362808 | K69: 10.78018863 | L69: 17.76932125 | M69: 11.21403586 | N69: 11.7223553 | O69: 10.74109155 | P69: 14.39680064 | Q69: 9.63616335 | R69: 9.598940097 | S69: 8.662876042 | T69: 15.6051877 | U69: 6.724496864 | V69: 8.192853269 | W69: 8.279504062 | X69: 9.657057612 | Y69: 10.71853265 | Z69: 1.008293517
D70: 69 | E70: 8.04977168 | F70: 11.48644167 | G70: 3.325436165 | H70: 9.787927085 | I70: 9.245249211 | J70: 6.806771317 | K70: 10.69945939 | L70: 10.90609705 | M70: 11.37266131 | N70: 10.60504076 | O70: 7.858666648 | P70: 6.141945925 | Q70: 4.023052223 | R70: 12.66073761 | S70: 11.62005229 | T70: 9.569697625 | U70: 7.227579557 | V70: 6.811633573 | W70: 10.15178284 | X70: 9.246692531 | Y70: 8.879834823 | Z70: -1.589102456
D71: 70 | E71: 19.27959237 | F71: 8.316158768 | G71: 11.31677923 | H71: 12.55657124 | I71: 5.421739185 | J71: 11.01846015 | K71: 12.01714997 | L71: 11.6481527 | M71: 9.282474631 | N71: 14.76103962 | O71: 7.867394663 | P71: 13.58896936 | Q71: 4.234094629 | R71: 14.32075449 | S71: 12.71631995 | T71: 11.35981141 | U71: 10.03464205 | V71: 11.16859438 | W71: 10.09011578 | X71: 11.29198415 | Y71: 11.11453994 | Z71: 1.567704483
D72: 71 | E72: 11.35799139 | F72: 14.79941426 | G72: 11.00650933 | H72: 16.33670471 | I72: 12.13910575 | J72: 7.154584858 | K72: 6.298343346 | L72: 13.86910994 | M72: 5.056686042 | N72: 7.918776382 | O72: 6.579267836 | P72: 10.07151822 | Q72: 12.67680615 | R72: 9.825533151 | S72: 18.04091767 | T72: 10.36920914 | U72: 9.64138923 | V72: 12.19570668 | W72: 8.410646262 | X72: 7.162576067 | Y72: 10.54553982 | Z72: 0.7639190055
D73: 72 | E73: 7.966813431 | F73: 12.94606683 | G73: 10.89034174 | H73: 13.433915 | I73: 10.63390478 | J73: 4.659328939 | K73: 4.822026306 | L73: 9.153217724 | M73: 8.137429145 | N73: 15.92987452 | O73: 9.813571746 | P73: 10.54968134 | Q73: 12.47056432 | R73: 13.04190291 | S73: 10.43995649 | T73: 9.691663921 | U73: 10.33928034 | V73: 1.17045641 | W73: 5.680021403 | X73: 10.40592574 | Y73: 9.608797152 | Z73: -0.5593498842
D74: 73 | E74: 9.569091209 | F74: 10.47457419 | G74: 11.84714727 | H74: 19.63189335 | I74: 10.10699372 | J74: 11.6382431 | K74: 12.00969284 | L74: 9.017317164 | M74: 10.53649227 | N74: 7.203818917 | O74: 4.033655206 | P74: 7.596861445 | Q74: 8.966703484 | R74: 13.50261214 | S74: 14.34339143 | T74: 9.11067873 | U74: 12.21885714 | V74: 13.0674094 | W74: 6.803317311 | X74: 6.278497387 | Y74: 10.39786238 | Z74: 0.55530573
D75: 74 | E75: 12.46870002 | F75: 17.13095679 | G75: 10.41575989 | H75: 8.788371352 | I75: 14.52760164 | J75: 11.13001585 | K75: 12.61463835 | L75: 11.57750455 | M75: 12.2644991 | N75: 11.82813922 | O75: 12.30997804 | P75: 9.7487791 | Q75: 13.53374096 | R75: 10.83971067 | S75: 10.64633346 | T75: 9.097261522 | U75: 9.940105121 | V75: 12.07979429 | W75: 9.905970879 | X75: 7.457478097 | Y75: 11.41526695 | Z75: 1.992519864
D76: 75 | E76: 8.501670596 | F76: 9.889915213 | G76: 11.61216685 | H76: 9.327580141 | I76: 9.180789967 | J76: 11.6226863 | K76: 9.114533501 | L76: 10.22899957 | M76: 2.956987586 | N76: 10.420871 | O76: 9.344707106 | P76: 3.73962932 | Q76: 12.3671426 | R76: 11.97289949 | S76: 15.08345491 | T76: 8.982893703 | U76: 9.749050103 | V76: 11.82062274 | W76: 11.42946518 | X76: 11.23257355 | Y76: 9.928931972 | Z76: -0.1071184853
D77: 76 | E77: 11.25363789 | F77: 8.156727045 | G77: 13.95269228 | H77: 11.76005328 | I77: 9.354026875 | J77: 7.457168919 | K77: 2.857848258 | L77: 9.553618016 | M77: 14.58392226 | N77: 10.46701752 | O77: 6.715176432 | P77: 9.222414232 | Q77: 12.38482017 | R77: 11.19256706 | S77: 8.072971728 | T77: =NORMINV(RAND(), $B$3, SQRT($B$4)) -> 8.215402608 | U77: 16.3607187 | V77: 14.74215752 | W77: 6.782211073 | X77: 6.72547068 | Y77: 9.990531127 | Z77: -0.0201017957
D78: 77 | E78: =NORMINV(RAND(), $B$3, SQRT($B$4)) -> 10.50859226 | F78: 16.55968731 | G78: 10.23390461 | H78: 8.185629777 | I78: 6.260948941 | J78: 7.086542141 | K78: 10.72160427 | L78: 13.6969324 | M78: 13.96119609 | N78: 10.13537815 | O78: 14.13631676 | P78: 9.04831956 | Q78: 7.987303413 | R78: 10.14179031 | S78: 8.355679233 | T78: 17.04770175 | U78: 11.37744722 | V78: 7.69735768 | W78: 11.71577104 | X78: 17.24062205 | Y78: 11.10493625 | Z78: 1.554138043
D79: 78 | E79: 8.911614165 | F79: 3.025486993 | G79: 13.82901361 | H79: 4.13295456 | I79: 5.091977216 | J79: 10.26630656 | K79: 10.05826845 | L79: 6.270510842 | M79: 12.42932964 | N79: 9.917817379 | O79: 10.39489896 | P79: 12.54733551 | Q79: 13.42272679 | R79: 7.745175912 | S79: 12.34901572 | T79: 13.76245696 | U79: 6.722832552 | V79: 12.86426367 | W79: 10.21005752 | X79: 8.192880691 | Y79: 9.607246184 | Z79: -0.5615408247
D80: 79 | E80: 9.22631787 | F80: 10.17375799 | G80: 10.21344769 | H80: 5.86283804 | I80: 7.315768184 | J80: 9.241060326 | K80: 5.399238599 | L80: 12.23212754 | M80: 12.69167987 | N80: 7.223449204 | O80: 9.144994818 | P80: 8.203067847 | Q80: 9.880896984 | R80: 14.30861816 | S80: 10.78838222 | T80: 12.68590142 | U80: 8.697125409 | V80: 9.179375177 | W80: 9.858690263 | X80: 9.81543523 | Y80: 9.607108642 | Z80: -0.5617351211
D81: 80 | E81: 15.18646689 | F81: 9.788602069 | G81: 9.573851594 | H81: 8.593896614 | I81: 15.09582166 | J81: 9.062303037 | K81: 12.36977586 | L81: 9.700992964 | M81: 6.456115915 | N81: 9.40599384 | O81: 9.450963358 | P81: 6.195949184 | Q81: 12.59779545 | R81: 12.17343063 | S81: 12.93819184 | T81: 5.695910692 | U81: 9.70871681 | V81: 10.98252687 | W81: 9.730048407 | X81: 9.652247699 | Y81: 10.21798007 | Z81: 0.3011989413
D82: 81 | E82: 11.52201011 | F82: 12.62731695 | G82: 7.076360052 | H82: 11.03169757 | I82: 9.751492532 | J82: 15.82429935 | K82: 8.63813116 | L82: 9.25542008 | M82: 7.724384934 | N82: 13.52944677 | O82: 10.02521695 | P82: 9.255887979 | Q82: 12.23021558 | R82: 11.10613991 | S82: 10.49167454 | T82: 8.946320597 | U82: 9.142346155 | V82: 7.551656629 | W82: 5.123447995 | X82: 10.59411129 | Y82: 10.07237886 | Z82: 0.09551859595
D83: 82 | E83: 13.53657208 | F83: 5.598993646 | G83: 4.510291112 | H83: 10.18403327 | I83: 9.348112253 | J83: 7.020019741 | K83: 8.385699159 | L83: 10.99227188 | M83: 15.03889866 | N83: 6.685077159 | O83: 13.50536598 | P83: 5.337803536 | Q83: 6.724906539 | R83: 8.312652632 | S83: 11.26687207 | T83: 10.74980892 | U83: 6.972073987 | V83: 7.676694893 | W83: 11.57173364 | X83: 7.499628572 | Y83: 9.045875487 | Z83: -1.35454877
D84: 83 | E84: 15.54250299 | F84: 12.52847761 | G84: 6.034052981 | H84: 11.84454916 | I84: 8.664426753 | J84: 11.44033122 | K84: 9.539001814 | L84: 9.45339918 | M84: 11.06717395 | N84: 13.12671502 | O84: 9.9937148 | P84: 6.935076879 | Q84: 12.64993624 | R84: 9.478538197 | S84: 8.728235164 | T84: 12.54182493 | U84: 11.89512664 | V84: 9.150355225 | W84: 9.993009427 | X84: 7.726642549 | Y84: 10.41665454 | Z84: 0.5818520492
D85: 84 | E85: 7.579609328 | F85: 8.807262782 | G85: 8.974623726 | H85: 2.622412223 | I85: 9.068050674 | J85: 12.50140707 | K85: 9.74634821 | L85: 10.36964914 | M85: 5.019235674 | N85: 9.018081856 | O85: 15.12985173 | P85: 11.781717 | Q85: 13.09636464 | R85: 13.44468193 | S85: 12.26576197 | T85: 15.17004896 | U85: 5.390363766 | V85: 7.114618042 | W85: 5.983621805 | X85: 7.705546199 | Y85: 9.539462836 | Z85: -0.6572934782
D86: 85 | E86: 5.494616828 | F86: 11.77377667 | G86: 11.31677864 | H86: 7.18776939 | I86: 12.42532943 | J86: 8.21598034 | K86: 15.54271333 | L86: 12.3412192 | M86: 10.59461973 | N86: 10.52762043 | O86: 16.114379 | P86: 9.652051272 | Q86: 11.42441676 | R86: 9.566703406 | S86: 7.608413099 | T86: 10.0258358 | U86: 9.739739899 | V86: 12.48147302 | W86: 13.60231607 | X86: 9.185062598 | Y86: 10.74104075 | Z86: 1.040089079
D87: 86 | E87: 11.63701844 | F87: 10.0217981 | G87: 12.57697683 | H87: 6.400356897 | I87: 11.46421644 | J87: 13.48936736 | K87: 8.338612671 | L87: 12.21249326 | M87: 7.623920057 | N87: 5.856566771 | O87: 13.21282157 | P87: 13.82435621 | Q87: 11.09766678 | R87: 4.730876488 | S87: 9.185930649 | T87: 8.876559886 | U87: 13.44793863 | V87: 14.20511715 | W87: 10.54934045 | X87: 5.676184653 | Y87: 10.22140596 | Z87: 0.306038456
D88: 87 | E88: 19.20176569 | F88: 10.41627679 | G88: 11.76430282 | H88: 14.65421337 | I88: 10.48171378 | J88: 12.77532284 | K88: 1.671727913 | L88: 14.00898322 | M88: 9.70861036 | N88: 9.210899299 | O88: 12.49460437 | P88: 9.563760245 | Q88: 10.92603975 | R88: 7.649569397 | S88: 15.6692941 | T88: 12.24515113 | U88: 16.56960621 | V88: 11.90085335 | W88: 5.80701383 | X88: 16.94872096 | Y88: 11.68342147 | Z88: 2.371322445
D89: 88 | E89: 10.20754732 | F89: 10.65842941 | G89: 9.50089011 | H89: 8.226129213 | I89: 8.478599777 | J89: 11.69020158 | K89: 7.070867717 | L89: 13.2430951 | M89: 13.59891721 | N89: 3.944573129 | O89: 17.11185514 | P89: 7.38673452 | Q89: 12.74863061 | R89: 8.978169257 | S89: 13.86153874 | T89: 13.85183091 | U89: 11.75515897 | V89: 11.92364421 | W89: 15.20770431 | X89: 3.493357479 | Y89: 10.64689374 | Z89: 0.9070943798
D90: 89 | E90: 9.060827934 | F90: 15.72220543 | G90: 10.1850469 | H90: 7.104743724 | I90: 9.219515193 | J90: 18.9509189 | K90: 10.9476558 | L90: 8.221320495 | M90: 8.959858305 | N90: 9.340707711 | O90: 9.791554953 | P90: 9.83254306 | Q90: 12.58828451 | R90: 12.9667884 | S90: 9.011239747 | T90: 16.121623 | U90: 7.316649868 | V90: 15.05687839 | W90: 11.22205283 | X90: 7.729794314 | Y90: 10.96751047 | Z90: 1.36000655
D91: 90 | E91: 11.93413397 | F91: 11.19534206 | G91: 3.930877388 | H91: 8.403230641 | I91: 8.652764296 | J91: 10.42556868 | K91: 8.901728399 | L91: 7.547173713 | M91: 12.31852765 | N91: 10.23268384 | O91: 7.900723559 | P91: 8.428438018 | Q91: 17.11970176 | R91: 17.24592783 | S91: 9.082267449 | T91: 6.760496542 | U91: 10.86033022 | V91: 9.164768107 | W91: 5.43286783 | X91: 9.920559785 | Y91: 9.772905587 | Z91: -0.3275257192
D92: 91 | E92: 12.09393399 | F92: 11.89425726 | G92: 13.62290234 | H92: 7.205217513 | I92: 8.983516701 | J92: 7.79764111 | K92: 11.29245256 | L92: 8.282416011 | M92: 11.70918382 | N92: 7.618635436 | O92: 10.27036536 | P92: 14.35012809 | Q92: 7.007340395 | R92: 9.966631968 | S92: 10.30174117 | T92: 6.476508757 | U92: 7.956380038 | V92: 10.0853091 | W92: 9.949302872 | X92: 11.77979083 | Y92: 9.932182767 | Z92: -0.102526321
D93: 92 | E93: 15.13373547 | F93: 9.492425047 | G93: 15.00047557 | H93: 4.669646869 | I93: 7.325127397 | J93: 14.40680448 | K93: 14.32287946 | L93: 16.62112114 | M93: 15.65614861 | N93: 11.44446165 | O93: 9.845357128 | P93: 12.99597082 | Q93: 13.19463721 | R93: 8.434215848 | S93: 10.1972426 | T93: =NORMINV(RAND(), $B$3, SQRT($B$4)) -> 13.08704115 | U93: -0.7479869588 | V93: 10.51118591 | W93: 15.92730928 | X93: 9.311114549 | Y93: 11.34144566 | Z93: 1.888237855
D94: 93 | E94: =NORMINV(RAND(), $B$3, SQRT($B$4)) -> 10.79064963 | F94: 11.33567174 | G94: 6.157498223 | H94: 11.97059721 | I94: 4.96810421 | J94: 6.84380881 | K94: 12.60220253 | L94: 11.04329362 | M94: 4.933733387 | N94: 15.77813993 | O94: 11.1821111 | P94: 6.692357545 | Q94: 11.80196818 | R94: 11.00588671 | S94: 9.052171916 | T94: 12.59981149 | U94: 15.01783532 | V94: 11.59562171 | W94: 7.820685165 | X94: 12.84722567 | Y94: 10.30196871 | Z94: 0.4198436376
D95: 94 | E95: 6.85735636 | F95: 13.02601601 | G95: 12.67202736 | H95: 12.23680791 | I95: 13.87657679 | J95: 13.81646079 | K95: 12.25193836 | L95: 9.254707819 | M95: 13.59539155 | N95: 11.35364356 | O95: 2.895652472 | P95: 10.81663427 | Q95: 6.977019958 | R95: 14.34695531 | S95: 1.735928972 | T95: 7.829923376 | U95: 12.09006221 | V95: 17.85985142 | W95: 9.957175797 | X95: 8.78448708 | Y95: 10.61173087 | Z95: 0.8574223308
D96: 95 | E96: 8.205024336 | F96: 1.616692822 | G96: 8.200590533 | H96: 10.43717404 | I96: 7.509362744 | J96: 10.9428338 | K96: 3.595982611 | L96: 7.745205917 | M96: 9.692616162 | N96: 10.87608977 | O96: 13.10948777 | P96: 9.359073192 | Q96: 9.770772451 | R96: 13.95377125 | S96: 8.62575126 | T96: 12.48058102 | U96: 7.239118067 | V96: 12.39715785 | W96: 16.76748495 | X96: 8.498582869 | Y96: 9.551167671 | Z96: -0.6407589006
D97: 96 | E97: 9.774688455 | F97: 8.271246878 | G97: 13.70751442 | H97: 10.256879 | I97: 10.12835142 | J97: 9.661092373 | K97: 8.308892401 | L97: 8.93444773 | M97: 7.024964817 | N97: 6.734847247 | O97: 11.63495228 | P97: 6.123642205 | Q97: 7.957861649 | R97: 11.43008394 | S97: 7.329929151 | T97: 13.73119979 | U97: 6.773512392 | V97: 8.495742015 | W97: 13.83422617 | X97: 7.49084185 | Y97: 9.380245809 | Z97: -0.8822079029
D98: 97 | E98: 6.86361611 | F98: 10.60047469 | G98: 8.156550566 | H98: 8.064180699 | I98: 6.699990871 | J98: 13.03055073 | K98: 6.406608639 | L98: 13.07972368 | M98: 11.30334027 | N98: 10.33881375 | O98: 14.08068398 | P98: 8.679808536 | Q98: 12.55686542 | R98: 10.37780388 | S98: 10.52806098 | T98: 10.70503739 | U98: 12.24286654 | V98: 7.659820216 | W98: 9.061589727 | X98: 6.705559624 | Y98: 9.857097315 | Z98: -0.2085941301
D99: 98 | E99: 11.71358291 | F99: 6.923004979 | G99: 4.065262672 | H99: 9.731671994 | I99: 12.94670507 | J99: 7.468681993 | K99: 7.603384101 | L99: 8.319343342 | M99: 13.46712813 | N99: 10.81711144 | O99: 9.02516988 | P99: 8.229344133 | Q99: 14.09851429 | R99: 11.16318957 | S99: 14.92872798 | T99: 11.33054693 | U99: 12.01297728 | V99: 11.78577529 | W99: 11.85230235 | X99: 8.183543057 | Y99: 10.28329837 | Z99: 0.3934693986
D100: 99 | E100: 9.82908469 | F100: 11.4863388 | G100: 8.285688535 | H100: 8.547309876 | I100: 5.151538422 | J100: 9.519872687 | K100: 10.52860113 | L100: 7.344917074 | M100: 11.91939572 | N100: 11.56607638 | O100: 1.577382513 | P100: 10.45179478 | Q100: 12.28480641 | R100: 9.140026251 | S100: 10.94002418 | T100: 10.51187699 | U100: 11.17811258 | V100: 8.99516512 | W100: 6.633342488 | X100: 8.953229326 | Y100: 9.242229198 | Z100: -1.077174028
D101: 100 | E101: 10.41567476 | F101: 11.94750005 | G101: 11.35756858 | H101: 11.6036028 | I101: 11.53539101 | J101: 13.16855848 | K101: 8.420589581 | L101: 5.673155102 | M101: 7.227042194 | N101: 14.07100795 | O101: 8.058257324 | P101: 7.914044912 | Q101: 12.70412969 | R101: 12.33990157 | S101: 11.38149794 | T101: 8.765305417 | U101: 10.01957411 | V101: 10.96458622 | W101: 7.408050044 | X101: 8.445458438 | Y101: 10.17104481 | Z101: 0.2348968783
D102: 101 | E102: 12.50708969 | F102: 4.532747946 | G102: 11.11159978 | H102: 12.13483634 | I102: 10.38078573 | J102: 7.329994702 | K102: 11.99543956 | L102: 18.2597346 | M102: 9.731085703 | N102: 14.65001041 | O102: 13.76324235 | P102: 8.29063293 | Q102: 13.06081962 | R102: 10.96328372 | S102: 7.776624604 | T102: 12.96842607 | U102: 11.46708237 | V102: 9.073779929 | W102: 9.814165245 | X102: 8.361431115 | Y102: 10.90864062 | Z102: 1.276845349
D103: 102 | E103: 11.51270594 | F103: 4.816780496 | G103: 7.337173954 | H103: 5.896761231 | I103: 8.09052834 | J103: 7.722433003 | K103: 9.995058379 | L103: 3.53837097 | M103: 9.889032452 | N103: 11.76415812 | O103: 14.56654877 | P103: 13.4686635 | Q103: 7.556615337 | R103: 14.13818309 | S103: 7.043826758 | T103: 9.015335339 | U103: 6.005771606 | V103: 17.38294782 | W103: 7.785485358 | X103: 11.33497199 | Y103: 9.443067623 | Z103: -0.7934640514
D104: 103 | E104: 6.56200244 | F104: 11.05553477 | G104: 11.46776497 | H104: 6.924139757 | I104: 12.4811765 | J104: 15.03167306 | K104: 15.66255974 | L104: 17.13155036 | M104: 10.02089235 | N104: 11.06797995 | O104: 11.94594395 | P104: 3.908734277 | Q104: 6.197225856 | R104: 12.8931536 | S104: 6.406679517 | T104: 11.66430396 | U104: 5.174609722 | V104: 11.25178092 | W104: 11.3618542 | X104: 14.17653646 | Y104: 10.61930482 | Z104: 0.8681215033
D105: 104 | E105: 12.78897374 | F105: 7.516056587 | G105: 10.03902124 | H105: 7.065871458 | I105: 10.99708408 | J105: 9.95063788 | K105: 13.54846534 | L105: 6.075356085 | M105: 4.966934358 | N105: 13.62590949 | O105: 17.6263205 | P105: 7.929555866 | Q105: 6.978166804 | R105: 0.4707261315 | S105: 9.90005571 | T105: 6.154224205 | U105: 1.858453381 | V105: 5.977473437 | W105: 9.404004159 | X105: 3.005616351 | Y105: 8.29394534 | Z105: -2.416746323
D106: 105 | E106: 11.96327873 | F106: 11.27063339 | G106: 9.508708839 | H106: 10.63685397 | I106: 7.212711517 | J106: 15.43101911 | K106: 4.00623989 | L106: 10.41653903 | M106: 11.29481724 | N106: 12.54311619 | O106: 5.243331318 | P106: 8.532108182 | Q106: 4.895103453 | R106: 9.242190056 | S106: 6.138426121 | T106: 10.49978314 | U106: 7.428491657 | V106: 10.76215406 | W106: 9.940084991 | X106: 6.838021152 | Y106: 9.190180602 | Z106: -1.15069933
D107: 106 | E107: 10.76686451 | F107: 7.342696647 | G107: 9.065753828 | H107: 5.478373417 | I107: 5.688260496 | J107: 8.985308015 | K107: 9.824808042 | L107: 12.21360686 | M107: 5.36244232 | N107: 9.84492557 | O107: 9.908658651 | P107: 15.04582034 | Q107: 8.506884597 | R107: 9.359946504 | S107: 3.354400152 | T107: 11.63909038 | U107: 14.72575775 | V107: 9.516769154 | W107: 6.88014831 | X107: 7.402806588 | Y107: 9.045666106 | Z107: -1.354844547
D108: 107 | E108: 11.99300443 | F108: 13.73994496 | G108: 18.66820655 | H108: 12.48513212 | I108: 2.168024473 | J108: 10.88259259 | K108: 7.997111391 | L108: 13.118093 | M108: 10.9228767 | N108: 9.681310377 | O108: 11.16493248 | P108: 8.382507217 | Q108: 15.58698055 | R108: 7.092044588 | S108: 12.71218523 | T108: 17.25787981 | U108: 12.40191518 | V108: 7.923511726 | W108: 9.50691746 | X108: 7.879220478 | Y108: 11.07821957 | Z108: 1.51639731
D109: 108 | E109: 10.02968585 | F109: 7.465969284 | G109: 12.58733644 | H109: 8.840464018 | I109: 7.141810841 | J109: 6.830534798 | K109: 8.467912291 | L109: 10.77960173 | M109: 9.212535505 | N109: 8.250603331 | O109: 8.36383263 | P109: 3.852003304 | Q109: 3.321745301 | R109: 6.970376075 | S109: 9.332924893 | T109: =NORMINV(RAND(), $B$3, SQRT($B$4)) -> 8.297091155 | U109: 9.751777166 | V109: 14.71804465 | W109: 6.679191602 | X109: 12.73089957 | Y109: 8.681217022 | Z109: -1.869675516
D110: 109 | E110: =NORMINV(RAND(), $B$3, SQRT($B$4)) -> 10.6726522 | F110: 13.25825276 | G110: 9.320182176 | H110: 13.36487709 | I110: 5.836467957 | J110: 6.05630423 | K110: 5.818835908 | L110: 7.358959903 | M110: 13.04775167 | N110: 4.656442848 | O110: 3.631026023 | P110: 13.89023241 | Q110: 7.771460862 | R110: 7.4115263 | S110: 13.8104248 | T110: 17.57930956 | U110: 8.076167479 | V110: 14.11788481 | W110: 5.962424536 | X110: 15.13750352 | Y110: 9.838934352 | Z110: -0.2342516391
D111: 110 | E111: 7.322604426 | F111: 11.204532 | G111: 6.911195286 | H111: 13.27030077 | I111: 5.24633855 | J111: 8.310457682 | K111: 7.452604221 | L111: 12.18001226 | M111: 9.923634347 | N111: 10.74830767 | O111: 10.54644671 | P111: 8.086561797 | Q111: 8.390426592 | R111: 12.6174591 | S111: 8.394627034 | T111: 12.59898469 | U111: 10.10173091 | V111: 11.4312623 | W111: 9.693332009 | X111: 11.90049338 | Y111: 9.816565588 | Z111: -0.2658503818
D112: 111 | E112: 12.12245654 | F112: 11.25331915 | G112: 13.82960715 | H112: 16.32710978 | I112: 16.18497574 | J112: 8.942395108 | K112: 5.501947215 | L112: 12.59533227 | M112: 11.40304321 | N112: 9.79646136 | O112: 9.540262437 | P112: 6.285473778 | Q112: 11.13326046 | R112: 14.58128492 | S112: 5.219749213 | T112: 17.13415706 | U112: 12.89543149 | V112: 11.16124278 | W112: 8.380620109 | X112: 9.132540553 | Y112: 11.17103352 | Z112: 1.647508893
D113: 112 | E113: 9.633985866 | F113: 8.728446317 | G113: 7.661676067 | H113: 14.25208749 | I113: 12.12233955 | J113: 8.544183244 | K113: 10.83611242 | L113: 5.815348088 | M113: 5.568556999 | N113: 8.344040511 | O113: 11.27889893 | P113: 5.071282349 | Q113: 9.933914004 | R113: 10.05192979 | S113: 11.73421884 | T113: 16.76440565 | U113: 6.671299684 | V113: 8.551975662 | W113: 8.937841647 | X113: 9.712980249 | Y113: 9.510776168 | Z113: -0.6978170671
D114: 113 | E114: 12.49637254 | F114: 4.829789397 | G114: 18.77250448 | H114: 9.245948059 | I114: 13.26391641 | J114: 17.28212432 | K114: 11.19197179 | L114: 9.144383759 | M114: 5.311040881 | N114: 8.579116209 | O114: 15.24984066 | P114: 13.15269264 | Q114: 6.440811996 | R114: 16.03674867 | S114: 10.63526478 | T114: 8.777055442 | U114: 5.612549239 | V114: 18.106222 | W114: 5.119255959 | X114: 6.230233508 | Y114: 10.77389214 | Z114: 1.086495874
D115: 114 | E115: 9.786835636 | F115: 8.167585573 | G115: 11.55790076 | H115: 6.781738374 | I115: 12.4531445 | J115: 6.720657548 | K115: 12.91482678 | L115: 14.4124932 | M115: 10.36032775 | N115: 14.36327643 | O115: 4.840322296 | P115: 10.19708679 | Q115: 6.689152391 | R115: 9.389886176 | S115: 9.80205307 | T115: 10.18859656 | U115: 7.475287028 | V115: 3.326408973 | W115: 12.51425292 | X115: 8.259747724 | Y115: 9.510079023 | Z115: -0.6988018735
D116: 115 | E116: 9.1772255 | F116: 13.06203289 | G116: 8.973006756 | H116: 2.564725849 | I116: 9.817042255 | J116: 6.724701252 | K116: 11.92591522 | L116: 7.576308609 | M116: 9.915065006 | N116: 9.328744412 | O116: 9.702556944 | P116: 7.177320603 | Q116: 9.743899894 | R116: 7.558780853 | S116: 10.01925059 | T116: 11.42149435 | U116: 2.933128848 | V116: 14.21422325 | W116: 7.793802931 | X116: 11.05012915 | Y116: 9.033967758 | Z116: -1.371369961
D117: 116 | E117: 5.832864255 | F117: 18.49558475 | G117: 5.306539086 | H117: 8.172584751 | I117: 6.783525678 | J117: 8.074226916 | K117: 9.457592825 | L117: 12.07193175 | M117: 10.67564403 | N117: 4.928168844 | O117: 13.27485526 | P117: 11.88676371 | Q117: 9.721200923 | R117: 8.362586215 | S117: 15.72192123 | T117: 10.1128041 | U117: 5.717167392 | V117: 13.26677771 | W117: 8.38044215 | X117: 6.254656102 | Y117: 9.624891884 | Z117: -0.5366140163
D118: 117 | E118: 12.88119837 | F118: 12.73484086 | G118: 3.288249455 | H118: 10.99185844 | I118: 9.344302089 | J118: 13.81633845 | K118: 8.319284406 | L118: 13.90666545 | M118: 7.594909743 | N118: 12.71095094 | O118: 15.72983374 | P118: 6.228300734 | Q118: 11.95246456 | R118: 9.346426551 | S118: 9.269529806 | T118: 11.60316176 | U118: 6.286030931 | V118: 8.204759946 | W118: 7.970998177 | X118: 8.493752894 | Y118: 10.03369287 | Z118: 0.04086968338
D119: 118 | E119: 4.549926154 | F119: 11.37962523 | G119: 11.45151793 | H119: 12.47594126 | I119: 11.8653011 | J119: 15.81305523 | K119: -0.7760814796 | L119: 6.374393338 | M119: 9.445768259 | N119: 12.62203312 | O119: 15.35317848 | P119: 9.18385661 | Q119: 8.667726966 | R119: 10.8304292 | S119: 15.1124196 | T119: 9.840969742 | U119: 12.79133248 | V119: 13.15887235 | W119: 6.683219673 | X119: 7.646564113 | Y119: 10.22350247 | Z119: 0.3090000351
D120: 119 | E120: 10.50002299 | F120: 12.7726658 | G120: 12.69386508 | H120: 7.325818672 | I120: 7.71760183 | J120: 7.246917033 | K120: 7.825393985 | L120: 8.471089144 | M120: 9.179857115 | N120: 11.38490631 | O120: 16.78654634 | P120: 5.451403524 | Q120: 6.817217166 | R120: 15.19936987 | S120: 10.40267333 | T120: 8.839974153 | U120: 9.615834452 | V120: 1.805048827 | W120: 5.564611419 | X120: 10.35259275 | Y120: 9.29767049 | Z120: -0.9988561079
D121: 120 | E121: 12.4878671 | F121: 12.00258267 | G121: 10.37613138 | H121: 5.040156909 | I121: 7.85290467 | J121: 13.5204768 | K121: 7.630003326 | L121: 5.578061051 | M121: 1.825148954 | N121: 11.38953198 | O121: 7.200470514 | P121: 6.634102417 | Q121: 15.38437115 | R121: 13.0529348 | S121: 10.31675813 | T121: 8.686586734 | U121: 8.644943068 | V121: 9.000387457 | W121: 15.82199189 | X121: 2.572553087 | Y121: 9.250898205 | Z121: -1.064927945
D122: 121 | E122: 11.08157443 | F122: 12.11516934 | G122: 10.36769278 | H122: 11.94658679 | I122: 10.29907854 | J122: 10.5969169 | K122: 8.383611585 | L122: 8.644558017 | M122: 5.462472783 | N122: 11.36673162 | O122: 8.175006557 | P122: 6.203975984 | Q122: 5.709276947 | R122: 15.37314185 | S122: 14.673088 | T122: 8.439854733 | U122: 5.984176133 | V122: 4.254307482 | W122: 12.33325382 | X122: 6.616594629 | Y122: 9.401353447 | Z122: -0.8523906635
D123: 122 | E123: 9.873091514 | F123: 7.407235143 | G123: 7.447535872 | H123: 12.86613403 | I123: 8.923102846 | J123: 7.836999227 | K123: 7.316143762 | L123: 8.002904049 | M123: 9.945476848 | N123: 8.158278285 | O123: 5.276703525 | P123: 10.65299228 | Q123: 5.76610809 | R123: 14.51772789 | S123: 9.6701971 | T123: 14.9435502 | U123: 8.528184742 | V123: 6.72199822 | W123: 10.81140704 | X123: 6.397262767 | Y123: 9.053151671 | Z123: -1.344270229
D124: 123 | E124: 10.43268276 | F124: 9.276185854 | G124: 10.21082736 | H124: 10.68957141 | I124: 5.941549916 | J124: 8.386490712 | K124: 12.10658329 | L124: 16.65534746 | M124: 11.04148442 | N124: 8.911695598 | O124: 11.02132502 | P124: 10.96131401 | Q124: 11.44195004 | R124: 8.265248769 | S124: 6.277891203 | T124: 13.74785168 | U124: 9.334230097 | V124: 10.9005669 | W124: 11.27719672 | X124: 10.63878956 | Y124: 10.37593914 | Z124: 0.5243363397
D125: 124 | E125: 9.094226676 | F125: 7.386732657 | G125: 5.030293417 | H125: 9.711305183 | I125: 8.795211468 | J125: 9.246177828 | K125: 10.27363987 | L125: 11.22574528 | M125: 8.411113279 | N125: 8.298452626 | O125: 11.39180586 | P125: 5.034051286 | Q125: 11.00388598 | R125: 11.21919021 | S125: 8.848403454 | T125: =NORMINV(RAND(), $B$3, SQRT($B$4)) -> 12.12085899 | U125: 12.18270351 | V125: 10.92570706 | W125: 9.326061892 | X125: 14.48808136 | Y125: 9.700682394 | Z125: -0.4295502212
D126: 125 | E126: =NORMINV(RAND(), $B$3, SQRT($B$4)) -> 9.554140772 | F126: 10.7717748 | G126: 12.24348623 | H126: 9.825043985 | I126: 12.30289772 | J126: 9.744291698 | K126: 7.664033198 | L126: 7.852700944 | M126: 12.14874076 | N126: 10.8984534 | O126: 13.84015055 | P126: 9.879521422 | Q126: 6.271759454 | R126: 14.99792849 | S126: 11.02293211 | T126: 13.81564163 | U126: 11.32636881 | V126: 5.177403588 | W126: 3.64702447 | X126: 12.95512711 | Y126: 10.29697106 | Z126: 0.412783819
D127: 126 | E127: 10.10151306 | F127: 11.46221386 | G127: 14.98387545 | H127: 4.748850219 | I127: 10.0780629 | J127: 9.562441106 | K127: 13.98697041 | L127: 12.3060225 | M127: 6.43177439 | N127: 8.875167152 | O127: 14.22516435 | P127: 11.93005825 | Q127: 6.534147081 | R127: 12.94296809 | S127: 3.368272596 | T127: 7.627779222 | U127: 9.179642257 | V127: 4.466411891 | W127: 9.269238778 | X127: 13.66978625 | Y127: 9.787517991 | Z127: -0.3068838294
D128: 127 | E128: 10.34252267 | F128: 5.144693361 | G128: 5.104027209 | H128: 9.895596308 | I128: 11.78747939 | J128: 10.64493271 | K128: 9.162613082 | L128: 8.091434158 | M128: 10.48602498 | N128: 9.906876181 | O128: 6.79704442 | P128: 10.56178697 | Q128: 13.53067541 | R128: 13.08355257 | S128: 10.43099971 | T128: 6.856414913 | U128: 10.28626682 | V128: 10.0299257 | W128: 11.05907298 | X128: 11.22022901 | Y128: 9.721108428 | Z128: -0.4006958353
D129: 128 | E129: 6.903093072 | F129: 10.11226918 | G129: 8.233319187 | H129: 11.16401849 | I129: 13.9290654 | J129: 9.517767049 | K129: 8.199396652 | L129: 14.1240531 | M129: 10.14976165 | N129: 10.41278782 | O129: 17.44052578 | P129: 11.57326081 | Q129: 8.695428712 | R129: 16.66387929 | S129: 8.774674885 | T129: 5.28566825 | U129: 13.6183091 | V129: 10.49882902 | W129: 10.86522764 | X129: 14.18692289 | Y129: 11.0174129 | Z129: 1.430500112
D130: 129 | E130: 12.06630293 | F130: 12.05626748 | G130: 3.908634788 | H130: 11.94209606 | I130: 12.24972786 | J130: 7.695526307 | K130: 7.399897706 | L130: 11.66674334 | M130: 11.02851494 | N130: 7.733919654 | O130: 12.64615526 | P130: 13.93134827 | Q130: 10.82924545 | R130: 17.7771697 | S130: 10.82705003 | T130: 7.548583621 | U130: 15.33990391 | V130: 15.83263941 | W130: 10.87838443 | X130: 10.79892329 | Y130: 11.20785172 | Z130: 1.699519317
D131: 130 | E131: 2.947004174 | F131: 12.57629775 | G131: 5.514828103 | H131: 12.44260364 | I131: 5.279884915 | J131: 4.53292949 | K131: 6.987954295 | L131: 8.271923782 | M131: 12.09404476 | N131: 11.18446611 | O131: 13.60946047 | P131: 13.98026206 | Q131: 8.440994758 | R131: 9.463122922 | S131: 7.369523108 | T131: 10.0868887 | U131: 7.417879342 | V131: 1.304800677 | W131: 13.31782947 | X131: 10.12954753 | Y131: =AVERAGE(E131:X131) -> 8.847612302 | Z131: =(Y131-$B$10)/SQRT($B$11/20) -> -1.634620889
D132: 131 | E132: 16.22187741 | F132: 9.950539303 | G132: 13.17702767 | H132: 12.68829106 | I132: 6.230484583 | J132: 11.39697998 | K132: 10.08430482 | L132: 8.539840027 | M132: 7.96097616 | N132: 10.41872892 | O132: 8.783526222 | P132: 7.553269728 | Q132: 4.603140507 | R132: 9.54518482 | S132: 10.22584651 | T132: 8.412799756 | U132: 16.56288125 | V132: 11.74781968 | W132: 11.32749116 | X132: 11.29218604 | Y132: 10.33615978 | Z132: 0.4681429058
D133: 132 | E133: 11.23275749 | F133: 7.97560526 | G133: 11.66861946 | H133: 9.651082605 | I133: 5.260078719 | J133: 11.90446115 | K133: 14.42663141 | L133: 7.417419452 | M133: 10.17093507 | N133: 9.159606005 | O133: 15.38446479 | P133: 6.41901682 | Q133: 13.94570264 | R133: 11.24085377 | S133: 7.998239411 | T133: 6.409384144 | U133: 13.14209294 | V133: 9.586611294 | W133: 12.2711151 | X133: 11.90924401 | Y133: 10.35869608 | Z133: 0.4999783082
D134: 133 | E134: 8.841106557 | F134: 7.482597432 | G134: 11.44262568 | H134: 11.19181389 | I134: 7.809565129 | J134: 11.31682518 | K134: 15.42129647 | L134: 13.48071624 | M134: 10.94368994 | N134: 16.07521976 | O134: 8.796915415 | P134: 10.71749378 | Q134: 10.92264733 | R134: 12.04682285 | S134: 7.055735412 | T134: 8.26407901 | U134: 11.64138445 | V134: 9.165930503 | W134: 11.47026276 | X134: 11.79448603 | Y134: 10.79406069 | Z134: 1.114986537
D135: 134 | E135: 5.303254224 | F135: 6.103156386 | G135: 6.288065313 | H135: 12.22029091 | I135: 6.199054738 | J135: 3.375571477 | K135: 11.9277923 | L135: 9.323854181 | M135: 6.947573606 | N135: 6.246919487 | O135: 11.37466562 | P135: 6.739096788 | Q135: 13.40616704 | R135: 15.15974413 | S135: 14.86303961 | T135: 9.980935446 | U135: 9.721136686 | V135: 9.155865285 | W135: 8.114232447 | X135: 6.216152941 | Y135: 8.933328431 | Z135: -1.513535889
D136: 135 | E136: 9.710353768 | F136: 9.366655534 | G136: 8.766165846 | H136: 11.2633478 | I136: 7.174076937 | J136: 7.810214977 | K136: 10.45126223 | L136: 9.161782716 | M136: 10.24184003 | N136: 7.321346722 | O136: 13.42775086 | P136: 11.61174226 | Q136: 8.184441143 | R136: 5.944683267 | S136: 8.540454022 | T136: 9.073283289 | U136: 8.15730292 | V136: 12.2393632 | W136: 9.206957589 | X136: 8.413271407 | Y136: 9.303314825 | Z136: -0.9908827617
D137: 136 | E137: 5.730951195 | F137: 12.44257046 | G137: 10.13619858 | H137: 10.19053607 | I137: 13.01390708 | J137: 13.26422405 | K137: 8.66927398 | L137: 13.1938442 | M137: 5.759441274 | N137: 12.39084442 | O137: 9.08619761 | P137: 10.37944724 | Q137: 12.49102099 | R137: 14.65161803 | S137: 12.09469927 | T137: 11.20714231 | U137: 10.33028215 | V137: 9.856852018 | W137: 7.482808345 | X137: 7.579032142 | Y137: 10.49754457 | Z137: 0.696119574
D138: 137 | E138: 11.28013313 | F138: 7.631324022 | G138: 16.76101461 | H138: 11.77371959 | I138: 10.48555257 | J138: 8.714197802 | K138: 9.982095025 | L138: 9.056411565 | M138: 13.44183213 | N138: 5.774820054 | O138: 14.9679993 | P138: 6.188867554 | Q138: 10.01641176 | R138: 10.01755557 | S138: 7.040253224 | T138: 12.05496224 | U138: 8.335500673 | V138: 8.839558401 | W138: 7.646237864 | X138: 15.06878331 | Y138: 10.25386152 | Z138: 0.3518860814
D139: 138 | E139: 9.944213421 | F139: 8.702375194 | G139: 6.929671501 | H139: 8.081296338 | I139: 8.291360124 | J139: 20.20575492 | K139: 8.973650031 | L139: 8.259384583 | M139: 7.50471473 | N139: 6.998566705 | O139: 12.49012753 | P139: 6.228538556 | Q139: 9.3630238 | R139: 10.74345509 | S139: 7.64446324 | T139: 9.875015281 | U139: 7.250056443 | V139: 16.27443834 | W139: 13.4512262 | X139: 12.39959138 | Y139: 9.980546171 | Z139: -0.03420682431
D140: 139 | E140: 13.09127256 | F140: 6.304647336 | G140: 4.771417 | H140: 8.968746897 | I140: 6.09820056 | J140: 9.029879349 | K140: 10.58372079 | L140: 12.11942473 | M140: 14.91617326 | N140: 13.23452182 | O140: 9.762560243 | P140: 6.438509926 | Q140: 10.97195308 | R140: 13.03560046 | S140: 10.03318302 | T140: 11.48423142 | U140: 8.06267029 | V140: 11.39593062 | W140: 13.45962831 | X140: 6.267049492 | Y140: 10.00146606 | Z140: -0.004654806806
D141: 140 | E141: 11.55654796 | F141: 7.864531708 | G141: 11.41754391 | H141: 9.547832146 | I141: 11.17698357 | J141: 13.55066568 | K141: 10.56848332 | L141: 7.709933957 | M141: 12.33501284 | N141: 4.430941072 | O141: 9.924600066 | P141: 6.185301265 | Q141: 11.53594672 | R141: 9.639254722 | S141: 5.686401691 | T141: =NORMINV(RAND(), $B$3, SQRT($B$4)) -> 11.06308648 | U141: 7.338932696 | V141: 8.42487904 | W141: 7.700155164 | X141: 10.78100288 | Y141: 9.421901844 | Z141: -0.8233634223
D142: 141 | E142: =NORMINV(RAND(), $B$3, SQRT($B$4)) -> 8.153588997 | F142: 8.731074841 | G142: 13.9296317 | H142: 8.414189042 | I142: 8.352422596 | J142: 8.138572691 | K142: 7.464686709 | L142: 13.60559531 | M142: 16.04687842 | N142: 11.87457623 | O142: 11.24470956 | P142: 9.156592462 | Q142: 9.981159339 | R142: 13.27872406 | S142: 12.99621083 | T142: 7.368706415 | U142: 9.850033653 | V142: 9.75327908 | W142: 11.40418755 | X142: 10.83169594 | Y142: 10.52882577 | Z142: 0.7403082724
D143: 142 | E143: 8.369756502 | F143: 13.55206603 | G143: 11.04630922 | H143: 13.5642332 | I143: 8.70792426 | J143: 8.548601687 | K143: 8.123315355 | L143: 8.44769245 | M143: 9.383686723 | N143: 10.03292243 | O143: 9.436694783 | P143: 3.435994554 | Q143: 8.472594639 | R143: 8.483744722 | S143: 9.354336807 | T143: 5.879971549 | U143: 8.858912111 | V143: 7.636998107 | W143: 13.04221032 | X143: 8.242771786 | Y143: 9.131036862 | Z143: -1.234247431
D144: 143 | E144: 7.620244317 | F144: 9.614413996 | G144: 14.92358299 | H144: 14.35928232 | I144: 12.33504334 | J144: 8.610591671 | K144: 12.21256122 | L144: 12.79955583 | M144: 8.541382201 | N144: 15.67042826 | O144: 5.424054544 | P144: 10.54462717 | Q144: 12.58704144 | R144: 10.78502076 | S144: 16.28904387 | T144: 7.513583946 | U144: 11.10940162 | V144: 11.51316264 | W144: 8.802506374 | X144: 14.77692933 | Y144: 11.30162289 | Z144: 1.831983097
D145: 144 | E145: 11.51119928 | F145: 19.29258653 | G145: 10.15725152 | H145: 13.27392315 | I145: 2.658675131 | J145: 9.606095175 | K145: 12.8814918 | L145: 9.259730666 | M145: 11.55163021 | N145: 9.693244368 | O145: 11.31657876 | P145: 13.87822528 | Q145: 8.319129026 | R145: 9.035345794 | S145: 10.76297731 | T145: 4.38157186 | U145: 3.988952317 | V145: 7.950052772 | W145: 10.11138087 | X145: 12.89115552 | Y145: 10.12605987 | Z145: 0.1713498925
D146: 145 | E146: 13.61660032 | F146: 12.91036689 | G146: 9.619681994 | H146: 10.40798249 | I146: 15.78388143 | J146: 6.723510963 | K146: 4.824293314 | L146: 10.17736042 | M146: 6.56681765 | N146: 6.104351117 | O146: 14.88389206 | P146: 14.06390261 | Q146: 9.865462362 | R146: 9.017093328 | S146: 4.85240192 | T146: 13.6943176 | U146: 9.409793346 | V146: 10.38360979 | W146: 9.871102982 | X146: 9.207924868 | Y146: 10.09921737 | Z146: 0.1334314338
D147: 146 | E147: 8.531710469 | F147: 9.826167154 | G147: 8.32001134 | H147: 7.067674037 | I147: 10.82732034 | J147: 8.557592327 | K147: 4.814937043 | L147: 17.06846695 | M147: 10.12821721 | N147: 9.399162088 | O147: 10.15234055 | P147: 5.424421492 | Q147: 9.932079538 | R147: 8.327163365 | S147: 6.724728489 | T147: 8.448304469 | U147: 5.296874556 | V147: 5.171639742 | W147: 9.117052962 | X147: 10.10849302 | Y147: 8.662217857 | Z147: -1.896514268
D148: 147 | E148: 1.339176074 | F148: 11.89164237 | G148: 5.885935722 | H148: 9.350588066 | I148: 16.30077945 | J148: 7.719890962 | K148: 11.22927212 | L148: 10.70254239 | M148: 7.443908315 | N148: 9.325785963 | O148: 6.886332757 | P148: 7.472425871 | Q148: 9.578580767 | R148: 8.493971656 | S148: 13.38601869 | T148: 14.2572743 | U148: 11.85406904 | V148: 13.3341564 | W148: 8.835435766 | X148: 9.549825959 | Y148: 9.741880631 | Z148: -0.3713524395
D149: 148 | E149: 9.920878785 | F149: 12.42026425 | G149: 9.749762282 | H149: 9.572151559 | I149: 8.576078053 | J149: 11.24347705 | K149: 13.83207788 | L149: 4.807958702 | M149: 12.46885468 | N149: 11.05858715 | O149: 11.75477261 | P149: 9.011661377 | Q149: 8.110181004 | R149: 8.464698235 | S149: 11.53114323 | T149: 4.781601976 | U149: 7.905705293 | V149: 9.625115639 | W149: 15.81460006 | X149: 11.22693062 | Y149: 10.09382502 | Z149: 0.1258140486
D150: 149 | E150: 9.232766219 | F150: 8.092273475 | G150: 10.58167402 | H150: 11.41281118 | I150: 12.49556246 | J150: 1.773820669 | K150: 11.88844168 | L150: 11.47324652 | M150: 14.17820137 | N150: 9.575293787 | O150: 7.305201795 | P150: 8.528897424 | Q150: 6.020310126 | R150: 9.657096834 | S150: 6.723887489 | T150: 15.59880361 | U150: 14.26962963 | V150: 6.858933201 | W150: 10.11952661 | X150: 9.131279524 | Y150: 9.745882881 | Z150: -0.3656987498
D151: 150 | E151: 11.36155638 | F151: 8.043546625 | G151: 3.981150207 | H151: 11.58423849 | I151: 7.263902796 | J151: 10.41644868 | K151: 4.838773534 | L151: 7.686545455 | M151: 8.948081141 | N151: 11.97846261 | O151: 12.4637883 | P151: 12.01645296 | Q151: 12.22076782 | R151: 0.1076442891 | S151: 10.81407326 | T151: 14.23379086 | U151: 6.400059488 | V151: 12.36348855 | W151: 7.090355648 | X151: 6.735264159 | Y151: 9.027419562 | Z151: -1.380620126
D152: 151 | E152: 6.289007258 | F152: 14.12853072 | G152: 8.147394376 | H152: 14.2644456 | I152: 8.124812284 | J152: 15.96930242 | K152: 9.164930296 | L152: 9.218763311 | M152: 9.551085139 | N152: 10.03439685 | O152: 8.755514755 | P152: 6.778226377 | Q152: 3.910123703 | R152: 11.34774017 | S152: 9.229064166 | T152: 13.06575726 | U152: 4.485143744 | V152: 9.838585732 | W152: 13.70595247 | X152: 8.437589048 | Y152: 9.722318284 | Z152: -0.3989867584
D153: 152 | E153: 16.9461519 | F153: 9.985180384 | G153: 9.856610982 | H153: 11.80019289 | I153: 7.061263359 | J153: 10.28972692 | K153: 12.21636267 | L153: 8.358587856 | M153: 6.276170419 | N153: 4.703819747 | O153: 10.94733656 | P153: 12.48182896 | Q153: 9.525911445 | R153: 10.00874484 | S153: 9.081683339 | T153: 8.346603582 | U153: 18.96830881 | V153: 3.885654755 | W153: 9.916383029 | X153: 5.202767252 | Y153: 9.792964485 | Z153: -0.2991899595
D154: 153 | E154: 10.20487701 | F154: 12.72136191 | G154: 11.07255636 | H154: 11.86912317 | I154: 18.4269251 | J154: 10.27887847 | K154: 14.1422256 | L154: 9.202069614 | M154: 12.54553902 | N154: 12.07884913 | O154: 7.080988286 | P154: 7.596224703 | Q154: 8.44645864 | R154: 7.047854504 | S154: 11.20949288 | T154: 8.018780142 | U154: 9.82751909 | V154: 9.721363466 | W154: 13.19712015 | X154: 10.8570214 | Y154: 10.77726143 | Z154: 1.091255434
D155: 154 | E155: 3.818994385 | F155: 11.70988467 | G155: 13.99750671 | H155: 10.36411612 | I155: 9.619096904 | J155: 10.36677611 | K155: 10.56275989 | L155: 9.521605275 | M155: 11.21847923 | N155: 10.45259919 | O155: 13.4454042 | P155: 9.484540438 | Q155: 11.49292908 | R155: 11.93020006 | S155: 11.34245034 | T155: 7.331041122 | U155: 2.977791399 | V155: 13.32493662 | W155: 11.94096761 | X155: 11.91762725 | Y155: 10.34098533 | Z155: 0.4749596115
D156: 155 | E156: 10.22749665 | F156: 4.497110651 | G156: 9.795127184 | H156: 10.34764853 | I156: 11.02859543 | J156: 11.51541664 | K156: 11.29925764 | L156: 7.886563792 | M156: 9.09727274 | N156: 16.25112906 | O156: 9.70640728 | P156: 4.735728555 | Q156: 10.08528008 | R156: 10.88439079 | S156: 6.730272013 | T156: 15.55399354 | U156: 9.762712499 | V156: 6.32869172 | W156: 12.29945043 | X156: 9.694061582 | Y156: 9.88633034 | Z156: -0.1672987422
D157: 156 | E157: 2.504063306 | F157: 5.683999645 | G157: 8.260833971 | H157: 12.089063 | I157: 5.461371975 | J157: 12.71394013 | K157: 4.46020249 | L157: 11.22462874 | M157: 10.74594415 | N157: 7.317754088 | O157: 11.5348873 | P157: 8.212634639 | Q157: 7.070966148 | R157: 7.933937486 | S157: 9.88649804 | T157: =NORMINV(RAND(), $B$3, SQRT($B$4)) -> 16.54349845 | U157: 9.521247201 | V157: 6.390622236 | W157: 11.78263894 | X157: 15.66297551 | Y157: 9.250085372 | Z157: -1.066076176
D158: 157 | E158: =NORMINV(RAND(), $B$3, SQRT($B$4)) -> 12.06647183 | F158: 8.736900299 | G158: 14.21629795 | H158: 14.17612857 | I158: 10.70086364 | J158: 2.975526196 | K158: 11.57020612 | L158: 10.75412555 | M158: 15.37329696 | N158: 16.68775331 | O158: 9.84484379 | P158: 8.434881844 | Q158: 17.1210247 | R158: 10.61945952 | S158: 7.768948034 | T158: 10.69105822 | U158: 1.48161493 | V158: 8.299168728 | W158: 12.48572449 | X158: 14.22205685 | Y158: 10.91131758 | Z158: 1.280626893
D159: 158 | E159: 8.886814174 | F159: 10.94051988 | G159: 12.1587424 | H159: 13.54294395 | I159: 13.6285213 | J159: 14.12003495 | K159: 8.446240943 | L159: 7.099311845 | M159: 5.315660334 | N159: 6.989822047 | O159: 5.071555004 | P159: 8.56608954 | Q159: 12.22580815 | R159: 11.70174207 | S159: 6.357542675 | T159: 7.732432463 | U159: 6.357056063 | V159: 9.205408171 | W159: 8.574157181 | X159: 11.13708264 | Y159: 9.402874289 | Z159: -0.8502422797
D160: 159 | E160: 7.352063058 | F160: 6.047191026 | G160: 8.921854012 | H160: 14.89477626 | I160: 7.19945785 | J160: 7.356858002 | K160: 12.35496139 | L160: 8.656543874 | M160: 12.51071446 | N160: 10.89940632 | O160: 5.339794032 | P160: 12.83829038 | Q160: 11.57842097 | R160: 14.58062864 | S160: 10.43994515 | T160: 14.26885877 | U160: 10.54831785 | V160: 10.58104437 | W160: 9.370418656 | X160: 5.02312947 | Y160: 10.03813373 | Z160: 0.04714296762
D161: 160 | E161: 10.49157562 | F161: 10.49736765 | G161: 6.052717357 | H161: 6.539409544 | I161: 11.00819962 | J161: 10.50930236 | K161: 16.05738032 | L161: 9.294594003 | M161: 8.975638367 | N161: 8.214652506 | O161: 10.34710383 | P161: 12.52798825 | Q161: 5.751143865 | R161: 14.00092194 | S161: 13.02682032 | T161: 11.80134681 | U161: 8.55902717 | V161: 9.159550008 | W161: 9.118442083 | X161: 5.790677821 | Y161: 9.886192972 | Z161: -0.1674927914
D162: 161 | E162: 11.3879199 | F162: 7.124376818 | G162: 11.19280333 | H162: 10.62475899 | I162: 14.60009483 | J162: 7.034202561 | K162: 11.62684127 | L162: 13.11576624 | M162: 15.22013916 | N162: 12.47530418 | O162: 12.38257252 | P162: 11.57325735 | Q162: 10.30951101 | R162: 11.23615615 | S162: 1.977796215 | T162: 13.71091358 | U162: 9.388717315 | V162: 14.76155559 | W162: 13.31910226 | X162: 4.197029698 | Y162: 10.86294095 | Z162: 1.212288716
D163: 162 | E163: 6.246152826 | F163: 12.87762285 | G163: 11.22554263 | H163: 10.23040936 | I163: 3.382090498 | J163: 7.556019685 | K163: 7.757157649 | L163: 10.19911504 | M163: 12.02628264 | N163: 11.84035662 | O163: 8.945116393 | P163: 10.64918711 | Q163: 7.737284868 | R163: 6.984563593 | S163: 5.892451628 | T163: 7.352674076 | U163: 13.36725665 | V163: 11.32878989 | W163: 9.79356004 | X163: 8.684099199 | Y163: 9.203786663 | Z163: -1.131479028
D164: 163 | E164: 11.19745356 | F164: 8.382796277 | G164: 12.23435216 | H164: 11.47778275 | I164: 10.79820383 | J164: 12.4259625 | K164: 7.180900407 | L164: 9.485992864 | M164: 10.97075916 | N164: 14.45545002 | O164: 7.297453234 | P164: 13.56139689 | Q164: 4.619347003 | R164: 10.14944998 | S164: 10.14921219 | T164: 8.320047132 | U164: 7.585976128 | V164: 7.558494252 | W164: 10.15708398 | X164: 13.56082027 | Y164: 10.07844673 | Z164: 0.1040902434
D165: 164 | E165: 11.54111119 | F165: 10.52733657 | G165: 12.08050125 | H165: 7.414690436 | I165: 6.606579334 | J165: 13.69374879 | K165: 8.487700266 | L165: 11.9220183 | M165: 9.576787178 | N165: 9.427600781 | O165: 9.252630733 | P165: 9.252684371 | Q165: 9.923539733 | R165: 4.772492961 | S165: 8.573140272 | T165: 10.36680246 | U165: 9.488703472 | V165: 9.511179522 | W165: 3.355433423 | X165: 11.96534594 | Y165: 9.387001349 | Z165: -0.8726648381
D166: 165 | E166: 7.12315369 | F166: 11.94425144 | G166: 8.725581457 | H166: 10.19045524 | I166: 14.24029757 | J166: 9.222685032 | K166: 15.66118316 | L166: 15.05254933 | M166: 12.54170233 | N166: 16.34021478 | O166: 8.113903088 | P166: 10.92930424 | Q166: 12.35607227 | R166: 15.58255079 | S166: 9.357682001 | T166: 14.50678981 | U166: 5.264290819 | V166: 10.64750174 | W166: 10.64363092 | X166: 10.3763824 | Y166: 11.4410091 | Z166: 2.028883958
D167: 166 | E167: 11.73292564 | F167: 10.57638835 | G167: 10.58027558 | H167: 8.981522737 | I167: 12.71567114 | J167: 9.658774969 | K167: 12.61330646 | L167: 9.216996182 | M167: 6.531397566 | N167: 9.071964111 | O167: 4.398591014 | P167: 10.69066147 | Q167: 11.21431417 | R167: 9.736864585 | S167: 2.760890274 | T167: 10.87452998 | U167: 16.31041011 | V167: 12.18615959 | W167: 10.82716652 | X167: 10.39735875 | Y167: 10.05380846 | Z167: 0.06928553455
D168: 167 | E168: 6.654440826 | F168: 13.44631314 | G168: 8.698253758 | H168: 8.45697457 | I168: 14.45235907 | J168: 13.85570769 | K168: 12.28805188 | L168: 11.65073386 | M168: 8.799222646 | N168: 10.22591698 | O168: 9.889037757 | P168: 10.50039259 | Q168: 5.519782221 | R168: 8.638917041 | S168: 15.89199671 | T168: 12.30793947 | U168: 8.922120496 | V168: 11.22604629 | W168: 9.710071463 | X168: 8.179757613 | Y168: 10.4657018 | Z168: 0.6511375902
D169: 168 | E169: 9.557598879 | F169: 8.999308667 | G169: 8.995940784 | H169: 6.79202048 | I169: 15.20283134 | J169: 10.64340129 | K169: 9.520817498 | L169: 5.377443583 | M169: 10.63333303 | N169: 9.116826746 | O169: 11.94393515 | P169: 10.63543168 | Q169: 10.91306019 | R169: 9.048728276 | S169: 10.15229047 | T169: 11.76307482 | U169: 10.27962055 | V169: 10.86145487 | W169: 12.55839903 | X169: 12.40295341 | Y169: 10.26992354 | Z169: 0.3745757357
D170: 169 | E170: 5.989205543 | F170: 8.878567081 | G170: 10.49519089 | H170: 14.78450039 | I170: 10.51981361 | J170: 12.38249493 | K170: 9.708601769 | L170: 12.2177259 | M170: 11.47619513 | N170: 6.487829024 | O170: 12.62958339 | P170: 4.353750923 | Q170: 11.78959632 | R170: 6.810372099 | S170: 12.0230137 | T170: 12.22729662 | U170: 14.75699998 | V170: 13.17011293 | W170: 11.6821977 | X170: 9.747489126 | Y170: 10.60652685 | Z170: 0.850070993
D171: 170 | E171: 6.049913496 | F171: 11.52184847 | G171: 6.250244549 | H171: 15.6364614 | I171: 10.43507987 | J171: 9.096177855 | K171: 7.790123093 | L171: 8.610687104 | M171: 11.79768271 | N171: 8.990145045 | O171: 14.64620284 | P171: 5.631235835 | Q171: 13.18257254 | R171: 7.096490586 | S171: 8.553115702 | T171: 9.440644967 | U171: 10.6067781 | V171: 8.359487111 | W171: 14.3526725 | X171: 13.83384795 | Y171: 10.09407059 | Z171: 0.1261609398
D172: 171 | E172: 12.37631702 | F172: 9.499763241 | G172: 10.98226351 | H172: 9.278240335 | I172: 8.313975987 | J172: 9.58439451 | K172: 13.05856941 | L172: 7.886142184 | M172: 5.916789382 | N172: 10.65939721 | O172: 17.81891916 | P172: 7.05179857 | Q172: 11.77148539 | R172: 11.12155334 | S172: 6.115983995 | T172: 1.284042499 | U172: 11.25144351 | V172: 8.587312231 | W172: 10.74922854 | X172: 6.511649032 | Y172: 9.490963453 | Z172: -0.7258050623
D173: 172 | E173: 10.91326899 | F173: 4.539090979 | G173: 11.273706 | H173: 12.60377029 | I173: 11.90229514 | J173: 16.35117707 | K173: 11.54355327 | L173: 10.99271922 | M173: 7.218499518 | N173: 11.77630123 | O173: 13.67757261 | P173: 6.006365961 | Q173: 8.752730878 | R173: 8.356814361 | S173: 9.557641628 | T173: =NORMINV(RAND(), $B$3, SQRT($B$4)) -> 9.485612495 | U173: 5.14784783 | V173: 8.282035639 | W173: 8.832732789 | X173: 9.83819464 | Y173: 9.852596527 | Z173: -0.2149520694
D174: 173 | E174: =NORMINV(RAND(), $B$3, SQRT($B$4)) -> 6.469014544 | F174: 10.72425511 | G174: 8.768959351 | H174: 15.55795632 | I174: 16.46139661 | J174: 8.384507784 | K174: 12.66789233 | L174: 9.919300365 | M174: 10.96159411 | N174: 8.151300434 | O174: 11.05353038 | P174: 13.48523786 | Q174: 8.190164114 | R174: 9.74730982 | S174: 9.264712364 | T174: 8.204267144 | U174: 6.217087863 | V174: 10.01512962 | W174: 9.017005591 | X174: 3.200702385 | Y174: 9.823066205 | Z174: -0.2566674281
D175: 174 | E175: 12.36061151 | F175: 10.56573252 | G175: 13.0622813 | H175: 10.60804019 | I175: 12.41737377 | J175: 10.15673054 | K175: 8.265038448 | L175: 7.30512688 | M175: 5.361940099 | N175: 6.554837724 | O175: 9.55568542 | P175: 10.58086756 | Q175: 7.956809605 | R175: 7.998745368 | S175: 10.27793189 | T175: 12.32639564 | U175: 10.1123209 | V175: 7.149178685 | W175: 12.61282307 | X175: 12.92665017 | Y175: 9.907756065 | Z175: -0.1370321635
D176: 175 | E176: 5.170629287 | F176: 13.25739071 | G176: 16.77763566 | H176: 11.99332748 | I176: 12.85452049 | J176: 11.57460511 | K176: 13.45375281 | L176: 8.890301769 | M176: 3.529119856 | N176: 10.63868961 | O176: 14.38667644 | P176: 6.234017274 | Q176: 7.92717339 | R176: 14.05501998 | S176: 4.308988903 | T176: 8.569230175 | U176: 13.14537394 | V176: 8.574940422 | W176: 10.42129777 | X176: 11.01747445 | Y176: 10.33900828 | Z176: 0.472166771
D177: 176 | E177: 13.27550726 | F177: 10.3282082 | G177: 6.812730642 | H177: 11.69850316 | I177: 14.98515568 | J177: 11.88730942 | K177: 9.739750695 | L177: 4.811188649 | M177: 14.06094347 | N177: 4.975096892 | O177: 11.93536312 | P177: 13.28843388 | Q177: 9.144374911 | R177: 6.20733085 | S177: 16.44021011 | T177: 8.637334397 | U177: 7.902493927 | V177: 10.22273979 | W177: 11.34744654 | X177: 5.53451666 | Y177: 10.16173191 | Z177: 0.2217412213
D178: 177 | E178: 11.89219034 | F178: 11.44117013 | G178: 8.702362619 | H178: 14.16850341 | I178: 13.64451066 | J178: 9.553275971 | K178: 7.842621055 | L178: 7.698465619 | M178: 10.75372551 | N178: 17.94900664 | O178: 9.679973141 | P178: 11.20065472 | Q178: 7.375956484 | R178: 8.356121603 | S178: 7.152608603 | T178: 8.037073664 | U178: 13.03833137 | V178: 6.904007504 | W178: 6.479430518 | X178: 6.615965195 | Y178: 9.924297738 | Z178: -0.113664933
D179: 178 | E179: 10.71043616 | F179: 13.40653469 | G179: 9.738147921 | H179: 6.825218193 | I179: 3.348370094 | J179: 11.2949971 | K179: 7.049215977 | L179: 13.31257999 | M179: 11.46945896 | N179: 6.715159604 | O179: 14.4941555 | P179: 9.549462681 | Q179: 8.494615677 | R179: 11.84193922 | S179: 5.561739095 | T179: 17.05821457 | U179: 6.69375536 | V179: 8.084031194 | W179: 16.32368855 | X179: 11.69597034 | Y179: 10.18338454 | Z179: 0.2523283349
D180: 179 | E180: 8.590294452 | F180: 14.79590573 | G180: 12.32500362 | H180: 11.40686156 | I180: 8.844462607 | J180: 11.79474827 | K180: 8.128055776 | L180: 8.467335412 | M180: 8.694009389 | N180: 10.54030947 | O180: 9.390604968 | P180: 13.53208958 | Q180: 6.664026928 | R180: 15.37693798 | S180: 10.42170013 | T180: 7.159151394 | U180: 13.18772053 | V180: 8.000539469 | W180: 9.092450053 | X180: 7.144036145 | Y180: 10.17781217 | Z180: 0.2444566467
D181: 180 | E181: 9.502766156 | F181: 6.704270308 | G181: 11.89533569 | H181: 16.11330469 | I181: 12.16656708 | J181: 15.61309 | K181: 7.646840207 | L181: 12.15552534 | M181: 11.4497927 | N181: 11.01338557 | O181: 12.91869829 | P181: 6.719568779 | Q181: 5.476170024 | R181: 7.132590255 | S181: 12.88020023 | T181: 10.77962026 | U181: 9.202393768 | V181: 12.39813743 | W181: 8.616177599 | X181: 13.86996261 | Y181: 10.71271985 | Z181: 1.000082191
D182: 181 | E182: 10.03657944 | F182: 13.88432335 | G182: 11.63282122 | H182: 10.48361092 | I182: 9.971997971 | J182: 6.366653421 | K182: 11.57830115 | L182: 13.16740855 | M182: 12.87254582 | N182: 14.7181613 | O182: 10.91259642 | P182: 3.146704035 | Q182: 14.70940538 | R182: 12.46614747 | S182: 6.902472036 | T182: 8.161718987 | U182: 12.1883656 | V182: 8.320452431 | W182: 12.73324238 | X182: 10.94226194 | Y182: 10.75978849 | Z182: 1.066572669
D183: 182 | E183: 12.97413409 | F183: 13.94447119 | G183: 13.08041094 | H183: 6.058449924 | I183: 5.825453506 | J183: 10.11930666 | K183: 10.3416722 | L183: 11.96260165 | M183: 10.4371579 | N183: 5.714892112 | O183: 3.842275624 | P183: 14.15837017 | Q183: 6.571585487 | R183: 12.04036829 | S183: 9.826893146 | T183: 14.01776109 | U183: 4.156372078 | V183: 2.763140543 | W183: 12.48469266 | X183: 4.024150218 | Y183: 9.217207974 | Z183: -1.112519708
D184: 183 | E184: 11.95827095 | F184: 16.60776855 | G184: 6.151515205 | H184: 13.25415932 | I184: 8.459121466 | J184: 8.168500164 | K184: 11.1905333 | L184: 10.49652199 | M184: 12.75970875 | N184: 4.265302608 | O184: 7.27893567 | P184: 11.08866283 | Q184: 5.529145102 | R184: 4.523784511 | S184: 9.082048747 | T184: 6.350313191 | U184: 10.545782 | V184: 14.204682 | W184: 14.64784219 | X184: 11.68895886 | Y184: 9.91257787 | Z184: -0.1302207471
D185: 184 | E185: 11.18980297 | F185: 8.961865769 | G185: 10.27066238 | H185: 15.68236496 | I185: 6.858383522 | J185: 13.00146658 | K185: 7.082604516 | L185: 8.748587626 | M185: 10.43694783 | N185: 10.66484986 | O185: 5.05811841 | P185: 10.84866217 | Q185: 10.47985823 | R185: 7.089853591 | S185: 9.159303514 | T185: 2.690760158 | U185: 8.16112729 | V185: 5.928330403 | W185: 10.75556013 | X185: 10.1300359 | Y185: 9.159957291 | Z185: -1.193393624
D186: 185 | E186: 12.43539678 | F186: 8.59554878 | G186: 9.716315914 | H186: 7.126556813 | I186: 10.56458243 | J186: 5.260052498 | K186: 7.181361396 | L186: 8.700452188 | M186: 10.9235687 | N186: 14.2573168 | O186: 11.27268852 | P186: 5.4177244 | Q186: 10.02879384 | R186: 13.48129706 | S186: 3.705975178 | T186: 7.406460282 | U186: 9.548099464 | V186: 6.866575047 | W186: 1.370698257 | X186: 14.20180572 | Y186: 8.903063503 | Z186: -1.556288972
D187: 186 | E187: 7.422702509 | F187: 13.15829558 | G187: 5.674936202 | H187: 13.88202409 | I187: 12.26144712 | J187: 10.04737528 | K187: 7.024419808 | L187: 9.984235737 | M187: 13.10400227 | N187: 10.8760126 | O187: 8.982218714 | P187: 2.828955045 | Q187: 8.127666556 | R187: 11.15270817 | S187: 8.042494745 | T187: 8.757974488 | U187: 13.65508815 | V187: 11.69889822 | W187: 8.33210565 | X187: 8.205386284 | Y187: 9.660947361 | Z187: -0.4856810412
D188: 187 | E188: 8.225756095 | F188: 8.928179749 | G188: 10.77397418 | H188: 8.549476833 | I188: 10.68446838 | J188: 15.6619055 | K188: 6.75602396 | L188: 9.219487486 | M188: 7.957584568 | N188: 8.61796177 | O188: 6.523455507 | P188: 11.16357856 | Q188: 16.99213535 | R188: 10.00676418 | S188: 8.792200621 | T188: 8.676638465 | U188: 8.635820086 | V188: 9.882152439 | W188: 9.98121912 | X188: 8.317027781 | Y188: 9.717290531 | Z188: -0.4060891023
D189: 188 | E189: 4.240058697 | F189: 6.568437312 | G189: 8.093291534 | H189: 5.729073088 | I189: 12.44426476 | J189: 9.171030484 | K189: 12.65899952 | L189: 11.88055317 | M189: 11.57169934 | N189: 7.312066446 | O189: 6.245520208 | P189: 10.3049828 | Q189: 4.62846116 | R189: 7.850493258 | S189: 13.31265658 | T189: =NORMINV(RAND(), $B$3, SQRT($B$4)) -> 6.020004933 | U189: 13.43798704 | V189: 8.371079699 | W189: 9.835768746 | X189: 9.622014509 | Y189: 8.964922164 | Z189: -1.468905698
D190: 189 | E190: =NORMINV(RAND(), $B$3, SQRT($B$4)) -> 7.19250395 | F190: 5.937568575 | G190: 6.938464234 | H190: 11.48806084 | I190: 9.82767927 | J190: 10.31594413 | K190: 4.62869 | L190: 3.690696628 | M190: 8.128120456 | N190: 11.86608215 | O190: 16.2114392 | P190: 8.649108903 | Q190: 8.191482505 | R190: 8.377581624 | S190: 10.16079795 | T190: 6.721434889 | U190: 15.90176442 | V190: 8.180134803 | W190: 3.69955139 | X190: 6.271158197 | Y190: 8.618913206 | Z190: -1.957687629
D191: 190 | E191: 10.09619449 | F191: 15.27810557 | G191: 4.503272254 | H191: 10.39641276 | I191: 7.341674973 | J191: 18.92291006 | K191: 7.93491081 | L191: 9.681667499 | M191: 15.47315684 | N191: 10.6759485 | O191: 17.8032995 | P191: 6.140562763 | Q191: 7.802712583 | R191: 10.43156565 | S191: 11.90816853 | T191: 10.71035588 | U191: 6.491443649 | V191: 11.95770895 | W191: 11.01167232 | X191: 9.494656493 | Y191: 10.70282 | Z191: 0.986097391
D192: 191 | E192: 9.240660371 | F192: 5.492292466 | G192: 16.96744548 | H192: 14.24371146 | I192: 5.515039376 | J192: 4.622196214 | K192: 7.973679796 | L192: 15.09940894 | M192: 15.47188153 | N192: 7.302379227 | O192: 8.096885848 | P192: 5.5230429 | Q192: 11.35877885 | R192: 9.04678113 | S192: 4.025055807 | T192: 18.09621564 | U192: 6.481890385 | V192: 12.77524009 | W192: 12.21724417 | X192: 9.841453422 | Y192: 9.969564155 | Z192: -0.04972032724
D193: 192 | E193: 3.831354567 | F193: 6.249330534 | G193: 11.51226855 | H193: 12.36627228 | I193: 9.476085292 | J193: 7.576097442 | K193: 6.089586788 | L193: 14.74100465 | M193: 13.6876604 | N193: 10.8665101 | O193: 5.228601516 | P193: 13.40883796 | Q193: 5.816228941 | R193: 10.65222751 | S193: 14.76491282 | T193: 11.76611554 | U193: 9.213474993 | V193: 12.58677875 | W193: 14.1098681 | X193: 15.24893947 | Y193: 10.45960781 | Z193: 0.6425290453
D194: 193 | E194: 11.38838465 | F194: 12.12748636 | G194: 10.70762461 | H194: 7.470422179 | I194: 12.77104323 | J194: 5.831239475 | K194: 10.38962431 | L194: 7.183404795 | M194: 10.9215943 | N194: 12.82192558 | O194: 6.75079711 | P194: 8.962892989 | Q194: 12.71223061 | R194: 6.48255957 | S194: 6.184522888 | T194: 9.478565436 | U194: 12.72383412 | V194: 12.0781281 | W194: 11.65174677 | X194: 13.12889468 | Y194: 10.08834609 | Z194: 0.1180743537
D195: 194 | E195: 3.062620697 | F195: 7.304711134 | G195: 10.5421627 | H195: 6.565288155 | I195: 11.06782265 | J195: 14.27037231 | K195: 16.31604704 | L195: 13.47647694 | M195: 11.66610979 | N195: 12.35782852 | O195: 3.891589465 | P195: 4.818702443 | Q195: 9.656884503 | R195: 8.330265214 | S195: 2.867141021 | T195: 15.44494125 | U195: 14.0033999 | V195: 14.08859441 | W195: 2.469315451 | X195: 7.291689641 | Y195: =AVERAGE(E195:X195) -> 9.474598161 | Z195: =(Y195-$B$10)/SQRT($B$11/20) -> -0.7489231317
D196: 195 | E196: 9.381334975 | F196: 12.06752131 | G196: 10.54958898 | H196: 6.801116722 | I196: 9.668555336 | J196: 6.838008818 | K196: 9.908658173 | L196: 11.77827748 | M196: 11.62543691 | N196: 11.64058708 | O196: 12.9124346 | P196: 12.7809464 | Q196: 9.739369907 | R196: 14.46676499 | S196: 12.43577238 | T196: 16.38285308 | U196: 5.768160689 | V196: 16.91734631 | W196: 11.12565603 | X196: 9.581478062 | Y196: 11.11849341 | Z196: 1.573289271
D197: 196 | E197: 8.459154855 | F197: 11.88269743 | G197: 8.212905382 | H197: 7.386360433 | I197: 13.27878235 | J197: 8.923030963 | K197: 4.820596779 | L197: 10.71169729 | M197: 10.71036026 | N197: 11.8927749 | O197: 10.62410938 | P197: 8.436446676 | Q197: 6.759789252 | R197: 10.03318051 | S197: 7.730226834 | T197: 9.210156516 | U197: 9.242763296 | V197: 10.63469769 | W197: 8.607747267 | X197: 5.746454187 | Y197: 9.165196612 | Z197: -1.185992412
D198: 197 | E198: 10.18613732 | F198: 15.83590182 | G198: 9.32129115 | H198: 10.6693938 | I198: 10.66120179 | J198: 9.548143676 | K198: 9.530943903 | L198: 14.70864711 | M198: 2.235580463 | N198: 6.874290224 | O198: 7.871038471 | P198: 10.37182896 | Q198: 12.34601109 | R198: 9.170918918 | S198: 7.532742649 | T198: 5.748466858 | U198: 14.34907023 | V198: 14.76132258 | W198: 11.47076287 | X198: 6.277971931 | Y198: 9.97358329 | Z198: -0.04404278398
D199: 198 | E199: 14.06080667 | F199: 6.706812462 | G199: 12.48329072 | H199: 8.69767618 | I199: 9.618315715 | J199: 14.19662564 | K199: 10.13164975 | L199: 8.34882157 | M199: 7.934816441 | N199: 11.2178408 | O199: 9.316453075 | P199: 7.87730092 | Q199: 11.66797631 | R199: 9.75818941 | S199: 15.28500171 | T199: 12.62820811 | U199: 5.461188064 | V199: 8.713982595 | W199: 9.316576518 | X199: 11.50754699 | Y199: 10.24645398 | Z199: 0.3414219868
D200: 199 | E200: 12.27718946 | F200: 13.60477833 | G200: 15.07110551 | H200: 12.72002505 | I200: 8.473042658 | J200: 8.272636176 | K200: 10.41701664 | L200: 10.65609866 | M200: 9.553165053 | N200: 7.96594993 | O200: 12.9732246 | P200: 12.56891418 | Q200: 9.978514232 | R200: 9.678993073 | S200: 13.17040986 | T200: 12.76059724 | U200: 16.26222775 | V200: 5.095828645 | W200: 10.01934507 | X200: 10.77217133 | Y200: 11.11456167 | Z200: 1.567735186
... 1801 more rows

Sheet Z.2.dist
A1: Z-dist | D1: Trial | E1: x1 | F1: x2 | G1: x3 | H1: x4 | I1: x5 | J1: x6 | K1: x7 | L1: x8 | M1: x9 | N1: x10 | O1: x11 | P1: x12 | Q1: x13 | R1: x14 | S1: x15 | T1: x16 | U1: x17 | V1: x18 | W1: x19 | X1: x20 | Y1: x.Mean | Z1: x.u.Var | AA1: y1 | AB1: y2 | AC1: y3 | AD1: y4 | AE1: y5 | AF1: y6 | AG1: y7 | AH1: y8 | AI1: y9 | AJ1: y10 | AK1: y11 | AL1: y12 | AM1: y13 | AN1: y14 | AO1: y15 | AP1: y16 | AQ1: y17 | AR1: y18 | AS1: y19 | AT1: y20 | AU1: y.Mean | AV1: y.u.Var | AW1: Z | AY1: Z | AZ1: from | BA1: to | BB1: P.trial | BC1: N.dist | BD1: N.cum
A2: Set | D2: 1 | E2: =NORMINV(RAND(), $B$3, SQRT($B$4)) -> 4.284520979 | F2: =NORMINV(RAND(), $B$3, SQRT($B$4)) -> 9.880544449 | G2: 10.46238243 | H2: 10.99664403 | I2: 18.01041811 | J2: 13.76006216 | K2: 9.699868504 | L2: 6.971272294 | M2: 9.36293465 | N2: 10.68133541 | O2: 8.66826691 | P2: 6.67457228 | Q2: 11.69319992 | R2: 9.646821274 | S2: 8.546258068 | T2: 9.872920613 | U2: 13.37925261 | V2: 7.674900587 | W2: 13.88829982 | X2: 6.489520558 | Y2: =AVERAGE(E2:X2) -> 10.03219978 | Z2: =VAR(E2:X2) -> 9.71191959 | AA2: =NORMINV(RAND(), $B$3, SQRT($B$4)) -> 14.81457698 | AB2: =NORMINV(RAND(), $B$3, SQRT($B$4)) -> 9.662700869 | AC2: 10.9797682 | AD2: 7.258983081 | AE2: 11.7770663 | AF2: 14.10982423 | AG2: 14.55178653 | AH2: 10.5734327 | AI2: 6.288431765 | AJ2: 12.99128234 | AK2: 12.84562763 | AL2: 8.583684918 | AM2: 7.756874838 | AN2: 6.319581179 | AO2: 9.445034907 | AP2: 12.09837267 | AQ2: 12.77226103 | AR2: 11.12486417 | AS2: 14.76695415 | AT2: 12.76367169 | AU2: =AVERAGE(AA2:AT2) -> 11.07423901 | AV2: =VAR(AA2:AT2) -> 7.642696994 | AW2: =(Y2-AU2)/SQRT(Z2/20+AV2/20) -> -1.118643113 | AY2: -5 | AZ2: =AY2-0.5 -> -5.5 | BA2: =AY2+0.5 -> -4.5 | BB2: =COUNTIFS($AW$2:$AW$2001,">"&AZ2,$AW$2:$AW$2001,"<="&BA2)/2000 -> 0 | BC2: =NORMSDIST(BA2)-NORMSDIST(AZ2) -> 3.378683562e-06 | BD2: =NORMSDIST(AY2) -> 2.866515719e-07
A3: m | B3: 10 | D3: 2 | E3: =NORMINV(RAND(), $B$3, SQRT($B$4)) -> 10.24044894 | F3: 12.11221362 | G3: 12.07548117 | H3: 8.93223945 | I3: 16.32663808 | J3: 7.497744432 | K3: 9.000806271 | L3: 7.385538026 | M3: 7.914912977 | N3: 16.38947408 | O3: 8.548414992 | P3: 8.125110195 | Q3: 6.687940928 | R3: 7.363246832 | S3: 6.855748797 | T3: 11.43260716 | U3: 16.96485276 | V3: 14.60596138 | W3: 5.533824783 | X3: 12.03527063 | Y3: =AVERAGE(E3:X3) -> 10.30142377 | Z3: =VAR(E3:X3) -> 12.46002967 | AA3: =NORMINV(RAND(), $B$3, SQRT($B$4)) -> 13.95617035 | AB3: 10.52363044 | AC3: 8.573736574 | AD3: 17.11394826 | AE3: 12.54011414 | AF3: 9.380436811 | AG3: 12.09888507 | AH3: 11.70999995 | AI3: 9.31547897 | AJ3: 9.487492212 | AK3: 8.842265561 | AL3: 13.8830438 | AM3: 10.59999438 | AN3: 9.209980563 | AO3: 11.65470179 | AP3: 7.789342577 | AQ3: 9.852462294 | AR3: 6.465474221 | AS3: 11.58585803 | AT3: 7.767063093 | AU3: =AVERAGE(AA3:AT3) -> 10.61750395 | AV3: =VAR(AA3:AT3) -> 6.362187705 | AW3: =(Y3-AU3)/SQRT(Z3/20+AV3/20) -> -0.3258193466 | AY3: -4.5 | AZ3: =AY3-0.5 -> -5 | BA3: =AY3+0.5 -> -4 | BB3: =COUNTIFS($AW$2:$AW$2001,">"&AZ3,$AW$2:$AW$2001,"<="&BA3)/2000 -> 0 | BC3: =NORMSDIST(BA3)-NORMSDIST(AZ3) -> 3.138459026e-05 | BD3: =NORMSDIST(AY3) -> 3.397673125e-06
A4: v | B4: 10 | D4: 3 | E4: 9.882967985 | F4: 12.96514643 | G4: 11.36782812 | H4: 4.447689003 | I4: 6.507502947 | J4: 5.228755371 | K4: 7.120655861 | L4: 3.695026806 | M4: 13.90989344 | N4: 8.490991643 | O4: 17.57295166 | P4: 9.397757101 | Q4: 6.704141973 | R4: 12.19411644 | S4: 9.713258784 | T4: 11.29495357 | U4: 10.66499834 | V4: 3.968691872 | W4: 9.48066886 | X4: 11.197402 | Y4: 9.29026991 | Z4: 12.93006217 | AA4: 11.75306456 | AB4: 8.839992222 | AC4: 6.611491635 | AD4: 14.01705354 | AE4: 9.476383212 | AF4: 8.40666417 | AG4: 12.14460947 | AH4: 3.68038664 | AI4: 11.11616311 | AJ4: 6.44638874 | AK4: 8.472391694 | AL4: 5.630529365 | AM4: 14.02684652 | AN4: 8.190054908 | AO4: 7.708793711 | AP4: 3.23114241 | AQ4: 10.26118256 | AR4: 7.216050896 | AS4: 9.222851561 | AT4: 4.390999423 | AU4: 8.542152017 | AV4: 9.611717181 | AW4: 0.7046783729 | AY4: -4 | AZ4: -4.5 | BA4: -3.5 | BB4: 0 | BC4: 0.0002292314059 | BD4: 3.167124183e-05
A5: sd | B5: =SQRT(B4) -> 3.16227766 | D5: 4 | E5: 11.54991196 | F5: 17.88941788 | G5: 10.01658023 | H5: 15.80568253 | I5: 16.46237787 | J5: 14.50475476 | K5: 8.416520727 | L5: 8.474526344 | M5: 16.71915857 | N5: 11.88887581 | O5: 8.298693832 | P5: 6.207521044 | Q5: 6.899147612 | R5: 5.065267108 | S5: 13.91919186 | T5: 11.76233178 | U5: 9.416903158 | V5: 7.335063619 | W5: 8.822893569 | X5: 9.468880549 | Y5: 10.94618504 | Z5: 14.46685547 | AA5: 8.684538524 | AB5: 6.719831646 | AC5: 8.661811809 | AD5: 5.580544088 | AE5: 8.749869452 | AF5: 7.20847278 | AG5: 5.007285274 | AH5: 6.726877665 | AI5: 7.780345716 | AJ5: 11.24107185 | AK5: 7.394248312 | AL5: 10.54651179 | AM5: 13.7775644 | AN5: 12.29534443 | AO5: 6.070929261 | AP5: 12.84595509 | AQ5: 17.96019672 | AR5: 13.26564445 | AS5: 10.88110078 | AT5: 7.944794285 | AU5: 9.467146916 | AV5: 10.9889677 | AW5: 1.310994271 | AY5: -3.5 | AZ5: -4 | BA5: -3 | BB5: 0.0015 | BC5: 0.00131822679 | BD5: 0.000232629079
A6: n | B6: 20 | D6: 5 | E6: 12.21160957 | F6: 12.40232385 | G6: 6.527841994 | H6: 14.62763537 | I6: 7.721128539 | J6: 11.74860315 | K6: 6.793439692 | L6: 10.94512848 | M6: 10.93719731 | N6: 5.073347103 | O6: 13.53782756 | P6: 9.303095682 | Q6: 11.47494497 | R6: 9.704060025 | S6: 9.280326795 | T6: 10.70906966 | U6: 4.157381101 | V6: 9.358208842 | W6: 3.861564143 | X6: 6.834936564 | Y6: 9.36048352 | Z6: 9.424306199 | AA6: 12.33501647 | AB6: 7.489918263 | AC6: 11.0956061 | AD6: 11.91814304 | AE6: 5.964919666 | AF6: 13.11478388 | AG6: 6.326263197 | AH6: 13.46891687 | AI6: 11.73698183 | AJ6: 9.306262018 | AK6: 7.641042243 | AL6: 5.224610414 | AM6: 9.696561641 | AN6: 10.68905124 | AO6: 11.21909803 | AP6: 11.65701032 | AQ6: 10.80852134 | AR6: 7.893365188 | AS6: 11.58867301 | AT6: 8.242816185 | AU6: 9.870878047 | AV6: 6.062200817 | AW6: -0.5800217371 | AY6: -3 | AZ6: -3.5 | BA6: -2.5 | BB6: 0.005 | BC6: 0.005977036247 | BD6: 0.001349898032
B7: x1-x20 | D7: 6 | E7: 6.127138669 | F7: 6.774532031 | G7: 3.779823325 | H7: 8.970481192 | I7: 8.079121387 | J7: 9.885469085 | K7: 6.497446029 | L7: 7.238270559 | M7: 1.47884779 | N7: 6.536765885 | O7: 5.700597704 | P7: 12.60636172 | Q7: 10.82565845 | R7: 13.23361169 | S7: 10.15210839 | T7: 10.92478973 | U7: 5.059493934 | V7: 10.65221356 | W7: 8.13516732 | X7: 8.825397509 | Y7: 8.074164798 | Z7: 8.745469359 | AA7: 3.292509988 | AB7: 8.935389801 | AC7: 9.689750582 | AD7: 15.68283225 | AE7: 8.058523114 | AF7: 13.86711563 | AG7: 10.75398477 | AH7: 5.77033075 | AI7: 10.19983423 | AJ7: 5.400718978 | AK7: 13.69264202 | AL7: 9.636974729 | AM7: 17.75890225 | AN7: 11.30576231 | AO7: 12.17228744 | AP7: 11.18716672 | AQ7: 10.32335868 | AR7: 5.02283281 | AS7: 7.604056516 | AT7: 14.99396653 | AU7: 10.26744701 | AV7: 14.35884721 | AW7: -2.040623811 | AY7: -2.5 | AZ7: -3 | BA7: -2 | BB7: 0.017 | BC7: 0.02140023392 | BD7: 0.006209665326
D8: 7 | E8: 9.192057769 | F8: 8.966431854 | G8: 10.84156374 | H8: 7.460105438 | I8: 11.80919656 | J8: 13.8687294 | K8: 12.24438037 | L8: 13.42781199 | M8: 10.66725575 | N8: 8.905112364 | O8: 9.708016132 | P8: 12.28172973 | Q8: 9.813007022 | R8: 11.60393053 | S8: 1.913457148 | T8: 10.94607723 | U8: 8.3964442 | V8: 10.34828149 | W8: 15.11121472 | X8: 11.04878733 | Y8: 10.42767954 | Z8: 7.684054887 | AA8: 10.99145962 | AB8: 8.927489869 | AC8: 9.839775537 | AD8: 8.206888139 | AE8: 1.690127344 | AF8: 10.15156587 | AG8: 12.40101038 | AH8: 9.917567855 | AI8: 11.55606494 | AJ8: 14.42556917 | AK8: 8.698293118 | AL8: 8.350057468 | AM8: 11.93370184 | AN8: 8.131185947 | AO8: 8.147237278 | AP8: 7.468112004 | AQ8: 11.06174009 | AR8: 9.297340987 | AS8: 6.56302457 | AT8: 5.675019005 | AU8: 9.171661552 | AV8: 7.480936403 | AW8: 1.442413485 | AY8: -2 | AZ8: -2.5 | BA8: -1.5 | BB8: 0.0675 | BC8: 0.06059753594 | BD8: 0.02275013195
A9: Trial | D9: 8 | E9: 6.824986157 | F9: 14.65940941 | G9: 9.18265964 | H9: 13.53152295 | I9: 8.734370431 | J9: 13.03819075 | K9: 4.618587662 | L9: 11.84687297 | M9: 10.88584289 | N9: 15.27364487 | O9: 9.715275167 | P9: 4.733077982 | Q9: 10.07461049 | R9: 10.42742186 | S9: 9.853852178 | T9: 14.0357532 | U9: 6.284146367 | V9: 12.90879822 | W9: 12.5913789 | X9: 15.14807412 | Y9: 10.71842381 | Z9: 10.85325804 | AA9: 13.35349178 | AB9: 10.96332495 | AC9: 5.180596658 | AD9: 8.904162918 | AE9: 7.929072027 | AF9: 8.528882048 | AG9: 9.573249615 | AH9: 13.40543014 | AI9: 10.22170341 | AJ9: 14.77649582 | AK9: 10.01674594 | AL9: 5.497425815 | AM9: 8.17996782 | AN9: 8.540768865 | AO9: 3.945369736 | AP9: 9.665757185 | AQ9: 14.7922928 | AR9: 8.211880975 | AS9: 9.029637098 | AT9: 6.424167304 | AU9: 9.357021145 | AV9: 9.042434522 | AW9: 1.364966722 | AY9: -1.5 | AZ9: -2 | BA9: -1 | BB9: 0.149 | BC9: 0.135905122 | BD9: 0.06680720127
A10: M | B10: =AVERAGE(AA:AT) -> 9.988607921 | D10: 9 | E10: 11.02557034 | F10: 11.8788121 | G10: 8.022378039 | H10: 9.279866628 | I10: 9.238713152 | J10: 16.42984357 | K10: 5.064088692 | L10: 1.93947065 | M10: 17.92731045 | N10: 14.2378011 | O10: 7.162712107 | P10: 9.268133595 | Q10: 9.521360106 | R10: 7.274985747 | S10: 5.389823526 | T10: 12.02023411 | U10: 9.47955557 | V10: 11.29259071 | W10: 10.78428009 | X10: 12.02806575 | Y10: 9.963279802 | Z10: 14.17309756 | AA10: 7.558457624 | AB10: 7.417336686 | AC10: 5.920502278 | AD10: 11.82795635 | AE10: 2.641135696 | AF10: 7.196401375 | AG10: 9.255429018 | AH10: 13.03118948 | AI10: 14.09027721 | AJ10: 8.096936503 | AK10: 8.622506259 | AL10: 9.422269759 | AM10: 4.721578198 | AN10: 14.80671857 | AO10: 14.09863971 | AP10: 6.420772726 | AQ10: 10.36619009 | AR10: 16.06702108 | AS10: 5.735571987 | AT10: 8.854325648 | AU10: 9.307560813 | AV10: 13.38848107 | AW10: 0.5585739962 | AY10: -1 | AZ10: -1.5 | BA10: -0.5 | BB10: 0.232 | BC10: 0.2417303375 | BD10: 0.1586552539
A11: V | B11: =VARP(AA:AT) -> 10.03563446 | D11: 10 | E11: 11.66526033 | F11: 8.410925766 | G11: 8.329128293 | H11: 9.336360543 | I11: 10.35013833 | J11: 9.203965774 | K11: 4.925479962 | L11: 14.41225756 | M11: 2.336097245 | N11: 11.21656162 | O11: 12.18634743 | P11: 9.011895164 | Q11: 9.456697445 | R11: 12.12623017 | S11: 8.676404387 | T11: 8.071271398 | U11: 10.31075232 | V11: 13.20459924 | W11: 7.436930126 | X11: 13.33119731 | Y11: 9.699925021 | Z11: 8.262982527 | AA11: 9.512154623 | AB11: 12.82342528 | AC11: 7.312965362 | AD11: 8.260470323 | AE11: 10.80057211 | AF11: 9.948220768 | AG11: 8.695714125 | AH11: 10.06421594 | AI11: 4.481496852 | AJ11: 12.06569352 | AK11: 9.768218843 | AL11: 8.693970507 | AM11: 13.91388091 | AN11: 11.19270627 | AO11: 14.24984132 | AP11: 5.778277333 | AQ11: 8.855197209 | AR11: 10.06704625 | AS11: 9.25831385 | AT11: 11.64534136 | AU11: 9.869386138 | AV11: 6.007439347 | AW11: -0.200616503 | AY11: -0.5 | AZ11: -1 | BA11: 0 | BB11: 0.332 | BC11: 0.3413447461 | BD11: 0.3085375387
A12: SD | B12: =SQRT(B11) -> 3.167906952 | D12: 11 | E12: 11.40188262 | F12: 12.35575372 | G12: 9.767914827 | H12: 9.374478199 | I12: 13.38772371 | J12: 14.98535575 | K12: 10.71268816 | L12: 11.12956405 | M12: 2.887735277 | N12: 6.535327671 | O12: 7.610398819 | P12: 11.93358305 | Q12: 6.997858636 | R12: 4.584767095 | S12: 7.37282214 | T12: 9.186108122 | U12: 19.53471174 | V12: 14.21326943 | W12: 6.444633948 | X12: 10.14020275 | Y12: 10.02783899 | Z12: 15.01687953 | AA12: 13.3670918 | AB12: 3.791452375 | AC12: 11.58132434 | AD12: 18.78829831 | AE12: 6.977669115 | AF12: 15.23431354 | AG12: 8.319948316 | AH12: 9.55131049 | AI12: 8.064128676 | AJ12: 10.14229721 | AK12: 15.76410479 | AL12: 6.149144511 | AM12: 11.71566324 | AN12: 10.93257711 | AO12: 15.27504502 | AP12: 9.999391717 | AQ12: 10.7100965 | AR12: 11.9578512 | AS12: 6.628684481 | AT12: 8.755002212 | AU12: 10.68526975 | AV12: 13.71036924 | AW12: -0.5485522506 | AY12: 0 | AZ12: -0.5 | BA12: 0.5 | BB12: 0.3885 | BC12: 0.3829249225 | BD12: 0.5
D13: 12 | E13: 8.776462797 | F13: 11.41260586 | G13: 12.35192455 | H13: 12.87584483 | I13: 6.042744514 | J13: 12.65815174 | K13: 9.831448124 | L13: 11.87240099 | M13: 6.729849335 | N13: 14.70424976 | O13: 6.653007538 | P13: 9.570759995 | Q13: 12.31375578 | R13: 13.27318355 | S13: 8.382843335 | T13: 3.695054114 | U13: 12.0512769 | V13: 10.77427393 | W13: 4.944070323 | X13: 15.1868726 | Y13: 10.20503903 | Z13: 10.66484993 | AA13: 6.519106301 | AB13: 13.71908185 | AC13: 8.84005841 | AD13: 9.532842742 | AE13: 12.1112953 | AF13: 15.85022278 | AG13: 15.38614218 | AH13: 8.509246826 | AI13: 13.57239744 | AJ13: 7.128834334 | AK13: 8.997284004 | AL13: 9.681294825 | AM13: 6.517959776 | AN13: 14.65033163 | AO13: 14.58443261 | AP13: 12.4923533 | AQ13: 11.18733479 | AR13: 8.159299279 | AS13: 10.98336536 | AT13: 6.317709811 | AU13: 10.73702968 | AV13: 9.946266244 | AW13: -0.5240445888 | AY13: 0.5 | AZ13: 0 | BA13: 1 | BB13: 0.336 | BC13: 0.3413447461 | BD13: 0.6914624613
A14: Renew: [F9] | D14: 13 | E14: 8.554029389 | F14: 7.981115185 | G14: 11.11778966 | H14: 9.02881504 | I14: 12.19929087 | J14: 8.762480465 | K14: 11.38411674 | L14: 9.681450761 | M14: 9.127796744 | N14: 10.23085346 | O14: 17.64967762 | P14: 15.52057196 | Q14: 8.596516684 | R14: 9.587417433 | S14: 14.65289344 | T14: 7.978520154 | U14: 6.257572456 | V14: 5.105904054 | W14: 9.295951373 | X14: 10.09347155 | Y14: 10.14031175 | Z14: 9.078825446 | AA14: 11.17946152 | AB14: 8.218758661 | AC14: 7.402165301 | AD14: 10.28635744 | AE14: 14.73342937 | AF14: 6.161964588 | AG14: 5.758789121 | AH14: 11.23768793 | AI14: 10.9411868 | AJ14: 14.20179408 | AK14: 9.354198482 | AL14: 12.19539749 | AM14: 10.8055604 | AN14: 9.90934195 | AO14: 5.399604542 | AP14: 12.0450361 | AQ14: 10.34824445 | AR14: 8.117371124 | AS14: 8.320089021 | AT14: 11.45927607 | AU14: 9.903785722 | AV14: 6.645421536 | AW14: 0.2667528153 | AY14: 1 | AZ14: 0.5 | BA14: 1.5 | BB14: 0.237 | BC14: 0.2417303375 | BD14: 0.8413447461
D15: 14 | E15: 12.09657029 | F15: 12.92822516 | G15: 10.09209355 | H15: 13.93889429 | I15: 7.493659485 | J15: 9.700995495 | K15: 10.49456652 | L15: 11.91057287 | M15: 10.57515542 | N15: 10.6290668 | O15: 10.37749642 | P15: 10.9422261 | Q15: 2.596354286 | R15: 6.082267339 | S15: 11.89218724 | T15: =NORMINV(RAND(), $B$3, SQRT($B$4)) -> 10.38835356 | U15: 13.87774375 | V15: 10.75366525 | W15: 15.0228547 | X15: 4.784964475 | Y15: 10.32889565 | Z15: 9.488276234 | AA15: 9.823860801 | AB15: 11.20350298 | AC15: 10.31067452 | AD15: 12.97930286 | AE15: 10.38116002 | AF15: 11.97543797 | AG15: 9.859482479 | AH15: 6.792058191 | AI15: 12.57876767 | AJ15: 12.11230962 | AK15: 13.64420859 | AL15: 4.328897494 | AM15: 8.246039453 | AN15: 7.020607803 | AO15: 5.597214454 | AP15: =NORMINV(RAND(), $B$3, SQRT($B$4)) -> 10.6933423 | AQ15: 10.70073359 | AR15: 9.221360376 | AS15: 6.979345031 | AT15: 15.18458903 | AU15: 9.981644762 | AV15: 7.909332922 | AW15: 0.3723176102 | AY15: 1.5 | AZ15: 1 | BA15: 2 | BB15: 0.1405 | BC15: 0.135905122 | BD15: 0.9331927987
D16: 15 | E16: =NORMINV(RAND(), $B$3, SQRT($B$4)) -> 6.90474095 | F16: 11.31353235 | G16: 14.00292552 | H16: 17.40029621 | I16: 5.858600892 | J16: 11.26666792 | K16: 3.052716281 | L16: 12.01467043 | M16: 12.66445658 | N16: 9.212850719 | O16: 14.84897341 | P16: 10.39000899 | Q16: 12.39696685 | R16: 5.871604394 | S16: 13.37261022 | T16: 9.102215957 | U16: 12.73895996 | V16: 10.41077298 | W16: 8.103396444 | X16: 9.771177281 | Y16: 10.53490722 | Z16: 11.84862423 | AA16: =NORMINV(RAND(), $B$3, SQRT($B$4)) -> 7.416310502 | AB16: 16.43962004 | AC16: 13.29453096 | AD16: 12.85815023 | AE16: 10.05378716 | AF16: 5.171113055 | AG16: 7.689165355 | AH16: 11.79096486 | AI16: 11.66487758 | AJ16: 17.12600161 | AK16: 11.88191029 | AL16: 8.964292746 | AM16: 12.8962243 | AN16: 8.526097728 | AO16: 10.70475343 | AP16: 12.6862104 | AQ16: 11.69183655 | AR16: 9.197229274 | AS16: 8.475252287 | AT16: 14.65146952 | AU16: 11.15898989 | AV16: 9.267220651 | AW16: -0.6073693819 | AY16: 2 | AZ16: 1.5 | BA16: 2.5 | BB16: 0.063 | BC16: 0.06059753594 | BD16: 0.9772498681
D17: 16 | E17: 10.65036697 | F17: 16.93877122 | G17: 8.486725311 | H17: 13.51292683 | I17: 12.25423408 | J17: 6.640096695 | K17: 14.25349934 | L17: 10.31130649 | M17: 11.60463173 | N17: 12.53506446 | O17: 8.148738228 | P17: 8.54005732 | Q17: 11.54885719 | R17: 7.563825533 | S17: 10.51150294 | T17: 6.94045208 | U17: 14.17099531 | V17: 13.95206749 | W17: 11.41660814 | X17: 15.16279768 | Y17: 11.25717625 | Z17: 8.439141817 | AA17: 9.471527646 | AB17: 6.814546241 | AC17: 11.6094214 | AD17: 8.759223171 | AE17: 7.495370158 | AF17: 11.82643168 | AG17: 10.02026932 | AH17: 11.68958498 | AI17: 10.21507997 | AJ17: 11.3566664 | AK17: 11.61702035 | AL17: 13.54128556 | AM17: 7.137587525 | AN17: 9.546050019 | AO17: 14.65627013 | AP17: 8.286693903 | AQ17: 9.642929831 | AR17: 13.33093482 | AS17: 9.625345706 | AT17: 11.33985333 | AU17: 10.39910461 | AV17: 4.58162158 | AW17: 1.063457955 | AY17: 2.5 | AZ17: 2 | BA17: 3 | BB17: 0.023 | BC17: 0.02140023392 | BD17: 0.9937903347
D18: 17 | E18: 10.29806693 | F18: 13.25761687 | G18: 9.042475033 | H18: 11.8224619 | I18: 13.34348002 | J18: 16.72727503 | K18: 10.86850472 | L18: 1.509518479 | M18: 11.42841946 | N18: 10.28467279 | O18: 7.470553516 | P18: 14.84689133 | Q18: 12.56798843 | R18: 9.518171168 | S18: 8.805544246 | T18: 11.02429225 | U18: 12.3606512 | V18: 9.114729049 | W18: 10.95170486 | X18: 11.01930981 | Y18: 10.81311635 | Z18: 9.505749777 | AA18: 7.337821153 | AB18: 9.247256586 | AC18: 11.30300961 | AD18: 10.26289058 | AE18: 10.16326381 | AF18: 8.936827466 | AG18: 10.04432004 | AH18: 10.22843518 | AI18: 11.70789449 | AJ18: 8.360919269 | AK18: 8.286172588 | AL18: 7.920311641 | AM18: 7.665916861 | AN18: 12.71384792 | AO18: 11.70319785 | AP18: 7.796337823 | AQ18: 8.812285207 | AR18: 15.99368582 | AS18: 10.40812074 | AT18: 10.04283746 | AU18: 9.946767606 | AV18: 4.290225474 | AW18: 1.043113455 | AY18: 3 | AZ18: 2.5 | BA18: 3.5 | BB18: 0.006 | BC18: 0.005977036247 | BD18: 0.998650102
D19: 18 | E19: 11.56713217 | F19: 8.912479029 | G19: 6.86233029 | H19: 7.95381372 | I19: 10.22259416 | J19: 11.64920042 | K19: 11.38196708 | L19: 15.77784395 | M19: 13.62302189 | N19: 6.95826801 | O19: 6.875447943 | P19: 9.93724571 | Q19: 8.436258882 | R19: 9.838209851 | S19: 15.1402087 | T19: 9.637744842 | U19: 11.66193607 | V19: 11.86462933 | W19: 11.62141182 | X19: 10.21636291 | Y19: 10.50690534 | Z19: 6.351494878 | AA19: 10.36386992 | AB19: 12.70468228 | AC19: 12.0205733 | AD19: 8.787733557 | AE19: 12.50391892 | AF19: 10.10512351 | AG19: 9.642958541 | AH19: 17.11118827 | AI19: 10.53681704 | AJ19: 6.129655819 | AK19: 9.793001849 | AL19: 11.2327962 | AM19: 7.754589314 | AN19: 6.514286898 | AO19: 10.2668835 | AP19: 6.803021453 | AQ19: 13.96146363 | AR19: 12.45554548 | AS19: 5.175042584 | AT19: 8.316175749 | AU19: 10.10896639 | AV19: 8.520652072 | AW19: 0.4614712095 | AY19: 3.5 | AZ19: 3 | BA19: 4 | BB19: 0.001 | BC19: 0.00131822679 | BD19: 0.9997673709
D20: 19 | E20: 7.508428275 | F20: 7.518670377 | G20: 9.766145489 | H20: 10.76266005 | I20: 9.230701975 | J20: 7.790921993 | K20: 9.991589468 | L20: 9.457680412 | M20: 6.432178633 | N20: 3.75346807 | O20: 10.1667585 | P20: 7.828532908 | Q20: 8.46500458 | R20: 8.271622032 | S20: 8.104074577 | T20: 13.2553057 | U20: 8.551636403 | V20: 12.12250907 | W20: 9.407661259 | X20: 6.272247204 | Y20: 8.732889848 | Z20: 4.396440744 | AA20: 14.62559678 | AB20: 13.71937047 | AC20: 13.99979198 | AD20: 11.2267877 | AE20: 9.06063446 | AF20: 7.116526822 | AG20: 9.830245529 | AH20: 12.3197831 | AI20: 10.93237526 | AJ20: 8.068371224 | AK20: 14.85975942 | AL20: 9.140254098 | AM20: 11.62367712 | AN20: 8.677984827 | AO20: 11.33306466 | AP20: 9.081774173 | AQ20: 12.9604359 | AR20: 5.22818319 | AS20: 11.72772761 | AT20: 10.76691025 | AU20: 10.81496273 | AV20: 6.585566139 | AW20: -2.80976546 | AY20: 4 | AZ20: 3.5 | BA20: 4.5 | BB20: 0.001 | BC20: 0.0002292314059 | BD20: 0.9999683288
D21: 20 | E21: 12.20872083 | F21: 15.98013695 | G21: 9.042914818 | H21: 10.89960479 | I21: 11.07698037 | J21: 3.781251153 | K21: 16.5997048 | L21: 16.05855634 | M21: 8.486255778 | N21: 14.78185883 | O21: 12.9635327 | P21: 12.7031897 | Q21: 14.7809105 | R21: 11.83838338 | S21: 8.352594597 | T21: 8.747993005 | U21: 5.651394455 | V21: 14.8109254 | W21: 16.74891992 | X21: 10.17454832 | Y21: 11.78441883 | Z21: 13.58826573 | AA21: 2.060444429 | AB21: 10.31963394 | AC21: 15.38247125 | AD21: 14.61796167 | AE21: 8.551119213 | AF21: 8.917458632 | AG21: 14.36725174 | AH21: 11.52786749 | AI21: 0.8523099324 | AJ21: 3.405436688 | AK21: 10.82068158 | AL21: 6.551784874 | AM21: 8.91087527 | AN21: 15.71727768 | AO21: 9.246568381 | AP21: 5.976269629 | AQ21: 5.629545792 | AR21: 14.46269129 | AS21: 14.58537351 | AT21: 12.83681867 | AU21: 9.736992083 | AV21: 20.79913846 | AW21: 1.561434151 | AY21: 4.5 | AZ21: 4 | BA21: 5 | BB21: 0 | BC21: 3.138459026e-05 | BD21: 0.9999966023
D22: 21 | E22: 10.78035327 | F22: 12.27219674 | G22: 4.183332998 | H22: 10.71529835 | I22: 9.718917606 | J22: 8.936133403 | K22: 8.293549166 | L22: 2.715258853 | M22: 12.10155793 | N22: 9.889137971 | O22: 14.90946564 | P22: 9.093526783 | Q22: 7.756946464 | R22: 10.82293756 | S22: 5.442880595 | T22: 8.023592976 | U22: 13.25699916 | V22: 11.1315095 | W22: 5.985192067 | X22: 12.00983941 | Y22: 9.401931322 | Z22: 9.575554482 | AA22: 8.093344573 | AB22: 10.46348193 | AC22: 12.83659074 | AD22: 7.275104298 | AE22: 6.576034191 | AF22: 10.42163987 | AG22: 7.451751746 | AH22: 11.44520476 | AI22: 11.99866851 | AJ22: 10.16329052 | AK22: 15.57888029 | AL22: 9.569229088 | AM22: 11.93946811 | AN22: 6.402526104 | AO22: 16.24740932 | AP22: 12.13408216 | AQ22: 7.358325728 | AR22: 11.18644073 | AS22: 12.43704217 | AT22: 14.51335679 | AU22: 10.70459358 | AV22: 8.431061141 | AW22: -1.37287432 | AY22: 5 | AZ22: 4.5 | BA22: 5.5 | BB22: 0 | BC22: 3.378683562e-06 | BD22: 0.9999997133
D23: 22 | E23: 9.837364859 | F23: 14.50823897 | G23: 11.56666156 | H23: 10.60508239 | I23: 1.798712981 | J23: 9.605644205 | K23: 12.42922782 | L23: 7.281941955 | M23: 9.886455858 | N23: 6.597855868 | O23: 11.23714249 | P23: 7.718868711 | Q23: 14.75967787 | R23: 11.17276919 | S23: 7.288315628 | T23: 8.636312845 | U23: 15.86426676 | V23: 10.46349722 | W23: 13.0763485 | X23: 5.57111564 | Y23: 9.995275066 | Z23: 11.53284912 | AA23: 4.635431962 | AB23: 8.934688495 | AC23: 8.934217424 | AD23: 10.32450771 | AE23: 10.25824978 | AF23: 6.95368722 | AG23: 4.272085204 | AH23: 8.879300934 | AI23: 10.25009204 | AJ23: 0.875063309 | AK23: 8.78219354 | AL23: 6.885871991 | AM23: 9.355291945 | AN23: 9.487738597 | AO23: 11.73253927 | AP23: 11.16185972 | AQ23: 8.288112001 | AR23: 10.16470013 | AS23: 11.74388655 | AT23: 11.27538166 | AU23: 8.659744974 | AV23: 7.673876424 | AW23: 1.362831021
D24: 23 | E24: 13.27501029 | F24: 11.88928301 | G24: 10.73075287 | H24: 10.25659109 | I24: 5.025752871 | J24: 4.681064971 | K24: 10.01439988 | L24: 5.84696377 | M24: 9.291080678 | N24: 6.763712199 | O24: 10.41108255 | P24: 9.424595675 | Q24: 16.77469848 | R24: 8.36444948 | S24: 13.07661659 | T24: 11.63514243 | U24: 11.80466395 | V24: 9.202338587 | W24: -1.893775053 | X24: 9.403306578 | Y24: 9.298886545 | Z24: 15.43388816 | AA24: 9.787986297 | AB24: 10.78864478 | AC24: 11.47873273 | AD24: 5.654949965 | AE24: 9.048351876 | AF24: 8.927298515 | AG24: 8.225399466 | AH24: 8.401868068 | AI24: 10.25992092 | AJ24: 1.925781663 | AK24: 11.24223586 | AL24: 9.470701273 | AM24: 9.305507426 | AN24: 11.37295583 | AO24: 5.882727874 | AP24: 7.469954474 | AQ24: 9.124061008 | AR24: 11.16498838 | AS24: 14.53542862 | AT24: 7.951456293 | AU24: 9.100947567 | AV24: 7.001159851 | AW24: 0.1868886041
D25: 24 | E25: 12.30909523 | F25: 11.4056519 | G25: 8.387302771 | H25: 9.311510439 | I25: 12.65443393 | J25: 7.818800733 | K25: 9.105527574 | L25: 11.40938423 | M25: 14.94163273 | N25: 10.95400181 | O25: 9.940972143 | P25: 9.785415893 | Q25: 11.1716501 | R25: 11.78695101 | S25: 11.14872287 | T25: 8.344701664 | U25: 13.28735364 | V25: 10.59265256 | W25: 10.16490205 | X25: 5.317238954 | Y25: 10.49189511 | Z25: 4.592197911 | AA25: 8.516569133 | AB25: 13.67296884 | AC25: 7.715231369 | AD25: 7.909236316 | AE25: 9.416876992 | AF25: 9.50087382 | AG25: 7.229122401 | AH25: 8.214182022 | AI25: 6.773661707 | AJ25: 12.96777141 | AK25: 16.16380532 | AL25: 11.35984328 | AM25: 6.999781694 | AN25: 9.791051671 | AO25: 7.007991565 | AP25: 7.377048185 | AQ25: 11.07021355 | AR25: 8.703481135 | AS25: 8.944879569 | AT25: 13.13794181 | AU25: 9.623626589 | AV25: 6.927762555 | AW25: 1.144046193
D26: 25 | E26: 8.754319359 | F26: 6.916532732 | G26: 7.118875348 | H26: 12.34354425 | I26: 11.66279641 | J26: 6.376103342 | K26: 7.605514557 | L26: 12.76605046 | M26: 7.635488442 | N26: 8.632319665 | O26: 18.22691353 | P26: 12.13807944 | Q26: 8.458073032 | R26: 8.861990729 | S26: 16.14709261 | T26: 10.58206212 | U26: 6.334310319 | V26: 4.337170482 | W26: 11.11491093 | X26: 7.690566568 | Y26: 9.685135716 | Z26: 11.88139074 | AA26: 6.989007534 | AB26: 8.680221194 | AC26: 7.563415834 | AD26: 9.086779091 | AE26: 8.43437315 | AF26: 14.33199804 | AG26: 15.08334869 | AH26: 13.22026547 | AI26: 10.55179493 | AJ26: 12.85118392 | AK26: 8.974074526 | AL26: 12.1803719 | AM26: 8.61728576 | AN26: 12.47130052 | AO26: 4.134602108 | AP26: 10.01302259 | AQ26: 7.649723243 | AR26: 8.053275145 | AS26: 11.4907424 | AT26: 9.532556699 | AU26: 9.995467137 | AV26: 7.548591965 | AW26: -0.3148506115
D27: 26 | E27: 6.484629762 | F27: 12.15975981 | G27: 13.18998613 | H27: 6.310081201 | I27: 8.13493126 | J27: 4.70751927 | K27: 8.169935399 | L27: 12.46408191 | M27: 13.81020386 | N27: 15.24820726 | O27: 12.86171992 | P27: 11.13047208 | Q27: 6.365620039 | R27: 9.466630202 | S27: 10.85947504 | T27: 11.32572372 | U27: 12.90716114 | V27: 8.037446003 | W27: 10.35343707 | X27: 5.514428262 | Y27: 9.975072466 | Z27: 9.567252793 | AA27: 9.221712709 | AB27: 10.10823855 | AC27: 11.9537657 | AD27: 10.50198201 | AE27: 2.392041048 | AF27: 10.68013755 | AG27: 11.9735311 | AH27: 11.3046417 | AI27: 8.491257686 | AJ27: 7.146963896 | AK27: 6.150878621 | AL27: 4.277769254 | AM27: 10.7518971 | AN27: 13.44846988 | AO27: 10.41467412 | AP27: 7.661546475 | AQ27: 11.76775004 | AR27: 8.137924434 | AS27: 9.41096644 | AT27: 16.29436071 | AU27: 9.604525451 | AV27: 9.901619307 | AW27: 0.3755674287
D28: 27 | E28: 11.3883441 | F28: 11.49972765 | G28: 13.63863097 | H28: 14.60707554 | I28: 9.145618013 | J28: 11.81745124 | K28: 8.016249715 | L28: 7.542560986 | M28: 12.45730076 | N28: 12.45533655 | O28: 7.096183005 | P28: 10.36188042 | Q28: 7.58274215 | R28: 8.945131719 | S28: 13.35842402 | T28: 11.02366606 | U28: 3.96468337 | V28: 8.538256147 | W28: 7.084438431 | X28: 8.387355344 | Y28: 9.945552809 | Z28: 7.482384626 | AA28: 9.770868943 | AB28: 11.11426425 | AC28: 10.15592038 | AD28: 12.38962696 | AE28: 9.023189268 | AF28: 13.79787262 | AG28: 11.60522091 | AH28: 7.338625586 | AI28: 14.57890185 | AJ28: 9.775904347 | AK28: 12.32097744 | AL28: 11.59860822 | AM28: 6.292458619 | AN28: 12.06549588 | AO28: 10.94572828 | AP28: 13.57834653 | AQ28: 5.799196041 | AR28: 9.838880413 | AS28: 8.596618829 | AT28: 5.62298388 | AU28: 10.31048446 | AV28: 6.821523977 | AW28: -0.4315182511
D29: 28 | E29: 10.02420288 | F29: 17.36840886 | G29: 2.39940193 | H29: 11.26384829 | I29: 13.49162703 | J29: 11.51731038 | K29: 10.93081361 | L29: 11.61492024 | M29: 9.670522849 | N29: 10.50861071 | O29: 8.099285014 | P29: 11.26601376 | Q29: 14.72212242 | R29: 6.248477936 | S29: 9.20338023 | T29: 7.127613955 | U29: 14.31580268 | V29: 6.595326681 | W29: 10.78204134 | X29: 10.99560162 | Y29: 10.40726662 | Z29: 11.10380333 | AA29: 10.61416111 | AB29: 12.12836848 | AC29: 13.85783766 | AD29: 13.46291474 | AE29: 8.318405399 | AF29: 13.43385307 | AG29: 17.10173797 | AH29: 12.20618443 | AI29: 11.65930613 | AJ29: 8.802174327 | AK29: 8.443067669 | AL29: 14.40533466 | AM29: 9.527149336 | AN29: 6.989817581 | AO29: 17.52781611 | AP29: 14.25460809 | AQ29: 6.954472514 | AR29: 2.997376826 | AS29: 11.26767795 | AT29: 11.03908969 | AU29: 11.24956769 | AV29: 12.71298723 | AW29: -0.7718638998
D30: 29 | E30: 9.135869276 | F30: 4.146281491 | G30: 6.00201486 | H30: 10.89652194 | I30: 15.53653245 | J30: 14.69929091 | K30: 10.69085142 | L30: 8.740859798 | M30: 7.055013166 | N30: 2.115641251 | O30: 9.007661473 | P30: 10.65142447 | Q30: 13.58637259 | R30: 6.282992033 | S30: 11.3458032 | T30: 13.89781455 | U30: 10.94790982 | V30: 10.49680565 | W30: 8.16147272 | X30: 10.7888108 | Y30: 9.709297193 | Z30: 11.89393252 | AA30: 17.11202053 | AB30: 7.89236239 | AC30: 5.366901488 | AD30: 10.78862663 | AE30: 6.38555545 | AF30: 10.02818174 | AG30: 8.712035858 | AH30: 10.6297845 | AI30: 9.770861685 | AJ30: 3.565432564 | AK30: 13.8871872 | AL30: 11.80298658 | AM30: 10.92265051 | AN30: 11.30933964 | AO30: 1.815720968 | AP30: 16.18293352 | AQ30: 8.608373804 | AR30: 15.17753662 | AS30: 6.619802709 | AT30: 15.70996052 | AU30: 10.11441275 | AV30: 17.49136673 | AW30: -0.3342172451
D31: 30 | E31: 15.7785382 | F31: 6.708324045 | G31: 6.480155532 | H31: 9.366418929 | I31: 11.64215717 | J31: 13.55937272 | K31: 12.05506159 | L31: 12.45155207 | M31: 10.54798267 | N31: 8.166648133 | O31: 10.07842459 | P31: 13.66291632 | Q31: 7.30637499 | R31: 9.802789094 | S31: 11.6702653 | T31: =NORMINV(RAND(), $B$3, SQRT($B$4)) -> 13.44665645 | U31: 10.26062526 | V31: 5.237733053 | W31: 6.802700994 | X31: 10.84106381 | Y31: 10.29328805 | Z31: 8.085354378 | AA31: 9.709538353 | AB31: 8.903857246 | AC31: 13.96068245 | AD31: 8.142403482 | AE31: 4.579221883 | AF31: 10.33596849 | AG31: 11.03463673 | AH31: 11.29925981 | AI31: 7.890934794 | AJ31: 6.649418634 | AK31: 6.184637629 | AL31: 8.211378245 | AM31: 8.2034912 | AN31: 12.97925328 | AO31: 7.475669226 | AP31: =NORMINV(RAND(), $B$3, SQRT($B$4)) -> 14.70769968 | AQ31: 8.259068784 | AR31: 10.63375582 | AS31: 7.336804415 | AT31: 15.00370649 | AU31: 9.575069332 | AV31: 8.352603577 | AW31: 0.7922236113
D32: 31 | E32: =NORMINV(RAND(), $B$3, SQRT($B$4)) -> 7.912276422 | F32: 13.66053793 | G32: 12.45388674 | H32: 6.681088743 | I32: 8.976686767 | J32: 14.36704378 | K32: 7.264155905 | L32: 5.719518282 | M32: 9.89015271 | N32: 13.17447489 | O32: 12.14809012 | P32: 10.00088737 | Q32: 9.886087104 | R32: 7.765852838 | S32: 8.201976072 | T32: 8.189119254 | U32: 11.99315885 | V32: 6.968217675 | W32: 9.714943445 | X32: 11.81787047 | Y32: 9.839301269 | Z32: 6.472342142 | AA32: =NORMINV(RAND(), $B$3, SQRT($B$4)) -> 18.0103112 | AB32: 5.895525171 | AC32: 10.8630023 | AD32: 5.215173126 | AE32: 14.13336841 | AF32: 6.900433478 | AG32: 5.436787025 | AH32: 12.51839342 | AI32: 13.16724657 | AJ32: 7.102463101 | AK32: 13.73564644 | AL32: 5.88850104 | AM32: 11.88343391 | AN32: 12.15295299 | AO32: 10.73795851 | AP32: 14.4685579 | AQ32: 13.78120585 | AR32: 8.779565029 | AS32: 6.4965231 | AT32: 10.84224632 | AU32: 10.40046474 | AV32: 13.79228657 | AW32: -0.5574874157
D33: 32 | E33: 8.161045116 | F33: 9.058457975 | G33: 6.612350256 | H33: 9.671955696 | I33: 8.168715444 | J33: 8.716937598 | K33: 11.32864689 | L33: 9.496978198 | M33: 9.835774569 | N33: 10.12997878 | O33: 7.262128576 | P33: 8.040358354 | Q33: 14.55527804 | R33: 5.19520874 | S33: 14.90623816 | T33: 11.11083185 | U33: 11.02273364 | V33: 9.441408461 | W33: 9.158697837 | X33: 14.93361181 | Y33: 9.8403668 | Z33: 6.804662713 | AA33: 9.929898212 | AB33: 11.71028634 | AC33: 10.834217 | AD33: 14.08956501 | AE33: 8.965967639 | AF33: 5.489832733 | AG33: 10.90550143 | AH33: 14.27985201 | AI33: 8.578815112 | AJ33: 13.13278747 | AK33: 10.85132625 | AL33: 14.28552458 | AM33: 6.303728291 | AN33: 7.873564913 | AO33: 6.490012252 | AP33: 14.02092208 | AQ33: 2.072233484 | AR33: 7.942727704 | AS33: 11.57078972 | AT33: 13.33450319 | AU33: 10.13310277 | AV33: 11.51624988 | AW33: -0.3058563756
D34: 33 | E34: 9.883310349 | F34: 7.40805966 | G34: 8.072250475 | H34: 8.749339839 | I34: 10.41081607 | J34: 7.638847103 | K34: 1.183530397 | L34: 12.96345308 | M34: 13.99789533 | N34: 12.28643291 | O34: 9.296855001 | P34: 10.61850995 | Q34: 12.40170135 | R34: 5.136960701 | S34: 10.62169758 | T34: 6.430156443 | U34: 12.53393452 | V34: 13.08720887 | W34: 8.611693605 | X34: 11.50931928 | Y34: 9.642098626 | Z34: 9.81573259 | AA34: 6.914827297 | AB34: 10.17503856 | AC34: 5.821278019 | AD34: 4.431088632 | AE34: 11.13468124 | AF34: 6.882542748 | AG34: 11.8278096 | AH34: 3.291262964 | AI34: 11.57209497 | AJ34: 5.413228575 | AK34: 9.540043026 | AL34: 12.80891483 | AM34: 8.974129702 | AN34: 15.36441466 | AO34: 7.248308427 | AP34: 13.74191722 | AQ34: 11.03748987 | AR34: 11.85251829 | AS34: 7.741156827 | AT34: 13.93611821 | AU34: 9.485443184 | AV34: 11.58949259 | AW34: 0.1514260468
D35: 34 | E35: 12.14708468 | F35: 14.27440179 | G35: 9.347333435 | H35: 4.84462765 | I35: 5.811440184 | J35: 12.36445962 | K35: 9.321967094 | L35: 11.75543067 | M35: 10.95751009 | N35: 12.65391114 | O35: 4.107881741 | P35: 9.656801984 | Q35: 9.932885222 | R35: 14.50445075 | S35: 11.82425613 | T35: 6.539064848 | U35: 9.580704803 | V35: 11.72686151 | W35: 8.619805931 | X35: 8.284681204 | Y35: 9.912778024 | Z35: 8.568880256 | AA35: 12.55454903 | AB35: 16.98337717 | AC35: 6.715920646 | AD35: 13.18889834 | AE35: 6.100956173 | AF35: 9.465920955 | AG35: 10.13687223 | AH35: 16.10082359 | AI35: 8.855414773 | AJ35: 9.93343788 | AK35: 10.8809167 | AL35: 16.33933174 | AM35: 6.924098868 | AN35: 6.031043554 | AO35: 7.414094553 | AP35: 5.40565671 | AQ35: 6.704077263 | AR35: 9.741948233 | AS35: 7.901038778 | AT35: 5.021752058 | AU35: 9.620006463 | AV35: 13.76267404 | AW35: 0.2770667501
D36: 35 | E36: 9.885173999 | F36: 10.01532937 | G36: 6.412028133 | H36: 13.6210117 | I36: 6.954879048 | J36: 12.02163436 | K36: 8.957754912 | L36: 6.802351223 | M36: 3.700152011 | N36: 11.45130887 | O36: 8.934200166 | P36: 8.582862446 | Q36: 14.66185844 | R36: 15.42204623 | S36: 7.167076143 | T36: 10.65276677 | U36: 8.337980844 | V36: 5.92067097 | W36: 7.870745327 | X36: 15.45324941 | Y36: 9.641254019 | Z36: 10.85748754 | AA36: 13.06667084 | AB36: 9.047219288 | AC36: 10.66562894 | AD36: 11.85223553 | AE36: 5.240175027 | AF36: 13.64629328 | AG36: 13.6616399 | AH36: 11.6143131 | AI36: 13.60068203 | AJ36: 10.15227925 | AK36: 9.575310798 | AL36: 8.082399293 | AM36: 14.26426698 | AN36: 5.673877852 | AO36: 8.32325878 | AP36: 10.50169602 | AQ36: 21.52636748 | AR36: 12.69958792 | AS36: 10.76824393 | AT36: 11.00693075 | AU36: 11.24845385 | AV36: 12.29134267 | AW36: -1.493895954
D37: 36 | E37: 11.68309791 | F37: 10.29336681 | G37: 11.8074541 | H37: 9.641192897 | I37: 10.62989931 | J37: 11.27628667 | K37: 11.06116068 | L37: 7.89436279 | M37: 13.38781503 | N37: 11.41479398 | O37: 8.954915601 | P37: 9.239587474 | Q37: 8.361862429 | R37: 8.801200143 | S37: 14.2726424 | T37: 8.527693746 | U37: 10.77233908 | V37: 9.508730387 | W37: 7.707816147 | X37: 11.10423513 | Y37: 10.31702264 | Z37: 3.099701619 | AA37: 7.969796641 | AB37: 9.98860621 | AC37: 16.73857165 | AD37: 5.909440672 | AE37: 15.08278518 | AF37: 10.06021939 | AG37: 12.76752307 | AH37: 11.15792531 | AI37: 8.73174124 | AJ37: 13.38224129 | AK37: 9.908393948 | AL37: 12.65942387 | AM37: 6.770200872 | AN37: 13.43619967 | AO37: 13.45392865 | AP37: 4.003857707 | AQ37: 12.7136772 | AR37: 12.12576834 | AS37: 17.7790674 | AT37: 12.67768274 | AU37: 11.36585255 | AV37: 12.29517424 | AW37: -1.195451521
D38: 37 | E38: 9.040099662 | F38: 9.614370335 | G38: 14.18320711 | H38: 12.78337002 | I38: 11.80022828 | J38: 6.450911019 | K38: 7.584595389 | L38: 8.070742591 | M38: 6.80885967 | N38: 11.74452674 | O38: 17.56128385 | P38: 14.8873379 | Q38: 8.41509994 | R38: 14.00010912 | S38: 7.683237225 | T38: 8.964918593 | U38: 7.286413174 | V38: 20.37782977 | W38: 4.263831337 | X38: 5.282730736 | Y38: 10.34018512 | Z38: 17.8342949 | AA38: 9.253797678 | AB38: 11.66877533 | AC38: 13.14788696 | AD38: 9.952373185 | AE38: 12.28657009 | AF38: 9.536509725 | AG38: 8.501952175 | AH38: 11.11441426 | AI38: 7.825389542 | AJ38: 12.16916428 | AK38: 5.128908792 | AL38: 15.29937712 | AM38: 19.89789674 | AN38: 8.003562784 | AO38: 12.296502 | AP38: 17.16372277 | AQ38: 8.972907843 | AR38: 13.24601388 | AS38: 10.53031078 | AT38: 9.440029081 | AU38: 11.27180325 | AV38: 11.6742701 | AW38: -0.7669708944
D39: 38 | E39: 9.664388991 | F39: 6.336786395 | G39: 6.959621834 | H39: 8.936718516 | I39: 9.850402817 | J39: 10.91396219 | K39: 3.302009609 | L39: 14.73255149 | M39: 9.087310925 | N39: 12.84890351 | O39: 13.48451654 | P39: 9.786218854 | Q39: 4.491374059 | R39: 8.521556635 | S39: 5.544370314 | T39: 9.000803948 | U39: 6.49159957 | V39: 9.491927191 | W39: 12.3483507 | X39: 18.40941239 | Y39: 9.510139324 | Z39: 13.18649284 | AA39: 6.225917966 | AB39: 10.10166681 | AC39: 10.05544543 | AD39: 13.05483942 | AE39: 8.586285935 | AF39: 8.449469629 | AG39: 10.05158502 | AH39: 8.839721521 | AI39: 11.93347033 | AJ39: 9.89168083 | AK39: 8.983817775 | AL39: 9.737881929 | AM39: 14.27812965 | AN39: 8.200270477 | AO39: 8.654646959 | AP39: 9.44408782 | AQ39: 13.01274254 | AR39: 7.840190471 | AS39: 10.27901674 | AT39: 9.48127529 | AU39: 9.855107127 | AV39: 3.764265031 | AW39: -0.3747132072
D40: 39 | E40: 8.099987127 | F40: 15.38780131 | G40: 11.50938125 | H40: 4.358651546 | I40: 9.569832167 | J40: 11.65566839 | K40: 6.837282047 | L40: 10.84865733 | M40: 11.20212724 | N40: 7.179545934 | O40: 11.0070048 | P40: 16.67524712 | Q40: 14.43113466 | R40: 9.704202317 | S40: 3.299690468 | T40: 9.761101197 | U40: 15.3828698 | V40: 3.916677624 | W40: 15.28492529 | X40: 12.30156923 | Y40: 10.42066784 | Z40: 15.56358069 | AA40: 10.61172639 | AB40: 11.27278331 | AC40: 11.48811496 | AD40: 9.518715159 | AE40: 6.96463606 | AF40: 15.31767394 | AG40: 10.50106592 | AH40: 11.51134718 | AI40: 4.921958193 | AJ40: 9.48536026 | AK40: 22.51190985 | AL40: 5.431988601 | AM40: 16.11154545 | AN40: 8.408189483 | AO40: 8.239653778 | AP40: 11.84455195 | AQ40: 13.39851495 | AR40: 11.21959397 | AS40: 6.207359923 | AT40: 5.835001398 | AU40: 10.54008454 | AV40: 17.53965647 | AW40: -0.09282069442
D41: 40 | E41: 12.0330475 | F41: 12.80761933 | G41: 8.703249898 | H41: 15.8863745 | I41: 10.34169817 | J41: 7.631844929 | K41: 7.379091573 | L41: 13.91435834 | M41: 11.08250584 | N41: 6.325322535 | O41: 6.993820885 | P41: 12.52282982 | Q41: 7.179848703 | R41: 11.32277193 | S41: 11.26163359 | T41: 12.68061297 | U41: 11.97031892 | V41: 7.19085001 | W41: 8.229108302 | X41: 9.155438028 | Y41: 10.23061729 | Z41: 7.335769943 | AA41: 12.57764252 | AB41: 11.55668853 | AC41: 12.10535752 | AD41: 7.712555372 | AE41: 8.057146555 | AF41: 14.05834407 | AG41: 13.26878173 | AH41: 12.76835905 | AI41: 10.18512692 | AJ41: 5.748844732 | AK41: 9.7790406 | AL41: 12.77384581 | AM41: 13.56946162 | AN41: 12.97067905 | AO41: 10.69178011 | AP41: 9.826714052 | AQ41: 6.785284556 | AR41: 8.429736607 | AS41: 8.29130978 | AT41: 10.00371557 | AU41: 10.55802074 | AV41: 6.039066622 | AW41: -0.4003630672
D42: 41 | E42: 16.33893128 | F42: 9.808222152 | G42: 6.909140855 | H42: 9.307759241 | I42: 15.62272206 | J42: 12.03808614 | K42: 9.818895961 | L42: 4.223391332 | M42: 12.66219217 | N42: 4.445388831 | O42: 8.942181973 | P42: 8.34339877 | Q42: 9.981461781 | R42: 11.08098293 | S42: 13.18134037 | T42: 10.07526702 | U42: 11.37486041 | V42: 8.854091036 | W42: 10.43347682 | X42: 6.290018652 | Y42: 9.98659049 | Z42: 9.982820807 | AA42: 10.23278291 | AB42: 15.96474723 | AC42: 14.74608919 | AD42: 6.609146601 | AE42: 8.568645255 | AF42: 10.12856004 | AG42: 9.093528442 | AH42: 4.602884795 | AI42: 14.04255099 | AJ42: 12.24406435 | AK42: 13.28094145 | AL42: 8.224678224 | AM42: 9.768857152 | AN42: 13.52386321 | AO42: 8.299550528 | AP42: 14.78462028 | AQ42: 13.82102617 | AR42: 7.002535294 | AS42: 7.936820746 | AT42: 10.85230093 | AU42: 10.68640969 | AV42: 10.22979137 | AW42: -0.6961288445
D43: 42 | E43: 14.71295113 | F43: 7.838785926 | G43: 11.23211103 | H43: 7.635373686 | I43: 6.729413441 | J43: 12.03274164 | K43: 7.267562253 | L43: 7.047735051 | M43: 11.37111546 | N43: 8.24466993 | O43: 11.44819072 | P43: 13.82441862 | Q43: 10.03355954 | R43: 3.312749855 | S43: 8.165578339 | T43: 7.809900649 | U43: 9.294285403 | V43: 10.1727649 | W43: 12.89531521 | X43: 11.46570899 | Y43: 9.626746589 | Z43: 7.781183948 | AA43: 13.34200374 | AB43: 11.7792456 | AC43: 7.834704416 | AD43: 10.34588608 | AE43: 13.8247538 | AF43: 12.48092212 | AG43: 10.54634155 | AH43: 10.79748046 | AI43: 11.11744904 | AJ43: 8.748490396 | AK43: 10.11897105 | AL43: 5.410634199 | AM43: 16.24694804 | AN43: 7.790594127 | AO43: 10.69316828 | AP43: 12.57746944 | AQ43: 7.950338706 | AR43: 2.390622201 | AS43: 6.044907097 | AT43: 15.34644941 | AU43: 10.26936899 | AV43: 11.61378541 | AW43: -0.6525688028
D44: 43 | E44: 8.140338428 | F44: 5.359170248 | G44: 11.00767285 | H44: 11.21420537 | I44: 8.518955566 | J44: 4.502849379 | K44: 12.35440581 | L44: 10.51030354 | M44: 9.018667995 | N44: 11.18380007 | O44: 6.882803679 | P44: 9.087649082 | Q44: 15.17184394 | R44: 8.479088908 | S44: 9.183626432 | T44: 14.16979848 | U44: 8.299997911 | V44: 14.26732668 | W44: 14.04369997 | X44: 12.28369503 | Y44: 10.18399497 | Z44: 8.827338234 | AA44: 11.77128379 | AB44: 6.381443254 | AC44: 10.19744555 | AD44: 15.48551125 | AE44: 17.80443417 | AF44: 9.01597328 | AG44: 5.805309331 | AH44: 8.091767076 | AI44: 8.641449449 | AJ44: 9.465143928 | AK44: 8.777086353 | AL44: 6.640920071 | AM44: 14.3428142 | AN44: 13.65423694 | AO44: 9.006532926 | AP44: 9.956665513 | AQ44: 4.529278594 | AR44: 10.66662292 | AS44: 10.13372614 | AT44: 14.64178726 | AU44: 10.2504716 | AV44: 12.01426503 | AW44: -0.06512060669
D45: 44 | E45: 7.066058105 | F45: 13.83075592 | G45: 5.359011175 | H45: 11.363776 | I45: 4.061739077 | J45: 11.01792505 | K45: 13.81915934 | L45: 12.9424026 | M45: 8.509882368 | N45: 8.158157013 | O45: 8.275517478 | P45: 10.99676208 | Q45: 8.185291853 | R45: 12.6185192 | S45: 9.208356892 | T45: 7.050020722 | U45: 10.25585095 | V45: 15.10570821 | W45: 9.634659757 | X45: 11.27297733 | Y45: 9.936626557 | Z45: 8.583717172 | AA45: 9.109164893 | AB45: 16.60424587 | AC45: 9.844508837 | AD45: 12.52451972 | AE45: 8.15370374 | AF45: 10.0969911 | AG45: 7.925150652 | AH45: 8.331525488 | AI45: 15.61492816 | AJ45: 6.572004389 | AK45: 6.489475223 | AL45: 7.120683828 | AM45: 12.17294302 | AN45: 2.899634983 | AO45: 9.73010126 | AP45: 7.161534731 | AQ45: 7.50192438 | AR45: 13.02579748 | AS45: 6.543536229 | AT45: 8.379265258 | AU45: 9.290081962 | AV45: 10.96650253 | AW45: 0.6539396375
D46: 45 | E46: 9.689486591 | F46: 7.418427452 | G46: 11.88626523 | H46: 5.94540629 | I46: 9.940168418 | J46: 10.75829297 | K46: 7.197929257 | L46: 14.72948785 | M46: 18.34468676 | N46: 8.950177236 | O46: 11.3971918 | P46: 7.037633939 | Q46: 9.079118069 | R46: 11.17565771 | S46: 14.0673352 | T46: 8.95828623 | U46: 7.732465195 | V46: 6.084130206 | W46: 6.416182551 | X46: 14.67658027 | Y46: 10.07424546 | Z46: 11.26099049 | AA46: 11.80092202 | AB46: 8.957229399 | AC46: 15.6528731 | AD46: 10.14176887 | AE46: 11.23113299 | AF46: 10.09966876 | AG46: 11.23320731 | AH46: 9.777986845 | AI46: 5.053800749 | AJ46: 11.28814614 | AK46: 13.03978242 | AL46: 9.511731834 | AM46: 7.281117913 | AN46: 7.54739054 | AO46: 8.325055092 | AP46: 12.75934374 | AQ46: 11.14251795 | AR46: 17.63823832 | AS46: 9.876221901 | AT46: 10.49121881 | AU46: 10.64246774 | AV46: 7.920039501 | AW46: -0.5802261384
D47: 46 | E47: 11.16238114 | F47: 10.82515319 | G47: 13.59958911 | H47: 15.27973977 | I47: 10.23031119 | J47: 11.26660024 | K47: 11.14163347 | L47: 15.02270427 | M47: 10.49840227 | N47: 8.768325495 | O47: 13.23483756 | P47: 8.210736848 | Q47: 7.92921145 | R47: 9.909762654 | S47: 11.00364586 | T47: =NORMINV(RAND(), $B$3, SQRT($B$4)) -> 5.386188211 | U47: 8.215829478 | V47: 19.86582497 | W47: 12.42076864 | X47: 12.04571096 | Y47: 11.30086784 | Z47: 9.989080004 | AA47: 1.409857179 | AB47: 9.6054929 | AC47: 10.69399466 | AD47: 10.68572752 | AE47: 6.756653864 | AF47: 15.11537717 | AG47: 6.993052621 | AH47: 10.58328264 | AI47: 9.625493465 | AJ47: 10.31714514 | AK47: 12.06736529 | AL47: 8.647506644 | AM47: 14.57141144 | AN47: 6.384935697 | AO47: 7.73013446 | AP47: =NORMINV(RAND(), $B$3, SQRT($B$4)) -> 7.951883813 | AQ47: 8.886131442 | AR47: 7.943986806 | AS47: 12.13990599 | AT47: 7.491315273 | AU47: 9.2800327 | AV47: 9.294607199 | AW47: 2.058025936
D48: 47 | E48: =NORMINV(RAND(), $B$3, SQRT($B$4)) -> 9.412991029 | F48: 7.500051497 | G48: 9.551964929 | H48: 11.924494 | I48: 8.757125087 | J48: 6.566122171 | K48: 8.522774757 | L48: 11.42053437 | M48: 13.27088441 | N48: 15.19925817 | O48: 12.09742105 | P48: 14.76357626 | Q48: 4.235155176 | R48: 14.80153331 | S48: 8.550957009 | T48: 12.58512457 | U48: 7.919458411 | V48: 7.839674633 | W48: 8.950482533 | X48: 8.868091531 | Y48: 10.13688374 | Z48: 8.891119909 | AA48: =NORMINV(RAND(), $B$3, SQRT($B$4)) -> 4.819408048 | AB48: 5.657515674 | AC48: 10.87991187 | AD48: 8.982208608 | AE48: 8.057801364 | AF48: 10.60608458 | AG48: 5.364619797 | AH48: 11.50069154 | AI48: 7.938356634 | AJ48: 9.137089296 | AK48: 4.804152337 | AL48: 10.54946554 | AM48: 9.389690253 | AN48: 6.640575859 | AO48: 14.20975285 | AP48: 12.4468699 | AQ48: 10.3212755 | AR48: 9.34416126 | AS48: 5.218876198 | AT48: 7.754133202 | AU48: 8.681132015 | AV48: 7.194391008 | AW48: 1.623248024
D49: 48 | E49: 12.04080078 | F49: 9.775744871 | G49: 9.371943856 | H49: 12.19669558 | I49: 11.74629508 | J49: 7.450938303 | K49: 1.71069355 | L49: 9.096209729 | M49: 8.082503276 | N49: 10.19240338 | O49: 6.489230153 | P49: 7.996790277 | Q49: 11.15003513 | R49: 14.8750987 | S49: 4.354329361 | T49: 13.08600106 | U49: 11.27717998 | V49: 2.46223187 | W49: 6.609333164 | X49: 10.87951701 | Y49: 9.042198755 | Z49: 11.96956649 | AA49: 11.75048886 | AB49: 6.856375452 | AC49: 10.36722902 | AD49: 6.904479392 | AE49: 8.635008854 | AF49: 17.24727281 | AG49: 13.15685623 | AH49: 6.64830699 | AI49: 8.368062899 | AJ49: 10.51519291 | AK49: 6.36427737 | AL49: 13.14438972 | AM49: 9.337024336 | AN49: 5.230916421 | AO49: 11.02503204 | AP49: 11.86048196 | AQ49: 14.18445814 | AR49: 12.05996717 | AS49: 8.712654879 | AT49: 12.41664877 | AU49: 10.23925621 | AV49: 9.478171714 | AW49: -1.155950518
D50: 49 | E50: 11.15752423 | F50: 10.01965897 | G50: 7.683073255 | H50: 9.41396329 | I50: 10.23244992 | J50: 9.464918612 | K50: 14.26156924 | L50: 9.645836295 | M50: 9.962906348 | N50: 8.780113371 | O50: 8.454198541 | P50: 12.52893719 | Q50: 11.52749102 | R50: 12.36770209 | S50: 5.023998396 | T50: 9.011020631 | U50: 13.86116338 | V50: 9.064794147 | W50: 12.83049219 | X50: 3.614192916 | Y50: 9.945300201 | Z50: 7.060241846 | AA50: 13.90441947 | AB50: 7.157611695 | AC50: 8.072371945 | AD50: 9.648851151 | AE50: 15.76905376 | AF50: 14.46500936 | AG50: 11.32980175 | AH50: 12.90373512 | AI50: 14.37750628 | AJ50: 6.712761864 | AK50: 13.30672479 | AL50: 13.7762938 | AM50: 5.55565603 | AN50: 15.71288481 | AO50: 10.84663325 | AP50: 13.09413782 | AQ50: 2.912498295 | AR50: 11.0660555 | AS50: 9.939469056 | AT50: 6.185371769 | AU50: 10.83684238 | AV50: 13.7022213 | AW50: -0.8750189387
D51: 50 | E51: 10.17461565 | F51: 9.691614233 | G51: 13.48487986 | H51: 12.16064245 | I51: 11.82391363 | J51: 8.988799218 | K51: 11.39725332 | L51: 9.189289544 | M51: 6.905142925 | N51: 15.40058104 | O51: 6.297894235 | P51: 10.90065407 | Q51: 6.910521617 | R51: 3.599558043 | S51: 9.185421941 | T51: 14.28913283 | U51: 8.948681297 | V51: 6.461051073 | W51: 9.067193758 | X51: 9.245972115 | Y51: 9.706140642 | Z51: 8.424740744 | AA51: 14.37715333 | AB51: 13.83023107 | AC51: 9.167409632 | AD51: 3.964982729 | AE51: 6.171295932 | AF51: 12.70510684 | AG51: 4.482737873 | AH51: 10.79945888 | AI51: 9.112747945 | AJ51: 8.312295375 | AK51: 9.80343443 | AL51: 8.264493796 | AM51: 9.814065409 | AN51: 6.691712933 | AO51: 7.211500086 | AP51: 7.837352381 | AQ51: 11.22026109 | AR51: 9.784125284 | AS51: 5.17525164 | AT51: 7.098346337 | AU51: 8.791198149 | AV51: 8.32254532 | AW51: 0.9998539725
D52: 51 | E52: 8.66709172 | F52: 10.80391837 | G52: 9.603855376 | H52: 8.797726087 | I52: 10.23403027 | J52: 6.939715862 | K52: 12.78362681 | L52: 8.291768273 | M52: 6.764945084 | N52: 7.894259534 | O52: 11.6288549 | P52: 5.813428831 | Q52: 8.721071551 | R52: 7.483844288 | S52: 15.35827577 | T52: 4.140926536 | U52: 10.23880092 | V52: 5.384456875 | W52: 11.08185361 | X52: 9.705887536 | Y52: 9.01691691 | Z52: 7.025632633 | AA52: 9.786198695 | AB52: 7.357509299 | AC52: 9.415002842 | AD52: 6.710040795 | AE52: 10.63813146 | AF52: 6.621579096 | AG52: 13.44272128 | AH52: 7.12410612 | AI52: 12.22221819 | AJ52: 8.848048268 | AK52: 8.224996655 | AL52: 8.841293941 | AM52: 8.335137732 | AN52: 11.98632511 | AO52: 9.923822428 | AP52: 10.68322243 | AQ52: 13.58901504 | AR52: 14.33745267 | AS52: 10.80195115 | AT52: 11.00099012 | AU52: 9.994488166 | AV52: 5.338205946 | AW52: -1.243330988
D53: 52 | E53: 7.975696505 | F53: 7.188344343 | G53: 6.849378328 | H53: 10.61838836 | I53: 6.218138761 | J53: 10.5293965 | K53: 5.764841999 | L53: 17.19706991 | M53: 5.437643365 | N53: 8.79203245 | O53: 11.11456135 | P53: 15.67655356 | Q53: 7.871118855 | R53: 10.30568726 | S53: 10.25202718 | T53: 10.4807496 | U53: 12.02863183 | V53: 12.31244215 | W53: 10.85605625 | X53: 8.759269427 | Y53: 9.811401399 | Z53: 9.384881433 | AA53: 10.85729657 | AB53: 6.78743152 | AC53: 8.598872053 | AD53: 10.43123623 | AE53: 9.110708699 | AF53: 10.2664756 | AG53: 13.90282423 | AH53: 8.961037264 | AI53: 15.72102581 | AJ53: 2.226448103 | AK53: 13.88823398 | AL53: 12.70245268 | AM53: 9.837950691 | AN53: 14.48593696 | AO53: 12.07027769 | AP53: 8.902658848 | AQ53: 7.796592481 | AR53: 10.76203541 | AS53: 14.47851794 | AT53: 9.356837485 | AU53: 10.55724251 | AV53: 10.06810858 | AW53: -0.7562547846
D54: 53 | E54: 8.27386596 | F54: 19.23845365 | G54: 5.941823078 | H54: 14.23054226 | I54: 11.96499789 | J54: 8.88442107 | K54: 19.83047706 | L54: 10.18315819 | M54: 6.394119452 | N54: 17.87622712 | O54: 7.782492859 | P54: 13.57695979 | Q54: 8.168131283 | R54: 9.821082499 | S54: 9.919024201 | T54: 4.232096959 | U54: 3.539298782 | V54: 12.64810418 | W54: 14.15130495 | X54: 5.615416676 | Y54: 10.6135999 | Z54: 22.71398206 | AA54: 6.786248802 | AB54: 7.107283905 | AC54: 10.64365706 | AD54: 3.575018358 | AE54: 10.25090495 | AF54: 11.04954986 | AG54: 10.83447734 | AH54: 11.0271647 | AI54: 14.45745935 | AJ54: 8.150396291 | AK54: 7.744161733 | AL54: 5.625010289 | AM54: 6.64044738 | AN54: 8.602861214 | AO54: 5.622958893 | AP54: 10.08622588 | AQ54: 7.073887966 | AR54: 10.0573579 | AS54: 11.26571538 | AT54: 14.97567635 | AU54: 9.07882318 | AV54: 8.483364493 | AW54: 1.228857066
D55: 54 | E55: 12.45195037 | F55: 9.449966402 | G55: 10.46263399 | H55: 11.81434186 | I55: 9.832162757 | J55: 17.22207878 | K55: 9.150666185 | L55: 13.74076475 | M55: 17.67774136 | N55: 5.414260445 | O55: 12.21453378 | P55: 6.351061209 | Q55: 10.00912454 | R55: 6.897191002 | S55: 12.73580938 | T55: -0.3917124493 | U55: 14.55277219 | V55: 11.7673931 | W55: 11.72371367 | X55: 13.11693973 | Y55: 10.80966965 | Z55: 17.02336009 | AA55: 10.07116653 | AB55: 5.752694244 | AC55: 10.3751277 | AD55: 8.831843913 | AE55: 15.54363722 | AF55: 12.61202448 | AG55: 6.451493876 | AH55: 11.37741867 | AI55: 7.84134301 | AJ55: 2.440837137 | AK55: 9.592102398 | AL55: 6.974771938 | AM55: 10.52562261 | AN55: 12.16204382 | AO55: 10.77956718 | AP55: 7.827092723 | AQ55: 11.6976221 | AR55: 10.2952857 | AS55: 3.27701013 | AT55: 5.23023983 | AU55: 8.982947261 | AV55: 10.69595945 | AW55: 1.551658939
D56: 55 | E56: 2.631600042 | F56: 11.84361083 | G56: 3.428482777 | H56: 9.721961761 | I56: 5.916931504 | J56: 10.31174616 | K56: 11.0129954 | L56: 7.650207321 | M56: 13.28682785 | N56: 11.14329521 | O56: 9.170367464 | P56: 2.583616062 | Q56: 8.902897653 | R56: 8.929372453 | S56: 13.26039582 | T56: 13.48579297 | U56: 9.33554643 | V56: 10.39047524 | W56: 13.9664423 | X56: 9.347473082 | Y56: 9.316001916 | Z56: 11.82096065 | AA56: 11.50284509 | AB56: 14.03510887 | AC56: 9.257526376 | AD56: 7.468700015 | AE56: 11.26070592 | AF56: 13.88756461 | AG56: 11.70565948 | AH56: 5.307352064 | AI56: 8.092913661 | AJ56: 9.337623798 | AK56: 11.20746335 | AL56: 11.19964733 | AM56: 9.823785898 | AN56: 8.081738978 | AO56: 11.53563318 | AP56: 12.25553965 | AQ56: 14.12560387 | AR56: 9.57443982 | AS56: 10.90109882 | AT56: 16.94765378 | AU56: 10.87543023 | AV56: 7.169337733 | AW56: -1.60034832
D57: 56 | E57: 10.37010164 | F57: 10.77231531 | G57: 5.520188332 | H57: 8.210839471 | I57: 9.66345744 | J57: 8.49226486 | K57: 8.827941184 | L57: 13.17010642 | M57: 7.599720842 | N57: 5.402594426 | O57: 15.0969154 | P57: 10.4148455 | Q57: 13.84363269 | R57: 8.950154919 | S57: 6.824010665 | T57: 1.116485131 | U57: 3.922345078 | V57: 10.92869146 | W57: 12.45259825 | X57: 10.23972355 | Y57: 9.090946628 | Z57: 11.74137537 | AA57: 8.24152145 | AB57: 10.9281293 | AC57: 12.10331108 | AD57: 4.870600872 | AE57: 8.37738721 | AF57: 12.18789535 | AG57: 10.08886269 | AH57: 4.964185535 | AI57: 12.20083937 | AJ57: 11.87819158 | AK57: 14.62728274 | AL57: 7.686454513 | AM57: 11.02492384 | AN57: 12.57531258 | AO57: 13.42977829 | AP57: 6.719190208 | AQ57: 12.94883429 | AR57: 14.45338462 | AS57: 13.58100236 | AT57: 6.706006296 | AU57: 10.47965471 | AV57: 9.49587344 | AW57: -1.347649123
D58: 57 | E58: 5.498332737 | F58: 17.40881968 | G58: 14.05710109 | H58: 11.45117273 | I58: 8.788277428 | J58: 8.232819558 | K58: 8.686378774 | L58: 9.875969909 | M58: 13.79860379 | N58: 13.79384276 | O58: 9.080452645 | P58: 12.38479575 | Q58: 13.75464533 | R58: 15.88473567 | S58: 5.837264715 | T58: 6.749311032 | U58: 8.520400485 | V58: 9.968221886 | W58: 5.290751608 | X58: 8.704144556 | Y58: 10.38830211 | Z58: 12.37173463 | AA58: 9.015120895 | AB58: 6.373549313 | AC58: 8.15329166 | AD58: 9.437950736 | AE58: 9.415056421 | AF58: 9.063001687 | AG58: 9.384383798 | AH58: 15.92429823 | AI58: 11.6695213 | AJ58: 9.281675997 | AK58: 11.06891416 | AL58: 8.345136803 | AM58: 11.89524513 | AN58: 8.987806172 | AO58: 13.20016749 | AP58: 10.43308307 | AQ58: 7.74749995 | AR58: 10.60743433 | AS58: 8.24728496 | AT58: 7.315975345 | AU58: 9.778319873 | AV58: 4.816275461 | AW58: 0.657990137
D59: 58 | E59: 9.074974948 | F59: 10.4963274 | G59: 11.27350784 | H59: 10.81601755 | I59: 9.743199799 | J59: 4.468139859 | K59: 9.307139003 | L59: 11.43044874 | M59: 10.70273859 | N59: 9.774816194 | O59: 10.67047494 | P59: 12.87559293 | Q59: 13.80768836 | R59: 15.07776615 | S59: 15.74320011 | T59: 9.356330743 | U59: 12.20646768 | V59: 11.55127613 | W59: 8.545535523 | X59: 7.69682646 | Y59: 10.73092345 | Z59: 6.501968987 | AA59: 11.32973034 | AB59: 6.707493903 | AC59: 13.47055909 | AD59: 9.933896715 | AE59: 15.36249164 | AF59: 5.588963588 | AG59: 9.574229552 | AH59: 4.323549375 | AI59: 8.409008321 | AJ59: 12.57568298 | AK59: 11.22788743 | AL59: 12.63199708 | AM59: 10.8097085 | AN59: 11.63527665 | AO59: 6.701880856 | AP59: 9.440337928 | AQ59: 12.7254362 | AR59: 11.11493503 | AS59: 3.857816492 | AT59: 8.74597611 | AU59: 9.808342889 | AV59: 9.717440558 | AW59: 1.02447597
D60: 59 | E60: 11.50532355 | F60: 9.754205166 | G60: 10.39225288 | H60: 5.668448544 | I60: 7.51989658 | J60: 12.36536902 | K60: 7.49421064 | L60: 10.86771385 | M60: 9.200978158 | N60: 11.40462053 | O60: 7.803782735 | P60: 10.98380687 | Q60: 12.04150945 | R60: 6.678924801 | S60: 13.42132011 | T60: 15.77284074 | U60: 6.398258973 | V60: 10.67373027 | W60: 16.66368103 | X60: 13.52840698 | Y60: 10.50696404 | Z60: 9.146945799 | AA60: 12.46525177 | AB60: 15.4044951 | AC60: 10.06871451 | AD60: 6.97640437 | AE60: 12.54377136 | AF60: 10.87943028 | AG60: 9.686647451 | AH60: 10.80103049 | AI60: 12.771249 | AJ60: 8.385871404 | AK60: 9.339847973 | AL60: 11.53324477 | AM60: 11.41114859 | AN60: 7.776408442 | AO60: 10.94644964 | AP60: 14.97132868 | AQ60: 6.569311537 | AR60: 8.785920842 | AS60: 12.19070892 | AT60: 11.91121054 | AU60: 10.77092228 | AV60: 5.675971747 | AW60: -0.3066079231
D61: 60 | E61: 11.6853477 | F61: 15.7030417 | G61: 9.354324326 | H61: 9.930736882 | I61: 2.870392785 | J61: 8.376671364 | K61: 11.57613588 | L61: 9.233930983 | M61: 11.19602677 | N61: 6.582788064 | O61: 12.51839806 | P61: 8.818110986 | Q61: 12.33423428 | R61: 13.86259987 | S61: 9.142514308 | T61: 10.1375269 | U61: 7.149475992 | V61: 0.1572168713 | W61: 14.60906809 | X61: 4.91390931 | Y61: 9.507622556 | Z61: 14.8190974 | AA61: 11.78152183 | AB61: 9.831378035 | AC61: 12.03851906 | AD61: 13.23677378 | AE61: 3.503242556 | AF61: 10.94722007 | AG61: 10.53594962 | AH61: 13.47354508 | AI61: 8.79951256 | AJ61: 10.53921206 | AK61: 15.30252257 | AL61: 10.57900893 | AM61: 6.393479037 | AN61: 13.70369007 | AO61: 8.170359603 | AP61: 6.064678231 | AQ61: 5.929755432 | AR61: 14.01972851 | AS61: 9.981666062 | AT61: 10.39649032 | AU61: 10.26141267 | AV61: 9.502676171 | AW61: -0.6835461085
D62: 61 | E62: 10.32246531 | F62: 15.03289581 | G62: 5.390844116 | H62: 11.30461878 | I62: 13.59920222 | J62: 12.63486548 | K62: 9.73606064 | L62: 14.01579322 | M62: 9.210615302 | N62: 6.453261274 | O62: 12.68537645 | P62: 11.2502082 | Q62: 13.38655484 | R62: 4.048190336 | S62: 10.85233035 | T62: 10.24456071 | U62: 3.2771364 | V62: 9.608174936 | W62: 11.40681729 | X62: 12.84937198 | Y62: 10.36546718 | Z62: 10.88980928 | AA62: 14.27823519 | AB62: 7.518033945 | AC62: 10.21117691 | AD62: 10.66882906 | AE62: 3.985239937 | AF62: 15.11886353 | AG62: 14.38002133 | AH62: 10.18280921 | AI62: 10.43681698 | AJ62: 12.79556142 | AK62: 7.973181106 | AL62: 12.74794129 | AM62: 10.87718713 | AN62: 8.769305931 | AO62: 8.545901388 | AP62: 10.46201684 | AQ62: 8.947915607 | AR62: 10.85393664 | AS62: 10.96878921 | AT62: 11.22257509 | AU62: 10.54721689 | AV62: 6.795314212 | AW62: -0.1932789976
D63: 62 | E63: 5.403676455 | F63: 16.66975654 | G63: 7.430345743 | H63: 8.533934738 | I63: 9.927465658 | J63: 5.261952954 | K63: 13.85664891 | L63: 7.440908079 | M63: 14.41287986 | N63: 13.03461367 | O63: 10.04333817 | P63: 9.667321808 | Q63: 11.5576335 | R63: 12.35856324 | S63: 8.817916276 | T63: =NORMINV(RAND(), $B$3, SQRT($B$4)) -> 2.826171378 | U63: 13.09253323 | V63: 11.17597547 | W63: 6.729581936 | X63: 9.784015503 | Y63: 9.901261656 | Z63: 12.07265569 | AA63: 15.69782486 | AB63: 10.28479858 | AC63: 6.657660195 | AD63: 9.581069528 | AE63: 3.335840205 | AF63: 8.904615597 | AG63: 17.81055083 | AH63: 14.91029156 | AI63: 10.71714511 | AJ63: 7.421260966 | AK63: 9.994149149 | AL63: 10.9492691 | AM63: 12.82157674 | AN63: 9.495026808 | AO63: 14.49385295 | AP63: =NORMINV(RAND(), $B$3, SQRT($B$4)) -> 9.82769188 | AQ63: 9.80462922 | AR63: 7.30843923 | AS63: 11.04752469 | AT63: 5.67882982 | AU63: 10.33710235 | AV63: 12.41607271 | AW63: -0.3938761273
D64: 63 | E64: =NORMINV(RAND(), $B$3, SQRT($B$4)) -> 12.87727326 | F64: 8.177480503 | G64: 11.95461832 | H64: 7.058858389 | I64: 16.38434823 | J64: 10.04232224 | K64: 10.01078472 | L64: 12.90397755 | M64: 8.690342012 | N64: 9.199357057 | O64: 9.439580725 | P64: 11.08759363 | Q64: 10.33497781 | R64: 7.892500019 | S64: 9.477371261 | T64: 7.468686215 | U64: 1.217012873 | V64: 13.06869069 | W64: 10.5261658 | X64: 8.859116687 | Y64: 9.8335529 | Z64: 9.259775692 | AA64: =NORMINV(RAND(), $B$3, SQRT($B$4)) -> 17.28537696 | AB64: 12.18676697 | AC64: 10.94899582 | AD64: 11.3817834 | AE64: 12.74616383 | AF64: 11.43436714 | AG64: 10.8949863 | AH64: 9.318133447 | AI64: 8.408299523 | AJ64: 14.80802008 | AK64: 4.886406459 | AL64: 9.124333497 | AM64: 5.192426511 | AN64: 9.877990612 | AO64: 6.370299858 | AP64: 12.94597409 | AQ64: 12.41598657 | AR64: 9.112870527 | AS64: 9.214811769 | AT64: 10.67978993 | AU64: 10.46168917 | AV64: 9.080009152 | AW64: -0.6559515275
D65: 64 | E65: 8.170915555 | F65: 7.74807039 | G65: 4.115272948 | H65: 15.4921635 | I65: 7.754895466 | J65: 6.108316965 | K65: 9.6028884 | L65: 17.57337473 | M65: 11.4169673 | N65: 8.386405555 | O65: 8.078993024 | P65: 11.16680693 | Q65: 7.104820703 | R65: 12.48730372 | S65: 8.632223273 | T65: 8.670266694 | U65: 10.93988204 | V65: 7.750735031 | W65: 8.566297156 | X65: 3.239856928 | Y65: 9.150322815 | Z65: 11.47576432 | AA65: 13.04934134 | AB65: 4.901333786 | AC65: 14.28177041 | AD65: 6.924833521 | AE65: 12.08701931 | AF65: 7.452627788 | AG65: 10.63594555 | AH65: 10.54568667 | AI65: 6.258358188 | AJ65: 5.925402751 | AK65: 7.893923952 | AL65: 6.958950726 | AM65: 12.2958647 | AN65: 10.41280944 | AO65: 14.45805314 | AP65: 11.98856243 | AQ65: 16.50664831 | AR65: 7.075860843 | AS65: 12.26236317 | AT65: 11.09603389 | AU65: 10.1505695 | AV65: 10.78637083 | AW65: -0.9480662993
D66: 65 | E66: 12.62856036 | F66: 7.803856963 | G66: 12.61225935 | H66: 8.905589106 | I66: 9.61785149 | J66: 11.87977907 | K66: 4.788718889 | L66: 16.44237648 | M66: 12.85859715 | N66: 10.66451687 | O66: 7.107091362 | P66: 6.964628337 | Q66: 5.239211816 | R66: 5.339005651 | S66: 9.760933094 | T66: 11.10515888 | U66: 13.16870666 | V66: 10.28307366 | W66: 13.73340636 | X66: 5.02720499 | Y66: 9.796526327 | Z66: 11.15363994 | AA66: 12.47327319 | AB66: 7.814770912 | AC66: 14.0831449 | AD66: 11.30806763 | AE66: 0.9113980798 | AF66: 10.85334022 | AG66: 10.6002824 | AH66: 12.41220638 | AI66: 11.5788151 | AJ66: 9.889722597 | AK66: 12.8761931 | AL66: 7.957557513 | AM66: 14.99011288 | AN66: 9.811040927 | AO66: 12.8311371 | AP66: 9.133925024 | AQ66: 12.87118391 | AR66: 8.519291986 | AS66: 9.512472859 | AT66: 13.35020132 | AU66: 10.6889069 | AV66: 9.465393397 | AW66: -0.878882779
D67: 66 | E67: 12.37543387 | F67: 11.74450984 | G67: 7.767595769 | H67: 4.993642428 | I67: 11.28987399 | J67: 11.29358559 | K67: 7.272236888 | L67: 11.54511323 | M67: 8.546883912 | N67: 0.2747366337 | O67: 9.791383006 | P67: 8.0862988 | Q67: 9.366544794 | R67: 7.19530232 | S67: 13.62969831 | T67: 9.880717094 | U67: 10.05435019 | V67: 12.15386876 | W67: 12.21511422 | X67: 11.5736058 | Y67: =AVERAGE(E67:X67) -> 9.552524773 | Z67: =VAR(E67:X67) -> 9.567023147 | AA67: 12.78049617 | AB67: 12.02979672 | AC67: 7.591149316 | AD67: 8.634785312 | AE67: 10.27032486 | AF67: 4.419618854 | AG67: 11.98604996 | AH67: 13.41024906 | AI67: 7.077925025 | AJ67: 10.37419134 | AK67: 5.534694123 | AL67: 13.7636557 | AM67: 15.09211118 | AN67: 6.887896289 | AO67: 10.98088211 | AP67: 11.71770575 | AQ67: 12.58794022 | AR67: 8.023829192 | AS67: 16.86928067 | AT67: 5.339677017 | AU67: =AVERAGE(AA67:AT67) -> 10.26861294 | AV67: =VAR(AA67:AT67) -> 11.93056916 | AW67: =(Y67-AU67)/SQRT(Z67/20+AV67/20) -> -0.6906954351
D68: 67 | E68: 5.524773024 | F68: 11.27048801 | G68: 13.36999952 | H68: 7.53246548 | I68: 9.622984745 | J68: 5.57178604 | K68: 7.727310782 | L68: 17.30408367 | M68: 5.654905137 | N68: 9.302211764 | O68: 13.07118634 | P68: 6.409668952 | Q68: 8.327615873 | R68: 13.21499417 | S68: 6.842081196 | T68: 13.07480508 | U68: 6.004903622 | V68: 7.884493044 | W68: 12.13202106 | X68: 7.138556909 | Y68: 9.349066722 | Z68: 11.38410527 | AA68: 8.550628358 | AB68: 10.39637381 | AC68: 12.98746033 | AD68: 15.67775236 | AE68: 10.46321372 | AF68: 9.358033839 | AG68: 9.69726757 | AH68: 10.56523215 | AI68: 14.55825464 | AJ68: 11.27091922 | AK68: 6.84447349 | AL68: 11.740148 | AM68: 13.77440499 | AN68: 7.843309548 | AO68: 7.69070039 | AP68: 6.486564376 | AQ68: 7.27469591 | AR68: 6.273002379 | AS68: 5.291771361 | AT68: 15.99377724 | AU68: 10.13689918 | AV68: 10.28663561 | AW68: -0.7568537896
D69: 68 | E69: 10.64430607 | F69: 10.07426857 | G69: 9.601120143 | H69: 2.7121288 | I69: 6.601233197 | J69: 6.945731758 | K69: 8.383421482 | L69: 6.53681803 | M69: 12.9949668 | N69: 14.88464742 | O69: 13.21029636 | P69: 9.797357501 | Q69: 7.269319117 | R69: 7.388205416 | S69: 16.43541082 | T69: 13.40685134 | U69: 11.07932497 | V69: 10.81129393 | W69: 13.20266157 | X69: 11.40121833 | Y69: 10.16902908 | Z69: 11.21726484 | AA69: 8.015762508 | AB69: 11.00182976 | AC69: 13.81435676 | AD69: 6.714043538 | AE69: 10.49305709 | AF69: 6.81813477 | AG69: 14.02011977 | AH69: 6.844404303 | AI69: 8.940034914 | AJ69: 13.45238919 | AK69: 10.97408008 | AL69: 6.702738009 | AM69: 7.907351674 | AN69: 13.62002619 | AO69: 6.745180701 | AP69: 6.347213269 | AQ69: 5.272705219 | AR69: 10.6816946 | AS69: 7.875120746 | AT69: 8.289637373 | AU69: 9.226494023 | AV69: 7.965484475 | AW69: 0.9624032601
D70: 69 | E70: 15.55250923 | F70: 11.1360708 | G70: 10.94360226 | H70: 8.095057399 | I70: 4.346143478 | J70: 12.5142444 | K70: 14.65008038 | L70: 10.07183918 | M70: 10.52245319 | N70: 5.032300021 | O70: 10.30309453 | P70: 8.882431672 | Q70: 9.011665628 | R70: 15.48507456 | S70: 5.700420937 | T70: 7.09235842 | U70: 7.551422937 | V70: 6.583720186 | W70: 6.692953529 | X70: 12.36325949 | Y70: 9.626535112 | Z70: 11.17105768 | AA70: 11.68284475 | AB70: 9.853899305 | AC70: 7.3356118 | AD70: 9.379951704 | AE70: 3.810402705 | AF70: 5.536716089 | AG70: 7.292954197 | AH70: 9.414061586 | AI70: 6.897338857 | AJ70: 7.716566133 | AK70: 13.82264538 | AL70: 9.152687622 | AM70: 7.227180139 | AN70: 12.7698217 | AO70: 7.405866886 | AP70: 14.91121952 | AQ70: 13.43452291 | AR70: 14.36817045 | AS70: 4.778197687 | AT70: 8.785783908 | AU70: 9.278822166 | AV70: 10.62304235 | AW70: 0.3330936768
D71: 70 | E71: 11.70299942 | F71: 9.113356557 | G71: 13.45028987 | H71: 11.15998023 | I71: 9.613297407 | J71: 11.20432812 | K71: 12.31951356 | L71: 11.957152 | M71: 9.00128437 | N71: 14.82516463 | O71: 13.29455789 | P71: 16.72725751 | Q71: 9.203884005 | R71: 8.774791915 | S71: 10.21113425 | T71: 8.480407727 | U71: 10.05327789 | V71: 4.627410745 | W71: 12.5982638 | X71: 3.668295314 | Y71: 10.59933236 | Z71: 9.534230699 | AA71: 8.428588329 | AB71: 9.385184438 | AC71: 14.70142603 | AD71: 9.301306691 | AE71: 9.206336012 | AF71: 9.045078544 | AG71: 12.7325475 | AH71: 16.65762323 | AI71: 7.524159638 | AJ71: 8.058697139 | AK71: 8.154938963 | AL71: 9.405819578 | AM71: 5.737962146 | AN71: 6.919870235 | AO71: 11.83045851 | AP71: 13.51300173 | AQ71: 15.51516339 | AR71: 9.042941341 | AS71: 7.602207108 | AT71: 12.9111938 | AU71: 10.28372522 | AV71: 9.458872079 | AW71: 0.3238648847
D72: 71 | E72: 5.381209139 | F72: 16.94748768 | G72: 6.815531298 | H72: 6.773283939 | I72: 7.218549573 | J72: 9.376963065 | K72: 15.72899927 | L72: 8.220749046 | M72: 9.92449186 | N72: 6.170336995 | O72: 10.08228667 | P72: 15.27860125 | Q72: 10.50116033 | R72: 17.14181624 | S72: 9.138207048 | T72: 12.2953345 | U72: 5.541605128 | V72: 7.425299 | W72: 12.15914516 | X72: 9.96677666 | Y72: 10.10439169 | Z72: 13.94878735 | AA72: 11.41088302 | AB72: 5.794734062 | AC72: 10.79200487 | AD72: 16.18324058 | AE72: 9.159633262 | AF72: 9.286529313 | AG72: 13.60880988 | AH72: 9.855954574 | AI72: 15.12693645 | AJ72: 10.62795349 | AK72: 3.378427871 | AL72: 15.88772439 | AM72: 9.929390088 | AN72: 9.993720301 | AO72: 11.121907 | AP72: 8.23358353 | AQ72: 9.768713569 | AR72: 13.84659234 | AS72: 11.87944543 | AT72: 6.461705148 | AU72: 10.61739446 | AV72: 10.82349698 | AW72: -0.4609477253
D73: 72 | E73: 7.406101564 | F73: 8.306462178 | G73: 11.13159035 | H73: 11.9405663 | I73: 8.936534033 | J73: 6.931047244 | K73: 8.968945926 | L73: 11.47741927 | M73: 17.79395055 | N73: 7.708144406 | O73: 13.52839968 | P73: 9.764402929 | Q73: 12.10767018 | R73: 7.460403412 | S73: 12.45731643 | T73: 9.808721613 | U73: 12.13834156 | V73: 6.75224282 | W73: 8.700398741 | X73: 9.049440681 | Y73: 10.11840499 | Z73: 7.438984268 | AA73: 13.64549106 | AB73: 11.39893173 | AC73: 5.391373576 | AD73: 14.30998473 | AE73: 8.463642007 | AF73: 10.22908599 | AG73: 7.384757796 | AH73: 10.53889833 | AI73: 5.856746707 | AJ73: 14.58560426 | AK73: 4.461869058 | AL73: 13.54948284 | AM73: 8.360870039 | AN73: 14.44468748 | AO73: 16.11864095 | AP73: 7.307464986 | AQ73: 2.240448753 | AR73: 11.21828983 | AS73: 12.7238515 | AT73: 10.99893627 | AU73: 10.16145289 | AV73: 14.8836373 | AW73: -0.04074688184
D74: 73 | E74: 6.498556817 | F74: 9.465603643 | G74: 5.919338991 | H74: 16.81484717 | I74: 9.850280449 | J74: 5.615685303 | K74: 1.998069846 | L74: 6.214269083 | M74: 7.251508312 | N74: 9.998140384 | O74: 7.962266343 | P74: 11.05409912 | Q74: 5.962802231 | R74: 10.19741192 | S74: 5.666389737 | T74: 5.251899661 | U74: 14.27010178 | V74: 13.61071533 | W74: 9.959997453 | X74: 9.013568667 | Y74: 8.628777612 | Z74: 12.54567506 | AA74: 14.59069388 | AB74: 7.68825952 | AC74: 13.81103952 | AD74: 7.396649532 | AE74: 11.79897668 | AF74: 9.510826956 | AG74: 13.49811202 | AH74: 11.64348256 | AI74: 10.33050978 | AJ74: 15.40278526 | AK74: 8.304658344 | AL74: 14.39275001 | AM74: 14.51122886 | AN74: 12.75612197 | AO74: 14.47919567 | AP74: 10.85375581 | AQ74: 11.75316732 | AR74: 13.09242396 | AS74: 7.221975466 | AT74: 8.835117772 | AU74: 11.59358654 | AV74: 7.22439155 | AW74: -2.98200002
D75: 74 | E75: 2.987015802 | F75: 8.268088169 | G75: 10.37153717 | H75: 12.10168627 | I75: 13.34699237 | J75: 7.157144732 | K75: 12.4816414 | L75: 12.66261485 | M75: 7.32778674 | N75: 12.02314799 | O75: 5.610140444 | P75: 8.058709592 | Q75: 14.407325 | R75: 13.66392184 | S75: 12.78128161 | T75: 11.02735218 | U75: 12.25531935 | V75: 12.16761408 | W75: 9.537823887 | X75: 11.89013489 | Y75: 10.50636392 | Z75: 9.138164476 | AA75: 5.283264944 | AB75: 11.65932287 | AC75: 9.285844265 | AD75: 9.453823043 | AE75: 9.437777238 | AF75: 13.79576448 | AG75: 12.06113325 | AH75: 8.066364029 | AI75: 9.801550133 | AJ75: 3.511902805 | AK75: 12.49613832 | AL75: 9.468924971 | AM75: 14.06065017 | AN75: 11.81076834 | AO75: 12.71117135 | AP75: 10.62594799 | AQ75: 11.28519068 | AR75: 4.833435284 | AS75: 8.213770271 | AT75: 10.60978519 | AU75: 9.923626481 | AV75: 8.235203701 | AW75: 0.6252387792
D76: 75 | E76: 10.19779462 | F76: 12.27314723 | G76: 14.52967263 | H76: 9.446750826 | I76: 9.226144581 | J76: 13.08870839 | K76: 5.317646777 | L76: 5.37285188 | M76: 9.52182782 | N76: 10.18490004 | O76: 6.92096894 | P76: 7.33518647 | Q76: 9.329834944 | R76: 8.852833847 | S76: 7.990372881 | T76: 8.707948038 | U76: 5.829051972 | V76: 10.95637388 | W76: 9.856393356 | X76: 13.25874846 | Y76: 9.409857878 | Z76: 6.621474852 | AA76: 10.41977161 | AB76: 10.91011764 | AC76: 8.550796436 | AD76: 11.63855871 | AE76: 7.241744437 | AF76: 10.0170159 | AG76: 14.81306132 | AH76: 10.05234848 | AI76: 4.996346958 | AJ76: 16.21407827 | AK76: 10.29321084 | AL76: 13.53254993 | AM76: 8.3304599 | AN76: 11.84628642 | AO76: 12.38006171 | AP76: 8.415848628 | AQ76: 13.3126708 | AR76: 12.68872368 | AS76: 8.924642562 | AT76: 15.63708178 | AU76: 11.0107688 | AV76: 8.30819727 | AW76: -1.852921543
D77: 76 | E77: 14.06800058 | F77: 7.141344421 | G77: 6.546103301 | H77: 5.056245016 | I77: 8.711155925 | J77: 9.518139468 | K77: 6.446948402 | L77: 8.405119731 | M77: 13.17450196 | N77: 7.363831098 | O77: 7.449363606 | P77: 7.181943754 | Q77: 10.35290795 | R77: 13.44624072 | S77: 9.297134549 | T77: 13.21477835 | U77: 8.347057727 | V77: 11.35884577 | W77: 7.28559325 | X77: 13.32831792 | Y77: 9.384678675 | Z77: 7.784617683 | AA77: 10.14320107 | AB77: 8.438090111 | AC77: 11.75020406 | AD77: 12.97985277 | AE77: 11.32966322 | AF77: 8.738149704 | AG77: 11.43829621 | AH77: 13.30117407 | AI77: 8.117878434 | AJ77: -2.139097657 | AK77: 9.993986669 | AL77: 8.57882662 | AM77: 6.243472963 | AN77: 9.425142292 | AO77: 5.288102765 | AP77: 8.912697467 | AQ77: 6.43449126 | AR77: 10.25372753 | AS77: 12.49887953 | AT77: 12.58338653 | AU77: 9.21550628 | AV77: 12.36118064 | AW77: 0.1685591192
D78: 77 | E78: 10.11096545 | F78: 12.4826843 | G78: 10.24016708 | H78: 15.78343455 | I78: 8.505765035 | J78: 5.999178444 | K78: 10.42194998 | L78: 12.1973242 | M78: 8.543233178 | N78: 12.11594318 | O78: 10.9589753 | P78: 12.8905683 | Q78: 8.862714873 | R78: 6.723476154 | S78: 6.335600571 | T78: 7.936775203 | U78: 6.198784561 | V78: 13.75963377 | W78: 12.02939639 | X78: 10.34703168 | Y78: 10.12218011 | Z78: 7.423156437 | AA78: 7.086809746 | AB78: 6.39540089 | AC78: 11.01361792 | AD78: 7.943159387 | AE78: 11.24052019 | AF78: 6.138450624 | AG78: 11.63678308 | AH78: 10.70949099 | AI78: 10.22022975 | AJ78: 9.494742117 | AK78: 12.11035536 | AL78: 12.83133095 | AM78: 11.74493099 | AN78: 9.228344544 | AO78: 14.04344499 | AP78: 10.73201153 | AQ78: 10.32696651 | AR78: 6.062419875 | AS78: 8.743093175 | AT78: 10.23991263 | AU78: 9.897100763 | AV78: 5.089848163 | AW78: 0.2845573738
D79: 78 | E79: 11.34876706 | F79: 10.33711645 | G79: 8.482915545 | H79: 8.544257408 | I79: 16.39091949 | J79: 9.273669224 | K79: 10.26951045 | L79: 8.789311701 | M79: 8.81913329 | N79: 4.459019183 | O79: 16.23873297 | P79: 13.9397035 | Q79: 3.733859035 | R79: 12.94096412 | S79: 8.683340982 | T79: =NORMINV(RAND(), $B$3, SQRT($B$4)) -> 9.924946632 | U79: 9.043017718 | V79: 10.9187507 | W79: 13.58060156 | X79: 10.19269374 | Y79: 10.29556154 | Z79: 10.43826158 | AA79: 9.700439152 | AB79: 8.149307852 | AC79: 11.47167465 | AD79: 15.97488222 | AE79: 13.49991211 | AF79: 12.97427849 | AG79: 7.909688969 | AH79: 12.95678762 | AI79: 11.41321997 | AJ79: 6.613645682 | AK79: 14.99811052 | AL79: 9.327651502 | AM79: 13.78231781 | AN79: 8.410899257 | AO79: 4.945891172 | AP79: =NORMINV(RAND(), $B$3, SQRT($B$4)) -> 15.79120685 | AQ79: 9.834922175 | AR79: 11.04330949 | AS79: 11.6053126 | AT79: 13.42501896 | AU79: 11.19142385 | AV79: 9.338540783 | AW79: -0.900903406
D80: 79 | E80: =NORMINV(RAND(), $B$3, SQRT($B$4)) -> 12.21252399 | F80: 9.199748997 | G80: 6.866159309 | H80: 11.13871116 | I80: 7.34646521 | J80: 13.31477511 | K80: 6.27471281 | L80: 13.0851172 | M80: 10.11731336 | N80: 9.805306777 | O80: 13.22473494 | P80: 12.6338927 | Q80: 9.853160122 | R80: 3.394942118 | S80: 8.497960002 | T80: 10.61945403 | U80: 8.970943017 | V80: 6.070185816 | W80: 13.22498004 | X80: 10.81814422 | Y80: 9.833461547 | Z80: 7.830089702 | AA80: =NORMINV(RAND(), $B$3, SQRT($B$4)) -> 4.927200823 | AB80: 15.49404933 | AC80: 10.14929571 | AD80: 7.078827217 | AE80: 13.17972875 | AF80: 11.6871674 | AG80: 10.69755285 | AH80: 16.4044936 | AI80: 11.27950556 | AJ80: 9.219552033 | AK80: 11.18483778 | AL80: 8.961647288 | AM80: 11.72591893 | AN80: 11.35212874 | AO80: 11.74334687 | AP80: 16.52739485 | AQ80: 9.254852303 | AR80: 9.55403267 | AS80: 13.49228859 | AT80: 9.547850499 | AU80: 11.17308359 | AV80: 8.407806591 | AW80: -1.486731014
D81: 80 | E81: 9.826641577 | F81: 10.22210446 | G81: 12.06571684 | H81: 13.25739101 | I81: 7.804252496 | J81: 8.454152975 | K81: 6.20557499 | L81: 10.37925307 | M81: 11.27985738 | N81: 5.806192411 | O81: 9.37618576 | P81: 6.320075159 | Q81: 11.347303 | R81: 15.55087225 | S81: 12.23530144 | T81: 10.41681084 | U81: 10.86515899 | V81: 8.307052761 | W81: 8.799126411 | X81: 6.657748196 | Y81: 9.7588386 | Z81: 6.459395179 | AA81: 11.37023053 | AB81: 11.65857939 | AC81: 6.194944842 | AD81: 15.78345855 | AE81: 13.64493049 | AF81: 9.483979136 | AG81: 4.403507001 | AH81: 10.24108239 | AI81: 13.73404474 | AJ81: 11.97824571 | AK81: 9.183608792 | AL81: 8.780331958 | AM81: 8.221220407 | AN81: 11.31447777 | AO81: 5.071024413 | AP81: 12.03075555 | AQ81: 7.986016012 | AR81: 6.974402193 | AS81: 10.07753534 | AT81: 7.090991781 | AU81: 9.76116835 | AV81: 9.018164016 | AW81: -0.002648335109
D82: 81 | E82: 16.841781 | F82: 2.745968882 | G82: 10.64368862 | H82: 4.759074779 | I82: 12.80482278 | J82: 11.71284645 | K82: 12.49822474 | L82: 6.92646465 | M82: 11.23934054 | N82: 10.51077444 | O82: 11.50312848 | P82: 12.01793673 | Q82: 10.37312867 | R82: 9.686918865 | S82: 7.119873325 | T82: 6.276708294 | U82: 9.980945004 | V82: 9.245910237 | W82: 12.17595423 | X82: 8.958607179 | Y82: 9.901104895 | Z82: 10.02723513 | AA82: 5.144071589 | AB82: 13.44928621 | AC82: 16.10144779 | AD82: 4.355128648 | AE82: 10.51248378 | AF82: 19.74246902 | AG82: 4.207971361 | AH82: 11.08216299 | AI82: 9.157725688 | AJ82: 9.09713581 | AK82: 13.4821144 | AL82: 11.86520328 | AM82: 5.727360589 | AN82: 10.18820323 | AO82: 8.007019384 | AP82: 7.543282537 | AQ82: 14.83978136 | AR82: 7.94754986 | AS82: 5.805470893 | AT82: 8.186449815 | AU82: 9.822115912 | AV82: 17.25158324 | AW82: 0.06763457179
D83: 82 | E83: 13.66477221 | F83: 11.25902607 | G83: 14.29058035 | H83: 7.102416379 | I83: 9.185539473 | J83: 12.21238277 | K83: 6.704411035 | L83: 6.649692677 | M83: 11.48460001 | N83: 9.90257577 | O83: 14.7727815 | P83: 6.923905884 | Q83: 14.28586729 | R83: 10.82785794 | S83: 5.527450256 | T83: 6.383261979 | U83: 10.51884081 | V83: 6.459601716 | W83: 11.21890752 | X83: 10.68461627 | Y83: 10.0029544 | Z83: 8.990311962 | AA83: 9.072870374 | AB83: 10.69609954 | AC83: 9.239718849 | AD83: 10.97629121 | AE83: 10.66274482 | AF83: 15.96946915 | AG83: 8.051755209 | AH83: 16.48504113 | AI83: 10.00312533 | AJ83: 8.425078848 | AK83: 10.08537687 | AL83: 7.861139247 | AM83: 8.259993262 | AN83: 18.38230986 | AO83: 9.974633687 | AP83: 15.87998273 | AQ83: 8.979543718 | AR83: 9.702334558 | AS83: 10.89644553 | AT83: 11.77311696 | AU83: 11.06885354 | AV83: 9.576685481 | AW83: -1.106267806
D84: 83 | E84: 10.96314247 | F84: 12.53096973 | G84: 11.80750058 | H84: 10.29297314 | I84: 16.73082474 | J84: 13.61539849 | K84: 7.930224095 | L84: 10.33178464 | M84: 5.194057814 | N84: 4.185123127 | O84: 8.672973182 | P84: 9.573655433 | Q84: 7.567203135 | R84: 8.518664311 | S84: 11.77404156 | T84: 12.39975827 | U84: 11.47014425 | V84: 11.53891649 | W84: 10.2651923 | X84: 8.208290991 | Y84: 10.17854194 | Z84: 8.23682412 | AA84: 8.564684706 | AB84: 7.844709879 | AC84: 5.795560028 | AD84: 5.815996117 | AE84: 9.255215411 | AF84: 12.26453804 | AG84: 7.431230625 | AH84: 12.92175991 | AI84: 10.21448022 | AJ84: 14.36277013 | AK84: 7.218376278 | AL84: 6.317193949 | AM84: 9.912172212 | AN84: 11.84055273 | AO84: 10.98607851 | AP84: 10.59089399 | AQ84: 15.81940217 | AR84: 12.30631601 | AS84: 2.605241014 | AT84: 13.64076459 | AU84: 9.785396825 | AV84: 11.26341503 | AW84: 0.3981510915
D85: 84 | E85: 13.78085256 | F85: 7.034863453 | G85: 10.93313555 | H85: 4.500432815 | I85: 10.34234855 | J85: 9.471430053 | K85: 16.94081022 | L85: 7.899655276 | M85: 10.47239042 | N85: 12.1309581 | O85: 12.59952966 | P85: 11.31607557 | Q85: 10.58489093 | R85: 14.48896735 | S85: 13.69229822 | T85: 10.47884082 | U85: 13.50958614 | V85: 4.862579725 | W85: 3.849471234 | X85: 10.29080603 | Y85: 10.45899613 | Z85: 11.95816184 | AA85: 2.994892723 | AB85: 9.429344405 | AC85: 11.07348336 | AD85: 7.774160958 | AE85: 9.34977045 | AF85: 10.4116992 | AG85: 10.01748985 | AH85: 9.000384833 | AI85: 10.69388351 | AJ85: 4.291042069 | AK85: 12.26054183 | AL85: 9.710875865 | AM85: 12.72624017 | AN85: 11.96337567 | AO85: 3.192375545 | AP85: 6.05999405 | AQ85: 8.164881172 | AR85: 3.795378826 | AS85: 15.5084656 | AT85: 5.618947632 | AU85: 8.701861386 | AV85: 11.90611568 | AW85: 1.608592057
D86: 85 | E86: 8.5030285 | F86: 9.440993537 | G86: 8.205807023 | H86: 13.38711874 | I86: 3.948473579 | J86: 11.08828038 | K86: 15.35558395 | L86: 6.283618682 | M86: 13.60332222 | N86: 6.976496917 | O86: 4.13587042 | P86: 11.32392608 | Q86: 10.11340984 | R86: 9.43274919 | S86: 14.99576675 | T86: 8.993895358 | U86: 7.719027849 | V86: 9.721787585 | W86: 10.30678431 | X86: 13.75252768 | Y86: 9.864423429 | Z86: 10.58964585 | AA86: 14.07774796 | AB86: 6.261450012 | AC86: 7.606776802 | AD86: 14.11576894 | AE86: 10.47741029 | AF86: 4.82632903 | AG86: 11.95260774 | AH86: 10.69227361 | AI86: 13.13246836 | AJ86: 8.298035341 | AK86: 6.867730641 | AL86: 11.9520426 | AM86: 7.932639634 | AN86: 11.60123608 | AO86: 12.02172312 | AP86: 9.461681234 | AQ86: 5.22267754 | AR86: 10.11178981 | AS86: 15.69336734 | AT86: 9.720539696 | AU86: 10.10131479 | AV86: 9.327727418 | AW86: -0.2373822207
D87: 86 | E87: 2.339827715 | F87: 11.14675925 | G87: 14.4101366 | H87: 7.501110546 | I87: 6.924392821 | J87: 12.30087542 | K87: 7.253520482 | L87: 16.71537931 | M87: 10.98402318 | N87: 5.312071534 | O87: 11.24251947 | P87: 10.18030343 | Q87: 17.40331789 | R87: 2.711512547 | S87: 5.981429717 | T87: 11.5860572 | U87: 11.50345457 | V87: 7.360079716 | W87: 7.990869112 | X87: 15.23044294 | Y87: 9.803904173 | Z87: 18.10797463 | AA87: 6.03313027 | AB87: 13.70511272 | AC87: 5.894991537 | AD87: 3.898337812 | AE87: 10.96326316 | AF87: 8.246769163 | AG87: 11.90273715 | AH87: 4.388786423 | AI87: 4.930405227 | AJ87: 9.156376717 | AK87: 10.03505196 | AL87: 9.047027972 | AM87: 5.408924952 | AN87: 12.91843706 | AO87: 6.203044257 | AP87: 8.216352765 | AQ87: 10.00337304 | AR87: 5.208105944 | AS87: 10.79140833 | AT87: 12.44024481 | AU87: 8.469594063 | AV87: 9.466791512 | AW87: 1.136359784
D88: 87 | E88: 2.461877954 | F88: 7.906281497 | G88: 15.56942709 | H88: 8.912995571 | I88: 8.808121075 | J88: 9.465168794 | K88: 4.784120233 | L88: 15.9451544 | M88: 10.59748785 | N88: 9.123813992 | O88: 18.6836897 | P88: 4.774124913 | Q88: 13.06362861 | R88: 9.940433019 | S88: 8.958567541 | T88: 11.17683447 | U88: 5.33950738 | V88: 8.600950467 | W88: 10.41816878 | X88: 9.301855456 | Y88: 9.69161044 | Z88: 15.5684979 | AA88: 12.8762036 | AB88: 8.353997286 | AC88: 11.97588703 | AD88: 6.190676802 | AE88: 10.53507097 | AF88: 10.90495855 | AG88: 10.28781787 | AH88: 16.34211783 | AI88: 9.733717288 | AJ88: 13.30098272 | AK88: 4.711268875 | AL88: 6.434100623 | AM88: 12.6249147 | AN88: 15.85294569 | AO88: 13.8900629 | AP88: 11.23878607 | AQ88: 14.63367253 | AR88: 12.64837673 | AS88: 10.92321864 | AT88: 8.882590375 | AU88: 11.11706835 | AV88: 9.784445056 | AW88: -1.266062682
D89: 88 | E89: 13.06057626 | F89: 8.855122513 | G89: 10.08181267 | H89: 6.009304406 | I89: 13.3204716 | J89: 12.66705078 | K89: 9.450226913 | L89: 8.989833503 | M89: 16.11126589 | N89: 13.18054307 | O89: 11.65646096 | P89: 11.80897494 | Q89: 7.837453382 | R89: 14.82483579 | S89: 9.52189757 | T89: 7.731369444 | U89: 9.459560991 | V89: 16.62406507 | W89: 9.605127948 | X89: 12.86916029 | Y89: 11.1832557 | Z89: 8.286243345 | AA89: 8.658843576 | AB89: 10.28429129 | AC89: 11.70572095 | AD89: 15.09609117 | AE89: 12.9584778 | AF89: 14.32888573 | AG89: 10.32851521 | AH89: 10.85620054 | AI89: 6.955760501 | AJ89: 9.05857321 | AK89: 6.941079569 | AL89: 6.951629022 | AM89: 12.62882051 | AN89: 6.435083696 | AO89: 5.223380632 | AP89: 12.35754685 | AQ89: 11.23146362 | AR89: 9.321201829 | AS89: 8.537608763 | AT89: 18.54395464 | AU89: 10.42015646 | AV89: 11.02489835 | AW89: 0.7765904502
D90: 89 | E90: 5.684552281 | F90: 14.64671768 | G90: 6.001392921 | H90: 12.34583159 | I90: 12.48142498 | J90: 10.95161057 | K90: 13.15310773 | L90: 10.8827432 | M90: 12.66689903 | N90: 10.52630071 | O90: 10.41108678 | P90: 7.830484537 | Q90: 10.63356666 | R90: 11.49194183 | S90: 7.577208039 | T90: 6.019794223 | U90: 13.80118429 | V90: 11.47682586 | W90: 13.3501031 | X90: 10.5356958 | Y90: 10.62342359 | Z90: 7.182244301 | AA90: 10.44941714 | AB90: 5.220464149 | AC90: 5.424067918 | AD90: 10.39665866 | AE90: 9.244146799 | AF90: 7.143822452 | AG90: 8.616459068 | AH90: 7.050134728 | AI90: 5.022509555 | AJ90: 11.6174396 | AK90: 7.945595233 | AL90: 3.216125427 | AM90: 10.87854202 | AN90: 8.144966078 | AO90: 7.430301633 | AP90: 12.15741443 | AQ90: 8.648851514 | AR90: 5.90133743 | AS90: 14.49350337 | AT90: 4.587026785 | AU90: 8.179439199 | AV90: 8.337835314 | AW90: 2.774383247
D91: 90 | E91: 13.18955913 | F91: 8.724248975 | G91: 1.627630678 | H91: 9.770494785 | I91: 17.38956856 | J91: 6.733539675 | K91: 13.08911921 | L91: 8.646529645 | M91: 7.641869592 | N91: 13.30323714 | O91: 16.21866754 | P91: 12.99744579 | Q91: 7.886704914 | R91: 5.457427735 | S91: 9.281986973 | T91: 7.863594493 | U91: 8.142500383 | V91: 12.48202328 | W91: 12.60367565 | X91: 8.552755219 | Y91: 10.08012897 | Z91: 14.27713066 | AA91: 7.854575598 | AB91: 9.690338366 | AC91: 10.91488596 | AD91: 9.102236418 | AE91: 10.1619448 | AF91: 6.223141757 | AG91: 7.447150953 | AH91: 9.336263434 | AI91: 6.19419997 | AJ91: 7.284204883 | AK91: 6.784368405 | AL91: 7.831508288 | AM91: 9.18196239 | AN91: 9.576135485 | AO91: 10.2688675 | AP91: 12.53301389 | AQ91: 12.35828537 | AR91: 7.37027696 | AS91: 11.45753485 | AT91: 10.96625537 | AU91: 9.126857533 | AV91: 3.795644815 | AW91: 1.002811143
D92: 91 | E92: 14.80035965 | F92: 8.271881066 | G92: 13.00000745 | H92: 6.253154944 | I92: 8.600657846 | J92: 12.67562619 | K92: 10.83186842 | L92: 8.053079926 | M92: 5.355868067 | N92: 9.229523445 | O92: 10.39848187 | P92: 12.71552412 | Q92: 10.4504619 | R92: 8.276857719 | S92: 11.59230955 | T92: 6.794027272 | U92: 7.084448907 | V92: 9.713373149 | W92: 5.603715987 | X92: 10.38234021 | Y92: 9.504178385 | Z92: 6.92042035 | AA92: 13.74056197 | AB92: 9.224795145 | AC92: 12.7759525 | AD92: 10.63248456 | AE92: 6.321215797 | AF92: 4.636084493 | AG92: 12.03548517 | AH92: 6.632928605 | AI92: 7.987956256 | AJ92: 11.89910481 | AK92: 8.508863565 | AL92: 9.427289634 | AM92: 10.2679852 | AN92: 9.276873722 | AO92: 7.040559218 | AP92: 11.83980109 | AQ92: 10.43281208 | AR92: 8.711476796 | AS92: 10.05410514 | AT92: 14.48452242 | AU92: 9.796542909 | AV92: 6.555894147 | AW92: -0.356167349
D93: 92 | E93: 6.980769627 | F93: 8.351922324 | G93: 9.208220115 | H93: 12.08178751 | I93: 9.735137952 | J93: 9.348956389 | K93: 7.470136519 | L93: 15.86167853 | M93: 6.717342387 | N93: 13.80867569 | O93: 9.863291323 | P93: 11.15688603 | Q93: 8.752754529 | R93: 8.792793742 | S93: 10.88516201 | T93: 10.51778695 | U93: 7.768693818 | V93: 11.28733548 | W93: 13.32753877 | X93: 9.288659378 | Y93: 10.06027645 | Z93: 5.625867627 | AA93: 9.76928587 | AB93: 10.48138082 | AC93: 9.594527706 | AD93: 12.53581339 | AE93: 6.026269811 | AF93: 1.72222745 | AG93: 12.66679926 | AH93: 15.32415947 | AI93: 7.135458103 | AJ93: 6.81863549 | AK93: 7.644715662 | AL93: 9.10963649 | AM93: 11.12866352 | AN93: 3.579894526 | AO93: 5.206316398 | AP93: 7.923318629 | AQ93: 12.71011018 | AR93: 8.160351665 | AS93: 9.732416079 | AT93: 5.271825282 | AU93: 8.62709029 | AV93: 11.39785846 | AW93: 1.553425011
D94: 93 | E94: 10.44812241 | F94: 10.36214319 | G94: 9.662707795 | H94: 15.97899603 | I94: 8.853883321 | J94: 9.488713042 | K94: 11.12410008 | L94: 14.86249149 | M94: 6.946882279 | N94: 12.66315772 | O94: 10.18042818 | P94: 8.277098064 | Q94: 5.408668659 | R94: 9.331866488 | S94: 3.232862482 | T94: 10.63207421 | U94: 16.02064796 | V94: 11.61798688 | W94: 9.001747291 | X94: 10.09821498 | Y94: 10.20963963 | Z94: 9.937109576 | AA94: 8.285701973 | AB94: 8.074595092 | AC94: 4.01502678 | AD94: 6.533888511 | AE94: 12.41895128 | AF94: 9.631165997 | AG94: 11.95989894 | AH94: 11.87884314 | AI94: 14.07920573 | AJ94: 11.92620268 | AK94: 9.082533477 | AL94: 12.67342609 | AM94: 14.87957922 | AN94: 15.23574907 | AO94: 12.58993232 | AP94: 14.07664772 | AQ94: 11.70038847 | AR94: 4.797307327 | AS94: 10.1571761 | AT94: 14.82474952 | AU94: 10.94104847 | AV94: 10.85676578 | AW94: -0.7173109946
D95: 94 | E95: 11.02666586 | F95: 9.234566418 | G95: 4.520246818 | H95: 7.191419206 | I95: 10.50419715 | J95: 7.498953722 | K95: 10.18444941 | L95: 12.67854847 | M95: 5.363762677 | N95: 8.078221627 | O95: 8.814489156 | P95: 6.188969825 | Q95: 6.587204351 | R95: 8.595487436 | S95: 5.443506028 | T95: =NORMINV(RAND(), $B$3, SQRT($B$4)) -> 7.758841163 | U95: 6.802113257 | V95: 15.3753569 | W95: 15.2125238 | X95: 7.726815373 | Y95: 8.739316932 | Z95: 9.12987878 | AA95: 9.856191995 | AB95: 9.271628937 | AC95: 13.57701443 | AD95: 9.983248427 | AE95: 13.10766261 | AF95: 9.534464942 | AG95: 9.03680145 | AH95: 6.060655151 | AI95: 13.24801679 | AJ95: 10.49430586 | AK95: 6.201639211 | AL95: 15.36703857 | AM95: 14.23128228 | AN95: 11.93506174 | AO95: 11.65310276 | AP95: =NORMINV(RAND(), $B$3, SQRT($B$4)) -> 13.01623887 | AQ95: 12.11950592 | AR95: 5.930601864 | AS95: 12.3506385 | AT95: 8.903818556 | AU95: 10.79394594 | AV95: 7.491824944 | AW95: -2.253775458
D96: 95 | E96: =NORMINV(RAND(), $B$3, SQRT($B$4)) -> 9.720557691 | F96: 5.042335076 | G96: 11.51584058 | H96: 4.860970328 | I96: 13.2688001 | J96: 9.702570268 | K96: 9.954405927 | L96: 10.59040343 | M96: 15.11343756 | N96: 4.552370431 | O96: 7.453925442 | P96: 7.716413927 | Q96: 12.17478562 | R96: 12.42972482 | S96: 7.484513511 | T96: 9.643951215 | U96: 7.859541573 | V96: 12.70246707 | W96: 12.41721536 | X96: 7.649064791 | Y96: 9.592664736 | Z96: 8.8964868 | AA96: =NORMINV(RAND(), $B$3, SQRT($B$4)) -> 7.731450176 | AB96: 14.12292651 | AC96: 17.36012815 | AD96: 11.36750326 | AE96: 15.7461521 | AF96: 6.989328997 | AG96: 8.451601158 | AH96: 6.284076124 | AI96: 9.629339636 | AJ96: 9.958574594 | AK96: 9.645561917 | AL96: 7.308568533 | AM96: 13.75252425 | AN96: 7.128921947 | AO96: 7.970109672 | AP96: 11.09393135 | AQ96: 13.08750939 | AR96: 8.71967282 | AS96: 9.196020372 | AT96: 14.27055818 | AU96: 10.49072296 | AV96: 10.36128688 | AW96: -0.9152009268
D97: 96 | E97: 9.000664534 | F97: 9.515606245 | G97: 10.28781649 | H97: 13.61976302 | I97: 12.57596857 | J97: 11.64240475 | K97: 5.623906329 | L97: 12.42385785 | M97: 5.952757836 | N97: 7.596311112 | O97: 9.926418145 | P97: 13.62895152 | Q97: 12.49523277 | R97: 7.967252256 | S97: 15.15641765 | T97: 13.83964771 | U97: 7.021041634 | V97: 6.689803622 | W97: 13.31203141 | X97: 8.08073319 | Y97: 10.31782933 | Z97: 8.85600117 | AA97: 6.629508948 | AB97: 16.77439833 | AC97: 9.663230268 | AD97: 14.70953635 | AE97: 4.913758854 | AF97: 10.52389068 | AG97: 6.517534969 | AH97: 13.23426438 | AI97: 10.8369648 | AJ97: 11.29078806 | AK97: 7.706118095 | AL97: 11.99882815 | AM97: 12.37704603 | AN97: 8.265796404 | AO97: 12.77226823 | AP97: 8.59531467 | AQ97: 12.02347511 | AR97: 13.47161435 | AS97: 6.362420353 | AT97: 11.34800738 | AU97: 10.50073822 | AV97: 9.705228125 | AW97: -0.1898656674
D98: 97 | E98: 8.525401348 | F98: 8.055929021 | G98: 12.13322216 | H98: 11.42309778 | I98: 10.74740538 | J98: 10.47768697 | K98: 8.202715382 | L98: 7.185479767 | M98: 12.299837 | N98: 10.24393183 | O98: 8.95390226 | P98: 8.397448995 | Q98: 12.49252353 | R98: 12.56029888 | S98: 9.085982281 | T98: 14.0255752 | U98: 10.91324298 | V98: 17.52678255 | W98: 9.793424987 | X98: 7.676986323 | Y98: 10.53604373 | Z98: 6.340350552 | AA98: 7.914517108 | AB98: 14.48587641 | AC98: 6.858626423 | AD98: 10.40274174 | AE98: 5.113267157 | AF98: 10.8187947 | AG98: 5.484662799 | AH98: 11.1330046 | AI98: 10.50265809 | AJ98: 13.69925113 | AK98: 7.675560913 | AL98: 9.804117032 | AM98: 3.988163489 | AN98: 7.594111534 | AO98: 4.160508146 | AP98: 13.39514732 | AQ98: 13.3323242 | AR98: 9.546913539 | AS98: 11.82520468 | AT98: 11.90082652 | AU98: 9.481813877 | AV98: 10.5549913 | AW98: 1.147008976
D99: 98 | E99: 7.45026254 | F99: 11.92399572 | G99: 7.888452443 | H99: 8.770674426 | I99: 5.235456449 | J99: 5.838207225 | K99: 12.05496291 | L99: 11.3967378 | M99: 8.055887498 | N99: 8.160943223 | O99: 8.758362099 | P99: 10.17669767 | Q99: 8.835931496 | R99: 11.34669063 | S99: 10.04365108 | T99: 6.263879484 | U99: 11.95023958 | V99: 4.762939774 | W99: 4.006758891 | X99: 12.82696866 | Y99: 8.78738498 | Z99: 7.050730675 | AA99: 18.04171636 | AB99: 9.482342365 | AC99: 10.45035413 | AD99: 8.975839767 | AE99: 11.33607358 | AF99: 15.5631837 | AG99: 9.580472802 | AH99: 11.5539561 | AI99: 11.49041429 | AJ99: 12.83857966 | AK99: 10.94622568 | AL99: 9.03424053 | AM99: 6.830996247 | AN99: 10.75093305 | AO99: 7.493433097 | AP99: 11.15744372 | AQ99: 10.36425283 | AR99: -3.454742487 | AS99: 11.20826444 | AT99: 5.010315678 | AU99: 9.932714777 | AV99: 17.85677932 | AW99: -1.026314348
D100: 99 | E100: 3.784817142 | F100: 4.405834378 | G100: 10.85295131 | H100: 11.01247301 | I100: 10.37707047 | J100: 15.2139134 | K100: 10.3688985 | L100: 10.91453145 | M100: 9.982171046 | N100: 10.61560455 | O100: 7.841953134 | P100: 14.34812598 | Q100: 12.22027926 | R100: 11.96932046 | S100: 11.06002103 | T100: 12.1046624 | U100: 9.316092658 | V100: 7.566078195 | W100: 16.16784672 | X100: 10.98110542 | Y100: 10.55518753 | Z100: 9.34268681 | AA100: 12.81947871 | AB100: 7.327856777 | AC100: 12.38576571 | AD100: 10.9403489 | AE100: 10.68622198 | AF100: 2.322382886 | AG100: 3.443496674 | AH100: 14.71138084 | AI100: 9.949961952 | AJ100: 14.62113313 | AK100: 6.426632747 | AL100: 6.212723233 | AM100: 4.736751202 | AN100: 9.198345839 | AO100: 13.27044488 | AP100: 12.3497874 | AQ100: 8.051857348 | AR100: 12.01774826 | AS100: 9.400086469 | AT100: 8.542760029 | AU100: 9.470758249 | AV100: 12.84458483 | AW100: 1.029589918
D101: 100 | E101: 11.17422152 | F101: 13.76293753 | G101: 11.61548564 | H101: 15.35185137 | I101: 9.55787163 | J101: 14.55039064 | K101: 9.403589239 | L101: 7.115101819 | M101: 9.96140213 | N101: 3.982489617 | O101: 11.17588587 | P101: 10.19961671 | Q101: 8.182367302 | R101: 8.067298316 | S101: 6.637910007 | T101: 8.502407719 | U101: 10.32355949 | V101: 11.50959227 | W101: 6.616226086 | X101: 10.90414519 | Y101: 9.929717506 | Z101: 7.84961478 | AA101: 13.59650483 | AB101: 16.56081348 | AC101: 8.649520528 | AD101: 9.743829475 | AE101: 3.634272301 | AF101: 6.538687198 | AG101: 6.934397197 | AH101: 16.17863971 | AI101: 12.58574373 | AJ101: 7.028765148 | AK101: 9.028786476 | AL101: 4.949872408 | AM101: 8.516982801 | AN101: 11.88990449 | AO101: 11.47711077 | AP101: 9.289518667 | AQ101: 9.991604915 | AR101: 13.03521318 | AS101: 9.546140985 | AT101: 8.038209118 | AU101: 9.86072587 | AV101: 11.64439732 | AW101: 0.06988127564
D102: 101 | E102: 15.67193587 | F102: 8.841616124 | G102: 9.436979486 | H102: 6.863916755 | I102: 10.26067944 | J102: 5.383345852 | K102: 10.13523159 | L102: 14.25322869 | M102: 17.47389766 | N102: 14.87495141 | O102: 10.511527 | P102: 6.868676886 | Q102: 11.81311434 | R102: 11.61296944 | S102: 12.16711757 | T102: 15.05798411 | U102: 10.19669858 | V102: 10.98251391 | W102: 11.15333824 | X102: 11.89629773 | Y102: 11.27280103 | Z102: 9.607574602 | AA102: 4.367874201 | AB102: 8.338381004 | AC102: 12.01309505 | AD102: 9.455619448 | AE102: 2.939765505 | AF102: 8.314891086 | AG102: 8.890467922 | AH102: 8.504814672 | AI102: 5.312496575 | AJ102: 9.893114885 | AK102: 11.89257254 | AL102: 8.266722535 | AM102: 8.665966976 | AN102: 13.77956813 | AO102: 10.2204636 | AP102: 10.40712504 | AQ102: 7.638544847 | AR102: 6.462556693 | AS102: 7.687779562 | AT102: 9.183207238 | AU102: 8.611751375 | AV102: 6.599578816 | AW102: 2.956069262
D103: 102 | E103: 13.2701148 | F103: 11.08249721 | G103: 10.82317603 | H103: 20.50585338 | I103: 15.65730896 | J103: 8.313604842 | K103: 10.76103679 | L103: 11.088508 | M103: 10.74712043 | N103: 11.83205912 | O103: 9.189382012 | P103: 12.66056665 | Q103: 13.29818133 | R103: 6.56329613 | S103: 6.280387918 | T103: 10.03070498 | U103: 9.335838753 | V103: 10.07777952 | W103: 11.2603107 | X103: 5.812764871 | Y103: 10.92952462 | Z103: 11.05226431 | AA103: 9.505496415 | AB103: 7.610397749 | AC103: 7.652879102 | AD103: 21.10815097 | AE103: 15.06743755 | AF103: 11.24494083 | AG103: 9.146865823 | AH103: 10.17549436 | AI103: 9.877823734 | AJ103: 10.19793329 | AK103: 7.064044132 | AL103: 7.954862732 | AM103: 7.845457591 | AN103: 4.099538913 | AO103: 10.36302214 | AP103: 10.11070168 | AQ103: 12.2904175 | AR103: 8.100874062 | AS103: 7.65524737 | AT103: 11.51478431 | AU103: 9.929318513 | AV103: 12.20239141 | AW103: 0.9275760858
D104: 103 | E104: 6.035365078 | F104: 7.443114728 | G104: 13.74872322 | H104: 9.910013633 | I104: 10.59128785 | J104: 11.17840321 | K104: 12.73008409 | L104: 10.89196283 | M104: 9.887848615 | N104: 13.21894716 | O104: 4.810654759 | P104: 13.8495107 | Q104: 5.046610966 | R104: 6.399484409 | S104: 8.348361597 | T104: 4.188812029 | U104: 11.05670613 | V104: 9.214140424 | W104: 13.31323938 | X104: 5.871434894 | Y104: 9.386735285 | Z104: 10.24520999 | AA104: 13.14441214 | AB104: 0.7010921809 | AC104: 8.265632175 | AD104: 7.747858952 | AE104: 6.190304616 | AF104: 2.24734844 | AG104: 11.6318787 | AH104: 10.66127845 | AI104: 9.226774461 | AJ104: 13.99044469 | AK104: 6.514207101 | AL104: 7.959716773 | AM104: 9.470070966 | AN104: 5.886118322 | AO104: 3.378288946 | AP104: 12.20517071 | AQ104: 11.99853364 | AR104: 5.665889503 | AS104: 8.893487344 | AT104: 9.73916908 | AU104: 8.27588386 | AV104: 12.92232257 | AW104: 1.032122114
D105: 104 | E105: 10.70694869 | F105: 8.028953223 | G105: 12.12461939 | H105: 8.150863483 | I105: 12.45169909 | J105: 6.820111626 | K105: 6.81699414 | L105: 14.10370368 | M105: 15.81843627 | N105: 8.515169882 | O105: 9.769851248 | P105: 5.808805596 | Q105: 9.156532737 | R105: 6.171065603 | S105: 12.0753744 | T105: 9.570488319 | U105: 9.866692818 | V105: 9.735829605 | W105: 8.005817306 | X105: 12.66256631 | Y105: 9.818026171 | Z105: 7.339245798 | AA105: 6.038893229 | AB105: 12.06955955 | AC105: 19.51311893 | AD105: 6.514336483 | AE105: 13.48012757 | AF105: 9.264936891 | AG105: 9.475672732 | AH105: 6.055063817 | AI105: 10.06688532 | AJ105: 7.468602093 | AK105: 8.095034365 | AL105: 13.42373709 | AM105: 17.06441426 | AN105: 11.03556305 | AO105: 7.33882701 | AP105: 8.611584049 | AQ105: 5.89290353 | AR105: 9.216154737 | AS105: 5.336423791 | AT105: 11.79419743 | AU105: 9.887801796 | AV105: 14.47694443 | AW105: -0.06680812419
D106: 105 | E106: 14.72984302 | F106: 9.363179858 | G106: 8.994163247 | H106: 12.14498253 | I106: 8.861497445 | J106: 9.500072704 | K106: 7.087160545 | L106: 10.65458214 | M106: 4.244430512 | N106: 10.505911 | O106: 6.086093967 | P106: 12.60947101 | Q106: 12.60281194 | R106: 4.013556181 | S106: 11.37793932 | T106: 13.56959142 | U106: 15.13331007 | V106: 7.529138124 | W106: 9.608657324 | X106: 11.50755507 | Y106: 10.00619737 | Z106: 9.81543884 | AA106: 10.0940252 | AB106: 8.509877647 | AC106: 12.66090809 | AD106: 13.92816658 | AE106: 12.01279535 | AF106: 4.785215682 | AG106: 8.947427342 | AH106: 11.44974157 | AI106: 10.49573365 | AJ106: 12.50145922 | AK106: 14.59159717 | AL106: 6.326713714 | AM106: 10.24130604 | AN106: 8.355937539 | AO106: 6.498854041 | AP106: 9.613862223 | AQ106: 3.998793253 | AR106: 12.51006934 | AS106: 19.05832338 | AT106: 6.120767814 | AU106: 10.13507874 | AV106: 13.39442224 | AW106: -0.1196379262
D107: 106 | E107: 3.915877311 | F107: 8.638004922 | G107: 6.980782227 | H107: 10.15098364 | I107: 7.069728854 | J107: 11.60306014 | K107: 11.62445869 | L107: 5.794906298 | M107: 11.68097788 | N107: 4.666113358 | O107: 11.47609693 | P107: 8.660869045 | Q107: 10.89373649 | R107: 8.169195522 | S107: 7.270741751 | T107: 12.07899833 | U107: 4.660161659 | V107: 5.745555409 | W107: 10.39538109 | X107: 12.29101288 | Y107: 8.688332121 | Z107: 7.803561537 | AA107: 9.765399311 | AB107: 12.09892575 | AC107: 13.49693725 | AD107: 4.608107664 | AE107: 7.170190168 | AF107: 11.74676577 | AG107: 11.29225507 | AH107: 15.15584635 | AI107: 10.46188777 | AJ107: 12.40881058 | AK107: 7.455530261 | AL107: 9.266694747 | AM107: 11.83321091 | AN107: 14.45931224 | AO107: 6.167503481 | AP107: 9.603202314 | AQ107: 10.59063459 | AR107: 7.934009939 | AS107: 3.237003059 | AT107: 10.66621351 | AU107: 9.970922037 | AV107: 9.840783582 | AW107: -1.36552623
D108: 107 | E108: 8.078288004 | F108: 8.658803485 | G108: 7.231382849 | H108: 11.89183501 | I108: 5.30855445 | J108: 3.004137055 | K108: 9.112580055 | L108: 12.37070239 | M108: 10.24004125 | N108: 10.39073023 | O108: 4.831079772 | P108: 9.505519446 | Q108: 9.963785953 | R108: 11.32985703 | S108: 13.61840941 | T108: 12.88956261 | U108: 12.7375849 | V108: 9.927382552 | W108: 5.801824085 | X108: 5.937880684 | Y108: 9.141497061 | Z108: 9.019209968 | AA108: 7.799476733 | AB108: 8.169714233 | AC108: 8.114749236 | AD108: 10.67677293 | AE108: 4.095071036 | AF108: 12.31474772 | AG108: 4.314411814 | AH108: 12.16133065 | AI108: 5.879634313 | AJ108: 13.6880527 | AK108: 12.79336011 | AL108: 8.426787714 | AM108: 8.950721491 | AN108: 5.248570026 | AO108: 12.4000929 | AP108: 10.24032298 | AQ108: 14.73088955 | AR108: 10.94254983 | AS108: 12.67971139 | AT108: 10.74109021 | AU108: 9.718402879 | AV108: 9.957582586 | AW108: -0.5922546934
D109: 108 | E109: 10.21121396 | F109: 9.435553025 | G109: 10.8839977 | H109: 3.844057669 | I109: 11.70334401 | J109: 10.82620699 | K109: 15.7778799 | L109: 8.053252202 | M109: 9.866925009 | N109: 9.634713606 | O109: 9.396056876 | P109: 4.830936374 | Q109: 4.924045315 | R109: 12.65774092 | S109: 9.360191194 | T109: -0.2099783575 | U109: 4.981150052 | V109: 8.325711515 | W109: 8.052416254 | X109: 12.34697552 | Y109: 8.745119486 | Z109: 13.17442147 | AA109: 8.463329998 | AB109: 12.19699107 | AC109: 12.0981134 | AD109: 6.755591866 | AE109: 11.27790074 | AF109: 8.767187251 | AG109: 11.38012267 | AH109: 7.974259811 | AI109: 5.058820409 | AJ109: 12.23017878 | AK109: 7.061317636 | AL109: 13.06532203 | AM109: 13.94479637 | AN109: 6.73036934 | AO109: 13.77355893 | AP109: 7.150329918 | AQ109: 14.94235003 | AR109: 8.699477162 | AS109: 10.63884793 | AT109: 9.966762524 | AU109: 10.10878139 | AV109: 8.084296363 | AW109: -1.322675085
D110: 109 | E110: 6.624909712 | F110: 7.827374432 | G110: 11.01518607 | H110: 8.501212994 | I110: 9.547942735 | J110: 6.539625315 | K110: 15.85822607 | L110: 10.99187258 | M110: 13.95478355 | N110: 9.763316436 | O110: 10.67506795 | P110: 12.46805715 | Q110: 8.636181143 | R110: 14.93484587 | S110: 6.390080388 | T110: 15.78015828 | U110: 11.07254097 | V110: 4.892961766 | W110: 8.924389091 | X110: 8.866010173 | Y110: 10.16323713 | Z110: 10.04787433 | AA110: 11.73214423 | AB110: 8.810516815 | AC110: 11.33198015 | AD110: 9.109861128 | AE110: 8.484274861 | AF110: 12.45426999 | AG110: 10.57343028 | AH110: 8.652872 | AI110: 7.418630656 | AJ110: 13.02507248 | AK110: 15.48000947 | AL110: 8.608384085 | AM110: 10.88425097 | AN110: 8.647228853 | AO110: 14.45804101 | AP110: 12.53749108 | AQ110: 3.909396611 | AR110: 10.40953464 | AS110: 7.945144099 | AT110: 8.285788714 | AU110: 10.13791611 | AV110: 7.273492974 | AW110: 0.02720854103
D111: 110 | E111: 9.587696408 | F111: 8.083409108 | G111: 7.315138097 | H111: 10.73429621 | I111: 3.825084742 | J111: 9.323436972 | K111: 9.88599535 | L111: 8.128577317 | M111: 8.125238467 | N111: 10.27109947 | O111: 17.10240234 | P111: 10.05717803 | Q111: 7.509794702 | R111: 12.10629972 | S111: 10.71053632 | T111: =NORMINV(RAND(), $B$3, SQRT($B$4)) -> 6.811038087 | U111: 3.579832464 | V111: 6.754397182 | W111: 9.822160926 | X111: 9.091530808 | Y111: 8.941257136 | Z111: 8.380621202 | AA111: 12.6726741 | AB111: 8.125016374 | AC111: 5.446293177 | AD111: 8.599891376 | AE111: 14.91312754 | AF111: 9.531525281 | AG111: 11.86318914 | AH111: 7.452938565 | AI111: 9.731070269 | AJ111: 12.38866695 | AK111: 13.96420848 | AL111: 13.54288946 | AM111: 4.643666332 | AN111: 10.4887524 | AO111: 4.533138904 | AP111: =NORMINV(RAND(), $B$3, SQRT($B$4)) -> 15.97832778 | AQ111: 6.668037092 | AR111: 10.05493248 | AS111: 13.12738602 | AT111: 8.040429284 | AU111: 10.08830805 | AV111: 11.62333189 | AW111: -1.146937571
D112: 111 | E112: =NORMINV(RAND(), $B$3, SQRT($B$4)) -> 11.34359954 | F112: 11.24846975 | G112: 14.18359705 | H112: 9.981202596 | I112: 7.184486401 | J112: 8.210560634 | K112: 11.69927014 | L112: 14.36746237 | M112: 8.647458933 | N112: 8.956978158 | O112: 11.82886114 | P112: 13.28557968 | Q112: 4.410935318 | R112: 6.121622833 | S112: 14.65483234 | T112: 9.584134653 | U112: 19.03295132 | V112: 7.150340657 | W112: 5.549927508 | X112: 9.830110122 | Y112: 10.36361906 | Z112: 12.94934318 | AA112: =NORMINV(RAND(), $B$3, SQRT($B$4)) -> 7.740579676 | AB112: 9.714249712 | AC112: 11.38077655 | AD112: 13.01644967 | AE112: 7.390319988 | AF112: 12.54547447 | AG112: 8.225997611 | AH112: 10.14427629 | AI112: 8.905909387 | AJ112: 13.69368917 | AK112: 7.490505503 | AL112: 16.5805653 | AM112: 7.47760992 | AN112: 9.86397652 | AO112: 7.661542757 | AP112: 6.556113062 | AQ112: 13.51117372 | AR112: 8.422825135 | AS112: 13.88358484 | AT112: 14.91884703 | AU112: 10.45622332 | AV112: 8.98587897 | AW112: -0.08842497276
D113: 112 | E113: 7.982839288 | F113: 17.27766098 | G113: 7.524610331 | H113: 11.07070002 | I113: 12.04263417 | J113: 9.934846016 | K113: 0.7287082514 | L113: 5.928424649 | M113: 9.671765178 | N113: 4.90004501 | O113: 13.62332988 | P113: 11.92959653 | Q113: 7.832488376 | R113: 6.720815861 | S113: 7.327294856 | T113: 9.473477846 | U113: 13.27002408 | V113: 8.272032619 | W113: 11.9981986 | X113: 14.8290126 | Y113: 9.616925257 | Z113: 14.46923441 | AA113: 7.39764725 | AB113: 9.933089111 | AC113: 9.990386678 | AD113: 7.524688476 | AE113: 8.365760315 | AF113: 6.479528092 | AG113: 6.711069775 | AH113: 9.967583353 | AI113: 7.895538237 | AJ113: 13.59370387 | AK113: 8.462499865 | AL113: 11.1615996 | AM113: 12.78544492 | AN113: 9.308286385 | AO113: 10.28987277 | AP113: 15.16454814 | AQ113: 7.772916603 | AR113: 15.02152729 | AS113: 7.735485688 | AT113: 7.558141889 | AU113: 9.655965915 | AV113: 7.038744047 | AW113: -0.03764716959
D114: 113 | E114: 15.43474346 | F114: 4.633317895 | G114: 3.388975756 | H114: 4.640709766 | I114: 7.250241194 | J114: 11.11834661 | K114: 16.43874828 | L114: 9.787128818 | M114: 11.93606944 | N114: 9.483149394 | O114: 15.14274529 | P114: 11.0860888 | Q114: 8.951060768 | R114: 10.30020888 | S114: 9.983975671 | T114: 13.90865738 | U114: 11.64282873 | V114: 10.35940004 | W114: 8.706863932 | X114: 11.31398111 | Y114: 10.27536206 | Z114: 12.31060552 | AA114: 15.12658373 | AB114: 14.07446908 | AC114: 13.5858178 | AD114: 8.59723348 | AE114: 8.664532234 | AF114: 4.554633929 | AG114: 8.327355502 | AH114: 14.27182429 | AI114: 11.21726539 | AJ114: 10.81343946 | AK114: 5.693360652 | AL114: 12.23810742 | AM114: 2.127132047 | AN114: 9.094741603 | AO114: 7.042886032 | AP114: 9.936835682 | AQ114: 12.32625302 | AR114: 8.205924007 | AS114: 8.832921527 | AT114: 5.776502212 | AU114: 9.525390955 | AV114: 12.14555497 | AW114: 0.6782118774
D115: 114 | E115: 16.49773374 | F115: 1.29323148 | G115: 15.38505831 | H115: 13.50667966 | I115: 9.04486172 | J115: 11.37679245 | K115: 16.709617 | L115: 16.19765646 | M115: 7.178001652 | N115: 15.21484914 | O115: 6.268917289 | P115: 9.695766227 | Q115: 5.668015209 | R115: 12.59656362 | S115: 14.14130507 | T115: 7.33452268 | U115: 8.371650124 | V115: 12.45810755 | W115: 15.94591347 | X115: 7.746378796 | Y115: 11.13158108 | Z115: 19.36916003 | AA115: 12.01212548 | AB115: 12.90434918 | AC115: 5.968599418 | AD115: 7.876121812 | AE115: 13.14995945 | AF115: 11.45503147 | AG115: 14.29829611 | AH115: 12.34567987 | AI115: 13.20804896 | AJ115: 11.20602603 | AK115: 10.23055568 | AL115: 9.531780596 | AM115: 9.902405 | AN115: 10.11930598 | AO115: 12.12889495 | AP115: 7.556216352 | AQ115: 9.571846348 | AR115: 12.90831888 | AS115: 13.17863638 | AT115: 9.909890166 | AU115: 10.97310441 | AV115: 4.822378934 | AW115: 0.1440948968
D116: 115 | E116: 9.324898749 | F116: 8.868814322 | G116: 13.87545571 | H116: 10.91611646 | I116: 8.059804637 | J116: 1.693835248 | K116: 13.14140047 | L116: 11.84295497 | M116: 10.21273726 | N116: 8.245594224 | O116: 7.087924334 | P116: 4.621365505 | Q116: 7.043577006 | R116: 13.10408039 | S116: 11.84631023 | T116: 8.874459978 | U116: 10.11249165 | V116: 13.76639047 | W116: 11.44640865 | X116: 8.911067893 | Y116: 9.649784408 | Z116: 9.590690928 | AA116: 6.400448129 | AB116: 10.65973433 | AC116: 8.668965859 | AD116: 13.89654954 | AE116: 13.70719819 | AF116: 11.81360853 | AG116: 8.722579076 | AH116: 12.37230896 | AI116: 2.009054496 | AJ116: 3.417954557 | AK116: 8.668096222 | AL116: 7.984588492 | AM116: 2.770444758 | AN116: 13.99844054 | AO116: 7.583928458 | AP116: 9.608199117 | AQ116: 10.75108435 | AR116: 12.44881678 | AS116: 9.991481229 | AT116: 11.28618463 | AU116: 9.337983313 | AV116: 12.70252965 | AW116: 0.2953290904
D117: 116 | E117: 14.88796706 | F117: 9.834096096 | G117: 9.004671728 | H117: 7.788088583 | I117: 12.35831654 | J117: 11.11468309 | K117: 12.00025417 | L117: 5.101238328 | M117: 7.875004447 | N117: 15.22968029 | O117: 14.35980043 | P117: 7.569743211 | Q117: 8.765007571 | R117: 10.27482269 | S117: 8.021327828 | T117: 9.774847706 | U117: 10.56573877 | V117: 13.34590411 | W117: 12.34899946 | X117: 8.643701621 | Y117: 10.44319469 | Z117: 7.468201221 | AA117: 9.494243261 | AB117: 9.111952118 | AC117: 10.83125499 | AD117: 15.14556138 | AE117: 15.22992283 | AF117: 9.297565193 | AG117: 10.20529906 | AH117: 13.07895154 | AI117: 10.18834214 | AJ117: 9.853835314 | AK117: 14.28280461 | AL117: 10.08563661 | AM117: 11.98551046 | AN117: 11.05848877 | AO117: 7.416773756 | AP117: 12.61357827 | AQ117: 12.33374037 | AR117: 9.460860235 | AS117: 11.71875522 | AT117: 4.158310042 | AU117: 10.87756931 | AV117: 6.840358309 | AW117: -0.5135485246
D118: 117 | E118: 12.18458163 | F118: 11.60420484 | G118: 8.714937414 | H118: 7.617359072 | I118: 10.93600796 | J118: 8.624602897 | K118: 8.128863178 | L118: 12.00794389 | M118: 14.92379518 | N118: 9.099467549 | O118: 13.95189954 | P118: 11.69594389 | Q118: 13.769122 | R118: 12.18722561 | S118: 8.15406652 | T118: 8.399280199 | U118: 7.560365705 | V118: 11.60147667 | W118: 9.071748164 | X118: 9.405021431 | Y118: 10.48189567 | Z118: 5.187960154 | AA118: 6.160994751 | AB118: 12.04757507 | AC118: 12.59377435 | AD118: 8.224005202 | AE118: 9.03571814 | AF118: 3.638612011 | AG118: 12.53618193 | AH118: 12.03977508 | AI118: 8.093028369 | AJ118: 17.88851546 | AK118: 13.33177542 | AL118: 15.93419797 | AM118: 13.14492418 | AN118: 7.620768132 | AO118: 16.19156861 | AP118: 13.26951871 | AQ118: 12.56177143 | AR118: 6.526822547 | AS118: 7.785366678 | AT118: 4.502892536 | AU118: 10.65638933 | AV118: 15.93110785 | AW118: -0.1698076612
D119: 118 | E119: 8.019240945 | F119: 14.37086408 | G119: 14.75943348 | H119: 12.54293594 | I119: 10.90684733 | J119: 12.84275814 | K119: 6.395565482 | L119: 9.092452804 | M119: 10.41251041 | N119: 12.14733187 | O119: 13.19110664 | P119: 7.202474272 | Q119: 11.70303095 | R119: 15.86079739 | S119: 9.111544613 | T119: 10.55947705 | U119: 7.720470532 | V119: 9.857529503 | W119: 6.012093005 | X119: 8.671828062 | Y119: 10.56901462 | Z119: 8.021916145 | AA119: 9.443779518 | AB119: 5.895338073 | AC119: 10.16767863 | AD119: 7.889807976 | AE119: 7.394137899 | AF119: 12.67375366 | AG119: 8.403992774 | AH119: 6.227877268 | AI119: 7.845027603 | AJ119: 8.862829007 | AK119: 7.622830794 | AL119: 10.30764842 | AM119: 2.244829844 | AN119: 8.339380775 | AO119: 11.31044434 | AP119: 15.82449016 | AQ119: 6.964885788 | AR119: 2.927442981 | AS119: 12.09062093 | AT119: 7.392831468 | AU119: 8.491481395 | AV119: 9.866717602 | AW119: 2.196718414
D120: 119 | E120: 13.02418681 | F120: 5.02552609 | G120: 12.33779345 | H120: 6.747882134 | I120: 13.42313735 | J120: 12.66513457 | K120: 13.59988344 | L120: 13.84673329 | M120: 13.88291973 | N120: 7.571078333 | O120: 6.868531877 | P120: 10.83197102 | Q120: 12.24180273 | R120: 6.271795885 | S120: 8.03975173 | T120: 9.120618809 | U120: 12.58436323 | V120: 10.60287545 | W120: 9.701147546 | X120: 9.352847737 | Y120: 10.38699906 | Z120: 8.214799193 | AA120: 5.563552908 | AB120: 11.62799752 | AC120: 8.462815162 | AD120: 9.217151291 | AE120: 5.643392829 | AF120: 13.77871019 | AG120: 6.71369414 | AH120: 13.75263199 | AI120: 6.141226936 | AJ120: 15.13877762 | AK120: 9.540949129 | AL120: 13.3038339 | AM120: 12.55404115 | AN120: 12.27128145 | AO120: 14.1396549 | AP120: 13.99066019 | AQ120: 13.75181077 | AR120: 8.248054867 | AS120: 16.70169773 | AT120: 6.645340943 | AU120: 10.85936378 | AV120: 12.58725735 | AW120: -0.4631688215
D121: 120 | E121: 9.848935707 | F121: 12.40700744 | G121: 10.29248509 | H121: 14.11488538 | I121: 9.25070491 | J121: 8.065833977 | K121: 3.395358561 | L121: 6.14264809 | M121: 7.627831542 | N121: 9.496642377 | O121: 6.676714767 | P121: 5.439902492 | Q121: 3.873952932 | R121: 10.72120723 | S121: 11.13176941 | T121: 3.655299003 | U121: 8.836816379 | V121: 4.978275318 | W121: 14.25448042 | X121: 9.734217052 | Y121: 8.497248403 | Z121: 10.65883849 | AA121: 13.57862348 | AB121: 16.21410675 | AC121: 7.664660356 | AD121: 9.768919827 | AE121: 4.915684523 | AF121: 10.49868728 | AG121: 11.24438319 | AH121: 5.681671047 | AI121: 9.999392736 | AJ121: 6.950982577 | AK121: 6.477072157 | AL121: 13.25994716 | AM121: 7.642167754 | AN121: 8.537636515 | AO121: 13.03820623 | AP121: 10.63502649 | AQ121: 9.173511932 | AR121: 11.24873325 | AS121: 11.41537595 | AT121: 10.56610282 | AU121: 9.925544602 | AV121: 8.281379539 | AW121: -1.467711818
D122: 121 | E122: 7.837647551 | F122: 11.80829913 | G122: 11.00165983 | H122: 11.07965809 | I122: 12.61181485 | J122: 5.187189177 | K122: 10.87520443 | L122: 13.10623812 | M122: 8.617580348 | N122: 8.798187308 | O122: 10.59297859 | P122: 13.39496201 | Q122: 8.568648531 | R122: 8.372188648 | S122: 7.141642201 | T122: 16.3404115 | U122: 4.98852178 | V122: 10.87764463 | W122: 6.796548497 | X122: 12.17673134 | Y122: 10.00868783 | Z122: 8.405286245 | AA122: 6.832894891 | AB122: 10.37284953 | AC122: 9.020464241 | AD122: 10.48499967 | AE122: 5.465819665 | AF122: 11.00518854 | AG122: 6.542913234 | AH122: 4.701944333 | AI122: 7.02947188 | AJ122: 8.056646818 | AK122: 13.52397707 | AL122: 6.842531157 | AM122: 11.1024968 | AN122: 4.800006023 | AO122: 9.444547866 | AP122: 7.975905595 | AQ122: 12.52495085 | AR122: 12.21041106 | AS122: 3.575511044 | AT122: 9.318767143 | AU122: 8.54161487 | AV122: 7.950821883 | AW122: 1.622283396
D123: 122 | E123: 5.406407656 | F123: 10.70171636 | G123: 17.35144139 | H123: 8.189965578 | I123: 12.5978135 | J123: 14.12725803 | K123: 6.387944806 | L123: 2.094800206 | M123: 10.9088658 | N123: 12.39615981 | O123: 11.58461106 | P123: 12.54014379 | Q123: 6.793837352 | R123: 7.358610967 | S123: 6.406804016 | T123: 1.874550405 | U123: 11.42454688 | V123: 10.67696389 | W123: 11.78149719 | X123: 9.8405604 | Y123: 9.522224954 | Z123: 15.31990338 | AA123: 7.312896084 | AB123: 9.493370452 | AC123: 11.53026871 | AD123: 9.538408502 | AE123: 9.223271295 | AF123: 10.55228904 | AG123: 5.700404907 | AH123: 9.664615393 | AI123: 7.420735501 | AJ123: 5.923611161 | AK123: 6.715587358 | AL123: 6.502538023 | AM123: 10.23878285 | AN123: 9.036747096 | AO123: 9.065426988 | AP123: 14.73303532 | AQ123: 3.879054826 | AR123: 11.4478952 | AS123: 4.849675257 | AT123: 16.3366926 | AU123: 8.958265327 | AV123: 9.717161509 | AW123: 0.5040473137
D124: 123 | E124: 2.719286805 | F124: 10.93237174 | G124: 13.01025619 | H124: 6.950150798 | I124: 4.497480776 | J124: 11.76688316 | K124: 13.1725042 | L124: 13.87767839 | M124: 10.58712223 | N124: 9.566414796 | O124: 9.909583228 | P124: -1.536968641 | Q124: 6.079692493 | R124: 6.875426236 | S124: 12.09773201 | T124: 13.22908948 | U124: 10.74102011 | V124: 12.85445558 | W124: 4.016410141 | X124: 11.73141701 | Y124: 9.153900337 | Z124: 17.76444093 | AA124: 5.352014219 | AB124: 7.248683259 | AC124: 14.79713562 | AD124: 16.87686498 | AE124: 15.79401678 | AF124: 9.468530668 | AG124: 10.50379849 | AH124: 12.39625882 | AI124: 8.774061059 | AJ124: 8.162861863 | AK124: 8.654170846 | AL124: 13.19041148 | AM124: 7.849400825 | AN124: 7.730356808 | AO124: 11.05553187 | AP124: 8.572391587 | AQ124: 16.77650172 | AR124: 7.586505232 | AS124: 6.642209614 | AT124: 7.392610287 | AU124: 10.2412158 | AV124: 12.51464634 | AW124: -0.8836884378
D125: 124 | E125: 3.462982311 | F125: 14.09000807 | G125: 7.540892192 | H125: 8.03471958 | I125: 7.0571305 | J125: 11.1481378 | K125: 10.57521877 | L125: 10.20437759 | M125: 7.977835509 | N125: 9.200145684 | O125: 10.43420837 | P125: 13.56817691 | Q125: 8.980556117 | R125: 7.347414352 | S125: 5.071100208 | T125: 13.30864374 | U125: 9.421177782 | V125: 6.422267963 | W125: 10.42282044 | X125: 10.12568449 | Y125: 9.219674919 | Z125: 7.465225054 | AA125: 3.493503792 | AB125: 5.384320281 | AC125: 4.514333945 | AD125: 7.777540586 | AE125: 12.40811845 | AF125: 11.84579359 | AG125: 9.883276404 | AH125: 11.64863858 | AI125: 9.617452302 | AJ125: 13.31718458 | AK125: 14.25785836 | AL125: 9.242335402 | AM125: 9.922457915 | AN125: 13.31443149 | AO125: 6.212781561 | AP125: 9.855572194 | AQ125: 9.365237834 | AR125: 10.46318589 | AS125: 10.61582994 | AT125: 10.9724213 | AU125: 9.70561372 | AV125: 8.738228516 | AW125: -0.539874458
D126: 125 | E126: 7.339635457 | F126: 12.95466954 | G126: 13.54551212 | H126: 17.30227647 | I126: 11.65984783 | J126: 6.44506005 | K126: 5.127971622 | L126: 7.370971869 | M126: 13.78224676 | N126: 8.147100855 | O126: 10.73570769 | P126: 7.994855527 | Q126: 11.738101 | R126: 13.8492102 | S126: 11.20871934 | T126: 11.06740373 | U126: 9.281771612 | V126: 13.29161091 | W126: 6.97033306 | X126: 9.596907089 | Y126: 10.47049564 | Z126: 9.82871117 | AA126: 10.57676542 | AB126: 9.55788627 | AC126: 12.179549 | AD126: 7.88238965 | AE126: 11.04630205 | AF126: 12.78947535 | AG126: 5.472225283 | AH126: 7.846658142 | AI126: 11.4406142 | AJ126: 7.8102734 | AK126: 8.512214234 | AL126: 7.443150658 | AM126: 10.53649722 | AN126: 11.79488947 | AO126: 9.503731438 | AP126: 11.38727518 | AQ126: 7.825720864 | AR126: 9.528039031 | AS126: 11.81815135 | AT126: 11.45475141 | AU126: 9.820327981 | AV126: 3.93707777 | AW126: 0.7836818789
D127: 126 | E127: 11.07042978 | F127: 10.68825389 | G127: 14.99848216 | H127: 9.029509071 | I127: 12.74312269 | J127: 13.22034444 | K127: 2.425542787 | L127: 7.347691784 | M127: 10.80012449 | N127: 7.457139321 | O127: 9.919958453 | P127: 9.262598168 | Q127: 8.274162415 | R127: 6.470756455 | S127: 11.44676197 | T127: =NORMINV(RAND(), $B$3, SQRT($B$4)) -> 10.32678904 | U127: 6.09842541 | V127: 7.341940175 | W127: 13.17951595 | X127: 4.661143059 | Y127: 9.338134575 | Z127: 9.856743697 | AA127: 2.34478626 | AB127: 10.96236598 | AC127: 11.06028079 | AD127: 10.9866209 | AE127: 10.34934344 | AF127: 9.316395835 | AG127: 3.861452776 | AH127: 8.582384497 | AI127: 12.91918273 | AJ127: 7.849825118 | AK127: 12.27526017 | AL127: 9.448386725 | AM127: 9.455721582 | AN127: 3.613309297 | AO127: 14.16308721 | AP127: =NORMINV(RAND(), $B$3, SQRT($B$4)) -> 7.22517968 | AQ127: 13.09959854 | AR127: 2.099348347 | AS127: 11.88166122 | AT127: 15.96043193 | AU127: 9.372731151 | AV127: 15.25661264 | AW127: -0.03087420184
D128: 127 | E128: =NORMINV(RAND(), $B$3, SQRT($B$4)) -> 10.64264163 | F128: 7.941133985 | G128: 4.994928802 | H128: 11.38468643 | I128: 7.32395904 | J128: 10.26699046 | K128: 13.28919144 | L128: 1.216267301 | M128: 5.820065044 | N128: 1.502739748 | O128: 10.72185429 | P128: 10.81907145 | Q128: 14.93566528 | R128: 11.95274508 | S128: 9.178624022 | T128: 12.01919528 | U128: 11.09285985 | V128: 8.923952424 | W128: 6.515429561 | X128: 15.82371478 | Y128: 9.318285796 | Z128: 15.24914238 | AA128: =NORMINV(RAND(), $B$3, SQRT($B$4)) -> 18.70851977 | AB128: 9.317885529 | AC128: 15.54816253 | AD128: 13.00731897 | AE128: 13.38435011 | AF128: 16.12839236 | AG128: 8.703550739 | AH128: 10.24096784 | AI128: 9.975361506 | AJ128: 10.79383963 | AK128: 12.2031979 | AL128: 5.191907506 | AM128: 11.50920025 | AN128: 10.61593187 | AO128: 8.214081461 | AP128: 11.34493366 | AQ128: 8.673290961 | AR128: 6.787923144 | AS128: 9.319962491 | AT128: 8.047956374 | AU128: 10.88583673 | AV128: 10.72599757 | AW128: -1.375490867
D129: 128 | E129: 13.76996379 | F129: 9.443661257 | G129: 10.09095122 | H129: 7.467728369 | I129: 12.92001005 | J129: 8.618105009 | K129: 11.53426143 | L129: 10.10751272 | M129: 16.71854171 | N129: 6.442999497 | O129: 10.52831045 | P129: 6.073610217 | Q129: 7.351287309 | R129: 13.86386279 | S129: 10.83879225 | T129: 12.38327263 | U129: 5.270421675 | V129: 11.71815021 | W129: 6.019783795 | X129: 15.88643559 | Y129: 10.3523831 | Z129: 10.99418525 | AA129: 8.866625247 | AB129: 13.45237294 | AC129: 9.446748256 | AD129: 10.4606461 | AE129: 6.100453053 | AF129: 8.664607509 | AG129: 10.96269338 | AH129: 14.13267788 | AI129: 17.89894199 | AJ129: 9.611918839 | AK129: 15.1622341 | AL129: 7.124883178 | AM129: 8.655773561 | AN129: 5.603047732 | AO129: 11.37783786 | AP129: 12.56434421 | AQ129: 12.71285748 | AR129: 6.704111762 | AS129: 15.6510226 | AT129: 12.54574464 | AU129: 10.88497712 | AV129: 11.4086412 | AW129: -0.5032222945
D130: 129 | E130: 6.828447865 | F130: 6.911014076 | G130: 10.2520053 | H130: 16.94145622 | I130: 7.660858471 | J130: 7.711601524 | K130: 11.66442246 | L130: 7.349797655 | M130: 5.558343986 | N130: 12.02907763 | O130: 9.524816874 | P130: 14.50995175 | Q130: 7.086452078 | R130: 15.23729056 | S130: 9.492489598 | T130: 4.74589602 | U130: 5.446139436 | V130: 10.07764095 | W130: 9.647602162 | X130: 17.42411976 | Y130: 9.804971219 | Z130: 14.30352046 | AA130: 9.798001477 | AB130: 16.42921945 | AC130: 8.242884748 | AD130: 6.770299113 | AE130: 10.0757974 | AF130: -3.214759683 | AG130: 9.720250191 | AH130: 9.251778186 | AI130: 9.013171113 | AJ130: 8.316182342 | AK130: 11.66675183 | AL130: 13.30718272 | AM130: 11.99462874 | AN130: 11.29078642 | AO130: 6.237594529 | AP130: 14.3925814 | AQ130: 9.263681997 | AR130: 14.78602484 | AS130: 14.10061904 | AT130: 10.34909909 | AU130: 10.08958875 | AV130: 17.21116612 | AW130: -0.2267358237
D131: 130 | E131: 7.015627054 | F131: 5.284140147 | G131: 8.282576227 | H131: 6.877767995 | I131: 8.089417055 | J131: 10.33903283 | K131: 10.05822389 | L131: 17.44588876 | M131: 12.20038315 | N131: 3.249297836 | O131: 13.6072307 | P131: 9.201899013 | Q131: 12.28904088 | R131: 8.769021252 | S131: 8.944627945 | T131: 12.49772835 | U131: 16.65413843 | V131: 11.91003908 | W131: 17.81208574 | X131: 9.70655135 | Y131: =AVERAGE(E131:X131) -> 10.51173588 | Z131: =VAR(E131:X131) -> 15.00141906 | AA131: 8.913179742 | AB131: 7.343895881 | AC131: 11.70185976 | AD131: 11.83459541 | AE131: 9.575928062 | AF131: 12.27854591 | AG131: 9.881091061 | AH131: 6.504524694 | AI131: 7.148145237 | AJ131: 12.35296583 | AK131: 7.148738997 | AL131: 13.33100084 | AM131: 14.0203266 | AN131: 14.30051463 | AO131: 11.54788599 | AP131: 7.583889794 | AQ131: 3.188769549 | AR131: 9.156040559 | AS131: 8.682411681 | AT131: 12.97914664 | AU131: =AVERAGE(AA131:AT131) -> 9.973672844 | AV131: =VAR(AA131:AT131) -> 8.715295799 | AW131: =(Y131-AU131)/SQRT(Z131/20+AV131/20) -> 0.4941068705
D132: 131 | E132: 6.055764307 | F132: 9.63222267 | G132: 14.76879436 | H132: 3.1445637 | I132: 12.92046194 | J132: 10.04904437 | K132: 10.47430088 | L132: 12.35048365 | M132: 9.692325624 | N132: 7.614499082 | O132: 10.1030824 | P132: 12.5872045 | Q132: 13.06409056 | R132: 17.07205193 | S132: 8.305492964 | T132: 5.683040328 | U132: 14.0861088 | V132: 6.076010049 | W132: 12.85692434 | X132: 9.766563816 | Y132: 10.31515151 | Z132: 12.18081986 | AA132: 11.27624862 | AB132: 9.488716922 | AC132: 18.66760132 | AD132: 10.21627438 | AE132: 13.77492621 | AF132: 8.628250942 | AG132: 10.9070221 | AH132: 8.576554758 | AI132: 8.962057676 | AJ132: 9.09754804 | AK132: 12.3335089 | AL132: 11.05056184 | AM132: 2.680925169 | AN132: 2.972552542 | AO132: 13.52285665 | AP132: 8.262093244 | AQ132: 3.367738877 | AR132: 13.31714019 | AS132: 12.90651703 | AT132: 6.770935356 | AU132: 9.839001538 | AV132: 15.590366 | AW132: 0.4040745992
D133: 132 | E133: 4.310554677 | F133: 7.477878287 | G133: 10.32893814 | H133: 7.853600293 | I133: 17.2631243 | J133: 12.43535703 | K133: 7.968965197 | L133: 10.90069071 | M133: 19.99771865 | N133: 12.73815235 | O133: 14.29800161 | P133: 7.871521989 | Q133: 15.40299302 | R133: 3.853452451 | S133: 8.658992345 | T133: 9.403406403 | U133: 9.899571138 | V133: 8.605379183 | W133: 5.838367553 | X133: 18.01291499 | Y133: 10.65597902 | Z133: 20.08015665 | AA133: 8.122508444 | AB133: 18.270653 | AC133: 11.06039017 | AD133: 3.26945741 | AE133: 9.667031559 | AF133: 6.846566959 | AG133: 7.99717428 | AH133: 13.74106872 | AI133: 9.667152147 | AJ133: 5.787541014 | AK133: 7.771897954 | AL133: 11.93724881 | AM133: 6.310521042 | AN133: 9.939191301 | AO133: 13.56018229 | AP133: 4.473125735 | AQ133: 16.33210161 | AR133: 7.859800954 | AS133: 13.19143222 | AT133: 9.99966129 | AU133: 9.790235346 | AV133: 14.93718729 | AW133: 0.6542786091
D134: 133 | E134: 11.33605905 | F134: 12.42499302 | G134: 10.35912088 | H134: 11.74303515 | I134: 6.600766354 | J134: 3.859470054 | K134: 13.22584259 | L134: 17.18442909 | M134: 12.60142057 | N134: 13.17624345 | O134: 8.775473122 | P134: 9.653003033 | Q134: 12.05144095 | R134: 13.04669934 | S134: 7.82453689 | T134: 9.116400211 | U134: 12.26601733 | V134: 7.750064059 | W134: 15.33569867 | X134: 5.508751077 | Y134: 10.69197324 | Z134: 10.99248563 | AA134: 7.629139143 | AB134: 14.98867987 | AC134: 5.966369943 | AD134: 14.00082333 | AE134: 13.53556299 | AF134: 11.40049981 | AG134: 7.473345498 | AH134: 11.76274292 | AI134: 8.19438857 | AJ134: 9.852223036 | AK134: 4.50411795 | AL134: 9.311785167 | AM134: 9.66363701 | AN134: 13.60199266 | AO134: 11.85369261 | AP134: 8.781685161 | AQ134: 14.55722787 | AR134: 6.145906717 | AS134: 13.96120765 | AT134: 15.22381001 | AU134: 10.62044189 | AV134: 11.03203479 | AW134: 0.06816448932
D135: 134 | E135: 4.917569571 | F135: 3.04732666 | G135: 10.00818986 | H135: 10.45518188 | I135: 13.76811214 | J135: 10.69898799 | K135: 13.25084224 | L135: 5.154641801 | M135: 11.75067929 | N135: 13.5377524 | O135: 10.34861421 | P135: 6.192995844 | Q135: 7.051734139 | R135: 9.928009121 | S135: 13.8243279 | T135: 6.780884107 | U135: 8.919512208 | V135: 13.51942977 | W135: 8.158946935 | X135: 12.99431073 | Y135: 9.71540244 | Z135: 11.12005649 | AA135: 9.899266769 | AB135: 8.874376297 | AC135: 16.36571291 | AD135: 16.30750542 | AE135: 16.37158355 | AF135: 9.528321322 | AG135: 9.85420292 | AH135: -0.143161669 | AI135: 6.668532517 | AJ135: 14.50493983 | AK135: 10.18783913 | AL135: 5.298472616 | AM135: 9.034530943 | AN135: 5.8308143 | AO135: 10.97650046 | AP135: 10.6071414 | AQ135: 6.82822092 | AR135: 10.92597843 | AS135: 9.282341619 | AT135: 12.05896274 | AU135: 9.963104121 | AV135: 16.53276913 | AW135: -0.2106561748
D136: 135 | E136: 13.55423797 | F136: 10.12038118 | G136: 11.647591 | H136: 14.27164076 | I136: 15.52904307 | J136: 11.16460609 | K136: 6.514941816 | L136: 12.80082048 | M136: 10.37195882 | N136: 11.89677325 | O136: 6.831007326 | P136: 15.37838304 | Q136: 7.145350451 | R136: 10.18657902 | S136: 10.18995711 | T136: 8.724881711 | U136: 8.366429571 | V136: 12.28394042 | W136: 10.5433767 | X136: 8.177233513 | Y136: 10.78495666 | Z136: 7.224022119 | AA136: 7.355381817 | AB136: 8.841424731 | AC136: 10.13961305 | AD136: 7.664314504 | AE136: 9.47822535 | AF136: 12.18025474 | AG136: 11.27447494 | AH136: 3.642873866 | AI136: 19.02179512 | AJ136: 13.94877286 | AK136: 9.961785553 | AL136: 10.08888122 | AM136: 14.47274607 | AN136: 13.0745394 | AO136: 13.89992993 | AP136: 6.724213116 | AQ136: 8.85554018 | AR136: 16.48640726 | AS136: 15.0830765 | AT136: 10.14359209 | AU136: 11.11689212 | AV136: 13.55580787 | AW136: -0.3256474187
D137: 136 | E137: 3.770244934 | F137: 12.53595796 | G137: 14.21035762 | H137: 13.09024701 | I137: 14.29527993 | J137: 9.914580426 | K137: 10.96810342 | L137: 12.0863084 | M137: 11.64229123 | N137: 9.432074797 | O137: 8.830813981 | P137: 11.34109674 | Q137: 10.18658479 | R137: 9.00549857 | S137: 10.3121156 | T137: 9.225999626 | U137: 10.25779922 | V137: 9.970032246 | W137: 7.416372095 | X137: 10.23778651 | Y137: 10.43647726 | Z137: 5.639927568 | AA137: 9.166374517 | AB137: 7.19688258 | AC137: 9.744686878 | AD137: 11.52952562 | AE137: 14.26629786 | AF137: 9.172571508 | AG137: 6.372053396 | AH137: 14.37602021 | AI137: 4.454815093 | AJ137: 4.166595334 | AK137: 3.334561091 | AL137: 9.249398212 | AM137: 8.757115788 | AN137: 9.74013795 | AO137: 8.355882827 | AP137: 9.654191492 | AQ137: 10.15494688 | AR137: 8.799043372 | AS137: 11.90147451 | AT137: 10.50639352 | AU137: 9.044948432 | AV137: 8.602871093 | AW137: 1.648957784
D138: 137 | E138: 10.21038525 | F138: 7.508006234 | G138: 11.99450557 | H138: 9.543545172 | I138: 6.175098747 | J138: 10.13449789 | K138: 8.375406035 | L138: 6.453591533 | M138: 15.49928088 | N138: 3.758767734 | O138: 10.24135946 | P138: 6.860223716 | Q138: 5.114032932 | R138: 12.35080168 | S138: 14.33479307 | T138: 9.317494476 | U138: 16.67137515 | V138: 13.65993648 | W138: 10.76121592 | X138: 11.38617983 | Y138: 10.01752489 | Z138: 12.0246772 | AA138: 10.8032545 | AB138: 10.922476 | AC138: 12.33573418 | AD138: 9.136483336 | AE138: 12.82702899 | AF138: 8.581105767 | AG138: 8.551774432 | AH138: 10.0088092 | AI138: 10.89483559 | AJ138: 9.32965392 | AK138: 7.545133129 | AL138: 10.05932819 | AM138: 10.27725734 | AN138: 10.64308528 | AO138: 10.68827792 | AP138: 9.966662373 | AQ138: 13.04956952 | AR138: 12.10105732 | AS138: 8.13957693 | AT138: 11.56345017 | AU138: 10.3712277 | AV138: 2.363642316 | AW138: -0.4170119298
D139: 138 | E139: 4.398383721 | F139: 15.08509655 | G139: 13.22733982 | H139: 10.21732169 | I139: 7.31857882 | J139: 11.57060965 | K139: 9.6398152 | L139: 11.0309012 | M139: 8.794346306 | N139: 9.009425887 | O139: 9.197515737 | P139: 10.25246772 | Q139: 10.93604102 | R139: 12.76626009 | S139: 12.47429564 | T139: 12.78996109 | U139: 9.831737192 | V139: 9.991199201 | W139: 10.62354937 | X139: 7.92327456 | Y139: 10.35390602 | Z139: 5.597396768 | AA139: 12.13324159 | AB139: 7.499762607 | AC139: 15.73505667 | AD139: 4.372703496 | AE139: 13.86176625 | AF139: 8.249776328 | AG139: 10.98404677 | AH139: 9.119006244 | AI139: 14.48453235 | AJ139: 11.650555 | AK139: 11.42430248 | AL139: 11.21458396 | AM139: 9.494224551 | AN139: 8.517239539 | AO139: 7.08616087 | AP139: 4.697700221 | AQ139: 7.210774702 | AR139: 8.065749025 | AS139: 7.392381292 | AT139: 11.8993188 | AU139: 9.754644137 | AV139: 9.536995354 | AW139: 0.6888888632
D140: 139 | E140: 6.388501806 | F140: 10.50855187 | G140: 10.60611908 | H140: 12.63824804 | I140: 18.47389544 | J140: 13.06716071 | K140: 11.93502491 | L140: 7.807215531 | M140: 11.50418855 | N140: 10.57397629 | O140: 9.226689838 | P140: 13.22357595 | Q140: 9.714896394 | R140: 5.889358148 | S140: 10.06261233 | T140: 15.60085296 | U140: 8.231225508 | V140: 9.241776666 | W140: 8.004241992 | X140: 9.323641366 | Y140: 10.60108767 | Z140: 9.1183025 | AA140: 9.510312164 | AB140: 7.334781774 | AC140: 9.866949858 | AD140: 6.998280297 | AE140: 16.01471104 | AF140: 8.848710491 | AG140: 14.07997715 | AH140: 6.078393938 | AI140: 6.836682767 | AJ140: 10.73232027 | AK140: 9.542506808 | AL140: 6.697192952 | AM140: 7.254202644 | AN140: 2.190426678 | AO140: 9.417586399 | AP140: 6.995844175 | AQ140: 10.62048867 | AR140: 9.130197752 | AS140: 12.7006585 | AT140: 12.14617999 | AU140: 9.149820216 | AV140: 9.686180175 | AW140: 1.49668966
D141: 140 | E141: 15.53977602 | F141: 14.74113964 | G141: 7.979605501 | H141: 2.610041885 | I141: 5.494453016 | J141: 13.12350268 | K141: 11.65319974 | L141: 6.208942234 | M141: 14.96452487 | N141: 3.584484461 | O141: 6.903827329 | P141: 4.328169814 | Q141: 5.4216335 | R141: 5.993399388 | S141: 10.41178505 | T141: 7.059723938 | U141: 12.95066615 | V141: 3.15272466 | W141: 5.786822832 | X141: 8.717616824 | Y141: 8.331301977 | Z141: 17.45835234 | AA141: 4.829371516 | AB141: 11.41585035 | AC141: 9.083989903 | AD141: 9.692473804 | AE141: 15.07509272 | AF141: 11.95258667 | AG141: 10.50169411 | AH141: 11.69790286 | AI141: 9.521274242 | AJ141: 8.162415729 | AK141: 3.85985319 | AL141: 9.294089929 | AM141: 7.853244134 | AN141: 11.50969074 | AO141: 6.458084948 | AP141: 10.33646135 | AQ141: 8.658570068 | AR141: 9.309293236 | AS141: 9.544349979 | AT141: 12.63920095 | AU141: 9.569774521 | AV141: 6.814565308 | AW141: -1.124191739
D142: 141 | E142: 11.08814862 | F142: 9.284321957 | G142: 8.17914943 | H142: 17.5128333 | I142: 15.19512152 | J142: 12.49240243 | K142: 14.5372822 | L142: 12.1689975 | M142: 7.519380563 | N142: 5.967087585 | O142: 7.32634597 | P142: 13.03873744 | Q142: 3.824890035 | R142: 3.712508894 | S142: 13.61173247 | T142: 9.220511621 | U142: 11.18547348 | V142: 11.71548075 | W142: 9.061777132 | X142: 7.461721136 | Y142: 10.2051952 | Z142: 13.73123422 | AA142: 9.252184378 | AB142: 8.898473404 | AC142: 13.89346025 | AD142: 9.295638434 | AE142: 13.69476313 | AF142: 9.847628252 | AG142: 9.173536094 | AH142: 7.546705527 | AI142: 13.22952351 | AJ142: 10.7705502 | AK142: 7.600785109 | AL142: 12.33797903 | AM142: 10.90534433 | AN142: 9.146562079 | AO142: 13.16089062 | AP142: 8.788859111 | AQ142: 12.01206421 | AR142: 3.805679131 | AS142: 5.465595996 | AT142: 10.55547948 | AU142: 9.969085114 | AV142: 7.1749608 | AW142: 0.2309362133
D143: 142 | E143: 7.894025009 | F143: 11.35901859 | G143: 7.18980793 | H143: 8.135226996 | I143: 8.095198066 | J143: 5.281667037 | K143: 11.63684847 | L143: 5.323533612 | M143: 10.9929841 | N143: 7.703066583 | O143: 11.20987848 | P143: 11.194004 | Q143: 5.046710477 | R143: 8.894081054 | S143: 11.63339168 | T143: =NORMINV(RAND(), $B$3, SQRT($B$4)) -> 11.7626452 | U143: 13.34707969 | V143: 2.994920003 | W143: 9.981197333 | X143: 5.163944565 | Y143: 8.741961444 | Z143: 8.462590173 | AA143: 9.594353338 | AB143: 17.85960764 | AC143: 13.97357772 | AD143: 4.346677936 | AE143: 10.63112715 | AF143: 10.47123222 | AG143: 13.28542254 | AH143: 9.996779226 | AI143: 8.878414656 | AJ143: 13.43034994 | AK143: 13.95853973 | AL143: 11.7699317 | AM143: 11.0688364 | AN143: 11.07126771 | AO143: 8.214952747 | AP143: =NORMINV(RAND(), $B$3, SQRT($B$4)) -> 9.081070731 | AQ143: 9.033893018 | AR143: 9.666639145 | AS143: 12.35791843 | AT143: 12.48179146 | AU143: 11.05861917 | AV143: 7.873716517 | AW143: -2.563302924
D144: 143 | E144: =NORMINV(RAND(), $B$3, SQRT($B$4)) -> 16.0445819 | F144: 5.175827496 | G144: 5.255003547 | H144: 15.71836244 | I144: 10.37539514 | J144: 11.07800455 | K144: 8.233640622 | L144: 8.885281168 | M144: 11.94518937 | N144: 7.454335724 | O144: 6.40906594 | P144: 9.795964185 | Q144: 12.17836848 | R144: 10.54754085 | S144: 10.50318411 | T144: 10.07053702 | U144: 10.52713591 | V144: 11.19052614 | W144: 8.598784751 | X144: 9.291838272 | Y144: 9.963928381 | Z144: 8.069888152 | AA144: =NORMINV(RAND(), $B$3, SQRT($B$4)) -> 5.068801403 | AB144: 8.700015954 | AC144: 9.442811883 | AD144: 15.83637633 | AE144: 10.94952382 | AF144: 11.62840963 | AG144: 19.88943433 | AH144: 6.440998488 | AI144: 12.57804797 | AJ144: 12.56313986 | AK144: 11.36978563 | AL144: 7.036875511 | AM144: 8.017386319 | AN144: 7.675499692 | AO144: 6.263018915 | AP144: 12.58295908 | AQ144: 9.294993646 | AR144: 12.35589153 | AS144: 11.69910215 | AT144: 10.46039567 | AU144: 10.49267339 | AV144: 12.23873538 | AW144: -0.5247120461
D145: 144 | E145: 10.96917205 | F145: 11.82777326 | G145: 11.94659648 | H145: 15.73425285 | I145: 10.36888843 | J145: 8.107072319 | K145: 16.72910438 | L145: 10.47204254 | M145: 10.83831948 | N145: 7.938952368 | O145: 13.27468946 | P145: 7.748737126 | Q145: 8.576150164 | R145: 13.81182156 | S145: 3.454842794 | T145: 14.54587412 | U145: 10.54770687 | V145: 7.216417767 | W145: 10.64313791 | X145: 17.48374083 | Y145: 11.11176464 | Z145: 12.14345419 | AA145: 10.87823111 | AB145: 9.113684129 | AC145: 5.438145596 | AD145: 13.86765587 | AE145: 10.4873324 | AF145: 13.83619851 | AG145: 8.796728791 | AH145: 12.84329764 | AI145: 12.02901153 | AJ145: 11.27816616 | AK145: 3.258916905 | AL145: 13.286681 | AM145: 7.871681042 | AN145: 10.91767941 | AO145: 8.094339905 | AP145: 13.14751108 | AQ145: 8.180985005 | AR145: 12.13773601 | AS145: 7.574256082 | AT145: 14.149773 | AU145: 10.35940056 | AV145: 9.00619772 | AW145: 0.7316298868
D146: 145 | E146: 10.4726022 | F146: 7.294551995 | G146: 8.604128325 | H146: 10.03125226 | I146: 11.79809876 | J146: 9.308513168 | K146: 8.828985964 | L146: 6.670919304 | M146: 8.018205403 | N146: 7.614415153 | O146: 10.43798827 | P146: 14.26110623 | Q146: 7.964760925 | R146: 10.10725176 | S146: 8.99282775 | T146: 12.39024697 | U146: 10.61853069 | V146: 8.304242888 | W146: 12.37358526 | X146: 11.79741764 | Y146: 9.794481546 | Z146: 3.988652464 | AA146: 4.28368852 | AB146: 10.00403126 | AC146: 7.712807574 | AD146: 12.30661124 | AE146: 5.699553722 | AF146: 8.859894401 | AG146: 10.87345473 | AH146: 4.470546665 | AI146: 10.70172986 | AJ146: 5.423401301 | AK146: 14.11873875 | AL146: 7.525887949 | AM146: 14.16681177 | AN146: 8.199571136 | AO146: 14.13599406 | AP146: 11.47973877 | AQ146: 8.460472988 | AR146: 11.17529576 | AS146: 7.889165009 | AT146: 5.717277253 | AU146: 9.160233636 | AV146: 10.06457385 | AW146: 0.7566342958
D147: 146 | E147: 8.64563814 | F147: 8.975782316 | G147: 9.723108292 | H147: 13.28335088 | I147: 7.063358033 | J147: 6.925465873 | K147: 16.09028709 | L147: 12.73852056 | M147: 10.67780079 | N147: 6.703557574 | O147: 15.12115499 | P147: 9.630197017 | Q147: 6.569660958 | R147: 12.87203959 | S147: 8.554936705 | T147: 11.18075544 | U147: 8.352224885 | V147: 7.824922243 | W147: 11.87297725 | X147: 11.98907172 | Y147: 10.23974052 | Z147: 7.966122189 | AA147: 9.878196335 | AB147: 8.016981802 | AC147: 5.114144053 | AD147: 8.61059122 | AE147: 12.16451564 | AF147: 13.76332592 | AG147: 9.509544045 | AH147: 7.798325616 | AI147: 8.350040853 | AJ147: 7.79796236 | AK147: 6.922415052 | AL147: 5.846421077 | AM147: 10.28937009 | AN147: 13.41727429 | AO147: 7.256007859 | AP147: 6.942823212 | AQ147: 10.85865081 | AR147: 8.912329636 | AS147: 12.9155654 | AT147: 9.130556278 | AU147: 9.174752077 | AV147: 6.009125901 | AW147: 1.27403139
D148: 147 | E148: 9.160084153 | F148: 6.944528002 | G148: 6.767474533 | H148: 6.343263715 | I148: 7.455342499 | J148: 15.1874791 | K148: 10.18335307 | L148: 7.576739699 | M148: 11.33774933 | N148: 10.25718061 | O148: 8.76402955 | P148: 12.02723782 | Q148: 6.219589089 | R148: 8.800983449 | S148: 9.754591859 | T148: 5.648736799 | U148: 18.52584194 | V148: 10.02323182 | W148: 10.56343467 | X148: 10.52620884 | Y148: 9.603354027 | Z148: 9.763555187 | AA148: 8.060460647 | AB148: 7.483631273 | AC148: 7.759087752 | AD148: 11.04968628 | AE148: 15.02461783 | AF148: 8.856809038 | AG148: 4.661558115 | AH148: 5.46836713 | AI148: 5.919706553 | AJ148: 12.7747006 | AK148: 9.088785866 | AL148: 10.24469092 | AM148: 9.3062823 | AN148: 14.64075207 | AO148: 10.22470363 | AP148: 11.22709727 | AQ148: 13.52390707 | AR148: 16.32766824 | AS148: 5.792474737 | AT148: 10.83027787 | AU148: 9.913263259 | AV148: 11.12196207 | AW148: -0.3032682145
D149: 148 | E149: 14.54728519 | F149: 8.709271926 | G149: 10.62036482 | H149: 12.87772711 | I149: 13.05814708 | J149: 8.414348181 | K149: 10.25136985 | L149: 8.201379811 | M149: 11.64147632 | N149: 8.324473622 | O149: 5.917633724 | P149: 11.17813442 | Q149: 12.68729217 | R149: 10.67174412 | S149: 6.734907174 | T149: 17.14487144 | U149: 9.320782767 | V149: 8.458489575 | W149: 9.305107694 | X149: 12.25664231 | Y149: 10.51607247 | Z149: 7.484176594 | AA149: 7.91725865 | AB149: 8.298977738 | AC149: 9.807674604 | AD149: 8.002636872 | AE149: 5.583993751 | AF149: 10.70381659 | AG149: 5.330862488 | AH149: 10.1762994 | AI149: 10.43651987 | AJ149: 8.138742233 | AK149: 14.52974707 | AL149: 10.94786498 | AM149: 8.244580355 | AN149: 10.3606082 | AO149: 9.706492518 | AP149: 9.348106271 | AQ149: 11.910528 | AR149: 8.96615735 | AS149: 14.7248772 | AT149: 8.633774397 | AU149: 9.588475927 | AV149: 5.65282163 | AW149: 1.144527012
D150: 149 | E150: 9.215185521 | F150: 12.90281511 | G150: 12.03204042 | H150: 6.79056895 | I150: 10.65551474 | J150: 4.809265472 | K150: 8.304631509 | L150: 7.313623942 | M150: 10.71313157 | N150: 7.808945162 | O150: 9.756771841 | P150: 9.690263326 | Q150: 4.520883579 | R150: 10.0977356 | S150: 8.280183201 | T150: 10.25144088 | U150: 5.930808049 | V150: 13.50759731 | W150: 8.562901837 | X150: 8.622143686 | Y150: 8.988322586 | Z150: 5.884596516 | AA150: 5.878058096 | AB150: 10.44966682 | AC150: 12.47414248 | AD150: 7.614781965 | AE150: 4.773574124 | AF150: 5.235290863 | AG150: 6.64715118 | AH150: 8.521745497 | AI150: 10.86230241 | AJ150: 9.898737445 | AK150: 11.31503122 | AL150: 11.59964847 | AM150: 12.69511511 | AN150: 6.988034652 | AO150: 13.53899859 | AP150: 11.45499168 | AQ150: 5.911605341 | AR150: 7.81401844 | AS150: 9.960425579 | AT150: 11.45445813 | AU150: 9.254388904 | AV150: 7.418891615 | AW150: -0.3262286775
D151: 150 | E151: 10.46587254 | F151: 11.36428788 | G151: 13.190927 | H151: 12.44157124 | I151: 10.76223768 | J151: 6.523785181 | K151: 14.67712225 | L151: 6.320848113 | M151: 3.098893593 | N151: 12.21932862 | O151: 15.51001573 | P151: 9.396887688 | Q151: 10.15921686 | R151: 8.925491621 | S151: 6.630982802 | T151: 11.18351893 | U151: 9.155087992 | V151: 10.0649899 | W151: 11.31903486 | X151: 10.61219331 | Y151: 10.20111469 | Z151: 8.711985325 | AA151: 9.254549603 | AB151: 7.005198645 | AC151: 12.4297668 | AD151: 11.48015249 | AE151: 10.63638033 | AF151: 12.5131581 | AG151: 6.155879442 | AH151: 4.961413155 | AI151: 11.20099306 | AJ151: 13.71073021 | AK151: 8.940417624 | AL151: 15.61595068 | AM151: 10.65854196 | AN151: 11.21711638 | AO151: 10.78447994 | AP151: 9.68445734 | AQ151: 14.51962111 | AR151: 14.74132264 | AS151: 2.613762798 | AT151: 13.769951 | AU151: 10.59469217 | AV151: 11.55848576 | AW151: -0.3909428849
D152: 151 | E152: 8.655206627 | F152: 9.666200775 | G152: 12.17830357 | H152: 8.807677415 | I152: 6.420899399 | J152: 7.817516664 | K152: 13.02724836 | L152: 14.38476251 | M152: 16.58770681 | N152: 12.06662974 | O152: 13.11514317 | P152: 10.74439854 | Q152: 12.29024967 | R152: 9.216322253 | S152: 10.788781 | T152: 9.041770536 | U152: 9.339645881 | V152: 11.97535534 | W152: 18.44572898 | X152: 10.96396707 | Y152: 11.27667572 | Z152: 8.598768874 | AA152: 6.053444664 | AB152: 7.697042607 | AC152: 8.504068913 | AD152: 10.39389499 | AE152: 3.649848318 | AF152: 5.460588298 | AG152: 12.49976462 | AH152: 7.085632757 | AI152: 5.487856336 | AJ152: 8.212258141 | AK152: 5.537962893 | AL152: 8.074720416 | AM152: 9.471459971 | AN152: 9.67827595 | AO152: 8.988251445 | AP152: 16.31099676 | AQ152: 10.49133494 | AR152: 11.23574218 | AS152: 4.087169471 | AT152: 10.91322153 | AU152: 8.49167676 | AV152: 9.442908464 | AW152: 2.932253941
D153: 152 | E153: 10.67717262 | F153: 10.31188286 | G153: 8.740760728 | H153: 10.46049252 | I153: 9.525524623 | J153: 13.69472945 | K153: 8.678366639 | L153: 11.66636111 | M153: 4.451678088 | N153: 13.14665355 | O153: 5.352218086 | P153: 7.773081391 | Q153: 8.757465398 | R153: 6.989529204 | S153: 9.580872767 | T153: 5.180392802 | U153: 6.091557481 | V153: 5.358370962 | W153: 6.697838787 | X153: 13.98455056 | Y153: 8.855974982 | Z153: 8.391386473 | AA153: 14.05388956 | AB153: 11.03312031 | AC153: 8.497771346 | AD153: 9.268875502 | AE153: 11.33806398 | AF153: 8.575302924 | AG153: 2.966803654 | AH153: 5.320807645 | AI153: 12.28077074 | AJ153: 6.108410585 | AK153: 6.970168216 | AL153: 5.074915967 | AM153: 6.249642634 | AN153: 9.820690582 | AO153: 8.584756175 | AP153: 5.998110884 | AQ153: 11.01306867 | AR153: 8.234489328 | AS153: 8.449754113 | AT153: 13.69955325 | AU153: 8.676948303 | AV153: 8.768185172 | AW153: 0.1932767133
D154: 153 | E154: 9.605005728 | F154: 12.05140429 | G154: 12.61190861 | H154: 11.77678054 | I154: 8.276257137 | J154: 11.83542823 | K154: 12.25460738 | L154: 8.830797382 | M154: 6.241329957 | N154: 14.24690173 | O154: 12.44334637 | P154: 11.16759952 | Q154: 13.62422651 | R154: 8.578920325 | S154: 6.362122383 | T154: 7.437312008 | U154: 9.616711261 | V154: 14.30361729 | W154: 8.647499119 | X154: 8.541335783 | Y154: 10.42265558 | Z154: 6.349416942 | AA154: 5.609939731 | AB154: 10.27675424 | AC154: 9.346997112 | AD154: 9.083869271 | AE154: 8.008804953 | AF154: 11.54029734 | AG154: 19.00242029 | AH154: 9.015200775 | AI154: 10.89543175 | AJ154: 8.771125453 | AK154: 7.222939845 | AL154: 12.10079816 | AM154: 12.26303532 | AN154: 6.408654516 | AO154: 9.893508576 | AP154: 9.384576371 | AQ154: 8.010701216 | AR154: 11.53519573 | AS154: 13.68809976 | AT154: 10.01558497 | AU154: 10.10369677 | AV154: 8.500717216 | AW154: 0.3701556731
D155: 154 | E155: 10.02056356 | F155: 7.680945567 | G155: 9.660319288 | H155: 8.296957641 | I155: 11.6744663 | J155: 10.7290287 | K155: 13.78061318 | L155: 5.258630126 | M155: 9.869177927 | N155: 10.6596419 | O155: 13.28118224 | P155: 10.23872974 | Q155: 3.607407039 | R155: 13.64566972 | S155: 13.17771852 | T155: 7.286540174 | U155: 14.17177054 | V155: 6.603162028 | W155: 12.82916472 | X155: 7.498483417 | Y155: 9.998508616 | Z155: 9.18943741 | AA155: 8.558064381 | AB155: 13.2917479 | AC155: 11.03448439 | AD155: 6.913289883 | AE155: 13.48103202 | AF155: 5.440482851 | AG155: 8.379515063 | AH155: 16.61052303 | AI155: 5.98286064 | AJ155: 11.69485144 | AK155: 9.732881379 | AL155: 13.21696854 | AM155: 14.16271228 | AN155: 2.922628505 | AO155: 12.96542554 | AP155: 12.02757469 | AQ155: 16.46338518 | AR155: 2.660581274 | AS155: 6.788907392 | AT155: -0.2757996086 | AU155: 9.602605838 | AV155: 22.15178791 | AW155: 0.3162609428
D156: 155 | E156: 4.329798746 | F156: 7.223545527 | G156: 11.18704134 | H156: 8.373945031 | I156: 11.02806369 | J156: 10.53079838 | K156: 6.109229902 | L156: 7.905982559 | M156: 14.3669462 | N156: 13.23492284 | O156: 13.72861236 | P156: 5.995855882 | Q156: 8.232949261 | R156: 16.923238 | S156: 6.226916834 | T156: 9.341160165 | U156: 9.782684398 | V156: 12.57558695 | W156: 14.2807584 | X156: 10.42228506 | Y156: 10.09001608 | Z156: 11.31533076 | AA156: 5.891699359 | AB156: 9.173871601 | AC156: 8.234059272 | AD156: 11.33156234 | AE156: 16.09123661 | AF156: 16.52127557 | AG156: 9.256020528 | AH156: 16.5454452 | AI156: 9.56377538 | AJ156: 7.107765553 | AK156: 17.03767378 | AL156: 5.740849819 | AM156: 14.98431223 | AN156: 10.3098947 | AO156: 10.56652581 | AP156: 7.683891654 | AQ156: 5.813882869 | AR156: 8.971882864 | AS156: 14.50049048 | AT156: 9.942648759 | AU156: 10.76343822 | AV156: 14.71102989 | AW156: -0.5903311061
D157: 156 | E157: 5.807271685 | F157: 10.23476219 | G157: 12.76899784 | H157: 14.0185577 | I157: 10.58753467 | J157: 11.95151899 | K157: 17.82903524 | L157: 8.244398569 | M157: 12.05454835 | N157: 10.2060663 | O157: 12.63617143 | P157: 9.871000861 | Q157: 7.413410701 | R157: 9.493390023 | S157: 9.266926064 | T157: 12.19735124 | U157: 6.934053511 | V157: 8.591137685 | W157: 11.00390509 | X157: 12.20101294 | Y157: 10.66555255 | Z157: 7.468437492 | AA157: 13.07424595 | AB157: 15.44434347 | AC157: 9.665348886 | AD157: 8.81873734 | AE157: 9.699560217 | AF157: 9.24585791 | AG157: 11.69380743 | AH157: 9.163066005 | AI157: 11.00505605 | AJ157: 10.46124973 | AK157: 4.564274891 | AL157: 12.44098658 | AM157: 11.17800129 | AN157: 9.958986568 | AO157: 9.13082179 | AP157: 13.59809234 | AQ157: 9.426435981 | AR157: 8.103969712 | AS157: 12.71560069 | AT157: 14.24036791 | AU157: 10.68144054 | AV157: 6.138899114 | AW157: -0.01926181618
D158: 157 | E158: 12.58975313 | F158: 11.42268736 | G158: 10.84652719 | H158: 11.04512341 | I158: 9.85985397 | J158: 13.13674796 | K158: 17.5228785 | L158: 14.93751939 | M158: 7.724843309 | N158: 13.54744445 | O158: 3.088789836 | P158: 11.33227727 | Q158: 8.456489332 | R158: 9.507630749 | S158: 7.973028477 | T158: 8.809978107 | U158: 7.147207581 | V158: 13.2268875 | W158: 11.66613916 | X158: 8.323942378 | Y158: 10.60828745 | Z158: 10.18724369 | AA158: 10.50036793 | AB158: 11.64407291 | AC158: 12.56064136 | AD158: 8.902246861 | AE158: 6.740500204 | AF158: 11.27952224 | AG158: 17.37987215 | AH158: 17.16013824 | AI158: 4.826063429 | AJ158: 11.47387574 | AK158: 8.423888317 | AL158: 12.00995922 | AM158: 14.69320635 | AN158: 12.64627161 | AO158: 8.736454664 | AP158: 7.856995952 | AQ158: 14.65645706 | AR158: 12.11697465 | AS158: 10.11449762 | AT158: 11.5199957 | AU158: 11.26210011 | AV158: 10.31687271 | AW158: -0.6457252858
D159: 158 | E159: 10.17175244 | F159: 9.695203916 | G159: 11.34646973 | H159: 6.369913418 | I159: 10.79582898 | J159: 13.63547893 | K159: 13.56027833 | L159: 10.06923679 | M159: 6.659321224 | N159: 15.68760324 | O159: 5.079375991 | P159: 10.56137556 | Q159: 9.182866565 | R159: 8.498373342 | S159: 0.2615867815 | T159: =NORMINV(RAND(), $B$3, SQRT($B$4)) -> 8.013374952 | U159: 10.20552974 | V159: 11.71694707 | W159: 10.9295652 | X159: 11.1069986 | Y159: 9.67735404 | Z159: 11.28334859 | AA159: 12.22474098 | AB159: 11.38823759 | AC159: 8.796952965 | AD159: 9.397011939 | AE159: 9.867183149 | AF159: 10.72517994 | AG159: 8.51117301 | AH159: 11.43327196 | AI159: 11.7003459 | AJ159: 12.56203746 | AK159: 14.06007594 | AL159: 10.110858 | AM159: 7.644375868 | AN159: 4.870025908 | AO159: 13.02144712 | AP159: =NORMINV(RAND(), $B$3, SQRT($B$4)) -> 6.750499925 | AQ159: 10.62515944 | AR159: 7.369806696 | AS159: 14.75409381 | AT159: 14.4414883 | AU159: 10.5126983 | AV159: 7.125656893 | AW159: -0.8706935445
